Workbook

Sheet ACCUEIL
H7: 2019-09-30
A22: Lexique

Sheet Accueilagence
A1: Accueil
E7: =ACCUEIL!H7 -> 2019-09-30

Sheet Accueilsecteur
A1: Accueil
E7: =ACCUEIL!H7 -> 2019-09-30

Sheet AccueilDircom
A1: Accueil
E7: =ACCUEIL!H7 -> 2019-09-30

Sheet DC_FICHE
A1: Accueil
A2: BAROMETRE BDD
A4: UNITE: | B4: DIRECTION REGIONALE | K4: ETP perf : | L4: =VLOOKUP(A5,'RECAP DIRCOM'!$G$6:$I$12,3,FALSE) -> 298.30
A5: =VLOOKUP(B5,LISTES!$M$6:$N$12,2,FALSE) -> 262 | B5: BAS-RHIN
C6: Coefficient du critére | E6: Résultats | I6: Ecart au 1ier | M6: Evolution | O6: Rang
E7: du 1ier | G7: DIRECTION | I7: Du mois | K7: Au 31/12/2018
A9: RANG au CLASSEMENT GENERAL | I9: =VLOOKUP($A$5,'RECAP DIRCOM'!$G$6:$FE$312,154,FALSE) -> 7 | K9: =VLOOKUP($A$5,'RECAP DIRCOM AN'!$G$6:$FE$312,154,FALSE) -> 5 | M9: =+K9-I9 -> -2
A11: CRITERE CONQUETE | C11: 15% | O11: =VLOOKUP($A$5,'RECAP DIRCOM'!$G$6:$FE$312,19,FALSE) -> 7
B12: Evolution nette Clients Bancarisés Principaux (BP +JBP) par ETP | C12: 4% | E12: ='RECAP DIRCOM'!K4 -> 0.9 | G12: =VLOOKUP($A$5,'RECAP DIRCOM'!$G$6:$FE$312,5,FALSE) -> -2.1 | I12: =VLOOKUP($A$5,'RECAP DIRCOM'!$G$6:$FE$312,6,FALSE) -> 131% | K12: =VLOOKUP($A$5,'RECAP DIRCOM AN'!$G$6:$FE$312,6,FALSE) -> 126% | M12: =+K12-I12 -> -5% | O12: =VLOOKUP($A$5,'RECAP DIRCOM'!$G$6:$FE$312,7,FALSE) -> 6
B13: Evolution nette relations Premium par ETP | C13: 4% | E13: ='RECAP DIRCOM'!N4 -> 2.3 | G13: =VLOOKUP($A$5,'RECAP DIRCOM'!$G$6:$FE$312,8,FALSE) -> 2.1 | I13: =VLOOKUP($A$5,'RECAP DIRCOM'!$G$6:$FE$312,9,FALSE) -> 12% | K13: =VLOOKUP($A$5,'RECAP DIRCOM AN'!$G$6:$FE$312,9,FALSE) -> 0% | M13: =+K13-I13 -> -12% | O13: =VLOOKUP($A$5,'RECAP DIRCOM'!$G$6:$FE$312,10,FALSE) -> 3
B14: Evolution nette Clients Bancarisés Principaux équipés par ETP | C14: 3% | E14: ='RECAP DIRCOM'!Q4 -> 3.3 | G14: =VLOOKUP($A$5,'RECAP DIRCOM'!$G$6:$FE$312,11,FALSE) -> -1.1 | I14: =VLOOKUP($A$5,'RECAP DIRCOM'!$G$6:$FE$312,12,FALSE) -> 134% | K14: =VLOOKUP($A$5,'RECAP DIRCOM AN'!$G$6:$FE$312,12,FALSE) -> 115% | M14: -19% | O14: =VLOOKUP($A$5,'RECAP DIRCOM'!$G$6:$FE$312,13,FALSE) -> 6
B15: Evolution nette Clients Pro actif équipés par rapport à l’objectif fixé | C15: 4% | E15: ='RECAP DIRCOM'!T4 -> 60% | G15: =VLOOKUP($A$5,'RECAP DIRCOM'!$G$6:$FE$312,14,FALSE) -> -5% | I15: =VLOOKUP($A$5,'RECAP DIRCOM'!$G$6:$FE$312,15,FALSE) -> 109% | K15: =VLOOKUP($A$5,'RECAP DIRCOM AN'!$G$6:$FE$312,15,FALSE) -> 134% | M15: 25% | O15: =VLOOKUP($A$5,'RECAP DIRCOM'!$G$6:$FE$312,16,FALSE) -> 5
A17: CRITERE EQUIPEMENT BANCARISATION | C17: 15% | O17: =VLOOKUP($A$5,'RECAP DIRCOM'!$G$6:$FE$312,43,FALSE) -> 5
B18: Ventes nettes forfaits (+ 2 options) par ETP | C18: 3% | E18: ='RECAP DIRCOM'!AF4 -> -11.4 | G18: =VLOOKUP($A$5,'RECAP DIRCOM'!$G$6:$FE$312,26,FALSE) -> -11.4 | I18: =VLOOKUP($A$5,'RECAP DIRCOM'!$G$6:$FE$312,27,FALSE) -> 0% | K18: =VLOOKUP($A$5,'RECAP DIRCOM AN'!$G$6:$FE$312,27,FALSE) -> 0% | M18: =+K18-I18 -> 0% | O18: =VLOOKUP($A$5,'RECAP DIRCOM'!$G$6:$FE$312,28,FALSE) -> 1
B19: Ventes nettes IZICARTES par ETP | C19: 3% | E19: ='RECAP DIRCOM'!AI4 -> 8.1 | G19: =VLOOKUP($A$5,'RECAP DIRCOM'!$G$6:$FE$312,29,FALSE) -> 3.6 | I19: =VLOOKUP($A$5,'RECAP DIRCOM'!$G$6:$FE$312,30,FALSE) -> 55% | K19: =VLOOKUP($A$5,'RECAP DIRCOM AN'!$G$6:$FE$312,30,FALSE) -> 18% | M19: -37% | O19: =VLOOKUP($A$5,'RECAP DIRCOM'!$G$6:$FE$312,31,FALSE) -> 7
B20: Ventes nettes cartes HDG par ETP | C20: 3% | E20: ='RECAP DIRCOM'!AL4 -> 16.3 | G20: =VLOOKUP($A$5,'RECAP DIRCOM'!$G$6:$FE$312,32,FALSE) -> 11.8 | I20: =VLOOKUP($A$5,'RECAP DIRCOM'!$G$6:$FE$312,33,FALSE) -> 27% | K20: =VLOOKUP($A$5,'RECAP DIRCOM AN'!$G$6:$FE$312,33,FALSE) -> 33% | M20: 5% | O20: =VLOOKUP($A$5,'RECAP DIRCOM'!$G$6:$FE$312,34,FALSE) -> 2
B21: Vente nette CB débit différé par ETP | C21: 3% | E21: ='RECAP DIRCOM'!AO4 -> 6.5 | G21: =VLOOKUP($A$5,'RECAP DIRCOM'!$G$6:$FE$312,35,FALSE) -> 6.5 | I21: =VLOOKUP($A$5,'RECAP DIRCOM'!$G$6:$FE$312,36,FALSE) -> 1% | K21: =VLOOKUP($A$5,'RECAP DIRCOM AN'!$G$6:$FE$312,36,FALSE) -> 80% | M21: 78% | O21: =VLOOKUP($A$5,'RECAP DIRCOM'!$G$6:$FE$312,37,FALSE) -> 2
B22: Ventes nettes banca Pro Forfaits Pro, Carte pro par rapport à l’objectif | C22: 3% | E22: ='RECAP DIRCOM'!AR4 -> 95% | G22: =VLOOKUP($A$5,'RECAP DIRCOM'!$G$6:$FE$312,38,FALSE) -> 36% | I22: =VLOOKUP($A$5,'RECAP DIRCOM'!$G$6:$FE$312,39,FALSE) -> 62% | K22: =VLOOKUP($A$5,'RECAP DIRCOM AN'!$G$6:$FE$312,39,FALSE) -> 98% | M22: 35% | O22: =VLOOKUP($A$5,'RECAP DIRCOM'!$G$6:$FE$312,40,FALSE) -> 6
A24: CRITERE EPARGNE | C24: 15% | O24: =VLOOKUP($A$5,'RECAP DIRCOM'!$G$6:$FE$312,67,FALSE) -> 4
B25: Excédents de collecte (y.c DAV) par ETP | C25: 2% | E25: ='RECAP DIRCOM'!BD4 -> 170.3 | G25: =VLOOKUP($A$5,'RECAP DIRCOM'!$G$6:$FE$312,50,FALSE) -> 94.5 | I25: =VLOOKUP($A$5,'RECAP DIRCOM'!$G$6:$FE$312,51,FALSE) -> 44% | K25: =VLOOKUP($A$5,'RECAP DIRCOM AN'!$G$6:$FE$312,51,FALSE) -> 21% | M25: =+K25-I25 -> -24% | O25: =VLOOKUP($A$5,'RECAP DIRCOM'!$G$6:$FE$312,52,FALSE) -> 6
B26: CA assurance vie par ETP | C26: 2% | E26: ='RECAP DIRCOM'!BG4 -> 478.0 | G26: =VLOOKUP($A$5,'RECAP DIRCOM'!$G$6:$FE$312,53,FALSE) -> 330.0 | I26: =VLOOKUP($A$5,'RECAP DIRCOM'!$G$6:$FE$312,54,FALSE) -> 31% | K26: =VLOOKUP($A$5,'RECAP DIRCOM AN'!$G$6:$FE$312,54,FALSE) -> 24% | M26: -7% | O26: =VLOOKUP($A$5,'RECAP DIRCOM'!$G$6:$FE$312,55,FALSE) -> 6
B27: Activité UC (CA+arbitrage) par ETP | C27: 2% | E27: ='RECAP DIRCOM'!BJ4 -> 151.6 | G27: =VLOOKUP($A$5,'RECAP DIRCOM'!$G$6:$FE$312,56,FALSE) -> 127.9 | I27: =VLOOKUP($A$5,'RECAP DIRCOM'!$G$6:$FE$312,57,FALSE) -> 16% | K27: =VLOOKUP($A$5,'RECAP DIRCOM AN'!$G$6:$FE$312,57,FALSE) -> 20% | M27: 4% | O27: =VLOOKUP($A$5,'RECAP DIRCOM'!$G$6:$FE$312,58,FALSE) -> 4
B28: Excédents Assurance-vie par ETP | C28: 2% | E28: ='RECAP DIRCOM'!BM4 -> 161.1 | G28: =VLOOKUP($A$5,'RECAP DIRCOM'!$G$6:$FE$312,59,FALSE) -> 47.1 | I28: =VLOOKUP($A$5,'RECAP DIRCOM'!$G$6:$FE$312,60,FALSE) -> 71% | K28: =VLOOKUP($A$5,'RECAP DIRCOM AN'!$G$6:$FE$312,60,FALSE) -> 94% | M28: 23% | O28: =VLOOKUP($A$5,'RECAP DIRCOM'!$G$6:$FE$312,61,FALSE) -> 6
B29: Excédents Epargne Bilan (Hors Emprunts CTO) par ETP | C29: 7% | E29: ='RECAP DIRCOM'!BP4 -> 56.0 | G29: =VLOOKUP($A$5,'RECAP DIRCOM'!$G$6:$FE$312,62,FALSE) -> 25.5 | I29: =VLOOKUP($A$5,'RECAP DIRCOM'!$G$6:$FE$312,63,FALSE) -> 55% | K29: =VLOOKUP($A$5,'RECAP DIRCOM AN'!$G$6:$FE$312,63,FALSE) -> 0% | M29: -55% | O29: =VLOOKUP($A$5,'RECAP DIRCOM'!$G$6:$FE$312,64,FALSE) -> 2
A31: CRITERE CREDITS | C31: 15% | O31: =VLOOKUP($A$5,'RECAP DIRCOM'!$G$6:$FE$312,94,FALSE) -> 6
B32: Engagement Conso par ETP (hors clients 9) | C32: 3% | E32: ='RECAP DIRCOM'!CB4 -> 386.3 | G32: =VLOOKUP($A$5,'RECAP DIRCOM'!$G$6:$FE$312,74,FALSE) -> 290.3 | I32: =VLOOKUP($A$5,'RECAP DIRCOM'!$G$6:$FE$312,75,FALSE) -> 25% | K32: =VLOOKUP($A$5,'RECAP DIRCOM AN'!$G$6:$FE$312,75,FALSE) -> 21% | M32: =+K32-I32 -> -4% | O32: =VLOOKUP($A$5,'RECAP DIRCOM'!$G$6:$FE$312,76,FALSE) -> 7
B33: % CNP sur Conso en valeur absolue | C33: 2% | E33: ='RECAP DIRCOM'!CE4 -> 96% | G33: =VLOOKUP($A$5,'RECAP DIRCOM'!$G$6:$FE$312,77,FALSE) -> 94% | I33: =VLOOKUP($A$5,'RECAP DIRCOM'!$G$6:$FE$312,78,FALSE) -> 3% | K33: =VLOOKUP($A$5,'RECAP DIRCOM AN'!$G$6:$FE$312,78,FALSE) -> 0% | M33: -3% | O33: =VLOOKUP($A$5,'RECAP DIRCOM'!$G$6:$FE$312,79,FALSE) -> 3
B34: Engagements Immo par rapport à l’objectif | C34: 3% | E34: ='RECAP DIRCOM'!CH4 -> 105% | G34: =VLOOKUP($A$5,'RECAP DIRCOM'!$G$6:$FE$312,80,FALSE) -> 82% | I34: =VLOOKUP($A$5,'RECAP DIRCOM'!$G$6:$FE$312,81,FALSE) -> 22% | K34: =VLOOKUP($A$5,'RECAP DIRCOM AN'!$G$6:$FE$312,81,FALSE) -> 29% | M34: 8% | O34: =VLOOKUP($A$5,'RECAP DIRCOM'!$G$6:$FE$312,82,FALSE) -> 5
B35: % CNP sur crédits immo en valeur absolue | C35: 2% | E35: ='RECAP DIRCOM'!CK4 -> 76% | G35: =VLOOKUP($A$5,'RECAP DIRCOM'!$G$6:$FE$312,83,FALSE) -> 54% | I35: =VLOOKUP($A$5,'RECAP DIRCOM'!$G$6:$FE$312,84,FALSE) -> 29% | K35: =VLOOKUP($A$5,'RECAP DIRCOM AN'!$G$6:$FE$312,84,FALSE) -> 8% | M35: -21% | O35: =VLOOKUP($A$5,'RECAP DIRCOM'!$G$6:$FE$312,85,FALSE) -> 7
B36: Taux de couverture SACCEF | C36: 2% | E36: ='RECAP DIRCOM'!CN4 -> 93% | G36: =VLOOKUP($A$5,'RECAP DIRCOM'!$G$6:$FE$312,86,FALSE) -> 85% | I36: =VLOOKUP($A$5,'RECAP DIRCOM'!$G$6:$FE$312,87,FALSE) -> 9% | K36: =VLOOKUP($A$5,'RECAP DIRCOM AN'!$G$6:$FE$312,87,FALSE) -> 0% | M36: -9% | O36: =VLOOKUP($A$5,'RECAP DIRCOM'!$G$6:$FE$312,88,FALSE) -> 6
B37: Engagements CMLT + CB par rapport à l’objectif | C37: 3% | E37: ='RECAP DIRCOM'!CQ4 -> 94% | G37: =VLOOKUP($A$5,'RECAP DIRCOM'!$G$6:$FE$312,89,FALSE) -> 87% | I37: =VLOOKUP($A$5,'RECAP DIRCOM'!$G$6:$FE$312,90,FALSE) -> 7% | K37: =VLOOKUP($A$5,'RECAP DIRCOM AN'!$G$6:$FE$312,90,FALSE) -> 13% | M37: 6% | O37: =VLOOKUP($A$5,'RECAP DIRCOM'!$G$6:$FE$312,91,FALSE) -> 3
A39: CRITERE IARD PREVOYANCE | C39: 20% | O39: =VLOOKUP($A$5,'RECAP DIRCOM'!$G$6:$FE$312,112,FALSE) -> 6
B40: Ventes nettes IARD (Auto+MRH+ Pro) par ETP | C40: 7% | E40: ='RECAP DIRCOM'!DC4 -> 7.8 | G40: =VLOOKUP($A$5,'RECAP DIRCOM'!$G$6:$FE$312,101,FALSE) -> 4.2 | I40: =VLOOKUP($A$5,'RECAP DIRCOM'!$G$6:$FE$312,102,FALSE) -> 46% | K40: =VLOOKUP($A$5,'RECAP DIRCOM AN'!$G$6:$FE$312,102,FALSE) -> 23% | M40: =+K40-I40 -> -23% | O40: =VLOOKUP($A$5,'RECAP DIRCOM'!$G$6:$FE$312,103,FALSE) -> 6
B41: Ventes nettes Prévoyance (GAV, secur.f,prevoy loc,santé,assist.vie, obséques, Pro) par ETP | C41: 7% | E41: ='RECAP DIRCOM'!DF4 -> 12.4 | G41: =VLOOKUP($A$5,'RECAP DIRCOM'!$G$6:$FE$312,104,FALSE) -> 6.9 | I41: =VLOOKUP($A$5,'RECAP DIRCOM'!$G$6:$FE$312,105,FALSE) -> 44% | K41: =VLOOKUP($A$5,'RECAP DIRCOM AN'!$G$6:$FE$312,105,FALSE) -> 7% | M41: -37% | O41: =VLOOKUP($A$5,'RECAP DIRCOM'!$G$6:$FE$312,106,FALSE) -> 6
B42: Chiffre d’affaires IARD (Yc Pro) par ETP | C42: 6% | E42: ='RECAP DIRCOM'!DI4 -> 9.7 | G42: =VLOOKUP($A$5,'RECAP DIRCOM'!$G$6:$FE$312,107,FALSE) -> 8.3 | I42: =VLOOKUP($A$5,'RECAP DIRCOM'!$G$6:$FE$312,108,FALSE) -> 15% | K42: =VLOOKUP($A$5,'RECAP DIRCOM AN'!$G$6:$FE$312,108,FALSE) -> 11% | M42: -3% | O42: =VLOOKUP($A$5,'RECAP DIRCOM'!$G$6:$FE$312,109,FALSE) -> 6
A44: CRITERE RISQUES | C44: 10% | O44: =VLOOKUP($A$5,'RECAP DIRCOM'!$G$6:$FE$312,130,FALSE) -> 7
B45: Complétude, conformité et fiabilisation des nouvelles EER sur flux BDD | C45: 3% | E45: ='RECAP DIRCOM'!DU4 -> 98% | G45: =VLOOKUP($A$5,'RECAP DIRCOM'!$G$6:$FE$312,119,FALSE) -> 97% | I45: =VLOOKUP($A$5,'RECAP DIRCOM'!$G$6:$FE$312,120,FALSE) -> 2% | K45: =VLOOKUP($A$5,'RECAP DIRCOM AN'!$G$6:$FE$312,120,FALSE) -> 3% | M45: =+K45-I45 -> 1% | O45: =VLOOKUP($A$5,'RECAP DIRCOM'!$G$6:$FE$312,121,FALSE) -> 6
B46: Complétude, conformité et fiabilisation des EER sur flux cumulé et stock | C46: 3% | E46: ='RECAP DIRCOM'!DX4 -> 78% | G46: =VLOOKUP($A$5,'RECAP DIRCOM'!$G$6:$FE$312,122,FALSE) -> 71% | I46: =VLOOKUP($A$5,'RECAP DIRCOM'!$G$6:$FE$312,123,FALSE) -> 9% | K46: =VLOOKUP($A$5,'RECAP DIRCOM AN'!$G$6:$FE$312,123,FALSE) -> 8% | M46: -1% | O46: =VLOOKUP($A$5,'RECAP DIRCOM'!$G$6:$FE$312,124,FALSE) -> 7
B47: Traitement et qualité du traitement des alertes Vigiclient | C47: 4% | E47: ='RECAP DIRCOM'!EA4 -> 100% | G47: =VLOOKUP($A$5,'RECAP DIRCOM'!$G$6:$FE$312,125,FALSE) -> 91% | I47: =VLOOKUP($A$5,'RECAP DIRCOM'!$G$6:$FE$312,126,FALSE) -> 9% | K47: =VLOOKUP($A$5,'RECAP DIRCOM AN'!$G$6:$FE$312,126,FALSE) -> 25% | M47: 16% | O47: =VLOOKUP($A$5,'RECAP DIRCOM'!$G$6:$FE$312,127,FALSE) -> 6
A49: CRITERE Satisfaction Clients | C49: 10% | O49: =VLOOKUP($A$5,'RECAP DIRCOM'!$G$6:$FE$312,145,FALSE) -> 7
B50: Objectifs NPS* | C50: 5% | E50: ='RECAP DIRCOM'!EM4 -> -6 | G50: =VLOOKUP($A$5,'RECAP DIRCOM'!$G$6:$FE$312,137,FALSE) -> -23 | I50: =VLOOKUP($A$5,'RECAP DIRCOM'!$G$6:$FE$312,138,FALSE) -> 150% | K50: =VLOOKUP($A$5,'RECAP DIRCOM AN'!$G$6:$FE$312,138,FALSE) -> 144% | M50: =+K50-I50 -> -6% | O50: =VLOOKUP($A$5,'RECAP DIRCOM'!$G$6:$FE$312,139,FALSE) -> 7
B51: Enquête Qualité Haute Définition | C51: 5% | E51: ='RECAP DIRCOM'!EP4 -> 78% | G51: =VLOOKUP($A$5,'RECAP DIRCOM'!$G$6:$FE$312,140,FALSE) -> 73% | I51: =VLOOKUP($A$5,'RECAP DIRCOM'!$G$6:$FE$312,141,FALSE) -> 7% | K51: =VLOOKUP($A$5,'RECAP DIRCOM AN'!$G$6:$FE$312,141,FALSE) -> 2% | M51: -4% | O51: =VLOOKUP($A$5,'RECAP DIRCOM'!$G$6:$FE$312,142,FALSE) -> 7

Sheet DC_OBJECTIF
A1: Accueil | D1: BAROMETRE BDD - DIRECTIONS REGIONALES
D2: PV PART SUR OBJECTIFS
D3: =ACCUEIL!H7 -> 2019-09-30
D7: Excédent de collecte par ETP yc DAV | G7: Engagements crédit conso par ETP (hors clients note octroi à 9 et DRC complet) | J7: Ventes brutes IARD prevoyance Part et Pro (si DRC complet) par ETP | M7: Evolution des Bpe+JBPe par ETP | P7: PNB sur activité nouvelle (yc bonus digital) par ETP
E8: Taux d'atteinte saisonalisé | F8: =VLOOKUP(ACCUEIL!$H$7,Tableau1[],2,FALSE) -> 82% | H8: Taux d'atteinte saisonalisé | I8: =VLOOKUP(ACCUEIL!$H$7,Tableau1[],3,FALSE) -> 82% | K8: Taux d'atteinte saisonalisé | L8: =VLOOKUP(ACCUEIL!$H$7,Tableau1[],4,FALSE) -> 82% | N8: Taux d'atteinte saisonalisé | O8: =VLOOKUP(ACCUEIL!$H$7,Tableau1[],5,FALSE) -> 82% | Q8: Taux d'atteinte saisonalisé | R8: =VLOOKUP(ACCUEIL!$H$7,Tableau1[],6,FALSE) -> 82%
A9: eds | B9: Direction | C9: ETP perf | D9: Réal | E9: Obj | F9: % | G9: Réal | H9: Obj | I9: % | J9: Réal | K9: Obj | L9: % | M9: Réal | N9: Obj | O9: % | P9: Réal | Q9: Obj | R9: % | T9: <80% | U9: 100% | V9: 110% | W9: 120%
A10: 50 | B10: Aube Haute Marne | C10: =VLOOKUP($A10,'RECAP DIRCOM'!$G$6:$EV$12,3,FALSE) -> 146 | D10: =VLOOKUP($A10,'RECAP DIRCOM'!$G$6:$FZ$12,158,FALSE) -> 145 | E10: =VLOOKUP($A10,'RECAP DIRCOM'!$G$6:$FZ$12,159,FALSE) -> 116 | F10: =VLOOKUP($A10,'RECAP DIRCOM'!$G$6:$FZ$12,160,FALSE) -> 124% | G10: =VLOOKUP($A10,'RECAP DIRCOM'!$G$6:$FZ$12,161,FALSE) -> 386 | H10: =VLOOKUP($A10,'RECAP DIRCOM'!$G$6:$FZ$12,162,FALSE) -> 467 | I10: =VLOOKUP($A10,'RECAP DIRCOM'!$G$6:$FZ$12,163,FALSE) -> 82% | J10: =VLOOKUP($A10,'RECAP DIRCOM'!$G$6:$FZ$12,164,FALSE) -> 33 | K10: =VLOOKUP($A10,'RECAP DIRCOM'!$G$6:$FZ$12,165,FALSE) -> 59 | L10: =VLOOKUP($A10,'RECAP DIRCOM'!$G$6:$FZ$12,166,FALSE) -> 55% | M10: =VLOOKUP($A10,'RECAP DIRCOM'!$G$6:$FZ$12,167,FALSE) -> 3 | N10: =VLOOKUP($A10,'RECAP DIRCOM'!$G$6:$FZ$12,168,FALSE) -> 4 | O10: =VLOOKUP($A10,'RECAP DIRCOM'!$G$6:$FZ$12,169,FALSE) -> 83% | P10: =VLOOKUP($A10,'RECAP DIRCOM'!$G$6:$FZ$12,170,FALSE) -> 107 | Q10: =VLOOKUP($A10,'RECAP DIRCOM'!$G$6:$FZ$12,171,FALSE) -> 132 | R10: =VLOOKUP($A10,'RECAP DIRCOM'!$G$6:$FZ$12,172,FALSE) -> 81% | T10: =$F$8*0.8 -> 65% | U10: =$F$8 -> 82% | V10: =$F$8*1.1 -> 90% | W10: =$F$8*1.2 -> 98%
A11: 262 | B11: Bas-Rhin | C11: =VLOOKUP($A11,'RECAP DIRCOM'!$G$6:$EV$12,3,FALSE) -> 298 | D11: =VLOOKUP($A11,'RECAP DIRCOM'!$G$6:$FZ$12,158,FALSE) -> 95 | E11: =VLOOKUP($A11,'RECAP DIRCOM'!$G$6:$FZ$12,159,FALSE) -> 128 | F11: =VLOOKUP($A11,'RECAP DIRCOM'!$G$6:$FZ$12,160,FALSE) -> 74% | G11: =VLOOKUP($A11,'RECAP DIRCOM'!$G$6:$FZ$12,161,FALSE) -> 290 | H11: =VLOOKUP($A11,'RECAP DIRCOM'!$G$6:$FZ$12,162,FALSE) -> 467 | I11: =VLOOKUP($A11,'RECAP DIRCOM'!$G$6:$FZ$12,163,FALSE) -> 62% | J11: =VLOOKUP($A11,'RECAP DIRCOM'!$G$6:$FZ$12,164,FALSE) -> 34 | K11: =VLOOKUP($A11,'RECAP DIRCOM'!$G$6:$FZ$12,165,FALSE) -> 59 | L11: =VLOOKUP($A11,'RECAP DIRCOM'!$G$6:$FZ$12,166,FALSE) -> 57% | M11: =VLOOKUP($A11,'RECAP DIRCOM'!$G$6:$FZ$12,167,FALSE) -> -1 | N11: =VLOOKUP($A11,'RECAP DIRCOM'!$G$6:$FZ$12,168,FALSE) -> 4 | O11: =VLOOKUP($A11,'RECAP DIRCOM'!$G$6:$FZ$12,169,FALSE) -> -29% | P11: =VLOOKUP($A11,'RECAP DIRCOM'!$G$6:$FZ$12,170,FALSE) -> 96 | Q11: =VLOOKUP($A11,'RECAP DIRCOM'!$G$6:$FZ$12,171,FALSE) -> 136 | R11: =VLOOKUP($A11,'RECAP DIRCOM'!$G$6:$FZ$12,172,FALSE) -> 70% | T11: =$F$8*0.8 -> 65% | U11: =$F$8 -> 82% | V11: =$F$8*1.1 -> 90% | W11: =$F$8*1.2 -> 98%
A12: 264 | B12: Haut-Rhin | C12: =VLOOKUP($A12,'RECAP DIRCOM'!$G$6:$EV$12,3,FALSE) -> 176 | D12: =VLOOKUP($A12,'RECAP DIRCOM'!$G$6:$FZ$12,158,FALSE) -> 152 | E12: =VLOOKUP($A12,'RECAP DIRCOM'!$G$6:$FZ$12,159,FALSE) -> 132 | F12: =VLOOKUP($A12,'RECAP DIRCOM'!$G$6:$FZ$12,160,FALSE) -> 115% | G12: =VLOOKUP($A12,'RECAP DIRCOM'!$G$6:$FZ$12,161,FALSE) -> 301 | H12: =VLOOKUP($A12,'RECAP DIRCOM'!$G$6:$FZ$12,162,FALSE) -> 467 | I12: =VLOOKUP($A12,'RECAP DIRCOM'!$G$6:$FZ$12,163,FALSE) -> 64% | J12: =VLOOKUP($A12,'RECAP DIRCOM'!$G$6:$FZ$12,164,FALSE) -> 30 | K12: =VLOOKUP($A12,'RECAP DIRCOM'!$G$6:$FZ$12,165,FALSE) -> 59 | L12: =VLOOKUP($A12,'RECAP DIRCOM'!$G$6:$FZ$12,166,FALSE) -> 51% | M12: =VLOOKUP($A12,'RECAP DIRCOM'!$G$6:$FZ$12,167,FALSE) -> -2 | N12: =VLOOKUP($A12,'RECAP DIRCOM'!$G$6:$FZ$12,168,FALSE) -> 4 | O12: =VLOOKUP($A12,'RECAP DIRCOM'!$G$6:$FZ$12,169,FALSE) -> -41% | P12: =VLOOKUP($A12,'RECAP DIRCOM'!$G$6:$FZ$12,170,FALSE) -> 102 | Q12: =VLOOKUP($A12,'RECAP DIRCOM'!$G$6:$FZ$12,171,FALSE) -> 140 | R12: =VLOOKUP($A12,'RECAP DIRCOM'!$G$6:$FZ$12,172,FALSE) -> 73% | T12: 65% | U12: 82% | V12: 90% | W12: 98%
A13: 30 | B13: Marne-Ardennes | C13: =VLOOKUP($A13,'RECAP DIRCOM'!$G$6:$EV$12,3,FALSE) -> 238 | D13: =VLOOKUP($A13,'RECAP DIRCOM'!$G$6:$FZ$12,158,FALSE) -> 79 | E13: =VLOOKUP($A13,'RECAP DIRCOM'!$G$6:$FZ$12,159,FALSE) -> 133 | F13: =VLOOKUP($A13,'RECAP DIRCOM'!$G$6:$FZ$12,160,FALSE) -> 59% | G13: =VLOOKUP($A13,'RECAP DIRCOM'!$G$6:$FZ$12,161,FALSE) -> 366 | H13: =VLOOKUP($A13,'RECAP DIRCOM'!$G$6:$FZ$12,162,FALSE) -> 467 | I13: =VLOOKUP($A13,'RECAP DIRCOM'!$G$6:$FZ$12,163,FALSE) -> 78% | J13: =VLOOKUP($A13,'RECAP DIRCOM'!$G$6:$FZ$12,164,FALSE) -> 39 | K13: =VLOOKUP($A13,'RECAP DIRCOM'!$G$6:$FZ$12,165,FALSE) -> 59 | L13: =VLOOKUP($A13,'RECAP DIRCOM'!$G$6:$FZ$12,166,FALSE) -> 66% | M13: =VLOOKUP($A13,'RECAP DIRCOM'!$G$6:$FZ$12,167,FALSE) -> 2 | N13: =VLOOKUP($A13,'RECAP DIRCOM'!$G$6:$FZ$12,168,FALSE) -> 4 | O13: =VLOOKUP($A13,'RECAP DIRCOM'!$G$6:$FZ$12,169,FALSE) -> 60% | P13: =VLOOKUP($A13,'RECAP DIRCOM'!$G$6:$FZ$12,170,FALSE) -> 120 | Q13: =VLOOKUP($A13,'RECAP DIRCOM'!$G$6:$FZ$12,171,FALSE) -> 140 | R13: =VLOOKUP($A13,'RECAP DIRCOM'!$G$6:$FZ$12,172,FALSE) -> 85% | T13: 65% | U13: 82% | V13: 90% | W13: 98%
A14: 110 | B14: Meurthe et Moselle Meuse | C14: =VLOOKUP($A14,'RECAP DIRCOM'!$G$6:$EV$12,3,FALSE) -> 262 | D14: =VLOOKUP($A14,'RECAP DIRCOM'!$G$6:$FZ$12,158,FALSE) -> 122 | E14: =VLOOKUP($A14,'RECAP DIRCOM'!$G$6:$FZ$12,159,FALSE) -> 118 | F14: =VLOOKUP($A14,'RECAP DIRCOM'!$G$6:$FZ$12,160,FALSE) -> 103% | G14: =VLOOKUP($A14,'RECAP DIRCOM'!$G$6:$FZ$12,161,FALSE) -> 350 | H14: =VLOOKUP($A14,'RECAP DIRCOM'!$G$6:$FZ$12,162,FALSE) -> 467 | I14: =VLOOKUP($A14,'RECAP DIRCOM'!$G$6:$FZ$12,163,FALSE) -> 75% | J14: =VLOOKUP($A14,'RECAP DIRCOM'!$G$6:$FZ$12,164,FALSE) -> 36 | K14: =VLOOKUP($A14,'RECAP DIRCOM'!$G$6:$FZ$12,165,FALSE) -> 59 | L14: =VLOOKUP($A14,'RECAP DIRCOM'!$G$6:$FZ$12,166,FALSE) -> 60% | M14: =VLOOKUP($A14,'RECAP DIRCOM'!$G$6:$FZ$12,167,FALSE) -> 1 | N14: =VLOOKUP($A14,'RECAP DIRCOM'!$G$6:$FZ$12,168,FALSE) -> 4 | O14: =VLOOKUP($A14,'RECAP DIRCOM'!$G$6:$FZ$12,169,FALSE) -> 28% | P14: =VLOOKUP($A14,'RECAP DIRCOM'!$G$6:$FZ$12,170,FALSE) -> 110 | Q14: =VLOOKUP($A14,'RECAP DIRCOM'!$G$6:$FZ$12,171,FALSE) -> 131 | R14: =VLOOKUP($A14,'RECAP DIRCOM'!$G$6:$FZ$12,172,FALSE) -> 83% | T14: 65% | U14: 82% | V14: 90% | W14: 98%
A15: 160 | B15: Moselle | C15: =VLOOKUP($A15,'RECAP DIRCOM'!$G$6:$EV$12,3,FALSE) -> 302 | D15: =VLOOKUP($A15,'RECAP DIRCOM'!$G$6:$FZ$12,158,FALSE) -> 170 | E15: =VLOOKUP($A15,'RECAP DIRCOM'!$G$6:$FZ$12,159,FALSE) -> 117 | F15: =VLOOKUP($A15,'RECAP DIRCOM'!$G$6:$FZ$12,160,FALSE) -> 145% | G15: =VLOOKUP($A15,'RECAP DIRCOM'!$G$6:$FZ$12,161,FALSE) -> 341 | H15: =VLOOKUP($A15,'RECAP DIRCOM'!$G$6:$FZ$12,162,FALSE) -> 467 | I15: =VLOOKUP($A15,'RECAP DIRCOM'!$G$6:$FZ$12,163,FALSE) -> 73% | J15: =VLOOKUP($A15,'RECAP DIRCOM'!$G$6:$FZ$12,164,FALSE) -> 35 | K15: =VLOOKUP($A15,'RECAP DIRCOM'!$G$6:$FZ$12,165,FALSE) -> 59 | L15: =VLOOKUP($A15,'RECAP DIRCOM'!$G$6:$FZ$12,166,FALSE) -> 58% | M15: =VLOOKUP($A15,'RECAP DIRCOM'!$G$6:$FZ$12,167,FALSE) -> 1 | N15: =VLOOKUP($A15,'RECAP DIRCOM'!$G$6:$FZ$12,168,FALSE) -> 4 | O15: =VLOOKUP($A15,'RECAP DIRCOM'!$G$6:$FZ$12,169,FALSE) -> 28% | P15: =VLOOKUP($A15,'RECAP DIRCOM'!$G$6:$FZ$12,170,FALSE) -> 112 | Q15: =VLOOKUP($A15,'RECAP DIRCOM'!$G$6:$FZ$12,171,FALSE) -> 134 | R15: =VLOOKUP($A15,'RECAP DIRCOM'!$G$6:$FZ$12,172,FALSE) -> 83% | T15: 65% | U15: 82% | V15: 90% | W15: 98%
A16: 80 | B16: Vosges | C16: =VLOOKUP($A16,'RECAP DIRCOM'!$G$6:$EV$12,3,FALSE) -> 146 | D16: =VLOOKUP($A16,'RECAP DIRCOM'!$G$6:$FZ$12,158,FALSE) -> 161 | E16: =VLOOKUP($A16,'RECAP DIRCOM'!$G$6:$FZ$12,159,FALSE) -> 110 | F16: =VLOOKUP($A16,'RECAP DIRCOM'!$G$6:$FZ$12,160,FALSE) -> 146% | G16: =VLOOKUP($A16,'RECAP DIRCOM'!$G$6:$FZ$12,161,FALSE) -> 319 | H16: =VLOOKUP($A16,'RECAP DIRCOM'!$G$6:$FZ$12,162,FALSE) -> 467 | I16: =VLOOKUP($A16,'RECAP DIRCOM'!$G$6:$FZ$12,163,FALSE) -> 68% | J16: =VLOOKUP($A16,'RECAP DIRCOM'!$G$6:$FZ$12,164,FALSE) -> 35 | K16: =VLOOKUP($A16,'RECAP DIRCOM'!$G$6:$FZ$12,165,FALSE) -> 59 | L16: =VLOOKUP($A16,'RECAP DIRCOM'!$G$6:$FZ$12,166,FALSE) -> 59% | M16: =VLOOKUP($A16,'RECAP DIRCOM'!$G$6:$FZ$12,167,FALSE) -> 1 | N16: =VLOOKUP($A16,'RECAP DIRCOM'!$G$6:$FZ$12,168,FALSE) -> 4 | O16: =VLOOKUP($A16,'RECAP DIRCOM'!$G$6:$FZ$12,169,FALSE) -> 30% | P16: =VLOOKUP($A16,'RECAP DIRCOM'!$G$6:$FZ$12,170,FALSE) -> 99 | Q16: =VLOOKUP($A16,'RECAP DIRCOM'!$G$6:$FZ$12,171,FALSE) -> 127 | R16: =VLOOKUP($A16,'RECAP DIRCOM'!$G$6:$FZ$12,172,FALSE) -> 78% | T16: 65% | U16: 82% | V16: 90% | W16: 98%
E17: ='RECAP DIRCOM'!GG13 -> 1 | F17: ='RECAP DIRCOM'!GH13 -> 1 | H17: ='RECAP DIRCOM'!GL13 -> 2 | I17: ='RECAP DIRCOM'!GM13 -> 4 | K17: ='RECAP DIRCOM'!GQ13 -> 6 | L17: ='RECAP DIRCOM'!GR13 -> 1 | N17: ='RECAP DIRCOM'!GV13 -> 6 | O17: ='RECAP DIRCOM'!GW13 -> 0 | Q17: ='RECAP DIRCOM'!HA13 -> 0 | R17: ='RECAP DIRCOM'!HB13 -> 4
A18: Total CEGEE Directions Régionales | C18: =SUM(C10:C16) -> 1568 | E18: ='RECAP DIRCOM'!GI13 -> 0 | F18: ='RECAP DIRCOM'!GJ13 -> 5 | H18: ='RECAP DIRCOM'!GN13 -> 1 | I18: ='RECAP DIRCOM'!GO13 -> 0 | K18: ='RECAP DIRCOM'!GS13 -> 0 | L18: ='RECAP DIRCOM'!GT13 -> 0 | N18: ='RECAP DIRCOM'!GX13 -> 1 | O18: ='RECAP DIRCOM'!GY13 -> 0 | Q18: ='RECAP DIRCOM'!HC13 -> 3 | R18: ='RECAP DIRCOM'!HD13 -> 0
B21: Taux d'atteinte objectif annuel > 110 % ou 120 % en saisonnalisé en fonction des critères (collecte 110 %, autres 120 %)
B23: Taux d'atteinte objectif annuel entre 100 % et 110 % ou 120 % en saisonnalisé en fonction des critères (collecte 110 %, autres 120 %)
B25: Taux d'atteinte objectif annuel entre 80 % et 100 % en saisonnalisé
B27: Taux d'atteinte objectif annuel < 80 % en saisonnalisé

Sheet DC_TOTAL
A1: Accueil | D1: BAROMETRE BDD - DIRECTIONS REGIONALES
D2: TOTAL GENERAL
D3: =ACCUEIL!H7 -> 2019-09-30
D7: TOTAL GENERAL | G7: Total Conquête | J7: Total Equipement Bancarisation | M7: Total Epargne | P7: Total Crédits | S7: Total IARD Prévoyance | V7: Total Risques | Y7: Total Satisfaction Clients
E8: coef | F8: 100% | H8: coef | I8: ='RECAP DIRCOM'!$Y$4 -> 15% | K8: coef | L8: ='RECAP DIRCOM'!$AW$4 -> 15% | N8: coef | O8: ='RECAP DIRCOM'!$BU$4 -> 15% | Q8: coef | R8: ='RECAP DIRCOM'!$CV$4 -> 15% | T8: coef | U8: ='RECAP DIRCOM'!$DN$4 -> 20% | W8: coef | X8: ='RECAP DIRCOM'!$EF$4 -> 10% | Z8: coef | AA8: ='RECAP DIRCOM'!$EU$4 -> 10%
A9: eds | B9: Direction | C9: ETP perf | D9: Moyenne ecart au 1er | E9: % Ecart au 1er | F9: Rang CEGEE | G9: Moyenne ecart au 1er | H9: % Ecart au 1er | I9: Rang CEGEE | J9: Moyenne ecart au 1er | K9: % Ecart au 1er | L9: Rang CEGEE | M9: Moyenne ecart au 1er | N9: % Ecart au 1er | O9: Rang CEGEE | P9: Moyenne ecart au 1er | Q9: % Ecart au 1er | R9: Rang CEGEE | S9: Moyenne ecart au 1er | T9: % Ecart au 1er | U9: Rang CEGEE | V9: Moyenne ecart au 1er | W9: % Ecart au 1er | X9: Rang CEGEE | Y9: Moyenne ecart au 1er | Z9: % Ecart au 1er | AA9: Rang CEGEE
A10: 30 | B10: Marne-Ardennes | C10: 238 | D10: 8% | E10: 0% | F10: 1 | G10: 41% | H10: 0% | I10: 1 | J10: 22% | K10: 0% | L10: 1 | M10: 71% | N10: 51% | O10: 6 | P10: 4% | Q10: 0% | R10: 1 | S10: 3% | T10: 0% | U10: 1 | V10: 2% | W10: 1% | X10: 4 | Y10: 0% | Z10: 0% | AA10: 1
A11: 160 | B11: Moselle | C11: 302 | D11: 12% | E11: 5% | F11: 2 | G11: 48% | H11: 6% | I11: 2 | J11: 27% | K11: 5% | L11: 3 | M11: 39% | N11: 18% | O11: 2 | P11: 17% | Q11: 13% | R11: 7 | S11: 22% | T11: 19% | U11: 4 | V11: 1% | W11: 0% | X11: 2 | Y11: 23% | Z11: 23% | AA11: 3
A12: 80 | B12: Vosges | C12: 146 | D12: 13% | E12: 5% | F12: 3 | G12: 57% | H12: 15% | I12: 4 | J12: 25% | K12: 3% | L12: 2 | M12: 41% | N12: 20% | O12: 3 | P12: 11% | Q12: 7% | R12: 3 | S12: 21% | T12: 17% | U12: 3 | V12: 2% | W12: 1% | X12: 3 | Y12: 27% | Z12: 27% | AA12: 4
A13: 50 | B13: Aube Haute Marne | C13: 146 | D13: 16% | E13: 9% | F13: 4 | G13: 52% | H13: 11% | I13: 3 | J13: 29% | K13: 7% | L13: 4 | M13: 75% | N13: 55% | O13: 7 | P13: 10% | Q13: 6% | R13: 2 | S13: 24% | T13: 20% | U13: 5 | V13: 1% | W13: 0% | X13: 1 | Y13: 5% | Z13: 5% | AA13: 2
A14: 110 | B14: Meurthe et Moselle Meuse | C14: 262 | D14: 17% | E14: 9% | F14: 5 | G14: 59% | H14: 17% | I14: 5 | J14: 42% | K14: 20% | L14: 6 | M14: 51% | N14: 30% | O14: 5 | P14: 13% | Q14: 9% | R14: 4 | S14: 12% | T14: 9% | U14: 2 | V14: 6% | W14: 5% | X14: 6 | Y14: 32% | Z14: 32% | AA14: 5
A15: 264 | B15: Haut-Rhin | C15: 176 | D15: 28% | E15: 20% | F15: 6 | G15: 93% | H15: 52% | I15: 6 | J15: 43% | K15: 21% | L15: 7 | M15: 20% | N15: 0% | O15: 1 | P15: 15% | Q15: 11% | R15: 5 | S15: 42% | T15: 39% | U15: 7 | V15: 3% | W15: 2% | X15: 5 | Y15: 73% | Z15: 73% | AA15: 6
A16: 262 | B16: Bas-Rhin | C16: 298 | D16: 30% | E16: 22% | F16: 7 | G16: 94% | H16: 53% | I16: 7 | J16: 29% | K16: 7% | L16: 5 | M16: 47% | N16: 27% | O16: 4 | P16: 16% | Q16: 12% | R16: 6 | S16: 36% | T16: 32% | U16: 6 | V16: 7% | W16: 6% | X16: 7 | Y16: 78% | Z16: 78% | AA16: 7
A17: Total CEGEE Directions Régionales | C17: =SUM(C10:C16) -> 1568

Sheet DC_BANCA
A1: Accueil | D1: BAROMETRE BDD - DIRECTIONS REGIONALES
D2: EQUIPEMENT BANCARISATION
D3: =ACCUEIL!H7 -> 2019-09-30
D7: Ventes nettes FORFAITS avec 2 options | G7: Ventes nettes IZICARTES | J7: Ventes nettes Cartes HDG | M7: Ventes nettes CB débit différé | P7: Ventes nettes banca Pro | S7: Total Equipement Bancarisation
E8: coef | F8: ='RECAP DIRCOM'!AH4 -> 3% | H8: coef | I8: ='RECAP DIRCOM'!AK4 -> 3% | K8: coef | L8: ='RECAP DIRCOM'!AN4 -> 3% | N8: coef | O8: ='RECAP DIRCOM'!AQ4 -> 3% | Q8: coef | R8: ='RECAP DIRCOM'!AT4 -> 3% | T8: coef | U8: ='RECAP DIRCOM'!AW4 -> 15%
A9: eds | B9: Direction | C9: ETP perf | D9: Nb / ETP | E9: % Ecart au 1er | F9: Rang | G9: Nb / ETP | H9: % Ecart au 1er | I9: Rang | J9: Nb / ETP | K9: % Ecart au 1er | L9: Rang | M9: Nb / ETP | N9: % Ecart au 1er | O9: Rang | P9: Taux réal objectif | Q9: % Ecart au 1er | R9: Rang | S9: Moyenne ecart au 1er | T9: % Ecart au 1er | U9: Rang CEGEE
A10: 50 | B10: Aube Haute Marne | C10: =VLOOKUP($A10,'RECAP DIRCOM'!$G$6:$EV$12,3,FALSE) -> 146 | D10: =VLOOKUP($A10,'RECAP DIRCOM'!$G$6:$EV$12,26,FALSE) -> -16.78 | E10: =VLOOKUP($A10,'RECAP DIRCOM'!$G$6:$EV$12,27,FALSE) -> 47% | F10: =VLOOKUP($A10,'RECAP DIRCOM'!$G$6:$EV$12,28,FALSE) -> 4 | G10: =VLOOKUP($A10,'RECAP DIRCOM'!$G$6:$EV$12,29,FALSE) -> 4.29 | H10: =VLOOKUP($A10,'RECAP DIRCOM'!$G$6:$EV$12,30,FALSE) -> 47% | I10: =VLOOKUP($A10,'RECAP DIRCOM'!$G$6:$EV$12,31,FALSE) -> 5 | J10: =VLOOKUP($A10,'RECAP DIRCOM'!$G$6:$EV$12,32,FALSE) -> 10.91 | K10: =VLOOKUP($A10,'RECAP DIRCOM'!$G$6:$EV$12,33,FALSE) -> 33% | L10: =VLOOKUP($A10,'RECAP DIRCOM'!$G$6:$EV$12,34,FALSE) -> 4 | M10: =VLOOKUP($A10,'RECAP DIRCOM'!$G$6:$EV$12,35,FALSE) -> 6.55 | N10: =VLOOKUP($A10,'RECAP DIRCOM'!$G$6:$EV$12,36,FALSE) -> 0% | O10: =VLOOKUP($A10,'RECAP DIRCOM'!$G$6:$EV$12,37,FALSE) -> 1 | P10: =VLOOKUP($A10,'RECAP DIRCOM'!$G$6:$EV$12,38,FALSE) -> 78% | Q10: =VLOOKUP($A10,'RECAP DIRCOM'!$G$6:$EV$12,39,FALSE) -> 18% | R10: =VLOOKUP($A10,'RECAP DIRCOM'!$G$6:$EV$12,40,FALSE) -> 3 | S10: =VLOOKUP($A10,'RECAP DIRCOM'!$G$6:$EV$12,41,FALSE) -> 29% | T10: =VLOOKUP($A10,'RECAP DIRCOM'!$G$6:$EV$12,42,FALSE) -> 7% | U10: =VLOOKUP($A10,'RECAP DIRCOM'!$G$6:$EV$12,43,FALSE) -> 4
A11: 262 | B11: Bas-Rhin | C11: =VLOOKUP($A11,'RECAP DIRCOM'!$G$6:$EV$12,3,FALSE) -> 298 | D11: =VLOOKUP($A11,'RECAP DIRCOM'!$G$6:$EV$12,26,FALSE) -> -11.38 | E11: =VLOOKUP($A11,'RECAP DIRCOM'!$G$6:$EV$12,27,FALSE) -> 0% | F11: =VLOOKUP($A11,'RECAP DIRCOM'!$G$6:$EV$12,28,FALSE) -> 1 | G11: =VLOOKUP($A11,'RECAP DIRCOM'!$G$6:$EV$12,29,FALSE) -> 3.64 | H11: =VLOOKUP($A11,'RECAP DIRCOM'!$G$6:$EV$12,30,FALSE) -> 55% | I11: =VLOOKUP($A11,'RECAP DIRCOM'!$G$6:$EV$12,31,FALSE) -> 7 | J11: =VLOOKUP($A11,'RECAP DIRCOM'!$G$6:$EV$12,32,FALSE) -> 11.80 | K11: =VLOOKUP($A11,'RECAP DIRCOM'!$G$6:$EV$12,33,FALSE) -> 27% | L11: =VLOOKUP($A11,'RECAP DIRCOM'!$G$6:$EV$12,34,FALSE) -> 2 | M11: =VLOOKUP($A11,'RECAP DIRCOM'!$G$6:$EV$12,35,FALSE) -> 6.46 | N11: =VLOOKUP($A11,'RECAP DIRCOM'!$G$6:$EV$12,36,FALSE) -> 1% | O11: =VLOOKUP($A11,'RECAP DIRCOM'!$G$6:$EV$12,37,FALSE) -> 2 | P11: =VLOOKUP($A11,'RECAP DIRCOM'!$G$6:$EV$12,38,FALSE) -> 36% | Q11: =VLOOKUP($A11,'RECAP DIRCOM'!$G$6:$EV$12,39,FALSE) -> 62% | R11: =VLOOKUP($A11,'RECAP DIRCOM'!$G$6:$EV$12,40,FALSE) -> 6 | S11: =VLOOKUP($A11,'RECAP DIRCOM'!$G$6:$EV$12,41,FALSE) -> 29% | T11: =VLOOKUP($A11,'RECAP DIRCOM'!$G$6:$EV$12,42,FALSE) -> 7% | U11: =VLOOKUP($A11,'RECAP DIRCOM'!$G$6:$EV$12,43,FALSE) -> 5
A12: 264 | B12: Haut-Rhin | C12: =VLOOKUP($A12,'RECAP DIRCOM'!$G$6:$EV$12,3,FALSE) -> 176 | D12: =VLOOKUP($A12,'RECAP DIRCOM'!$G$6:$EV$12,26,FALSE) -> -12.91 | E12: =VLOOKUP($A12,'RECAP DIRCOM'!$G$6:$EV$12,27,FALSE) -> 13% | F12: =VLOOKUP($A12,'RECAP DIRCOM'!$G$6:$EV$12,28,FALSE) -> 2 | G12: =VLOOKUP($A12,'RECAP DIRCOM'!$G$6:$EV$12,29,FALSE) -> 3.93 | H12: =VLOOKUP($A12,'RECAP DIRCOM'!$G$6:$EV$12,30,FALSE) -> 52% | I12: =VLOOKUP($A12,'RECAP DIRCOM'!$G$6:$EV$12,31,FALSE) -> 6 | J12: =VLOOKUP($A12,'RECAP DIRCOM'!$G$6:$EV$12,32,FALSE) -> 10.30 | K12: =VLOOKUP($A12,'RECAP DIRCOM'!$G$6:$EV$12,33,FALSE) -> 37% | L12: =VLOOKUP($A12,'RECAP DIRCOM'!$G$6:$EV$12,34,FALSE) -> 5 | M12: =VLOOKUP($A12,'RECAP DIRCOM'!$G$6:$EV$12,35,FALSE) -> 3.56 | N12: =VLOOKUP($A12,'RECAP DIRCOM'!$G$6:$EV$12,36,FALSE) -> 46% | O12: =VLOOKUP($A12,'RECAP DIRCOM'!$G$6:$EV$12,37,FALSE) -> 6 | P12: =VLOOKUP($A12,'RECAP DIRCOM'!$G$6:$EV$12,38,FALSE) -> 31% | Q12: =VLOOKUP($A12,'RECAP DIRCOM'!$G$6:$EV$12,39,FALSE) -> 67% | R12: =VLOOKUP($A12,'RECAP DIRCOM'!$G$6:$EV$12,40,FALSE) -> 7 | S12: =VLOOKUP($A12,'RECAP DIRCOM'!$G$6:$EV$12,41,FALSE) -> 43% | T12: =VLOOKUP($A12,'RECAP DIRCOM'!$G$6:$EV$12,42,FALSE) -> 21% | U12: =VLOOKUP($A12,'RECAP DIRCOM'!$G$6:$EV$12,43,FALSE) -> 7
A13: 30 | B13: Marne-Ardennes | C13: =VLOOKUP($A13,'RECAP DIRCOM'!$G$6:$EV$12,3,FALSE) -> 238 | D13: =VLOOKUP($A13,'RECAP DIRCOM'!$G$6:$EV$12,26,FALSE) -> -17.24 | E13: =VLOOKUP($A13,'RECAP DIRCOM'!$G$6:$EV$12,27,FALSE) -> 51% | F13: =VLOOKUP($A13,'RECAP DIRCOM'!$G$6:$EV$12,28,FALSE) -> 5 | G13: =VLOOKUP($A13,'RECAP DIRCOM'!$G$6:$EV$12,29,FALSE) -> 8.13 | H13: =VLOOKUP($A13,'RECAP DIRCOM'!$G$6:$EV$12,30,FALSE) -> 0% | I13: =VLOOKUP($A13,'RECAP DIRCOM'!$G$6:$EV$12,31,FALSE) -> 1 | J13: =VLOOKUP($A13,'RECAP DIRCOM'!$G$6:$EV$12,32,FALSE) -> 9.66 | K13: =VLOOKUP($A13,'RECAP DIRCOM'!$G$6:$EV$12,33,FALSE) -> 41% | L13: =VLOOKUP($A13,'RECAP DIRCOM'!$G$6:$EV$12,34,FALSE) -> 7 | M13: =VLOOKUP($A13,'RECAP DIRCOM'!$G$6:$EV$12,35,FALSE) -> 6.06 | N13: =VLOOKUP($A13,'RECAP DIRCOM'!$G$6:$EV$12,36,FALSE) -> 8% | O13: =VLOOKUP($A13,'RECAP DIRCOM'!$G$6:$EV$12,37,FALSE) -> 3 | P13: =VLOOKUP($A13,'RECAP DIRCOM'!$G$6:$EV$12,38,FALSE) -> 86% | Q13: =VLOOKUP($A13,'RECAP DIRCOM'!$G$6:$EV$12,39,FALSE) -> 10% | R13: =VLOOKUP($A13,'RECAP DIRCOM'!$G$6:$EV$12,40,FALSE) -> 2 | S13: =VLOOKUP($A13,'RECAP DIRCOM'!$G$6:$EV$12,41,FALSE) -> 22% | T13: =VLOOKUP($A13,'RECAP DIRCOM'!$G$6:$EV$12,42,FALSE) -> 0% | U13: =VLOOKUP($A13,'RECAP DIRCOM'!$G$6:$EV$12,43,FALSE) -> 1
A14: 110 | B14: Meurthe et Moselle Meuse | C14: =VLOOKUP($A14,'RECAP DIRCOM'!$G$6:$EV$12,3,FALSE) -> 262 | D14: =VLOOKUP($A14,'RECAP DIRCOM'!$G$6:$EV$12,26,FALSE) -> -19.09 | E14: =VLOOKUP($A14,'RECAP DIRCOM'!$G$6:$EV$12,27,FALSE) -> 68% | F14: =VLOOKUP($A14,'RECAP DIRCOM'!$G$6:$EV$12,28,FALSE) -> 7 | G14: =VLOOKUP($A14,'RECAP DIRCOM'!$G$6:$EV$12,29,FALSE) -> 6.43 | H14: =VLOOKUP($A14,'RECAP DIRCOM'!$G$6:$EV$12,30,FALSE) -> 21% | I14: =VLOOKUP($A14,'RECAP DIRCOM'!$G$6:$EV$12,31,FALSE) -> 2 | J14: =VLOOKUP($A14,'RECAP DIRCOM'!$G$6:$EV$12,32,FALSE) -> 11.33 | K14: =VLOOKUP($A14,'RECAP DIRCOM'!$G$6:$EV$12,33,FALSE) -> 30% | L14: =VLOOKUP($A14,'RECAP DIRCOM'!$G$6:$EV$12,34,FALSE) -> 3 | M14: =VLOOKUP($A14,'RECAP DIRCOM'!$G$6:$EV$12,35,FALSE) -> 3.37 | N14: =VLOOKUP($A14,'RECAP DIRCOM'!$G$6:$EV$12,36,FALSE) -> 49% | O14: =VLOOKUP($A14,'RECAP DIRCOM'!$G$6:$EV$12,37,FALSE) -> 7 | P14: =VLOOKUP($A14,'RECAP DIRCOM'!$G$6:$EV$12,38,FALSE) -> 56% | Q14: =VLOOKUP($A14,'RECAP DIRCOM'!$G$6:$EV$12,39,FALSE) -> 41% | R14: =VLOOKUP($A14,'RECAP DIRCOM'!$G$6:$EV$12,40,FALSE) -> 5 | S14: =VLOOKUP($A14,'RECAP DIRCOM'!$G$6:$EV$12,41,FALSE) -> 42% | T14: =VLOOKUP($A14,'RECAP DIRCOM'!$G$6:$EV$12,42,FALSE) -> 20% | U14: =VLOOKUP($A14,'RECAP DIRCOM'!$G$6:$EV$12,43,FALSE) -> 6
A15: 160 | B15: Moselle | C15: =VLOOKUP($A15,'RECAP DIRCOM'!$G$6:$EV$12,3,FALSE) -> 302 | D15: =VLOOKUP($A15,'RECAP DIRCOM'!$G$6:$EV$12,26,FALSE) -> -18.31 | E15: =VLOOKUP($A15,'RECAP DIRCOM'!$G$6:$EV$12,27,FALSE) -> 61% | F15: =VLOOKUP($A15,'RECAP DIRCOM'!$G$6:$EV$12,28,FALSE) -> 6 | G15: =VLOOKUP($A15,'RECAP DIRCOM'!$G$6:$EV$12,29,FALSE) -> 5.79 | H15: =VLOOKUP($A15,'RECAP DIRCOM'!$G$6:$EV$12,30,FALSE) -> 29% | I15: =VLOOKUP($A15,'RECAP DIRCOM'!$G$6:$EV$12,31,FALSE) -> 3 | J15: =VLOOKUP($A15,'RECAP DIRCOM'!$G$6:$EV$12,32,FALSE) -> 16.26 | K15: =VLOOKUP($A15,'RECAP DIRCOM'!$G$6:$EV$12,33,FALSE) -> 0% | L15: =VLOOKUP($A15,'RECAP DIRCOM'!$G$6:$EV$12,34,FALSE) -> 1 | M15: =VLOOKUP($A15,'RECAP DIRCOM'!$G$6:$EV$12,35,FALSE) -> 5.01 | N15: =VLOOKUP($A15,'RECAP DIRCOM'!$G$6:$EV$12,36,FALSE) -> 23% | O15: =VLOOKUP($A15,'RECAP DIRCOM'!$G$6:$EV$12,37,FALSE) -> 5 | P15: =VLOOKUP($A15,'RECAP DIRCOM'!$G$6:$EV$12,38,FALSE) -> 76% | Q15: =VLOOKUP($A15,'RECAP DIRCOM'!$G$6:$EV$12,39,FALSE) -> 20% | R15: =VLOOKUP($A15,'RECAP DIRCOM'!$G$6:$EV$12,40,FALSE) -> 4 | S15: =VLOOKUP($A15,'RECAP DIRCOM'!$G$6:$EV$12,41,FALSE) -> 27% | T15: =VLOOKUP($A15,'RECAP DIRCOM'!$G$6:$EV$12,42,FALSE) -> 5% | U15: =VLOOKUP($A15,'RECAP DIRCOM'!$G$6:$EV$12,43,FALSE) -> 3
A16: 80 | B16: Vosges | C16: =VLOOKUP($A16,'RECAP DIRCOM'!$G$6:$EV$12,3,FALSE) -> 146 | D16: =VLOOKUP($A16,'RECAP DIRCOM'!$G$6:$EV$12,26,FALSE) -> -14.89 | E16: =VLOOKUP($A16,'RECAP DIRCOM'!$G$6:$EV$12,27,FALSE) -> 31% | F16: =VLOOKUP($A16,'RECAP DIRCOM'!$G$6:$EV$12,28,FALSE) -> 3 | G16: =VLOOKUP($A16,'RECAP DIRCOM'!$G$6:$EV$12,29,FALSE) -> 5.37 | H16: =VLOOKUP($A16,'RECAP DIRCOM'!$G$6:$EV$12,30,FALSE) -> 34% | I16: =VLOOKUP($A16,'RECAP DIRCOM'!$G$6:$EV$12,31,FALSE) -> 4 | J16: =VLOOKUP($A16,'RECAP DIRCOM'!$G$6:$EV$12,32,FALSE) -> 10.14 | K16: =VLOOKUP($A16,'RECAP DIRCOM'!$G$6:$EV$12,33,FALSE) -> 38% | L16: =VLOOKUP($A16,'RECAP DIRCOM'!$G$6:$EV$12,34,FALSE) -> 6 | M16: =VLOOKUP($A16,'RECAP DIRCOM'!$G$6:$EV$12,35,FALSE) -> 5.18 | N16: =VLOOKUP($A16,'RECAP DIRCOM'!$G$6:$EV$12,36,FALSE) -> 21% | O16: =VLOOKUP($A16,'RECAP DIRCOM'!$G$6:$EV$12,37,FALSE) -> 4 | P16: =VLOOKUP($A16,'RECAP DIRCOM'!$G$6:$EV$12,38,FALSE) -> 95% | Q16: =VLOOKUP($A16,'RECAP DIRCOM'!$G$6:$EV$12,39,FALSE) -> 0% | R16: =VLOOKUP($A16,'RECAP DIRCOM'!$G$6:$EV$12,40,FALSE) -> 1 | S16: =VLOOKUP($A16,'RECAP DIRCOM'!$G$6:$EV$12,41,FALSE) -> 25% | T16: =VLOOKUP($A16,'RECAP DIRCOM'!$G$6:$EV$12,42,FALSE) -> 3% | U16: =VLOOKUP($A16,'RECAP DIRCOM'!$G$6:$EV$12,43,FALSE) -> 2
A17: Total CEGEE Directions Régionales | C17: =SUM(C10:C16) -> 1568

Sheet DC_EPARGNE
A1: Accueil | D1: BAROMETRE BDD - DIRECTIONS REGIONALES
D2: EPARGNE
D3: =ACCUEIL!H7 -> 2019-09-30
D7: Excédent de collecte yc DAV | G7: CA assurance vie | J7: Activité UC (CA+Arbitrage) | M7: Excédent assurance vie | P7: Excédent Epargne Bilan (hors emprunt CTO) | S7: Total Epargne
E8: coef | F8: ='RECAP DIRCOM'!BF4 -> 2% | H8: coef | I8: ='RECAP DIRCOM'!BI4 -> 2% | K8: coef | L8: ='RECAP DIRCOM'!BL4 -> 2% | N8: coef | O8: ='RECAP DIRCOM'!BO4 -> 2% | Q8: coef | R8: ='RECAP DIRCOM'!BR4 -> 7% | T8: coef | U8: ='RECAP DIRCOM'!BU4 -> 15%
A9: eds | B9: Direction | C9: ETP perf | D9: Réal / ETP | E9: % Ecart au 1er | F9: Rang | G9: Réal / ETP | H9: % Ecart au 1er | I9: Rang | J9: Réal / ETP | K9: % Ecart au 1er | L9: Rang | M9: Réal / ETP | N9: % Ecart au 1er | O9: Rang | P9: Réal / ETP | Q9: % Ecart au 1er | R9: Rang | S9: Moyenne ecart au 1er | T9: % Ecart au 1er | U9: Rang CEGEE
A10: 50 | B10: Aube Haute Marne | C10: =VLOOKUP($A10,'RECAP DIRCOM'!$G$6:$EV$12,3,FALSE) -> 146 | D10: =VLOOKUP($A10,'RECAP DIRCOM'!$G$6:$EV$12,50,FALSE) -> 145.08 | E10: =VLOOKUP($A10,'RECAP DIRCOM'!$G$6:$EV$12,51,FALSE) -> 15% | F10: =VLOOKUP($A10,'RECAP DIRCOM'!$G$6:$EV$12,52,FALSE) -> 4 | G10: =VLOOKUP($A10,'RECAP DIRCOM'!$G$6:$EV$12,53,FALSE) -> 446.96 | H10: =VLOOKUP($A10,'RECAP DIRCOM'!$G$6:$EV$12,54,FALSE) -> 6% | I10: =VLOOKUP($A10,'RECAP DIRCOM'!$G$6:$EV$12,55,FALSE) -> 2 | J10: =VLOOKUP($A10,'RECAP DIRCOM'!$G$6:$EV$12,56,FALSE) -> 152 | K10: =VLOOKUP($A10,'RECAP DIRCOM'!$G$6:$EV$12,57,FALSE) -> 0% | L10: =VLOOKUP($A10,'RECAP DIRCOM'!$G$6:$EV$12,58,FALSE) -> 1 | M10: =VLOOKUP($A10,'RECAP DIRCOM'!$G$6:$EV$12,59,FALSE) -> 110.62 | N10: =VLOOKUP($A10,'RECAP DIRCOM'!$G$6:$EV$12,60,FALSE) -> 31% | O10: =VLOOKUP($A10,'RECAP DIRCOM'!$G$6:$EV$12,61,FALSE) -> 4 | P10: =VLOOKUP($A10,'RECAP DIRCOM'!$G$6:$EV$12,62,FALSE) -> -25.75 | Q10: =VLOOKUP($A10,'RECAP DIRCOM'!$G$6:$EV$12,63,FALSE) -> 146% | R10: =VLOOKUP($A10,'RECAP DIRCOM'!$G$6:$EV$12,64,FALSE) -> 7 | S10: =VLOOKUP($A10,'RECAP DIRCOM'!$G$6:$EV$12,65,FALSE) -> 75% | T10: =VLOOKUP($A10,'RECAP DIRCOM'!$G$6:$EV$12,66,FALSE) -> 55% | U10: =VLOOKUP($A10,'RECAP DIRCOM'!$G$6:$EV$12,67,FALSE) -> 7
A11: 262 | B11: Bas-Rhin | C11: =VLOOKUP($A11,'RECAP DIRCOM'!$G$6:$EV$12,3,FALSE) -> 298 | D11: =VLOOKUP($A11,'RECAP DIRCOM'!$G$6:$EV$12,50,FALSE) -> 94.54 | E11: =VLOOKUP($A11,'RECAP DIRCOM'!$G$6:$EV$12,51,FALSE) -> 44% | F11: =VLOOKUP($A11,'RECAP DIRCOM'!$G$6:$EV$12,52,FALSE) -> 6 | G11: =VLOOKUP($A11,'RECAP DIRCOM'!$G$6:$EV$12,53,FALSE) -> 330.05 | H11: =VLOOKUP($A11,'RECAP DIRCOM'!$G$6:$EV$12,54,FALSE) -> 31% | I11: =VLOOKUP($A11,'RECAP DIRCOM'!$G$6:$EV$12,55,FALSE) -> 6 | J11: =VLOOKUP($A11,'RECAP DIRCOM'!$G$6:$EV$12,56,FALSE) -> 128 | K11: =VLOOKUP($A11,'RECAP DIRCOM'!$G$6:$EV$12,57,FALSE) -> 16% | L11: =VLOOKUP($A11,'RECAP DIRCOM'!$G$6:$EV$12,58,FALSE) -> 4 | M11: =VLOOKUP($A11,'RECAP DIRCOM'!$G$6:$EV$12,59,FALSE) -> 47.11 | N11: =VLOOKUP($A11,'RECAP DIRCOM'!$G$6:$EV$12,60,FALSE) -> 71% | O11: =VLOOKUP($A11,'RECAP DIRCOM'!$G$6:$EV$12,61,FALSE) -> 6 | P11: =VLOOKUP($A11,'RECAP DIRCOM'!$G$6:$EV$12,62,FALSE) -> 25.49 | Q11: =VLOOKUP($A11,'RECAP DIRCOM'!$G$6:$EV$12,63,FALSE) -> 55% | R11: =VLOOKUP($A11,'RECAP DIRCOM'!$G$6:$EV$12,64,FALSE) -> 2 | S11: =VLOOKUP($A11,'RECAP DIRCOM'!$G$6:$EV$12,65,FALSE) -> 47% | T11: =VLOOKUP($A11,'RECAP DIRCOM'!$G$6:$EV$12,66,FALSE) -> 27% | U11: =VLOOKUP($A11,'RECAP DIRCOM'!$G$6:$EV$12,67,FALSE) -> 4
A12: 264 | B12: Haut-Rhin | C12: =VLOOKUP($A12,'RECAP DIRCOM'!$G$6:$EV$12,3,FALSE) -> 176 | D12: =VLOOKUP($A12,'RECAP DIRCOM'!$G$6:$EV$12,50,FALSE) -> 151.90 | E12: =VLOOKUP($A12,'RECAP DIRCOM'!$G$6:$EV$12,51,FALSE) -> 11% | F12: =VLOOKUP($A12,'RECAP DIRCOM'!$G$6:$EV$12,52,FALSE) -> 3 | G12: =VLOOKUP($A12,'RECAP DIRCOM'!$G$6:$EV$12,53,FALSE) -> 311.50 | H12: =VLOOKUP($A12,'RECAP DIRCOM'!$G$6:$EV$12,54,FALSE) -> 35% | I12: =VLOOKUP($A12,'RECAP DIRCOM'!$G$6:$EV$12,55,FALSE) -> 7 | J12: =VLOOKUP($A12,'RECAP DIRCOM'!$G$6:$EV$12,56,FALSE) -> 105 | K12: =VLOOKUP($A12,'RECAP DIRCOM'!$G$6:$EV$12,57,FALSE) -> 30% | L12: =VLOOKUP($A12,'RECAP DIRCOM'!$G$6:$EV$12,58,FALSE) -> 7 | M12: =VLOOKUP($A12,'RECAP DIRCOM'!$G$6:$EV$12,59,FALSE) -> 37.32 | N12: =VLOOKUP($A12,'RECAP DIRCOM'!$G$6:$EV$12,60,FALSE) -> 77% | O12: =VLOOKUP($A12,'RECAP DIRCOM'!$G$6:$EV$12,61,FALSE) -> 7 | P12: =VLOOKUP($A12,'RECAP DIRCOM'!$G$6:$EV$12,62,FALSE) -> 56.03 | Q12: =VLOOKUP($A12,'RECAP DIRCOM'!$G$6:$EV$12,63,FALSE) -> 0% | R12: =VLOOKUP($A12,'RECAP DIRCOM'!$G$6:$EV$12,64,FALSE) -> 1 | S12: =VLOOKUP($A12,'RECAP DIRCOM'!$G$6:$EV$12,65,FALSE) -> 20% | T12: =VLOOKUP($A12,'RECAP DIRCOM'!$G$6:$EV$12,66,FALSE) -> 0% | U12: =VLOOKUP($A12,'RECAP DIRCOM'!$G$6:$EV$12,67,FALSE) -> 1
A13: 30 | B13: Marne-Ardennes | C13: =VLOOKUP($A13,'RECAP DIRCOM'!$G$6:$EV$12,3,FALSE) -> 238 | D13: =VLOOKUP($A13,'RECAP DIRCOM'!$G$6:$EV$12,50,FALSE) -> 78.74 | E13: =VLOOKUP($A13,'RECAP DIRCOM'!$G$6:$EV$12,51,FALSE) -> 54% | F13: =VLOOKUP($A13,'RECAP DIRCOM'!$G$6:$EV$12,52,FALSE) -> 7 | G13: =VLOOKUP($A13,'RECAP DIRCOM'!$G$6:$EV$12,53,FALSE) -> 415.42 | H13: =VLOOKUP($A13,'RECAP DIRCOM'!$G$6:$EV$12,54,FALSE) -> 13% | I13: =VLOOKUP($A13,'RECAP DIRCOM'!$G$6:$EV$12,55,FALSE) -> 5 | J13: =VLOOKUP($A13,'RECAP DIRCOM'!$G$6:$EV$12,56,FALSE) -> 118 | K13: =VLOOKUP($A13,'RECAP DIRCOM'!$G$6:$EV$12,57,FALSE) -> 22% | L13: =VLOOKUP($A13,'RECAP DIRCOM'!$G$6:$EV$12,58,FALSE) -> 6 | M13: =VLOOKUP($A13,'RECAP DIRCOM'!$G$6:$EV$12,59,FALSE) -> 90.41 | N13: =VLOOKUP($A13,'RECAP DIRCOM'!$G$6:$EV$12,60,FALSE) -> 44% | O13: =VLOOKUP($A13,'RECAP DIRCOM'!$G$6:$EV$12,61,FALSE) -> 5 | P13: =VLOOKUP($A13,'RECAP DIRCOM'!$G$6:$EV$12,62,FALSE) -> -8.46 | Q13: =VLOOKUP($A13,'RECAP DIRCOM'!$G$6:$EV$12,63,FALSE) -> 115% | R13: =VLOOKUP($A13,'RECAP DIRCOM'!$G$6:$EV$12,64,FALSE) -> 6 | S13: =VLOOKUP($A13,'RECAP DIRCOM'!$G$6:$EV$12,65,FALSE) -> 71% | T13: =VLOOKUP($A13,'RECAP DIRCOM'!$G$6:$EV$12,66,FALSE) -> 51% | U13: =VLOOKUP($A13,'RECAP DIRCOM'!$G$6:$EV$12,67,FALSE) -> 6
A14: 110 | B14: Meurthe et Moselle Meuse | C14: =VLOOKUP($A14,'RECAP DIRCOM'!$G$6:$EV$12,3,FALSE) -> 262 | D14: =VLOOKUP($A14,'RECAP DIRCOM'!$G$6:$EV$12,50,FALSE) -> 121.91 | E14: =VLOOKUP($A14,'RECAP DIRCOM'!$G$6:$EV$12,51,FALSE) -> 28% | F14: =VLOOKUP($A14,'RECAP DIRCOM'!$G$6:$EV$12,52,FALSE) -> 5 | G14: =VLOOKUP($A14,'RECAP DIRCOM'!$G$6:$EV$12,53,FALSE) -> 444.48 | H14: =VLOOKUP($A14,'RECAP DIRCOM'!$G$6:$EV$12,54,FALSE) -> 7% | I14: =VLOOKUP($A14,'RECAP DIRCOM'!$G$6:$EV$12,55,FALSE) -> 3 | J14: =VLOOKUP($A14,'RECAP DIRCOM'!$G$6:$EV$12,56,FALSE) -> 128 | K14: =VLOOKUP($A14,'RECAP DIRCOM'!$G$6:$EV$12,57,FALSE) -> 16% | L14: =VLOOKUP($A14,'RECAP DIRCOM'!$G$6:$EV$12,58,FALSE) -> 5 | M14: =VLOOKUP($A14,'RECAP DIRCOM'!$G$6:$EV$12,59,FALSE) -> 137.45 | N14: =VLOOKUP($A14,'RECAP DIRCOM'!$G$6:$EV$12,60,FALSE) -> 15% | O14: =VLOOKUP($A14,'RECAP DIRCOM'!$G$6:$EV$12,61,FALSE) -> 2 | P14: =VLOOKUP($A14,'RECAP DIRCOM'!$G$6:$EV$12,62,FALSE) -> 5.66 | Q14: =VLOOKUP($A14,'RECAP DIRCOM'!$G$6:$EV$12,63,FALSE) -> 90% | R14: =VLOOKUP($A14,'RECAP DIRCOM'!$G$6:$EV$12,64,FALSE) -> 5 | S14: =VLOOKUP($A14,'RECAP DIRCOM'!$G$6:$EV$12,65,FALSE) -> 51% | T14: =VLOOKUP($A14,'RECAP DIRCOM'!$G$6:$EV$12,66,FALSE) -> 30% | U14: =VLOOKUP($A14,'RECAP DIRCOM'!$G$6:$EV$12,67,FALSE) -> 5
A15: 160 | B15: Moselle | C15: =VLOOKUP($A15,'RECAP DIRCOM'!$G$6:$EV$12,3,FALSE) -> 302 | D15: =VLOOKUP($A15,'RECAP DIRCOM'!$G$6:$EV$12,50,FALSE) -> 170.31 | E15: =VLOOKUP($A15,'RECAP DIRCOM'!$G$6:$EV$12,51,FALSE) -> 0% | F15: =VLOOKUP($A15,'RECAP DIRCOM'!$G$6:$EV$12,52,FALSE) -> 1 | G15: =VLOOKUP($A15,'RECAP DIRCOM'!$G$6:$EV$12,53,FALSE) -> 477.99 | H15: =VLOOKUP($A15,'RECAP DIRCOM'!$G$6:$EV$12,54,FALSE) -> 0% | I15: =VLOOKUP($A15,'RECAP DIRCOM'!$G$6:$EV$12,55,FALSE) -> 1 | J15: =VLOOKUP($A15,'RECAP DIRCOM'!$G$6:$EV$12,56,FALSE) -> 146 | K15: =VLOOKUP($A15,'RECAP DIRCOM'!$G$6:$EV$12,57,FALSE) -> 4% | L15: =VLOOKUP($A15,'RECAP DIRCOM'!$G$6:$EV$12,58,FALSE) -> 2 | M15: =VLOOKUP($A15,'RECAP DIRCOM'!$G$6:$EV$12,59,FALSE) -> 161.05 | N15: =VLOOKUP($A15,'RECAP DIRCOM'!$G$6:$EV$12,60,FALSE) -> 0% | O15: =VLOOKUP($A15,'RECAP DIRCOM'!$G$6:$EV$12,61,FALSE) -> 1 | P15: =VLOOKUP($A15,'RECAP DIRCOM'!$G$6:$EV$12,62,FALSE) -> 10.25 | Q15: =VLOOKUP($A15,'RECAP DIRCOM'!$G$6:$EV$12,63,FALSE) -> 82% | R15: =VLOOKUP($A15,'RECAP DIRCOM'!$G$6:$EV$12,64,FALSE) -> 4 | S15: =VLOOKUP($A15,'RECAP DIRCOM'!$G$6:$EV$12,65,FALSE) -> 39% | T15: =VLOOKUP($A15,'RECAP DIRCOM'!$G$6:$EV$12,66,FALSE) -> 18% | U15: =VLOOKUP($A15,'RECAP DIRCOM'!$G$6:$EV$12,67,FALSE) -> 2
A16: 80 | B16: Vosges | C16: =VLOOKUP($A16,'RECAP DIRCOM'!$G$6:$EV$12,3,FALSE) -> 146 | D16: =VLOOKUP($A16,'RECAP DIRCOM'!$G$6:$EV$12,50,FALSE) -> 161.39 | E16: =VLOOKUP($A16,'RECAP DIRCOM'!$G$6:$EV$12,51,FALSE) -> 5% | F16: =VLOOKUP($A16,'RECAP DIRCOM'!$G$6:$EV$12,52,FALSE) -> 2 | G16: =VLOOKUP($A16,'RECAP DIRCOM'!$G$6:$EV$12,53,FALSE) -> 436.14 | H16: =VLOOKUP($A16,'RECAP DIRCOM'!$G$6:$EV$12,54,FALSE) -> 9% | I16: =VLOOKUP($A16,'RECAP DIRCOM'!$G$6:$EV$12,55,FALSE) -> 4 | J16: =VLOOKUP($A16,'RECAP DIRCOM'!$G$6:$EV$12,56,FALSE) -> 129 | K16: =VLOOKUP($A16,'RECAP DIRCOM'!$G$6:$EV$12,57,FALSE) -> 15% | L16: =VLOOKUP($A16,'RECAP DIRCOM'!$G$6:$EV$12,58,FALSE) -> 3 | M16: =VLOOKUP($A16,'RECAP DIRCOM'!$G$6:$EV$12,59,FALSE) -> 118.10 | N16: =VLOOKUP($A16,'RECAP DIRCOM'!$G$6:$EV$12,60,FALSE) -> 27% | O16: =VLOOKUP($A16,'RECAP DIRCOM'!$G$6:$EV$12,61,FALSE) -> 3 | P16: =VLOOKUP($A16,'RECAP DIRCOM'!$G$6:$EV$12,62,FALSE) -> 16.05 | Q16: =VLOOKUP($A16,'RECAP DIRCOM'!$G$6:$EV$12,63,FALSE) -> 71% | R16: =VLOOKUP($A16,'RECAP DIRCOM'!$G$6:$EV$12,64,FALSE) -> 3 | S16: =VLOOKUP($A16,'RECAP DIRCOM'!$G$6:$EV$12,65,FALSE) -> 41% | T16: =VLOOKUP($A16,'RECAP DIRCOM'!$G$6:$EV$12,66,FALSE) -> 20% | U16: =VLOOKUP($A16,'RECAP DIRCOM'!$G$6:$EV$12,67,FALSE) -> 3
A17: Total CEGEE Directions Régionales | C17: =SUM(C10:C16) -> 1568

Sheet DC_CREDIT
A1: Accueil | D1: BAROMETRE BDD - DIRECTIONS REGIONALES
D2: CREDITS
D3: =ACCUEIL!H7 -> 2019-09-30
D7: Engagements crédit conso (hors clients note octroi à 9) | G7: % CNP crédit conso | J7: Engagements crédi immo | M7: % CNP crédit immo | P7: Taux couverture SACCEF | S7: Engagement Crédit MLT + Crédit Bail | V7: Total Crédits
E8: coef | F8: ='RECAP DIRCOM'!CD4 -> 3% | H8: coef | I8: ='RECAP DIRCOM'!CG4 -> 2% | K8: coef | L8: ='RECAP DIRCOM'!CJ4 -> 3% | N8: coef | O8: ='RECAP DIRCOM'!CM4 -> 2% | Q8: coef | R8: ='RECAP DIRCOM'!CP4 -> 2% | T8: coef | U8: ='RECAP DIRCOM'!CS4 -> 3% | W8: coef | X8: ='RECAP DIRCOM'!CV4 -> 15%
A9: eds | B9: Direction | C9: ETP perf | D9: Réal / ETP | E9: % Ecart au 1er | F9: Rang | H9: % Ecart au 1er | I9: Rang | J9: Taux réal objectif | K9: % Ecart au 1er | L9: Rang | N9: % Ecart au 1er | O9: Rang | Q9: % Ecart au 1er | R9: Rang | S9: Taux réal objectif | T9: % Ecart au 1er | U9: Rang | V9: Moyenne ecart au 1er | W9: % Ecart au 1er | X9: Rang CEGEE
A10: 50 | B10: Aube Haute Marne | C10: =VLOOKUP($A10,'RECAP DIRCOM'!$G$6:$EV$12,3,FALSE) -> 146 | D10: =VLOOKUP($A10,'RECAP DIRCOM'!$G$6:$EV$12,74,FALSE) -> 386.32 | E10: =VLOOKUP($A10,'RECAP DIRCOM'!$G$6:$EV$12,75,FALSE) -> 0% | F10: =VLOOKUP($A10,'RECAP DIRCOM'!$G$6:$EV$12,76,FALSE) -> 1 | G10: =VLOOKUP($A10,'RECAP DIRCOM'!$G$6:$EV$12,77,FALSE) -> 92% | H10: =VLOOKUP($A10,'RECAP DIRCOM'!$G$6:$EV$12,78,FALSE) -> 5% | I10: =VLOOKUP($A10,'RECAP DIRCOM'!$G$6:$EV$12,79,FALSE) -> 5 | J10: =VLOOKUP($A10,'RECAP DIRCOM'!$G$6:$EV$12,80,FALSE) -> 73% | K10: =VLOOKUP($A10,'RECAP DIRCOM'!$G$6:$EV$12,81,FALSE) -> 30% | L10: =VLOOKUP($A10,'RECAP DIRCOM'!$G$6:$EV$12,82,FALSE) -> 7 | M10: =VLOOKUP($A10,'RECAP DIRCOM'!$G$6:$EV$12,83,FALSE) -> 61% | N10: =VLOOKUP($A10,'RECAP DIRCOM'!$G$6:$EV$12,84,FALSE) -> 20% | O10: =VLOOKUP($A10,'RECAP DIRCOM'!$G$6:$EV$12,85,FALSE) -> 5 | P10: =VLOOKUP($A10,'RECAP DIRCOM'!$G$6:$EV$12,86,FALSE) -> 85% | Q10: =VLOOKUP($A10,'RECAP DIRCOM'!$G$6:$EV$12,87,FALSE) -> 9% | R10: =VLOOKUP($A10,'RECAP DIRCOM'!$G$6:$EV$12,88,FALSE) -> 5 | S10: =VLOOKUP($A10,'RECAP DIRCOM'!$G$6:$EV$12,89,FALSE) -> 94% | T10: =VLOOKUP($A10,'RECAP DIRCOM'!$G$6:$EV$12,90,FALSE) -> 0% | U10: =VLOOKUP($A10,'RECAP DIRCOM'!$G$6:$EV$12,91,FALSE) -> 1 | V10: =VLOOKUP($A10,'RECAP DIRCOM'!$G$6:$EV$12,92,FALSE) -> 10% | W10: =VLOOKUP($A10,'RECAP DIRCOM'!$G$6:$EV$12,93,FALSE) -> 6% | X10: =VLOOKUP($A10,'RECAP DIRCOM'!$G$6:$EV$12,94,FALSE) -> 2
A11: 262 | B11: Bas-Rhin | C11: =VLOOKUP($A11,'RECAP DIRCOM'!$G$6:$EV$12,3,FALSE) -> 298 | D11: =VLOOKUP($A11,'RECAP DIRCOM'!$G$6:$EV$12,74,FALSE) -> 290.26 | E11: =VLOOKUP($A11,'RECAP DIRCOM'!$G$6:$EV$12,75,FALSE) -> 25% | F11: =VLOOKUP($A11,'RECAP DIRCOM'!$G$6:$EV$12,76,FALSE) -> 7 | G11: =VLOOKUP($A11,'RECAP DIRCOM'!$G$6:$EV$12,77,FALSE) -> 94% | H11: =VLOOKUP($A11,'RECAP DIRCOM'!$G$6:$EV$12,78,FALSE) -> 3% | I11: =VLOOKUP($A11,'RECAP DIRCOM'!$G$6:$EV$12,79,FALSE) -> 3 | J11: =VLOOKUP($A11,'RECAP DIRCOM'!$G$6:$EV$12,80,FALSE) -> 82% | K11: =VLOOKUP($A11,'RECAP DIRCOM'!$G$6:$EV$12,81,FALSE) -> 22% | L11: =VLOOKUP($A11,'RECAP DIRCOM'!$G$6:$EV$12,82,FALSE) -> 5 | M11: =VLOOKUP($A11,'RECAP DIRCOM'!$G$6:$EV$12,83,FALSE) -> 54% | N11: =VLOOKUP($A11,'RECAP DIRCOM'!$G$6:$EV$12,84,FALSE) -> 29% | O11: =VLOOKUP($A11,'RECAP DIRCOM'!$G$6:$EV$12,85,FALSE) -> 7 | P11: =VLOOKUP($A11,'RECAP DIRCOM'!$G$6:$EV$12,86,FALSE) -> 85% | Q11: =VLOOKUP($A11,'RECAP DIRCOM'!$G$6:$EV$12,87,FALSE) -> 9% | R11: =VLOOKUP($A11,'RECAP DIRCOM'!$G$6:$EV$12,88,FALSE) -> 6 | S11: =VLOOKUP($A11,'RECAP DIRCOM'!$G$6:$EV$12,89,FALSE) -> 87% | T11: =VLOOKUP($A11,'RECAP DIRCOM'!$G$6:$EV$12,90,FALSE) -> 7% | U11: =VLOOKUP($A11,'RECAP DIRCOM'!$G$6:$EV$12,91,FALSE) -> 3 | V11: =VLOOKUP($A11,'RECAP DIRCOM'!$G$6:$EV$12,92,FALSE) -> 16% | W11: =VLOOKUP($A11,'RECAP DIRCOM'!$G$6:$EV$12,93,FALSE) -> 12% | X11: =VLOOKUP($A11,'RECAP DIRCOM'!$G$6:$EV$12,94,FALSE) -> 6
A12: 264 | B12: Haut-Rhin | C12: =VLOOKUP($A12,'RECAP DIRCOM'!$G$6:$EV$12,3,FALSE) -> 176 | D12: =VLOOKUP($A12,'RECAP DIRCOM'!$G$6:$EV$12,74,FALSE) -> 300.71 | E12: =VLOOKUP($A12,'RECAP DIRCOM'!$G$6:$EV$12,75,FALSE) -> 22% | F12: =VLOOKUP($A12,'RECAP DIRCOM'!$G$6:$EV$12,76,FALSE) -> 6 | G12: =VLOOKUP($A12,'RECAP DIRCOM'!$G$6:$EV$12,77,FALSE) -> 93% | H12: =VLOOKUP($A12,'RECAP DIRCOM'!$G$6:$EV$12,78,FALSE) -> 4% | I12: =VLOOKUP($A12,'RECAP DIRCOM'!$G$6:$EV$12,79,FALSE) -> 4 | J12: =VLOOKUP($A12,'RECAP DIRCOM'!$G$6:$EV$12,80,FALSE) -> 85% | K12: =VLOOKUP($A12,'RECAP DIRCOM'!$G$6:$EV$12,81,FALSE) -> 19% | L12: =VLOOKUP($A12,'RECAP DIRCOM'!$G$6:$EV$12,82,FALSE) -> 4 | M12: =VLOOKUP($A12,'RECAP DIRCOM'!$G$6:$EV$12,83,FALSE) -> 70% | N12: =VLOOKUP($A12,'RECAP DIRCOM'!$G$6:$EV$12,84,FALSE) -> 9% | O12: =VLOOKUP($A12,'RECAP DIRCOM'!$G$6:$EV$12,85,FALSE) -> 4 | P12: =VLOOKUP($A12,'RECAP DIRCOM'!$G$6:$EV$12,86,FALSE) -> 74% | Q12: =VLOOKUP($A12,'RECAP DIRCOM'!$G$6:$EV$12,87,FALSE) -> 21% | R12: =VLOOKUP($A12,'RECAP DIRCOM'!$G$6:$EV$12,88,FALSE) -> 7 | S12: =VLOOKUP($A12,'RECAP DIRCOM'!$G$6:$EV$12,89,FALSE) -> 82% | T12: =VLOOKUP($A12,'RECAP DIRCOM'!$G$6:$EV$12,90,FALSE) -> 12% | U12: =VLOOKUP($A12,'RECAP DIRCOM'!$G$6:$EV$12,91,FALSE) -> 5 | V12: =VLOOKUP($A12,'RECAP DIRCOM'!$G$6:$EV$12,92,FALSE) -> 15% | W12: =VLOOKUP($A12,'RECAP DIRCOM'!$G$6:$EV$12,93,FALSE) -> 11% | X12: =VLOOKUP($A12,'RECAP DIRCOM'!$G$6:$EV$12,94,FALSE) -> 5
A13: 30 | B13: Marne-Ardennes | C13: =VLOOKUP($A13,'RECAP DIRCOM'!$G$6:$EV$12,3,FALSE) -> 238 | D13: =VLOOKUP($A13,'RECAP DIRCOM'!$G$6:$EV$12,74,FALSE) -> 365.58 | E13: =VLOOKUP($A13,'RECAP DIRCOM'!$G$6:$EV$12,75,FALSE) -> 5% | F13: =VLOOKUP($A13,'RECAP DIRCOM'!$G$6:$EV$12,76,FALSE) -> 2 | G13: =VLOOKUP($A13,'RECAP DIRCOM'!$G$6:$EV$12,77,FALSE) -> 90% | H13: =VLOOKUP($A13,'RECAP DIRCOM'!$G$6:$EV$12,78,FALSE) -> 6% | I13: =VLOOKUP($A13,'RECAP DIRCOM'!$G$6:$EV$12,79,FALSE) -> 7 | J13: =VLOOKUP($A13,'RECAP DIRCOM'!$G$6:$EV$12,80,FALSE) -> 105% | K13: =VLOOKUP($A13,'RECAP DIRCOM'!$G$6:$EV$12,81,FALSE) -> 0% | L13: =VLOOKUP($A13,'RECAP DIRCOM'!$G$6:$EV$12,82,FALSE) -> 1 | M13: =VLOOKUP($A13,'RECAP DIRCOM'!$G$6:$EV$12,83,FALSE) -> 76% | N13: =VLOOKUP($A13,'RECAP DIRCOM'!$G$6:$EV$12,84,FALSE) -> 0% | O13: =VLOOKUP($A13,'RECAP DIRCOM'!$G$6:$EV$12,85,FALSE) -> 1 | P13: =VLOOKUP($A13,'RECAP DIRCOM'!$G$6:$EV$12,86,FALSE) -> 89% | Q13: =VLOOKUP($A13,'RECAP DIRCOM'!$G$6:$EV$12,87,FALSE) -> 5% | R13: =VLOOKUP($A13,'RECAP DIRCOM'!$G$6:$EV$12,88,FALSE) -> 3 | S13: =VLOOKUP($A13,'RECAP DIRCOM'!$G$6:$EV$12,89,FALSE) -> 86% | T13: =VLOOKUP($A13,'RECAP DIRCOM'!$G$6:$EV$12,90,FALSE) -> 8% | U13: =VLOOKUP($A13,'RECAP DIRCOM'!$G$6:$EV$12,91,FALSE) -> 4 | V13: =VLOOKUP($A13,'RECAP DIRCOM'!$G$6:$EV$12,92,FALSE) -> 4% | W13: =VLOOKUP($A13,'RECAP DIRCOM'!$G$6:$EV$12,93,FALSE) -> 0% | X13: =VLOOKUP($A13,'RECAP DIRCOM'!$G$6:$EV$12,94,FALSE) -> 1
A14: 110 | B14: Meurthe et Moselle Meuse | C14: =VLOOKUP($A14,'RECAP DIRCOM'!$G$6:$EV$12,3,FALSE) -> 262 | D14: =VLOOKUP($A14,'RECAP DIRCOM'!$G$6:$EV$12,74,FALSE) -> 350.44 | E14: =VLOOKUP($A14,'RECAP DIRCOM'!$G$6:$EV$12,75,FALSE) -> 9% | F14: =VLOOKUP($A14,'RECAP DIRCOM'!$G$6:$EV$12,76,FALSE) -> 3 | G14: =VLOOKUP($A14,'RECAP DIRCOM'!$G$6:$EV$12,77,FALSE) -> 91% | H14: =VLOOKUP($A14,'RECAP DIRCOM'!$G$6:$EV$12,78,FALSE) -> 6% | I14: =VLOOKUP($A14,'RECAP DIRCOM'!$G$6:$EV$12,79,FALSE) -> 6 | J14: =VLOOKUP($A14,'RECAP DIRCOM'!$G$6:$EV$12,80,FALSE) -> 92% | K14: =VLOOKUP($A14,'RECAP DIRCOM'!$G$6:$EV$12,81,FALSE) -> 12% | L14: =VLOOKUP($A14,'RECAP DIRCOM'!$G$6:$EV$12,82,FALSE) -> 2 | M14: =VLOOKUP($A14,'RECAP DIRCOM'!$G$6:$EV$12,83,FALSE) -> 72% | N14: =VLOOKUP($A14,'RECAP DIRCOM'!$G$6:$EV$12,84,FALSE) -> 5% | O14: =VLOOKUP($A14,'RECAP DIRCOM'!$G$6:$EV$12,85,FALSE) -> 3 | P14: =VLOOKUP($A14,'RECAP DIRCOM'!$G$6:$EV$12,86,FALSE) -> 93% | Q14: =VLOOKUP($A14,'RECAP DIRCOM'!$G$6:$EV$12,87,FALSE) -> 0% | R14: =VLOOKUP($A14,'RECAP DIRCOM'!$G$6:$EV$12,88,FALSE) -> 1 | S14: =VLOOKUP($A14,'RECAP DIRCOM'!$G$6:$EV$12,89,FALSE) -> 60% | T14: =VLOOKUP($A14,'RECAP DIRCOM'!$G$6:$EV$12,90,FALSE) -> 36% | U14: =VLOOKUP($A14,'RECAP DIRCOM'!$G$6:$EV$12,91,FALSE) -> 6 | V14: =VLOOKUP($A14,'RECAP DIRCOM'!$G$6:$EV$12,92,FALSE) -> 13% | W14: =VLOOKUP($A14,'RECAP DIRCOM'!$G$6:$EV$12,93,FALSE) -> 9% | X14: =VLOOKUP($A14,'RECAP DIRCOM'!$G$6:$EV$12,94,FALSE) -> 4
A15: 160 | B15: Moselle | C15: =VLOOKUP($A15,'RECAP DIRCOM'!$G$6:$EV$12,3,FALSE) -> 302 | D15: =VLOOKUP($A15,'RECAP DIRCOM'!$G$6:$EV$12,74,FALSE) -> 340.97 | E15: =VLOOKUP($A15,'RECAP DIRCOM'!$G$6:$EV$12,75,FALSE) -> 12% | F15: =VLOOKUP($A15,'RECAP DIRCOM'!$G$6:$EV$12,76,FALSE) -> 4 | G15: =VLOOKUP($A15,'RECAP DIRCOM'!$G$6:$EV$12,77,FALSE) -> 96% | H15: =VLOOKUP($A15,'RECAP DIRCOM'!$G$6:$EV$12,78,FALSE) -> 1% | I15: =VLOOKUP($A15,'RECAP DIRCOM'!$G$6:$EV$12,79,FALSE) -> 2 | J15: =VLOOKUP($A15,'RECAP DIRCOM'!$G$6:$EV$12,80,FALSE) -> 90% | K15: =VLOOKUP($A15,'RECAP DIRCOM'!$G$6:$EV$12,81,FALSE) -> 14% | L15: =VLOOKUP($A15,'RECAP DIRCOM'!$G$6:$EV$12,82,FALSE) -> 3 | M15: =VLOOKUP($A15,'RECAP DIRCOM'!$G$6:$EV$12,83,FALSE) -> 59% | N15: =VLOOKUP($A15,'RECAP DIRCOM'!$G$6:$EV$12,84,FALSE) -> 22% | O15: =VLOOKUP($A15,'RECAP DIRCOM'!$G$6:$EV$12,85,FALSE) -> 6 | P15: =VLOOKUP($A15,'RECAP DIRCOM'!$G$6:$EV$12,86,FALSE) -> 90% | Q15: =VLOOKUP($A15,'RECAP DIRCOM'!$G$6:$EV$12,87,FALSE) -> 3% | R15: =VLOOKUP($A15,'RECAP DIRCOM'!$G$6:$EV$12,88,FALSE) -> 2 | S15: =VLOOKUP($A15,'RECAP DIRCOM'!$G$6:$EV$12,89,FALSE) -> 53% | T15: =VLOOKUP($A15,'RECAP DIRCOM'!$G$6:$EV$12,90,FALSE) -> 43% | U15: =VLOOKUP($A15,'RECAP DIRCOM'!$G$6:$EV$12,91,FALSE) -> 7 | V15: =VLOOKUP($A15,'RECAP DIRCOM'!$G$6:$EV$12,92,FALSE) -> 17% | W15: =VLOOKUP($A15,'RECAP DIRCOM'!$G$6:$EV$12,93,FALSE) -> 13% | X15: =VLOOKUP($A15,'RECAP DIRCOM'!$G$6:$EV$12,94,FALSE) -> 7
A16: 80 | B16: Vosges | C16: =VLOOKUP($A16,'RECAP DIRCOM'!$G$6:$EV$12,3,FALSE) -> 146 | D16: =VLOOKUP($A16,'RECAP DIRCOM'!$G$6:$EV$12,74,FALSE) -> 319.42 | E16: =VLOOKUP($A16,'RECAP DIRCOM'!$G$6:$EV$12,75,FALSE) -> 17% | F16: =VLOOKUP($A16,'RECAP DIRCOM'!$G$6:$EV$12,76,FALSE) -> 5 | G16: =VLOOKUP($A16,'RECAP DIRCOM'!$G$6:$EV$12,77,FALSE) -> 96% | H16: =VLOOKUP($A16,'RECAP DIRCOM'!$G$6:$EV$12,78,FALSE) -> 0% | I16: =VLOOKUP($A16,'RECAP DIRCOM'!$G$6:$EV$12,79,FALSE) -> 1 | J16: =VLOOKUP($A16,'RECAP DIRCOM'!$G$6:$EV$12,80,FALSE) -> 76% | K16: =VLOOKUP($A16,'RECAP DIRCOM'!$G$6:$EV$12,81,FALSE) -> 27% | L16: =VLOOKUP($A16,'RECAP DIRCOM'!$G$6:$EV$12,82,FALSE) -> 6 | M16: =VLOOKUP($A16,'RECAP DIRCOM'!$G$6:$EV$12,83,FALSE) -> 74% | N16: =VLOOKUP($A16,'RECAP DIRCOM'!$G$6:$EV$12,84,FALSE) -> 4% | O16: =VLOOKUP($A16,'RECAP DIRCOM'!$G$6:$EV$12,85,FALSE) -> 2 | P16: =VLOOKUP($A16,'RECAP DIRCOM'!$G$6:$EV$12,86,FALSE) -> 87% | Q16: =VLOOKUP($A16,'RECAP DIRCOM'!$G$6:$EV$12,87,FALSE) -> 6% | R16: =VLOOKUP($A16,'RECAP DIRCOM'!$G$6:$EV$12,88,FALSE) -> 4 | S16: =VLOOKUP($A16,'RECAP DIRCOM'!$G$6:$EV$12,89,FALSE) -> 91% | T16: =VLOOKUP($A16,'RECAP DIRCOM'!$G$6:$EV$12,90,FALSE) -> 3% | U16: =VLOOKUP($A16,'RECAP DIRCOM'!$G$6:$EV$12,91,FALSE) -> 2 | V16: =VLOOKUP($A16,'RECAP DIRCOM'!$G$6:$EV$12,92,FALSE) -> 11% | W16: =VLOOKUP($A16,'RECAP DIRCOM'!$G$6:$EV$12,93,FALSE) -> 7% | X16: =VLOOKUP($A16,'RECAP DIRCOM'!$G$6:$EV$12,94,FALSE) -> 3
A17: Total CEGEE Directions Régionales | C17: =SUM(C10:C16) -> 1568

Sheet DC_IARD
A1: Accueil | D1: BAROMETRE BDD - DIRECTIONS REGIONALES
D2: IARD PREVOYANCE
D3: =ACCUEIL!H7 -> 2019-09-30
D7: Ventes nettes IARD (AUTO+MRH+Pro) | G7: Ventes nettes Prévoyance | J7: Chiffre d'affaires IARD | M7: Total IARD Prévoyance
E8: coef | F8: ='RECAP DIRCOM'!DE4 -> 7% | H8: coef | I8: ='RECAP DIRCOM'!DH4 -> 7% | K8: coef | L8: ='RECAP DIRCOM'!DK4 -> 6% | N8: coef | O8: ='RECAP DIRCOM'!DN4 -> 20%
A9: eds | B9: Direction | C9: ETP perf | D9: Nb / ETP | E9: % Ecart au 1er | F9: Rang | G9: Nb / ETP | H9: % Ecart au 1er | I9: Rang | J9: Nb / ETP | K9: % Ecart au 1er | L9: Rang | M9: Moyenne ecart au 1er | N9: % Ecart au 1er | O9: Rang CEGEE
A10: 50 | B10: Aube Haute Marne | C10: =VLOOKUP($A10,'RECAP DIRCOM'!$G$6:$EV$12,3,FALSE) -> 146 | D10: =VLOOKUP($A10,'RECAP DIRCOM'!$G$6:$EV$12,101,FALSE) -> 6.05 | E10: =VLOOKUP($A10,'RECAP DIRCOM'!$G$6:$EV$12,102,FALSE) -> 23% | F10: =VLOOKUP($A10,'RECAP DIRCOM'!$G$6:$EV$12,103,FALSE) -> 5 | G10: =VLOOKUP($A10,'RECAP DIRCOM'!$G$6:$EV$12,104,FALSE) -> 8.87 | H10: =VLOOKUP($A10,'RECAP DIRCOM'!$G$6:$EV$12,105,FALSE) -> 28% | I10: =VLOOKUP($A10,'RECAP DIRCOM'!$G$6:$EV$12,106,FALSE) -> 2 | J10: =VLOOKUP($A10,'RECAP DIRCOM'!$G$6:$EV$12,107,FALSE) -> 7.74 | K10: =VLOOKUP($A10,'RECAP DIRCOM'!$G$6:$EV$12,108,FALSE) -> 20% | L10: =VLOOKUP($A10,'RECAP DIRCOM'!$G$6:$EV$12,109,FALSE) -> 7 | M10: =VLOOKUP($A10,'RECAP DIRCOM'!$G$6:$EV$12,110,FALSE) -> 24% | N10: =VLOOKUP($A10,'RECAP DIRCOM'!$G$6:$EV$12,111,FALSE) -> 20% | O10: =VLOOKUP($A10,'RECAP DIRCOM'!$G$6:$EV$12,112,FALSE) -> 5
A11: 262 | B11: Bas-Rhin | C11: =VLOOKUP($A11,'RECAP DIRCOM'!$G$6:$EV$12,3,FALSE) -> 298 | D11: =VLOOKUP($A11,'RECAP DIRCOM'!$G$6:$EV$12,101,FALSE) -> 4.22 | E11: =VLOOKUP($A11,'RECAP DIRCOM'!$G$6:$EV$12,102,FALSE) -> 46% | F11: =VLOOKUP($A11,'RECAP DIRCOM'!$G$6:$EV$12,103,FALSE) -> 6 | G11: =VLOOKUP($A11,'RECAP DIRCOM'!$G$6:$EV$12,104,FALSE) -> 6.91 | H11: =VLOOKUP($A11,'RECAP DIRCOM'!$G$6:$EV$12,105,FALSE) -> 44% | I11: =VLOOKUP($A11,'RECAP DIRCOM'!$G$6:$EV$12,106,FALSE) -> 6 | J11: =VLOOKUP($A11,'RECAP DIRCOM'!$G$6:$EV$12,107,FALSE) -> 8.26 | K11: =VLOOKUP($A11,'RECAP DIRCOM'!$G$6:$EV$12,108,FALSE) -> 15% | L11: =VLOOKUP($A11,'RECAP DIRCOM'!$G$6:$EV$12,109,FALSE) -> 6 | M11: =VLOOKUP($A11,'RECAP DIRCOM'!$G$6:$EV$12,110,FALSE) -> 36% | N11: =VLOOKUP($A11,'RECAP DIRCOM'!$G$6:$EV$12,111,FALSE) -> 32% | O11: =VLOOKUP($A11,'RECAP DIRCOM'!$G$6:$EV$12,112,FALSE) -> 6
A12: 264 | B12: Haut-Rhin | C12: =VLOOKUP($A12,'RECAP DIRCOM'!$G$6:$EV$12,3,FALSE) -> 176 | D12: =VLOOKUP($A12,'RECAP DIRCOM'!$G$6:$EV$12,101,FALSE) -> 3.93 | E12: =VLOOKUP($A12,'RECAP DIRCOM'!$G$6:$EV$12,102,FALSE) -> 50% | F12: =VLOOKUP($A12,'RECAP DIRCOM'!$G$6:$EV$12,103,FALSE) -> 7 | G12: =VLOOKUP($A12,'RECAP DIRCOM'!$G$6:$EV$12,104,FALSE) -> 4.86 | H12: =VLOOKUP($A12,'RECAP DIRCOM'!$G$6:$EV$12,105,FALSE) -> 61% | I12: =VLOOKUP($A12,'RECAP DIRCOM'!$G$6:$EV$12,106,FALSE) -> 7 | J12: =VLOOKUP($A12,'RECAP DIRCOM'!$G$6:$EV$12,107,FALSE) -> 8.54 | K12: =VLOOKUP($A12,'RECAP DIRCOM'!$G$6:$EV$12,108,FALSE) -> 12% | L12: =VLOOKUP($A12,'RECAP DIRCOM'!$G$6:$EV$12,109,FALSE) -> 5 | M12: =VLOOKUP($A12,'RECAP DIRCOM'!$G$6:$EV$12,110,FALSE) -> 42% | N12: =VLOOKUP($A12,'RECAP DIRCOM'!$G$6:$EV$12,111,FALSE) -> 39% | O12: =VLOOKUP($A12,'RECAP DIRCOM'!$G$6:$EV$12,112,FALSE) -> 7
A13: 30 | B13: Marne-Ardennes | C13: =VLOOKUP($A13,'RECAP DIRCOM'!$G$6:$EV$12,3,FALSE) -> 238 | D13: =VLOOKUP($A13,'RECAP DIRCOM'!$G$6:$EV$12,101,FALSE) -> 7.46 | E13: =VLOOKUP($A13,'RECAP DIRCOM'!$G$6:$EV$12,102,FALSE) -> 5% | F13: =VLOOKUP($A13,'RECAP DIRCOM'!$G$6:$EV$12,103,FALSE) -> 2 | G13: =VLOOKUP($A13,'RECAP DIRCOM'!$G$6:$EV$12,104,FALSE) -> 12.36 | H13: =VLOOKUP($A13,'RECAP DIRCOM'!$G$6:$EV$12,105,FALSE) -> 0% | I13: =VLOOKUP($A13,'RECAP DIRCOM'!$G$6:$EV$12,106,FALSE) -> 1 | J13: =VLOOKUP($A13,'RECAP DIRCOM'!$G$6:$EV$12,107,FALSE) -> 9.08 | K13: =VLOOKUP($A13,'RECAP DIRCOM'!$G$6:$EV$12,108,FALSE) -> 6% | L13: =VLOOKUP($A13,'RECAP DIRCOM'!$G$6:$EV$12,109,FALSE) -> 3 | M13: =VLOOKUP($A13,'RECAP DIRCOM'!$G$6:$EV$12,110,FALSE) -> 3% | N13: =VLOOKUP($A13,'RECAP DIRCOM'!$G$6:$EV$12,111,FALSE) -> 0% | O13: =VLOOKUP($A13,'RECAP DIRCOM'!$G$6:$EV$12,112,FALSE) -> 1
A14: 110 | B14: Meurthe et Moselle Meuse | C14: =VLOOKUP($A14,'RECAP DIRCOM'!$G$6:$EV$12,3,FALSE) -> 262 | D14: =VLOOKUP($A14,'RECAP DIRCOM'!$G$6:$EV$12,101,FALSE) -> 7.81 | E14: =VLOOKUP($A14,'RECAP DIRCOM'!$G$6:$EV$12,102,FALSE) -> 0% | F14: =VLOOKUP($A14,'RECAP DIRCOM'!$G$6:$EV$12,103,FALSE) -> 1 | G14: =VLOOKUP($A14,'RECAP DIRCOM'!$G$6:$EV$12,104,FALSE) -> 8.01 | H14: =VLOOKUP($A14,'RECAP DIRCOM'!$G$6:$EV$12,105,FALSE) -> 35% | I14: =VLOOKUP($A14,'RECAP DIRCOM'!$G$6:$EV$12,106,FALSE) -> 5 | J14: =VLOOKUP($A14,'RECAP DIRCOM'!$G$6:$EV$12,107,FALSE) -> 9.69 | K14: =VLOOKUP($A14,'RECAP DIRCOM'!$G$6:$EV$12,108,FALSE) -> 0% | L14: =VLOOKUP($A14,'RECAP DIRCOM'!$G$6:$EV$12,109,FALSE) -> 1 | M14: =VLOOKUP($A14,'RECAP DIRCOM'!$G$6:$EV$12,110,FALSE) -> 12% | N14: =VLOOKUP($A14,'RECAP DIRCOM'!$G$6:$EV$12,111,FALSE) -> 9% | O14: =VLOOKUP($A14,'RECAP DIRCOM'!$G$6:$EV$12,112,FALSE) -> 2
A15: 160 | B15: Moselle | C15: =VLOOKUP($A15,'RECAP DIRCOM'!$G$6:$EV$12,3,FALSE) -> 302 | D15: =VLOOKUP($A15,'RECAP DIRCOM'!$G$6:$EV$12,101,FALSE) -> 6.05 | E15: =VLOOKUP($A15,'RECAP DIRCOM'!$G$6:$EV$12,102,FALSE) -> 22% | F15: =VLOOKUP($A15,'RECAP DIRCOM'!$G$6:$EV$12,103,FALSE) -> 3 | G15: =VLOOKUP($A15,'RECAP DIRCOM'!$G$6:$EV$12,104,FALSE) -> 8.36 | H15: =VLOOKUP($A15,'RECAP DIRCOM'!$G$6:$EV$12,105,FALSE) -> 32% | I15: =VLOOKUP($A15,'RECAP DIRCOM'!$G$6:$EV$12,106,FALSE) -> 3 | J15: =VLOOKUP($A15,'RECAP DIRCOM'!$G$6:$EV$12,107,FALSE) -> 8.73 | K15: =VLOOKUP($A15,'RECAP DIRCOM'!$G$6:$EV$12,108,FALSE) -> 10% | L15: =VLOOKUP($A15,'RECAP DIRCOM'!$G$6:$EV$12,109,FALSE) -> 4 | M15: =VLOOKUP($A15,'RECAP DIRCOM'!$G$6:$EV$12,110,FALSE) -> 22% | N15: =VLOOKUP($A15,'RECAP DIRCOM'!$G$6:$EV$12,111,FALSE) -> 19% | O15: =VLOOKUP($A15,'RECAP DIRCOM'!$G$6:$EV$12,112,FALSE) -> 4
A16: 80 | B16: Vosges | C16: =VLOOKUP($A16,'RECAP DIRCOM'!$G$6:$EV$12,3,FALSE) -> 146 | D16: =VLOOKUP($A16,'RECAP DIRCOM'!$G$6:$EV$12,101,FALSE) -> 6.05 | E16: =VLOOKUP($A16,'RECAP DIRCOM'!$G$6:$EV$12,102,FALSE) -> 23% | F16: =VLOOKUP($A16,'RECAP DIRCOM'!$G$6:$EV$12,103,FALSE) -> 4 | G16: =VLOOKUP($A16,'RECAP DIRCOM'!$G$6:$EV$12,104,FALSE) -> 8.12 | H16: =VLOOKUP($A16,'RECAP DIRCOM'!$G$6:$EV$12,105,FALSE) -> 34% | I16: =VLOOKUP($A16,'RECAP DIRCOM'!$G$6:$EV$12,106,FALSE) -> 4 | J16: =VLOOKUP($A16,'RECAP DIRCOM'!$G$6:$EV$12,107,FALSE) -> 9.48 | K16: =VLOOKUP($A16,'RECAP DIRCOM'!$G$6:$EV$12,108,FALSE) -> 2% | L16: =VLOOKUP($A16,'RECAP DIRCOM'!$G$6:$EV$12,109,FALSE) -> 2 | M16: =VLOOKUP($A16,'RECAP DIRCOM'!$G$6:$EV$12,110,FALSE) -> 21% | N16: =VLOOKUP($A16,'RECAP DIRCOM'!$G$6:$EV$12,111,FALSE) -> 17% | O16: =VLOOKUP($A16,'RECAP DIRCOM'!$G$6:$EV$12,112,FALSE) -> 3
A17: Total CEGEE Directions Régionales | C17: =SUM(C10:C16) -> 1568

Sheet DC_CONQUETE
A1: Accueil | D1: BAROMETRE BDD - DIRECTIONS REGIONALES
D2: CONQUETE
D3: =ACCUEIL!H7 -> 2019-09-30
D7: Evolution nette clients Bancarisés Principaux | G7: Evolution nette relations PREMIUM | J7: Evolution nette clients Bancarisés Principaux équipés | M7: Evolution nette clients Pro actif équipés | P7: Total Conquête
E8: coef | F8: ='RECAP DIRCOM'!M4 -> 4% | H8: coef | I8: ='RECAP DIRCOM'!P4 -> 4% | K8: coef | L8: ='RECAP DIRCOM'!S4 -> 3% | N8: coef | O8: ='RECAP DIRCOM'!V4 -> 4% | Q8: coef | R8: ='RECAP DIRCOM'!Y4 -> 15%
A9: eds | B9: Direction | C9: ETP perf | D9: Nb / ETP | E9: % Ecart au 1er | F9: Rang | G9: Nb / ETP | H9: % Ecart au 1er | I9: Rang | J9: Nb / ETP | K9: % Ecart au 1er | L9: Rang | M9: Taux réal objectif | N9: % Ecart au 1er | O9: Rang | P9: Moyenne ecart au 1er | Q9: % Ecart au 1er | R9: Rang CEGEE
A10: 50 | B10: Aube Haute Marne | C10: =VLOOKUP($A10,'RECAP DIRCOM'!$G$6:$EV$12,3,FALSE) -> 146 | D10: =VLOOKUP($A10,'RECAP DIRCOM'!$G$6:$EV$12,5,FALSE) -> -0.05 | E10: =VLOOKUP($A10,'RECAP DIRCOM'!$G$6:$EV$12,6,FALSE) -> 41% | F10: =VLOOKUP($A10,'RECAP DIRCOM'!$G$6:$EV$12,7,FALSE) -> 2 | G10: =VLOOKUP($A10,'RECAP DIRCOM'!$G$6:$EV$12,8,FALSE) -> 2.08 | H10: =VLOOKUP($A10,'RECAP DIRCOM'!$G$6:$EV$12,9,FALSE) -> 11% | I10: =VLOOKUP($A10,'RECAP DIRCOM'!$G$6:$EV$12,10,FALSE) -> 2 | J10: =VLOOKUP($A10,'RECAP DIRCOM'!$G$6:$EV$12,11,FALSE) -> 3.34 | K10: =VLOOKUP($A10,'RECAP DIRCOM'!$G$6:$EV$12,12,FALSE) -> 0% | L10: =VLOOKUP($A10,'RECAP DIRCOM'!$G$6:$EV$12,13,FALSE) -> 1 | M10: =VLOOKUP($A10,'RECAP DIRCOM'!$G$6:$EV$12,14,FALSE) -> -26% | N10: =VLOOKUP($A10,'RECAP DIRCOM'!$G$6:$EV$12,15,FALSE) -> 143% | O10: =VLOOKUP($A10,'RECAP DIRCOM'!$G$6:$EV$12,16,FALSE) -> 7 | P10: =VLOOKUP($A10,'RECAP DIRCOM'!$G$6:$EV$12,17,FALSE) -> 52% | Q10: =VLOOKUP($A10,'RECAP DIRCOM'!$G$6:$EV$12,18,FALSE) -> 11% | R10: =VLOOKUP($A10,'RECAP DIRCOM'!$G$6:$EV$12,19,FALSE) -> 3
A11: 262 | B11: Bas-Rhin | C11: =VLOOKUP($A11,'RECAP DIRCOM'!$G$6:$EV$12,3,FALSE) -> 298 | D11: =VLOOKUP($A11,'RECAP DIRCOM'!$G$6:$EV$12,5,FALSE) -> -2.09 | E11: =VLOOKUP($A11,'RECAP DIRCOM'!$G$6:$EV$12,6,FALSE) -> 131% | F11: =VLOOKUP($A11,'RECAP DIRCOM'!$G$6:$EV$12,7,FALSE) -> 6 | G11: =VLOOKUP($A11,'RECAP DIRCOM'!$G$6:$EV$12,8,FALSE) -> 2.07 | H11: =VLOOKUP($A11,'RECAP DIRCOM'!$G$6:$EV$12,9,FALSE) -> 12% | I11: =VLOOKUP($A11,'RECAP DIRCOM'!$G$6:$EV$12,10,FALSE) -> 3 | J11: =VLOOKUP($A11,'RECAP DIRCOM'!$G$6:$EV$12,11,FALSE) -> -1.13 | K11: =VLOOKUP($A11,'RECAP DIRCOM'!$G$6:$EV$12,12,FALSE) -> 134% | L11: =VLOOKUP($A11,'RECAP DIRCOM'!$G$6:$EV$12,13,FALSE) -> 6 | M11: =VLOOKUP($A11,'RECAP DIRCOM'!$G$6:$EV$12,14,FALSE) -> -5% | N11: =VLOOKUP($A11,'RECAP DIRCOM'!$G$6:$EV$12,15,FALSE) -> 109% | O11: =VLOOKUP($A11,'RECAP DIRCOM'!$G$6:$EV$12,16,FALSE) -> 5 | P11: =VLOOKUP($A11,'RECAP DIRCOM'!$G$6:$EV$12,17,FALSE) -> 94% | Q11: =VLOOKUP($A11,'RECAP DIRCOM'!$G$6:$EV$12,18,FALSE) -> 53% | R11: =VLOOKUP($A11,'RECAP DIRCOM'!$G$6:$EV$12,19,FALSE) -> 7
A12: 264 | B12: Haut-Rhin | C12: =VLOOKUP($A12,'RECAP DIRCOM'!$G$6:$EV$12,3,FALSE) -> 176 | D12: =VLOOKUP($A12,'RECAP DIRCOM'!$G$6:$EV$12,5,FALSE) -> -2.52 | E12: =VLOOKUP($A12,'RECAP DIRCOM'!$G$6:$EV$12,6,FALSE) -> 150% | F12: =VLOOKUP($A12,'RECAP DIRCOM'!$G$6:$EV$12,7,FALSE) -> 7 | G12: =VLOOKUP($A12,'RECAP DIRCOM'!$G$6:$EV$12,8,FALSE) -> 2.34 | H12: =VLOOKUP($A12,'RECAP DIRCOM'!$G$6:$EV$12,9,FALSE) -> 0% | I12: =VLOOKUP($A12,'RECAP DIRCOM'!$G$6:$EV$12,10,FALSE) -> 1 | J12: =VLOOKUP($A12,'RECAP DIRCOM'!$G$6:$EV$12,11,FALSE) -> -1.61 | K12: =VLOOKUP($A12,'RECAP DIRCOM'!$G$6:$EV$12,12,FALSE) -> 148% | L12: =VLOOKUP($A12,'RECAP DIRCOM'!$G$6:$EV$12,13,FALSE) -> 7 | M12: =VLOOKUP($A12,'RECAP DIRCOM'!$G$6:$EV$12,14,FALSE) -> 7% | N12: =VLOOKUP($A12,'RECAP DIRCOM'!$G$6:$EV$12,15,FALSE) -> 89% | O12: =VLOOKUP($A12,'RECAP DIRCOM'!$G$6:$EV$12,16,FALSE) -> 4 | P12: =VLOOKUP($A12,'RECAP DIRCOM'!$G$6:$EV$12,17,FALSE) -> 93% | Q12: =VLOOKUP($A12,'RECAP DIRCOM'!$G$6:$EV$12,18,FALSE) -> 52% | R12: =VLOOKUP($A12,'RECAP DIRCOM'!$G$6:$EV$12,19,FALSE) -> 6
A13: 30 | B13: Marne-Ardennes | C13: =VLOOKUP($A13,'RECAP DIRCOM'!$G$6:$EV$12,3,FALSE) -> 238 | D13: =VLOOKUP($A13,'RECAP DIRCOM'!$G$6:$EV$12,5,FALSE) -> 0.88 | E13: =VLOOKUP($A13,'RECAP DIRCOM'!$G$6:$EV$12,6,FALSE) -> 0% | F13: =VLOOKUP($A13,'RECAP DIRCOM'!$G$6:$EV$12,7,FALSE) -> 1 | G13: =VLOOKUP($A13,'RECAP DIRCOM'!$G$6:$EV$12,8,FALSE) -> 1.99 | H13: =VLOOKUP($A13,'RECAP DIRCOM'!$G$6:$EV$12,9,FALSE) -> 15% | I13: =VLOOKUP($A13,'RECAP DIRCOM'!$G$6:$EV$12,10,FALSE) -> 4 | J13: =VLOOKUP($A13,'RECAP DIRCOM'!$G$6:$EV$12,11,FALSE) -> 2.41 | K13: =VLOOKUP($A13,'RECAP DIRCOM'!$G$6:$EV$12,12,FALSE) -> 28% | L13: =VLOOKUP($A13,'RECAP DIRCOM'!$G$6:$EV$12,13,FALSE) -> 2 | M13: =VLOOKUP($A13,'RECAP DIRCOM'!$G$6:$EV$12,14,FALSE) -> -12% | N13: =VLOOKUP($A13,'RECAP DIRCOM'!$G$6:$EV$12,15,FALSE) -> 119% | O13: =VLOOKUP($A13,'RECAP DIRCOM'!$G$6:$EV$12,16,FALSE) -> 6 | P13: =VLOOKUP($A13,'RECAP DIRCOM'!$G$6:$EV$12,17,FALSE) -> 41% | Q13: =VLOOKUP($A13,'RECAP DIRCOM'!$G$6:$EV$12,18,FALSE) -> 0% | R13: =VLOOKUP($A13,'RECAP DIRCOM'!$G$6:$EV$12,19,FALSE) -> 1
A14: 110 | B14: Meurthe et Moselle Meuse | C14: =VLOOKUP($A14,'RECAP DIRCOM'!$G$6:$EV$12,3,FALSE) -> 262 | D14: =VLOOKUP($A14,'RECAP DIRCOM'!$G$6:$EV$12,5,FALSE) -> -1.13 | E14: =VLOOKUP($A14,'RECAP DIRCOM'!$G$6:$EV$12,6,FALSE) -> 89% | F14: =VLOOKUP($A14,'RECAP DIRCOM'!$G$6:$EV$12,7,FALSE) -> 3 | G14: =VLOOKUP($A14,'RECAP DIRCOM'!$G$6:$EV$12,8,FALSE) -> 1.82 | H14: =VLOOKUP($A14,'RECAP DIRCOM'!$G$6:$EV$12,9,FALSE) -> 22% | I14: =VLOOKUP($A14,'RECAP DIRCOM'!$G$6:$EV$12,10,FALSE) -> 5 | J14: =VLOOKUP($A14,'RECAP DIRCOM'!$G$6:$EV$12,11,FALSE) -> 1.16 | K14: =VLOOKUP($A14,'RECAP DIRCOM'!$G$6:$EV$12,12,FALSE) -> 65% | L14: =VLOOKUP($A14,'RECAP DIRCOM'!$G$6:$EV$12,13,FALSE) -> 4 | M14: =VLOOKUP($A14,'RECAP DIRCOM'!$G$6:$EV$12,14,FALSE) -> 24% | N14: =VLOOKUP($A14,'RECAP DIRCOM'!$G$6:$EV$12,15,FALSE) -> 60% | O14: =VLOOKUP($A14,'RECAP DIRCOM'!$G$6:$EV$12,16,FALSE) -> 3 | P14: =VLOOKUP($A14,'RECAP DIRCOM'!$G$6:$EV$12,17,FALSE) -> 59% | Q14: =VLOOKUP($A14,'RECAP DIRCOM'!$G$6:$EV$12,18,FALSE) -> 17% | R14: =VLOOKUP($A14,'RECAP DIRCOM'!$G$6:$EV$12,19,FALSE) -> 5
A15: 160 | B15: Moselle | C15: =VLOOKUP($A15,'RECAP DIRCOM'!$G$6:$EV$12,3,FALSE) -> 302 | D15: =VLOOKUP($A15,'RECAP DIRCOM'!$G$6:$EV$12,5,FALSE) -> -1.50 | E15: =VLOOKUP($A15,'RECAP DIRCOM'!$G$6:$EV$12,6,FALSE) -> 105% | F15: =VLOOKUP($A15,'RECAP DIRCOM'!$G$6:$EV$12,7,FALSE) -> 4 | G15: =VLOOKUP($A15,'RECAP DIRCOM'!$G$6:$EV$12,8,FALSE) -> 1.78 | H15: =VLOOKUP($A15,'RECAP DIRCOM'!$G$6:$EV$12,9,FALSE) -> 24% | I15: =VLOOKUP($A15,'RECAP DIRCOM'!$G$6:$EV$12,10,FALSE) -> 6 | J15: =VLOOKUP($A15,'RECAP DIRCOM'!$G$6:$EV$12,11,FALSE) -> 1.12 | K15: =VLOOKUP($A15,'RECAP DIRCOM'!$G$6:$EV$12,12,FALSE) -> 66% | L15: =VLOOKUP($A15,'RECAP DIRCOM'!$G$6:$EV$12,13,FALSE) -> 5 | M15: =VLOOKUP($A15,'RECAP DIRCOM'!$G$6:$EV$12,14,FALSE) -> 60% | N15: =VLOOKUP($A15,'RECAP DIRCOM'!$G$6:$EV$12,15,FALSE) -> 0% | O15: =VLOOKUP($A15,'RECAP DIRCOM'!$G$6:$EV$12,16,FALSE) -> 1 | P15: =VLOOKUP($A15,'RECAP DIRCOM'!$G$6:$EV$12,17,FALSE) -> 48% | Q15: =VLOOKUP($A15,'RECAP DIRCOM'!$G$6:$EV$12,18,FALSE) -> 6% | R15: =VLOOKUP($A15,'RECAP DIRCOM'!$G$6:$EV$12,19,FALSE) -> 2
A16: 80 | B16: Vosges | C16: =VLOOKUP($A16,'RECAP DIRCOM'!$G$6:$EV$12,3,FALSE) -> 146 | D16: =VLOOKUP($A16,'RECAP DIRCOM'!$G$6:$EV$12,5,FALSE) -> -2.00 | E16: =VLOOKUP($A16,'RECAP DIRCOM'!$G$6:$EV$12,6,FALSE) -> 127% | F16: =VLOOKUP($A16,'RECAP DIRCOM'!$G$6:$EV$12,7,FALSE) -> 5 | G16: =VLOOKUP($A16,'RECAP DIRCOM'!$G$6:$EV$12,8,FALSE) -> 1.47 | H16: =VLOOKUP($A16,'RECAP DIRCOM'!$G$6:$EV$12,9,FALSE) -> 37% | I16: =VLOOKUP($A16,'RECAP DIRCOM'!$G$6:$EV$12,10,FALSE) -> 7 | J16: =VLOOKUP($A16,'RECAP DIRCOM'!$G$6:$EV$12,11,FALSE) -> 1.23 | K16: =VLOOKUP($A16,'RECAP DIRCOM'!$G$6:$EV$12,12,FALSE) -> 63% | L16: =VLOOKUP($A16,'RECAP DIRCOM'!$G$6:$EV$12,13,FALSE) -> 3 | M16: =VLOOKUP($A16,'RECAP DIRCOM'!$G$6:$EV$12,14,FALSE) -> 60% | N16: =VLOOKUP($A16,'RECAP DIRCOM'!$G$6:$EV$12,15,FALSE) -> 0% | O16: =VLOOKUP($A16,'RECAP DIRCOM'!$G$6:$EV$12,16,FALSE) -> 1 | P16: =VLOOKUP($A16,'RECAP DIRCOM'!$G$6:$EV$12,17,FALSE) -> 57% | Q16: =VLOOKUP($A16,'RECAP DIRCOM'!$G$6:$EV$12,18,FALSE) -> 15% | R16: =VLOOKUP($A16,'RECAP DIRCOM'!$G$6:$EV$12,19,FALSE) -> 4
A17: Total CEGEE Directions Régionales | C17: =SUM(C10:C16) -> 1568

Sheet DC_RISQUES
A1: Accueil | D1: BAROMETRE BDD - DIRECTIONS REGIONALES
D2: RISQUES
D3: =ACCUEIL!H7 -> 2019-09-30
D6: Complétude conformité et fiabilisation | J6: Traitement et qualité du traitement des alertes Vigiclient | M6: Total Risques
D7: Nouvelles EER sur flux BDD | G7: EER sur flux cumulés et stock
E8: coef | F8: ='RECAP DIRCOM'!DW4 -> 3% | H8: coef | I8: ='RECAP DIRCOM'!DZ4 -> 3% | K8: coef | L8: ='RECAP DIRCOM'!EC4 -> 4% | N8: coef | O8: ='RECAP DIRCOM'!EF4 -> 10%
A9: eds | B9: Direction | C9: ETP perf | E9: % Ecart au 1er | F9: Rang | H9: % Ecart au 1er | I9: Rang | K9: % Ecart au 1er | L9: Rang | M9: Moyenne ecart au 1er | N9: % Ecart au 1er | O9: Rang CEGEE
A10: 50 | B10: Aube Haute Marne | C10: =VLOOKUP($A10,'RECAP DIRCOM'!$G$6:$EV$12,3,FALSE) -> 146 | D10: =VLOOKUP($A10,'RECAP DIRCOM'!$G$6:$EV$12,119,FALSE) -> 98% | E10: =VLOOKUP($A10,'RECAP DIRCOM'!$G$6:$EV$12,120,FALSE) -> 1% | F10: =VLOOKUP($A10,'RECAP DIRCOM'!$G$6:$EV$12,121,FALSE) -> 3 | G10: =VLOOKUP($A10,'RECAP DIRCOM'!$G$6:$EV$12,122,FALSE) -> 76% | H10: =VLOOKUP($A10,'RECAP DIRCOM'!$G$6:$EV$12,123,FALSE) -> 3% | I10: =VLOOKUP($A10,'RECAP DIRCOM'!$G$6:$EV$12,124,FALSE) -> 3 | J10: =VLOOKUP($A10,'RECAP DIRCOM'!$G$6:$EV$12,125,FALSE) -> 100% | K10: =VLOOKUP($A10,'RECAP DIRCOM'!$G$6:$EV$12,126,FALSE) -> 0% | L10: =VLOOKUP($A10,'RECAP DIRCOM'!$G$6:$EV$12,127,FALSE) -> 1 | M10: =VLOOKUP($A10,'RECAP DIRCOM'!$G$6:$EV$12,128,FALSE) -> 1% | N10: =VLOOKUP($A10,'RECAP DIRCOM'!$G$6:$EV$12,129,FALSE) -> 0% | O10: =VLOOKUP($A10,'RECAP DIRCOM'!$G$6:$EV$12,130,FALSE) -> 1
A11: 262 | B11: Bas-Rhin | C11: =VLOOKUP($A11,'RECAP DIRCOM'!$G$6:$EV$12,3,FALSE) -> 298 | D11: =VLOOKUP($A11,'RECAP DIRCOM'!$G$6:$EV$12,119,FALSE) -> 97% | E11: =VLOOKUP($A11,'RECAP DIRCOM'!$G$6:$EV$12,120,FALSE) -> 2% | F11: =VLOOKUP($A11,'RECAP DIRCOM'!$G$6:$EV$12,121,FALSE) -> 6 | G11: =VLOOKUP($A11,'RECAP DIRCOM'!$G$6:$EV$12,122,FALSE) -> 71% | H11: =VLOOKUP($A11,'RECAP DIRCOM'!$G$6:$EV$12,123,FALSE) -> 9% | I11: =VLOOKUP($A11,'RECAP DIRCOM'!$G$6:$EV$12,124,FALSE) -> 7 | J11: =VLOOKUP($A11,'RECAP DIRCOM'!$G$6:$EV$12,125,FALSE) -> 91% | K11: =VLOOKUP($A11,'RECAP DIRCOM'!$G$6:$EV$12,126,FALSE) -> 9% | L11: =VLOOKUP($A11,'RECAP DIRCOM'!$G$6:$EV$12,127,FALSE) -> 6 | M11: =VLOOKUP($A11,'RECAP DIRCOM'!$G$6:$EV$12,128,FALSE) -> 7% | N11: =VLOOKUP($A11,'RECAP DIRCOM'!$G$6:$EV$12,129,FALSE) -> 6% | O11: =VLOOKUP($A11,'RECAP DIRCOM'!$G$6:$EV$12,130,FALSE) -> 7
A12: 264 | B12: Haut-Rhin | C12: =VLOOKUP($A12,'RECAP DIRCOM'!$G$6:$EV$12,3,FALSE) -> 176 | D12: =VLOOKUP($A12,'RECAP DIRCOM'!$G$6:$EV$12,119,FALSE) -> 98% | E12: =VLOOKUP($A12,'RECAP DIRCOM'!$G$6:$EV$12,120,FALSE) -> 1% | F12: =VLOOKUP($A12,'RECAP DIRCOM'!$G$6:$EV$12,121,FALSE) -> 4 | G12: =VLOOKUP($A12,'RECAP DIRCOM'!$G$6:$EV$12,122,FALSE) -> 73% | H12: =VLOOKUP($A12,'RECAP DIRCOM'!$G$6:$EV$12,123,FALSE) -> 7% | I12: =VLOOKUP($A12,'RECAP DIRCOM'!$G$6:$EV$12,124,FALSE) -> 6 | J12: =VLOOKUP($A12,'RECAP DIRCOM'!$G$6:$EV$12,125,FALSE) -> 99% | K12: =VLOOKUP($A12,'RECAP DIRCOM'!$G$6:$EV$12,126,FALSE) -> 1% | L12: =VLOOKUP($A12,'RECAP DIRCOM'!$G$6:$EV$12,127,FALSE) -> 4 | M12: =VLOOKUP($A12,'RECAP DIRCOM'!$G$6:$EV$12,128,FALSE) -> 3% | N12: =VLOOKUP($A12,'RECAP DIRCOM'!$G$6:$EV$12,129,FALSE) -> 2% | O12: =VLOOKUP($A12,'RECAP DIRCOM'!$G$6:$EV$12,130,FALSE) -> 5
A13: 30 | B13: Marne-Ardennes | C13: =VLOOKUP($A13,'RECAP DIRCOM'!$G$6:$EV$12,3,FALSE) -> 238 | D13: =VLOOKUP($A13,'RECAP DIRCOM'!$G$6:$EV$12,119,FALSE) -> 98% | E13: =VLOOKUP($A13,'RECAP DIRCOM'!$G$6:$EV$12,120,FALSE) -> 0% | F13: =VLOOKUP($A13,'RECAP DIRCOM'!$G$6:$EV$12,121,FALSE) -> 2 | G13: =VLOOKUP($A13,'RECAP DIRCOM'!$G$6:$EV$12,122,FALSE) -> 73% | H13: =VLOOKUP($A13,'RECAP DIRCOM'!$G$6:$EV$12,123,FALSE) -> 6% | I13: =VLOOKUP($A13,'RECAP DIRCOM'!$G$6:$EV$12,124,FALSE) -> 5 | J13: =VLOOKUP($A13,'RECAP DIRCOM'!$G$6:$EV$12,125,FALSE) -> 99% | K13: =VLOOKUP($A13,'RECAP DIRCOM'!$G$6:$EV$12,126,FALSE) -> 1% | L13: =VLOOKUP($A13,'RECAP DIRCOM'!$G$6:$EV$12,127,FALSE) -> 2 | M13: =VLOOKUP($A13,'RECAP DIRCOM'!$G$6:$EV$12,128,FALSE) -> 2% | N13: =VLOOKUP($A13,'RECAP DIRCOM'!$G$6:$EV$12,129,FALSE) -> 1% | O13: =VLOOKUP($A13,'RECAP DIRCOM'!$G$6:$EV$12,130,FALSE) -> 4
A14: 110 | B14: Meurthe et Moselle Meuse | C14: =VLOOKUP($A14,'RECAP DIRCOM'!$G$6:$EV$12,3,FALSE) -> 262 | D14: =VLOOKUP($A14,'RECAP DIRCOM'!$G$6:$EV$12,119,FALSE) -> 96% | E14: =VLOOKUP($A14,'RECAP DIRCOM'!$G$6:$EV$12,120,FALSE) -> 3% | F14: =VLOOKUP($A14,'RECAP DIRCOM'!$G$6:$EV$12,121,FALSE) -> 7 | G14: =VLOOKUP($A14,'RECAP DIRCOM'!$G$6:$EV$12,122,FALSE) -> 76% | H14: =VLOOKUP($A14,'RECAP DIRCOM'!$G$6:$EV$12,123,FALSE) -> 3% | I14: =VLOOKUP($A14,'RECAP DIRCOM'!$G$6:$EV$12,124,FALSE) -> 4 | J14: =VLOOKUP($A14,'RECAP DIRCOM'!$G$6:$EV$12,125,FALSE) -> 89% | K14: =VLOOKUP($A14,'RECAP DIRCOM'!$G$6:$EV$12,126,FALSE) -> 11% | L14: =VLOOKUP($A14,'RECAP DIRCOM'!$G$6:$EV$12,127,FALSE) -> 7 | M14: =VLOOKUP($A14,'RECAP DIRCOM'!$G$6:$EV$12,128,FALSE) -> 6% | N14: =VLOOKUP($A14,'RECAP DIRCOM'!$G$6:$EV$12,129,FALSE) -> 5% | O14: =VLOOKUP($A14,'RECAP DIRCOM'!$G$6:$EV$12,130,FALSE) -> 6
A15: 160 | B15: Moselle | C15: =VLOOKUP($A15,'RECAP DIRCOM'!$G$6:$EV$12,3,FALSE) -> 302 | D15: =VLOOKUP($A15,'RECAP DIRCOM'!$G$6:$EV$12,119,FALSE) -> 97% | E15: =VLOOKUP($A15,'RECAP DIRCOM'!$G$6:$EV$12,120,FALSE) -> 2% | F15: =VLOOKUP($A15,'RECAP DIRCOM'!$G$6:$EV$12,121,FALSE) -> 5 | G15: =VLOOKUP($A15,'RECAP DIRCOM'!$G$6:$EV$12,122,FALSE) -> 78% | H15: =VLOOKUP($A15,'RECAP DIRCOM'!$G$6:$EV$12,123,FALSE) -> 0% | I15: =VLOOKUP($A15,'RECAP DIRCOM'!$G$6:$EV$12,124,FALSE) -> 2 | J15: =VLOOKUP($A15,'RECAP DIRCOM'!$G$6:$EV$12,125,FALSE) -> 99% | K15: =VLOOKUP($A15,'RECAP DIRCOM'!$G$6:$EV$12,126,FALSE) -> 1% | L15: =VLOOKUP($A15,'RECAP DIRCOM'!$G$6:$EV$12,127,FALSE) -> 3 | M15: =VLOOKUP($A15,'RECAP DIRCOM'!$G$6:$EV$12,128,FALSE) -> 1% | N15: =VLOOKUP($A15,'RECAP DIRCOM'!$G$6:$EV$12,129,FALSE) -> 0% | O15: =VLOOKUP($A15,'RECAP DIRCOM'!$G$6:$EV$12,130,FALSE) -> 2
A16: 80 | B16: Vosges | C16: =VLOOKUP($A16,'RECAP DIRCOM'!$G$6:$EV$12,3,FALSE) -> 146 | D16: =VLOOKUP($A16,'RECAP DIRCOM'!$G$6:$EV$12,119,FALSE) -> 98% | E16: =VLOOKUP($A16,'RECAP DIRCOM'!$G$6:$EV$12,120,FALSE) -> 0% | F16: =VLOOKUP($A16,'RECAP DIRCOM'!$G$6:$EV$12,121,FALSE) -> 1 | G16: =VLOOKUP($A16,'RECAP DIRCOM'!$G$6:$EV$12,122,FALSE) -> 78% | H16: =VLOOKUP($A16,'RECAP DIRCOM'!$G$6:$EV$12,123,FALSE) -> 0% | I16: =VLOOKUP($A16,'RECAP DIRCOM'!$G$6:$EV$12,124,FALSE) -> 1 | J16: =VLOOKUP($A16,'RECAP DIRCOM'!$G$6:$EV$12,125,FALSE) -> 95% | K16: =VLOOKUP($A16,'RECAP DIRCOM'!$G$6:$EV$12,126,FALSE) -> 5% | L16: =VLOOKUP($A16,'RECAP DIRCOM'!$G$6:$EV$12,127,FALSE) -> 5 | M16: =VLOOKUP($A16,'RECAP DIRCOM'!$G$6:$EV$12,128,FALSE) -> 2% | N16: =VLOOKUP($A16,'RECAP DIRCOM'!$G$6:$EV$12,129,FALSE) -> 1% | O16: =VLOOKUP($A16,'RECAP DIRCOM'!$G$6:$EV$12,130,FALSE) -> 3
A17: Total CEGEE Directions Régionales | C17: =SUM(C10:C16) -> 1568

Sheet DC_SATISFACTION
A1: Accueil | D1: BAROMETRE BDD - DIRECTIONS REGIONALES
D2: SATISFACTION CLIENTS
D3: =ACCUEIL!H7 -> 2019-09-30
D7: N P S | G7: Enquête Qualité Haute Définition | J7: Total Satisfaction Clients
E8: coef | F8: ='RECAP DIRCOM'!EO4 -> 5% | H8: coef | I8: ='RECAP DIRCOM'!ER4 -> 5% | K8: coef | L8: ='RECAP DIRCOM'!EU4 -> 10%
A9: eds | B9: Direction | C9: ETP perf | E9: % Ecart au 1er | F9: Rang | H9: % Ecart au 1er | I9: Rang | J9: Moyenne ecart au 1er | K9: % Ecart au 1er | L9: Rang CEGEE
A10: 50 | B10: Aube Haute Marne | C10: =VLOOKUP($A10,'RECAP DIRCOM'!$G$6:$EV$12,3,FALSE) -> 146 | D10: =VLOOKUP($A10,'RECAP DIRCOM'!$G$6:$EV$12,137,FALSE) -> -7 | E10: =VLOOKUP($A10,'RECAP DIRCOM'!$G$6:$EV$12,138,FALSE) -> 9% | F10: =VLOOKUP($A10,'RECAP DIRCOM'!$G$6:$EV$12,139,FALSE) -> 2 | G10: =VLOOKUP($A10,'RECAP DIRCOM'!$G$6:$EV$12,140,FALSE) -> 76% | H10: =VLOOKUP($A10,'RECAP DIRCOM'!$G$6:$EV$12,141,FALSE) -> 2% | I10: =VLOOKUP($A10,'RECAP DIRCOM'!$G$6:$EV$12,142,FALSE) -> 4 | J10: =VLOOKUP($A10,'RECAP DIRCOM'!$G$6:$EV$12,143,FALSE) -> 5% | K10: =VLOOKUP($A10,'RECAP DIRCOM'!$G$6:$EV$12,144,FALSE) -> 5% | L10: =VLOOKUP($A10,'RECAP DIRCOM'!$G$6:$EV$12,145,FALSE) -> 2
A11: 262 | B11: Bas-Rhin | C11: =VLOOKUP($A11,'RECAP DIRCOM'!$G$6:$EV$12,3,FALSE) -> 298 | D11: =VLOOKUP($A11,'RECAP DIRCOM'!$G$6:$EV$12,137,FALSE) -> -23 | E11: =VLOOKUP($A11,'RECAP DIRCOM'!$G$6:$EV$12,138,FALSE) -> 150% | F11: =VLOOKUP($A11,'RECAP DIRCOM'!$G$6:$EV$12,139,FALSE) -> 7 | G11: =VLOOKUP($A11,'RECAP DIRCOM'!$G$6:$EV$12,140,FALSE) -> 73% | H11: =VLOOKUP($A11,'RECAP DIRCOM'!$G$6:$EV$12,141,FALSE) -> 7% | I11: =VLOOKUP($A11,'RECAP DIRCOM'!$G$6:$EV$12,142,FALSE) -> 7 | J11: =VLOOKUP($A11,'RECAP DIRCOM'!$G$6:$EV$12,143,FALSE) -> 78% | K11: =VLOOKUP($A11,'RECAP DIRCOM'!$G$6:$EV$12,144,FALSE) -> 78% | L11: =VLOOKUP($A11,'RECAP DIRCOM'!$G$6:$EV$12,145,FALSE) -> 7
A12: 264 | B12: Haut-Rhin | C12: =VLOOKUP($A12,'RECAP DIRCOM'!$G$6:$EV$12,3,FALSE) -> 176 | D12: =VLOOKUP($A12,'RECAP DIRCOM'!$G$6:$EV$12,137,FALSE) -> -22 | E12: =VLOOKUP($A12,'RECAP DIRCOM'!$G$6:$EV$12,138,FALSE) -> 141% | F12: =VLOOKUP($A12,'RECAP DIRCOM'!$G$6:$EV$12,139,FALSE) -> 6 | G12: =VLOOKUP($A12,'RECAP DIRCOM'!$G$6:$EV$12,140,FALSE) -> 74% | H12: =VLOOKUP($A12,'RECAP DIRCOM'!$G$6:$EV$12,141,FALSE) -> 5% | I12: =VLOOKUP($A12,'RECAP DIRCOM'!$G$6:$EV$12,142,FALSE) -> 6 | J12: =VLOOKUP($A12,'RECAP DIRCOM'!$G$6:$EV$12,143,FALSE) -> 73% | K12: =VLOOKUP($A12,'RECAP DIRCOM'!$G$6:$EV$12,144,FALSE) -> 73% | L12: =VLOOKUP($A12,'RECAP DIRCOM'!$G$6:$EV$12,145,FALSE) -> 6
A13: 30 | B13: Marne-Ardennes | C13: =VLOOKUP($A13,'RECAP DIRCOM'!$G$6:$EV$12,3,FALSE) -> 238 | D13: =VLOOKUP($A13,'RECAP DIRCOM'!$G$6:$EV$12,137,FALSE) -> -6 | E13: =VLOOKUP($A13,'RECAP DIRCOM'!$G$6:$EV$12,138,FALSE) -> 0% | F13: =VLOOKUP($A13,'RECAP DIRCOM'!$G$6:$EV$12,139,FALSE) -> 1 | G13: =VLOOKUP($A13,'RECAP DIRCOM'!$G$6:$EV$12,140,FALSE) -> 78% | H13: =VLOOKUP($A13,'RECAP DIRCOM'!$G$6:$EV$12,141,FALSE) -> 0% | I13: =VLOOKUP($A13,'RECAP DIRCOM'!$G$6:$EV$12,142,FALSE) -> 1 | J13: =VLOOKUP($A13,'RECAP DIRCOM'!$G$6:$EV$12,143,FALSE) -> 0% | K13: =VLOOKUP($A13,'RECAP DIRCOM'!$G$6:$EV$12,144,FALSE) -> 0% | L13: =VLOOKUP($A13,'RECAP DIRCOM'!$G$6:$EV$12,145,FALSE) -> 1
A14: 110 | B14: Meurthe et Moselle Meuse | C14: =VLOOKUP($A14,'RECAP DIRCOM'!$G$6:$EV$12,3,FALSE) -> 262 | D14: =VLOOKUP($A14,'RECAP DIRCOM'!$G$6:$EV$12,137,FALSE) -> -13 | E14: =VLOOKUP($A14,'RECAP DIRCOM'!$G$6:$EV$12,138,FALSE) -> 62% | F14: =VLOOKUP($A14,'RECAP DIRCOM'!$G$6:$EV$12,139,FALSE) -> 5 | G14: =VLOOKUP($A14,'RECAP DIRCOM'!$G$6:$EV$12,140,FALSE) -> 76% | H14: =VLOOKUP($A14,'RECAP DIRCOM'!$G$6:$EV$12,141,FALSE) -> 2% | I14: =VLOOKUP($A14,'RECAP DIRCOM'!$G$6:$EV$12,142,FALSE) -> 5 | J14: =VLOOKUP($A14,'RECAP DIRCOM'!$G$6:$EV$12,143,FALSE) -> 32% | K14: =VLOOKUP($A14,'RECAP DIRCOM'!$G$6:$EV$12,144,FALSE) -> 32% | L14: =VLOOKUP($A14,'RECAP DIRCOM'!$G$6:$EV$12,145,FALSE) -> 5
A15: 160 | B15: Moselle | C15: =VLOOKUP($A15,'RECAP DIRCOM'!$G$6:$EV$12,3,FALSE) -> 302 | D15: =VLOOKUP($A15,'RECAP DIRCOM'!$G$6:$EV$12,137,FALSE) -> -11 | E15: =VLOOKUP($A15,'RECAP DIRCOM'!$G$6:$EV$12,138,FALSE) -> 44% | F15: =VLOOKUP($A15,'RECAP DIRCOM'!$G$6:$EV$12,139,FALSE) -> 3 | G15: =VLOOKUP($A15,'RECAP DIRCOM'!$G$6:$EV$12,140,FALSE) -> 77% | H15: =VLOOKUP($A15,'RECAP DIRCOM'!$G$6:$EV$12,141,FALSE) -> 1% | I15: =VLOOKUP($A15,'RECAP DIRCOM'!$G$6:$EV$12,142,FALSE) -> 3 | J15: =VLOOKUP($A15,'RECAP DIRCOM'!$G$6:$EV$12,143,FALSE) -> 23% | K15: =VLOOKUP($A15,'RECAP DIRCOM'!$G$6:$EV$12,144,FALSE) -> 23% | L15: =VLOOKUP($A15,'RECAP DIRCOM'!$G$6:$EV$12,145,FALSE) -> 3
A16: 80 | B16: Vosges | C16: =VLOOKUP($A16,'RECAP DIRCOM'!$G$6:$EV$12,3,FALSE) -> 146 | D16: =VLOOKUP($A16,'RECAP DIRCOM'!$G$6:$EV$12,137,FALSE) -> -12 | E16: =VLOOKUP($A16,'RECAP DIRCOM'!$G$6:$EV$12,138,FALSE) -> 53% | F16: =VLOOKUP($A16,'RECAP DIRCOM'!$G$6:$EV$12,139,FALSE) -> 4 | G16: =VLOOKUP($A16,'RECAP DIRCOM'!$G$6:$EV$12,140,FALSE) -> 77% | H16: =VLOOKUP($A16,'RECAP DIRCOM'!$G$6:$EV$12,141,FALSE) -> 1% | I16: =VLOOKUP($A16,'RECAP DIRCOM'!$G$6:$EV$12,142,FALSE) -> 2 | J16: =VLOOKUP($A16,'RECAP DIRCOM'!$G$6:$EV$12,143,FALSE) -> 27% | K16: =VLOOKUP($A16,'RECAP DIRCOM'!$G$6:$EV$12,144,FALSE) -> 27% | L16: =VLOOKUP($A16,'RECAP DIRCOM'!$G$6:$EV$12,145,FALSE) -> 4
A17: Total CEGEE Directions Régionales | C17: =SUM(C10:C16) -> 1568

Sheet SE_FICHE
A1: Accueil
A2: BAROMETRE BDD
A4: UNITE: | B4: TERRITOIRE | K4: ETP perf : | L4: =VLOOKUP(A5,'RECAP SECT'!$G$6:$I$23,3,FALSE) -> 75.34
A5: =VLOOKUP(B5,LISTES!$H$6:$I$23,2,FALSE) -> 5130 | B5: COLMAR
C6: Coefficient du critére | E6: Résultats | I6: Ecart au 1ier | M6: Rang
E7: du 1ier | G7: du secteur | I7: Du mois | K7: Au 31/12/2018
A9: RANG au CLASSEMENT GENERAL | M9: =VLOOKUP($A$5,'RECAP SECT'!$G$6:$FE$253,154,FALSE) -> 15 | Q9: =VLOOKUP($A$5,'RECAP SECT AN'!$G$6:$FE$312,154,FALSE) -> 33 | S9: =+Q9-M9 -> 18
A11: CRITERE CONQUETE | C11: 15% | M11: =VLOOKUP($A$5,'RECAP SECT'!$G$6:$FE$253,19,FALSE) -> 17
B12: Evolution nette Clients Bancarisés Principaux (BP +JBP) par ETP | C12: 4% | E12: ='RECAP SECT'!K4 -> 2.5 | G12: =VLOOKUP($A$5,'RECAP SECT'!$G$6:$FE$253,5,FALSE) -> -2.9 | I12: =VLOOKUP($A$5,'RECAP SECT'!$G$6:$FE$253,6,FALSE) -> 125% | M12: =VLOOKUP($A$5,'RECAP SECT'!$G$6:$FE$253,7,FALSE) -> 15 | Q12: =VLOOKUP($A$5,'RECAP SECT AN'!$G$6:$FE$312,6,FALSE) -> 105% | S12: =+Q12-I12 -> -20%
B13: Evolution nette relations Premium par ETP | C13: 4% | E13: ='RECAP SECT'!N4 -> 3.0 | G13: =VLOOKUP($A$5,'RECAP SECT'!$G$6:$FE$253,8,FALSE) -> 2.5 | I13: =VLOOKUP($A$5,'RECAP SECT'!$G$6:$FE$253,9,FALSE) -> 17% | M13: =VLOOKUP($A$5,'RECAP SECT'!$G$6:$FE$253,10,FALSE) -> 4 | Q13: =VLOOKUP($A$5,'RECAP SECT AN'!$G$6:$FE$312,9,FALSE) -> 73% | S13: =+Q13-I13 -> 56%
B14: Evolution nette Clients Bancarisés Principaux équipés par ETP | C14: 3% | E14: ='RECAP SECT'!Q4 -> 5.6 | G14: =VLOOKUP($A$5,'RECAP SECT'!$G$6:$FE$253,11,FALSE) -> -0.8 | I14: =VLOOKUP($A$5,'RECAP SECT'!$G$6:$FE$253,12,FALSE) -> 113% | M14: =VLOOKUP($A$5,'RECAP SECT'!$G$6:$FE$253,13,FALSE) -> 15 | Q14: =VLOOKUP($A$5,'RECAP SECT AN'!$G$6:$FE$312,12,FALSE) -> 46% | S14: =+Q14-I14 -> -67%
B15: Evolution nette Clients Pro actif équipés par rapport à l’objectif fixé | C15: 4% | E15: ='RECAP SECT'!T4 -> 100% | G15: =VLOOKUP($A$5,'RECAP SECT'!$G$6:$FE$253,14,FALSE) -> -16% | I15: =VLOOKUP($A$5,'RECAP SECT'!$G$6:$FE$253,15,FALSE) -> 100% | M15: =VLOOKUP($A$5,'RECAP SECT'!$G$6:$FE$253,16,FALSE) -> 13 | Q15: =VLOOKUP($A$5,'RECAP SECT AN'!$G$6:$FE$312,15,FALSE) -> 120% | S15: =+Q15-I15 -> 21%
A17: CRITERE EQUIPEMENT BANCARISATION | C17: 15% | M17: =VLOOKUP($A$5,'RECAP SECT'!$G$6:$FE$253,43,FALSE) -> 10
B18: Ventes nettes forfaits (+ 2 options) par ETP | C18: 3% | E18: ='RECAP SECT'!AF4 -> -11.6 | G18: =VLOOKUP($A$5,'RECAP SECT'!$G$6:$FE$253,26,FALSE) -> -11.6 | I18: =VLOOKUP($A$5,'RECAP SECT'!$G$6:$FE$253,27,FALSE) -> 0% | M18: =VLOOKUP($A$5,'RECAP SECT'!$G$6:$FE$253,28,FALSE) -> 1 | Q18: =VLOOKUP($A$5,'RECAP SECT AN'!$G$6:$FE$312,27,FALSE) -> 26% | S18: =+Q18-I18 -> 26%
B19: Ventes nettes IZICARTES par ETP | C19: 3% | E19: ='RECAP SECT'!AI4 -> 11.3 | G19: =VLOOKUP($A$5,'RECAP SECT'!$G$6:$FE$253,29,FALSE) -> 5.1 | I19: =VLOOKUP($A$5,'RECAP SECT'!$G$6:$FE$253,30,FALSE) -> 55% | M19: =VLOOKUP($A$5,'RECAP SECT'!$G$6:$FE$253,31,FALSE) -> 13 | Q19: =VLOOKUP($A$5,'RECAP SECT AN'!$G$6:$FE$312,30,FALSE) -> 63% | S19: =+Q19-I19 -> 8%
B20: Ventes nettes cartes HDG par ETP | C20: 3% | E20: ='RECAP SECT'!AL4 -> 20.0 | G20: =VLOOKUP($A$5,'RECAP SECT'!$G$6:$FE$253,32,FALSE) -> 13.8 | I20: =VLOOKUP($A$5,'RECAP SECT'!$G$6:$FE$253,33,FALSE) -> 31% | M20: =VLOOKUP($A$5,'RECAP SECT'!$G$6:$FE$253,34,FALSE) -> 8 | Q20: =VLOOKUP($A$5,'RECAP SECT AN'!$G$6:$FE$312,33,FALSE) -> 67% | S20: =+Q20-I20 -> 36%
B21: Vente nette CB débit différé par ETP | C21: 3% | E21: ='RECAP SECT'!AO4 -> 9.6 | G21: =VLOOKUP($A$5,'RECAP SECT'!$G$6:$FE$253,35,FALSE) -> 5.2 | I21: =VLOOKUP($A$5,'RECAP SECT'!$G$6:$FE$253,36,FALSE) -> 46% | M21: =VLOOKUP($A$5,'RECAP SECT'!$G$6:$FE$253,37,FALSE) -> 13 | Q21: =VLOOKUP($A$5,'RECAP SECT AN'!$G$6:$FE$312,36,FALSE) -> 78% | S21: =+Q21-I21 -> 32%
B22: Ventes nettes banca Pro Forfaits Pro, Carte pro par rapport à l’objectif | C22: 3% | E22: ='RECAP SECT'!AR4 -> 113% | G22: =VLOOKUP($A$5,'RECAP SECT'!$G$6:$FE$253,38,FALSE) -> 29% | I22: =VLOOKUP($A$5,'RECAP SECT'!$G$6:$FE$253,39,FALSE) -> 75% | M22: =VLOOKUP($A$5,'RECAP SECT'!$G$6:$FE$253,40,FALSE) -> 16 | Q22: =VLOOKUP($A$5,'RECAP SECT AN'!$G$6:$FE$312,39,FALSE) -> 75% | S22: =+Q22-I22 -> 0%
A24: CRITERE EPARGNE | C24: 15% | M24: =VLOOKUP($A$5,'RECAP SECT'!$G$6:$FE$253,67,FALSE) -> 4
B25: Excédents de collecte (y.c DAV) par ETP | C25: 2% | E25: ='RECAP SECT'!BD4 -> 326.6 | G25: =VLOOKUP($A$5,'RECAP SECT'!$G$6:$FE$253,50,FALSE) -> 219.3 | I25: =VLOOKUP($A$5,'RECAP SECT'!$G$6:$FE$253,51,FALSE) -> 33% | M25: =VLOOKUP($A$5,'RECAP SECT'!$G$6:$FE$253,52,FALSE) -> 2 | Q25: =VLOOKUP($A$5,'RECAP SECT AN'!$G$6:$FE$312,51,FALSE) -> 70% | S25: =+Q25-I25 -> 37%
B26: CA assurance vie par ETP | C26: 2% | E26: ='RECAP SECT'!BG4 -> 605.2 | G26: =VLOOKUP($A$5,'RECAP SECT'!$G$6:$FE$253,53,FALSE) -> 377.6 | I26: =VLOOKUP($A$5,'RECAP SECT'!$G$6:$FE$253,54,FALSE) -> 38% | M26: =VLOOKUP($A$5,'RECAP SECT'!$G$6:$FE$253,55,FALSE) -> 16 | Q26: =VLOOKUP($A$5,'RECAP SECT AN'!$G$6:$FE$312,54,FALSE) -> 45% | S26: =+Q26-I26 -> 7%
B27: Activité UC (CA+arbitrage) par ETP | C27: 2% | E27: ='RECAP SECT'!BJ4 -> 196.7 | G27: =VLOOKUP($A$5,'RECAP SECT'!$G$6:$FE$253,56,FALSE) -> 138.5 | I27: =VLOOKUP($A$5,'RECAP SECT'!$G$6:$FE$253,57,FALSE) -> 30% | M27: =VLOOKUP($A$5,'RECAP SECT'!$G$6:$FE$253,58,FALSE) -> 14 | Q27: =VLOOKUP($A$5,'RECAP SECT AN'!$G$6:$FE$312,57,FALSE) -> 57% | S27: =+Q27-I27 -> 27%
B28: Excédents Assurance-vie par ETP | C28: 2% | E28: ='RECAP SECT'!BM4 -> 254.7 | G28: =VLOOKUP($A$5,'RECAP SECT'!$G$6:$FE$253,59,FALSE) -> -4.1 | I28: =VLOOKUP($A$5,'RECAP SECT'!$G$6:$FE$253,60,FALSE) -> 102% | M28: =VLOOKUP($A$5,'RECAP SECT'!$G$6:$FE$253,61,FALSE) -> 18 | Q28: =VLOOKUP($A$5,'RECAP SECT AN'!$G$6:$FE$312,60,FALSE) -> 78% | S28: =+Q28-I28 -> -24%
B29: Excédents Epargne Bilan (Hors Emprunts CTO) par ETP | C29: 7% | E29: ='RECAP SECT'!BP4 -> 67.0 | G29: =VLOOKUP($A$5,'RECAP SECT'!$G$6:$FE$253,62,FALSE) -> 64.2 | I29: =VLOOKUP($A$5,'RECAP SECT'!$G$6:$FE$253,63,FALSE) -> 3% | M29: =VLOOKUP($A$5,'RECAP SECT'!$G$6:$FE$253,64,FALSE) -> 4 | Q29: =VLOOKUP($A$5,'RECAP SECT AN'!$G$6:$FE$312,63,FALSE) -> 62% | S29: =+Q29-I29 -> 59%
A31: CRITERE CREDITS | C31: 15% | M31: =VLOOKUP($A$5,'RECAP SECT'!$G$6:$FE$253,94,FALSE) -> 18
B32: Engagement Conso par ETP (hors clients 9) | C32: 3% | E32: ='RECAP SECT'!CB4 -> 474.3 | G32: =VLOOKUP($A$5,'RECAP SECT'!$G$6:$FE$253,74,FALSE) -> 326.6 | I32: =VLOOKUP($A$5,'RECAP SECT'!$G$6:$FE$253,75,FALSE) -> 31% | M32: =VLOOKUP($A$5,'RECAP SECT'!$G$6:$FE$253,76,FALSE) -> 17 | Q32: =VLOOKUP($A$5,'RECAP SECT AN'!$G$6:$FE$312,75,FALSE) -> 42% | S32: =+Q32-I32 -> 11%
B33: % CNP sur Conso en valeur absolue | C33: 2% | E33: ='RECAP SECT'!CE4 -> 97% | G33: =VLOOKUP($A$5,'RECAP SECT'!$G$6:$FE$253,77,FALSE) -> 90% | I33: =VLOOKUP($A$5,'RECAP SECT'!$G$6:$FE$253,78,FALSE) -> 8% | M33: =VLOOKUP($A$5,'RECAP SECT'!$G$6:$FE$253,79,FALSE) -> 17 | Q33: =VLOOKUP($A$5,'RECAP SECT AN'!$G$6:$FE$312,78,FALSE) -> 14% | S33: 7%
B34: Engagements Immo par rapport à l’objectif | C34: 3% | E34: ='RECAP SECT'!CH4 -> 113% | G34: =VLOOKUP($A$5,'RECAP SECT'!$G$6:$FE$253,80,FALSE) -> 79% | I34: =VLOOKUP($A$5,'RECAP SECT'!$G$6:$FE$253,81,FALSE) -> 30% | M34: =VLOOKUP($A$5,'RECAP SECT'!$G$6:$FE$253,82,FALSE) -> 11 | Q34: =VLOOKUP($A$5,'RECAP SECT AN'!$G$6:$FE$312,81,FALSE) -> 48% | S34: 18%
B35: % CNP sur crédits immo en valeur absolue | C35: 2% | E35: ='RECAP SECT'!CK4 -> 85% | G35: =VLOOKUP($A$5,'RECAP SECT'!$G$6:$FE$253,83,FALSE) -> 63% | I35: =VLOOKUP($A$5,'RECAP SECT'!$G$6:$FE$253,84,FALSE) -> 26% | M35: =VLOOKUP($A$5,'RECAP SECT'!$G$6:$FE$253,85,FALSE) -> 11 | Q35: =VLOOKUP($A$5,'RECAP SECT AN'!$G$6:$FE$312,84,FALSE) -> 28% | S35: 2%
B36: Taux de couverture SACCEF | C36: 2% | E36: ='RECAP SECT'!CN4 -> 94% | G36: =VLOOKUP($A$5,'RECAP SECT'!$G$6:$FE$253,86,FALSE) -> 79% | I36: =VLOOKUP($A$5,'RECAP SECT'!$G$6:$FE$253,87,FALSE) -> 16% | M36: =VLOOKUP($A$5,'RECAP SECT'!$G$6:$FE$253,88,FALSE) -> 17 | Q36: =VLOOKUP($A$5,'RECAP SECT AN'!$G$6:$FE$312,87,FALSE) -> 34% | S36: 18%
B37: Engagements CMLT + CB par rapport à l’objectif | C37: 3% | E37: ='RECAP SECT'!CQ4 -> 115% | G37: =VLOOKUP($A$5,'RECAP SECT'!$G$6:$FE$253,89,FALSE) -> 48% | I37: =VLOOKUP($A$5,'RECAP SECT'!$G$6:$FE$253,90,FALSE) -> 58% | M37: =VLOOKUP($A$5,'RECAP SECT'!$G$6:$FE$253,91,FALSE) -> 16 | Q37: =VLOOKUP($A$5,'RECAP SECT AN'!$G$6:$FE$312,90,FALSE) -> 61% | S37: 4%
A39: CRITERE IARD PREVOYANCE | C39: 20% | M39: =VLOOKUP($A$5,'RECAP SECT'!$G$6:$FE$253,112,FALSE) -> 16
B40: Ventes nettes IARD (Auto+MRH+ Pro) par ETP | C40: 7% | E40: ='RECAP SECT'!DC4 -> 10.2 | G40: =VLOOKUP($A$5,'RECAP SECT'!$G$6:$FE$253,101,FALSE) -> 3.7 | I40: =VLOOKUP($A$5,'RECAP SECT'!$G$6:$FE$253,102,FALSE) -> 64% | M40: =VLOOKUP($A$5,'RECAP SECT'!$G$6:$FE$253,103,FALSE) -> 17 | Q40: =VLOOKUP($A$5,'RECAP SECT AN'!$G$6:$FE$312,102,FALSE) -> 54% | S40: =+Q40-I40 -> -9%
B41: Ventes nettes Prévoyance (GAV, secur.f,prevoy loc,santé,assist.vie, obséques, Pro) par ETP | C41: 7% | E41: ='RECAP SECT'!DF4 -> 15.4 | G41: =VLOOKUP($A$5,'RECAP SECT'!$G$6:$FE$253,104,FALSE) -> 7.9 | I41: =VLOOKUP($A$5,'RECAP SECT'!$G$6:$FE$253,105,FALSE) -> 49% | M41: =VLOOKUP($A$5,'RECAP SECT'!$G$6:$FE$253,106,FALSE) -> 14 | Q41: =VLOOKUP($A$5,'RECAP SECT AN'!$G$6:$FE$312,105,FALSE) -> 56% | S41: =+Q41-I41 -> 7%
B42: Chiffre d’affaires IARD (Yc Pro) par ETP | C42: 6% | E42: ='RECAP SECT'!DI4 -> 12.7 | G42: =VLOOKUP($A$5,'RECAP SECT'!$G$6:$FE$253,107,FALSE) -> 9.4 | I42: =VLOOKUP($A$5,'RECAP SECT'!$G$6:$FE$253,108,FALSE) -> 26% | M42: =VLOOKUP($A$5,'RECAP SECT'!$G$6:$FE$253,109,FALSE) -> 14 | Q42: =VLOOKUP($A$5,'RECAP SECT AN'!$G$6:$FE$312,108,FALSE) -> 43% | S42: =+Q42-I42 -> 18%
A44: CRITERE RISQUES | C44: 10% | M44: =VLOOKUP($A$5,'RECAP SECT'!$G$6:$FE$253,130,FALSE) -> 9
B45: Complétude, conformité et fiabilisation des nouvelles EER sur flux BDD | C45: 3% | E45: ='RECAP SECT'!DU4 -> 99% | G45: =VLOOKUP($A$5,'RECAP SECT'!$G$6:$FE$253,119,FALSE) -> 97% | I45: =VLOOKUP($A$5,'RECAP SECT'!$G$6:$FE$253,120,FALSE) -> 2% | M45: =VLOOKUP($A$5,'RECAP SECT'!$G$6:$FE$253,121,FALSE) -> 12 | Q45: =VLOOKUP($A$5,'RECAP SECT AN'!$G$6:$FE$312,120,FALSE) -> 4% | S45: =+Q45-I45 -> 2%
B46: Complétude, conformité et fiabilisation des EER sur flux cumulé et stock | C46: 3% | E46: ='RECAP SECT'!DX4 -> 79% | G46: =VLOOKUP($A$5,'RECAP SECT'!$G$6:$FE$253,122,FALSE) -> 73% | I46: =VLOOKUP($A$5,'RECAP SECT'!$G$6:$FE$253,123,FALSE) -> 8% | M46: =VLOOKUP($A$5,'RECAP SECT'!$G$6:$FE$253,124,FALSE) -> 14 | Q46: =VLOOKUP($A$5,'RECAP SECT AN'!$G$6:$FE$312,123,FALSE) -> 16% | S46: =+Q46-I46 -> 8%
B47: Traitement et qualité du traitement des alertes Vigiclient | C47: 4% | E47: ='RECAP SECT'!EA4 -> 100% | G47: =VLOOKUP($A$5,'RECAP SECT'!$G$6:$FE$253,125,FALSE) -> 99% | I47: =VLOOKUP($A$5,'RECAP SECT'!$G$6:$FE$253,126,FALSE) -> 1% | M47: =VLOOKUP($A$5,'RECAP SECT'!$G$6:$FE$253,127,FALSE) -> 5 | Q47: =VLOOKUP($A$5,'RECAP SECT AN'!$G$6:$FE$312,126,FALSE) -> 0% | S47: =+Q47-I47 -> -1%
A49: CRITERE Satisfaction Clients | C49: 10% | M49: =VLOOKUP($A$5,'RECAP SECT'!$G$6:$FE$253,145,FALSE) -> 15
B50: Objectifs NPS* | C50: 5% | E50: ='RECAP SECT'!EM4 -> -2 | G50: =VLOOKUP($A$5,'RECAP SECT'!$G$6:$FE$253,137,FALSE) -> -21 | I50: =VLOOKUP($A$5,'RECAP SECT'!$G$6:$FE$253,138,FALSE) -> 114% | M50: =VLOOKUP($A$5,'RECAP SECT'!$G$6:$FE$253,139,FALSE) -> 15 | Q50: =VLOOKUP($A$5,'RECAP SECT AN'!$G$6:$FE$312,138,FALSE) -> 117% | S50: =+Q50-I50 -> 3%
B51: Enquête Qualité Haute Définition | C51: 5% | E51: ='RECAP SECT'!EP4 -> 80% | G51: =VLOOKUP($A$5,'RECAP SECT'!$G$6:$FE$253,140,FALSE) -> 74% | I51: =VLOOKUP($A$5,'RECAP SECT'!$G$6:$FE$253,141,FALSE) -> 7% | M51: =VLOOKUP($A$5,'RECAP SECT'!$G$6:$FE$253,142,FALSE) -> 15 | Q51: =VLOOKUP($A$5,'RECAP SECT AN'!$G$6:$FE$312,141,FALSE) -> 12% | S51: =+Q51-I51 -> 5%

Sheet SE_OBJECTIF
A1: Accueil | F1: BAROMETRE BDD - TERRITOIRES
F2: PV PART SUR OBJECTIFS
F3: =ACCUEIL!H7 -> 2019-09-30
F7: Excédent de collecte par ETP yc DAV | I7: Engagements crédit conso par ETP (hors clients note octroi à 9 et DRC complet) | L7: Ventes brutes IARD prevoyance Part et Pro (si DRC complet) par ETP | O7: Evolution des Bpe+JBPe par ETP | R7: PNB sur activité nouvelle (yc bonus digital) par ETP
G8: Taux d'atteinte saisonalisé | H8: =VLOOKUP(ACCUEIL!$H$7,Tableau1[],2,FALSE) -> 82% | J8: Taux d'atteinte saisonalisé | K8: =VLOOKUP(ACCUEIL!$H$7,Tableau1[],3,FALSE) -> 82% | M8: Taux d'atteinte saisonalisé | N8: =VLOOKUP(ACCUEIL!$H$7,Tableau1[],4,FALSE) -> 82% | P8: Taux d'atteinte saisonalisé | Q8: =VLOOKUP(ACCUEIL!$H$7,Tableau1[],5,FALSE) -> 82% | S8: Taux d'atteinte saisonalisé | T8: =VLOOKUP(ACCUEIL!$H$7,Tableau1[],6,FALSE) -> 82%
A9: eds | B9: Direction | C9: eds | D9: Territoire | E9: ETP perf | F9: Réal | G9: Obj | H9: % | I9: Réal | J9: Obj | K9: % | L9: Réal | M9: Obj | N9: % | O9: Réal | P9: Obj | Q9: % | R9: Réal | S9: Obj | T9: % | V9: <80% | W9: 100% | X9: 110% | Y9: 120%
A10: 50 | B10: AUBE HAUTE MARNE | C10: 21 | D10: CHAUMONT | E10: =VLOOKUP($C10,'RECAP SECT'!$G$6:$EV$253,3,FALSE) -> 46.0 | F10: =VLOOKUP($C10,'RECAP SECT'!$G$6:$FZ$26,158,FALSE) -> 168 | G10: =VLOOKUP($C10,'RECAP SECT'!$G$6:$FZ$26,159,FALSE) -> 107 | H10: =VLOOKUP($C10,'RECAP SECT'!$G$6:$FZ$26,160,FALSE) -> 155% | I10: =VLOOKUP($C10,'RECAP SECT'!$G$6:$FZ$26,161,FALSE) -> 474 | J10: =VLOOKUP($C10,'RECAP SECT'!$G$6:$FZ$26,162,FALSE) -> 467 | K10: =VLOOKUP($C10,'RECAP SECT'!$G$6:$FZ$26,163,FALSE) -> 101% | L10: =VLOOKUP($C10,'RECAP SECT'!$G$6:$FZ$26,164,FALSE) -> 48 | M10: =VLOOKUP($C10,'RECAP SECT'!$G$6:$FZ$26,165,FALSE) -> 59 | N10: =VLOOKUP($C10,'RECAP SECT'!$G$6:$FZ$26,166,FALSE) -> 80% | O10: =VLOOKUP($C10,'RECAP SECT'!$G$6:$FZ$26,167,FALSE) -> 6 | P10: =VLOOKUP($C10,'RECAP SECT'!$G$6:$FZ$26,168,FALSE) -> 4 | Q10: =VLOOKUP($C10,'RECAP SECT'!$G$6:$FZ$26,169,FALSE) -> 139% | R10: =VLOOKUP($C10,'RECAP SECT'!$G$6:$FZ$26,170,FALSE) -> 127 | S10: =VLOOKUP($C10,'RECAP SECT'!$G$6:$FZ$26,171,FALSE) -> 126 | T10: =VLOOKUP($C10,'RECAP SECT'!$G$6:$FZ$26,172,FALSE) -> 100% | V10: =$H$8*0.8 -> 65% | W10: =$H$8 -> 82% | X10: =$H$8*1.1 -> 90% | Y10: =$H$8*1.2 -> 98%
A11: 50 | B11: AUBE HAUTE MARNE | C11: 14 | D11: TROYES | E11: =VLOOKUP($C11,'RECAP SECT'!$G$6:$EV$253,3,FALSE) -> 77.6 | F11: =VLOOKUP($C11,'RECAP SECT'!$G$6:$FZ$26,158,FALSE) -> 173 | G11: =VLOOKUP($C11,'RECAP SECT'!$G$6:$FZ$26,159,FALSE) -> 122 | H11: =VLOOKUP($C11,'RECAP SECT'!$G$6:$FZ$26,160,FALSE) -> 142% | I11: =VLOOKUP($C11,'RECAP SECT'!$G$6:$FZ$26,161,FALSE) -> 444 | J11: =VLOOKUP($C11,'RECAP SECT'!$G$6:$FZ$26,162,FALSE) -> 467 | K11: =VLOOKUP($C11,'RECAP SECT'!$G$6:$FZ$26,163,FALSE) -> 95% | L11: =VLOOKUP($C11,'RECAP SECT'!$G$6:$FZ$26,164,FALSE) -> 34 | M11: =VLOOKUP($C11,'RECAP SECT'!$G$6:$FZ$26,165,FALSE) -> 59 | N11: =VLOOKUP($C11,'RECAP SECT'!$G$6:$FZ$26,166,FALSE) -> 56% | O11: =VLOOKUP($C11,'RECAP SECT'!$G$6:$FZ$26,167,FALSE) -> 3 | P11: =VLOOKUP($C11,'RECAP SECT'!$G$6:$FZ$26,168,FALSE) -> 4 | Q11: =VLOOKUP($C11,'RECAP SECT'!$G$6:$FZ$26,169,FALSE) -> 73% | R11: =VLOOKUP($C11,'RECAP SECT'!$G$6:$FZ$26,170,FALSE) -> 126 | S11: =VLOOKUP($C11,'RECAP SECT'!$G$6:$FZ$26,171,FALSE) -> 136 | T11: =VLOOKUP($C11,'RECAP SECT'!$G$6:$FZ$26,172,FALSE) -> 92% | V11: =$H$8*0.8 -> 65% | W11: =$H$8 -> 82% | X11: =$H$8*1.1 -> 90% | Y11: =$H$8*1.2 -> 98%
A12: 262 | B12: BAS-RHIN | C12: 5060 | D12: HAGUENAU | E12: =VLOOKUP($C12,'RECAP SECT'!$G$6:$EV$253,3,FALSE) -> 87.6 | F12: =VLOOKUP($C12,'RECAP SECT'!$G$6:$FZ$26,158,FALSE) -> 133 | G12: =VLOOKUP($C12,'RECAP SECT'!$G$6:$FZ$26,159,FALSE) -> 122 | H12: =VLOOKUP($C12,'RECAP SECT'!$G$6:$FZ$26,160,FALSE) -> 109% | I12: =VLOOKUP($C12,'RECAP SECT'!$G$6:$FZ$26,161,FALSE) -> 353 | J12: =VLOOKUP($C12,'RECAP SECT'!$G$6:$FZ$26,162,FALSE) -> 467 | K12: =VLOOKUP($C12,'RECAP SECT'!$G$6:$FZ$26,163,FALSE) -> 75% | L12: =VLOOKUP($C12,'RECAP SECT'!$G$6:$FZ$26,164,FALSE) -> 43 | M12: =VLOOKUP($C12,'RECAP SECT'!$G$6:$FZ$26,165,FALSE) -> 59 | N12: =VLOOKUP($C12,'RECAP SECT'!$G$6:$FZ$26,166,FALSE) -> 72% | O12: =VLOOKUP($C12,'RECAP SECT'!$G$6:$FZ$26,167,FALSE) -> -1 | P12: =VLOOKUP($C12,'RECAP SECT'!$G$6:$FZ$26,168,FALSE) -> 4 | Q12: =VLOOKUP($C12,'RECAP SECT'!$G$6:$FZ$26,169,FALSE) -> -16% | R12: =VLOOKUP($C12,'RECAP SECT'!$G$6:$FZ$26,170,FALSE) -> 111 | S12: =VLOOKUP($C12,'RECAP SECT'!$G$6:$FZ$26,171,FALSE) -> 133 | T12: =VLOOKUP($C12,'RECAP SECT'!$G$6:$FZ$26,172,FALSE) -> 83% | V12: 65% | W12: 82% | X12: 90% | Y12: 98%
A13: 262 | B13: BAS-RHIN | C13: 5101 | D13: SELESTAT | E13: =VLOOKUP($C13,'RECAP SECT'!$G$6:$EV$253,3,FALSE) -> 75.2 | F13: =VLOOKUP($C13,'RECAP SECT'!$G$6:$FZ$26,158,FALSE) -> 157 | G13: =VLOOKUP($C13,'RECAP SECT'!$G$6:$FZ$26,159,FALSE) -> 136 | H13: =VLOOKUP($C13,'RECAP SECT'!$G$6:$FZ$26,160,FALSE) -> 115% | I13: =VLOOKUP($C13,'RECAP SECT'!$G$6:$FZ$26,161,FALSE) -> 359 | J13: =VLOOKUP($C13,'RECAP SECT'!$G$6:$FZ$26,162,FALSE) -> 467 | K13: =VLOOKUP($C13,'RECAP SECT'!$G$6:$FZ$26,163,FALSE) -> 76% | L13: =VLOOKUP($C13,'RECAP SECT'!$G$6:$FZ$26,164,FALSE) -> 41 | M13: =VLOOKUP($C13,'RECAP SECT'!$G$6:$FZ$26,165,FALSE) -> 59 | N13: =VLOOKUP($C13,'RECAP SECT'!$G$6:$FZ$26,166,FALSE) -> 70% | O13: =VLOOKUP($C13,'RECAP SECT'!$G$6:$FZ$26,167,FALSE) -> -2 | P13: =VLOOKUP($C13,'RECAP SECT'!$G$6:$FZ$26,168,FALSE) -> 4 | Q13: =VLOOKUP($C13,'RECAP SECT'!$G$6:$FZ$26,169,FALSE) -> -42% | R13: =VLOOKUP($C13,'RECAP SECT'!$G$6:$FZ$26,170,FALSE) -> 115 | S13: =VLOOKUP($C13,'RECAP SECT'!$G$6:$FZ$26,171,FALSE) -> 139 | T13: =VLOOKUP($C13,'RECAP SECT'!$G$6:$FZ$26,172,FALSE) -> 82% | V13: 65% | W13: 82% | X13: 90% | Y13: 98%
A14: 262 | B14: BAS-RHIN | C14: 5006 | D14: STRASBOURG | E14: =VLOOKUP($C14,'RECAP SECT'!$G$6:$EV$253,3,FALSE) -> 92.1 | F14: =VLOOKUP($C14,'RECAP SECT'!$G$6:$FZ$26,158,FALSE) -> 51 | G14: =VLOOKUP($C14,'RECAP SECT'!$G$6:$FZ$26,159,FALSE) -> 127 | H14: =VLOOKUP($C14,'RECAP SECT'!$G$6:$FZ$26,160,FALSE) -> 40% | I14: =VLOOKUP($C14,'RECAP SECT'!$G$6:$FZ$26,161,FALSE) -> 310 | J14: =VLOOKUP($C14,'RECAP SECT'!$G$6:$FZ$26,162,FALSE) -> 467 | K14: =VLOOKUP($C14,'RECAP SECT'!$G$6:$FZ$26,163,FALSE) -> 66% | L14: =VLOOKUP($C14,'RECAP SECT'!$G$6:$FZ$26,164,FALSE) -> 35 | M14: =VLOOKUP($C14,'RECAP SECT'!$G$6:$FZ$26,165,FALSE) -> 59 | N14: =VLOOKUP($C14,'RECAP SECT'!$G$6:$FZ$26,166,FALSE) -> 58% | O14: =VLOOKUP($C14,'RECAP SECT'!$G$6:$FZ$26,167,FALSE) -> -2 | P14: =VLOOKUP($C14,'RECAP SECT'!$G$6:$FZ$26,168,FALSE) -> 4 | Q14: =VLOOKUP($C14,'RECAP SECT'!$G$6:$FZ$26,169,FALSE) -> -43% | R14: =VLOOKUP($C14,'RECAP SECT'!$G$6:$FZ$26,170,FALSE) -> 112 | S14: =VLOOKUP($C14,'RECAP SECT'!$G$6:$FZ$26,171,FALSE) -> 136 | T14: =VLOOKUP($C14,'RECAP SECT'!$G$6:$FZ$26,172,FALSE) -> 82% | V14: 65% | W14: 82% | X14: 90% | Y14: 98%
A15: 264 | B15: HAUT-RHIN | C15: 5130 | D15: COLMAR | E15: =VLOOKUP($C15,'RECAP SECT'!$G$6:$EV$253,3,FALSE) -> 75.3 | F15: =VLOOKUP($C15,'RECAP SECT'!$G$6:$FZ$26,158,FALSE) -> 219 | G15: =VLOOKUP($C15,'RECAP SECT'!$G$6:$FZ$26,159,FALSE) -> 135 | H15: =VLOOKUP($C15,'RECAP SECT'!$G$6:$FZ$26,160,FALSE) -> 162% | I15: =VLOOKUP($C15,'RECAP SECT'!$G$6:$FZ$26,161,FALSE) -> 327 | J15: =VLOOKUP($C15,'RECAP SECT'!$G$6:$FZ$26,162,FALSE) -> 467 | K15: =VLOOKUP($C15,'RECAP SECT'!$G$6:$FZ$26,163,FALSE) -> 69% | L15: =VLOOKUP($C15,'RECAP SECT'!$G$6:$FZ$26,164,FALSE) -> 36 | M15: =VLOOKUP($C15,'RECAP SECT'!$G$6:$FZ$26,165,FALSE) -> 59 | N15: =VLOOKUP($C15,'RECAP SECT'!$G$6:$FZ$26,166,FALSE) -> 61% | O15: =VLOOKUP($C15,'RECAP SECT'!$G$6:$FZ$26,167,FALSE) -> -1 | P15: =VLOOKUP($C15,'RECAP SECT'!$G$6:$FZ$26,168,FALSE) -> 4 | Q15: =VLOOKUP($C15,'RECAP SECT'!$G$6:$FZ$26,169,FALSE) -> -21% | R15: =VLOOKUP($C15,'RECAP SECT'!$G$6:$FZ$26,170,FALSE) -> 110 | S15: =VLOOKUP($C15,'RECAP SECT'!$G$6:$FZ$26,171,FALSE) -> 140 | T15: =VLOOKUP($C15,'RECAP SECT'!$G$6:$FZ$26,172,FALSE) -> 78% | V15: 65% | W15: 82% | X15: 90% | Y15: 98%
A16: 264 | B16: HAUT-RHIN | C16: 5169 | D16: MULHOUSE | E16: =VLOOKUP($C16,'RECAP SECT'!$G$6:$EV$253,3,FALSE) -> 75.1 | F16: =VLOOKUP($C16,'RECAP SECT'!$G$6:$FZ$26,158,FALSE) -> 136 | G16: =VLOOKUP($C16,'RECAP SECT'!$G$6:$FZ$26,159,FALSE) -> 129 | H16: =VLOOKUP($C16,'RECAP SECT'!$G$6:$FZ$26,160,FALSE) -> 105% | I16: =VLOOKUP($C16,'RECAP SECT'!$G$6:$FZ$26,161,FALSE) -> 377 | J16: =VLOOKUP($C16,'RECAP SECT'!$G$6:$FZ$26,162,FALSE) -> 467 | K16: =VLOOKUP($C16,'RECAP SECT'!$G$6:$FZ$26,163,FALSE) -> 80% | L16: =VLOOKUP($C16,'RECAP SECT'!$G$6:$FZ$26,164,FALSE) -> 35 | M16: =VLOOKUP($C16,'RECAP SECT'!$G$6:$FZ$26,165,FALSE) -> 59 | N16: =VLOOKUP($C16,'RECAP SECT'!$G$6:$FZ$26,166,FALSE) -> 58% | O16: =VLOOKUP($C16,'RECAP SECT'!$G$6:$FZ$26,167,FALSE) -> -3 | P16: =VLOOKUP($C16,'RECAP SECT'!$G$6:$FZ$26,168,FALSE) -> 4 | Q16: =VLOOKUP($C16,'RECAP SECT'!$G$6:$FZ$26,169,FALSE) -> -74% | R16: =VLOOKUP($C16,'RECAP SECT'!$G$6:$FZ$26,170,FALSE) -> 130 | S16: =VLOOKUP($C16,'RECAP SECT'!$G$6:$FZ$26,171,FALSE) -> 140 | T16: =VLOOKUP($C16,'RECAP SECT'!$G$6:$FZ$26,172,FALSE) -> 92% | V16: 65% | W16: 82% | X16: 90% | Y16: 98%
A17: 30 | B17: MARNE-ARDENNES | C17: 6 | D17: CHALONS EN CHAMPAGNE | E17: =VLOOKUP($C17,'RECAP SECT'!$G$6:$EV$253,3,FALSE) -> 48.8 | F17: =VLOOKUP($C17,'RECAP SECT'!$G$6:$FZ$26,158,FALSE) -> 81 | G17: =VLOOKUP($C17,'RECAP SECT'!$G$6:$FZ$26,159,FALSE) -> 130 | H17: =VLOOKUP($C17,'RECAP SECT'!$G$6:$FZ$26,160,FALSE) -> 62% | I17: =VLOOKUP($C17,'RECAP SECT'!$G$6:$FZ$26,161,FALSE) -> 402 | J17: =VLOOKUP($C17,'RECAP SECT'!$G$6:$FZ$26,162,FALSE) -> 467 | K17: =VLOOKUP($C17,'RECAP SECT'!$G$6:$FZ$26,163,FALSE) -> 86% | L17: =VLOOKUP($C17,'RECAP SECT'!$G$6:$FZ$26,164,FALSE) -> 47 | M17: =VLOOKUP($C17,'RECAP SECT'!$G$6:$FZ$26,165,FALSE) -> 59 | N17: =VLOOKUP($C17,'RECAP SECT'!$G$6:$FZ$26,166,FALSE) -> 79% | O17: =VLOOKUP($C17,'RECAP SECT'!$G$6:$FZ$26,167,FALSE) -> 1 | P17: =VLOOKUP($C17,'RECAP SECT'!$G$6:$FZ$26,168,FALSE) -> 4 | Q17: =VLOOKUP($C17,'RECAP SECT'!$G$6:$FZ$26,169,FALSE) -> 26% | R17: =VLOOKUP($C17,'RECAP SECT'!$G$6:$FZ$26,170,FALSE) -> 132 | S17: =VLOOKUP($C17,'RECAP SECT'!$G$6:$FZ$26,171,FALSE) -> 137 | T17: =VLOOKUP($C17,'RECAP SECT'!$G$6:$FZ$26,172,FALSE) -> 95% | V17: 65% | W17: 82% | X17: 90% | Y17: 98%
A18: 30 | B18: MARNE-ARDENNES | C18: 2 | D18: CHARLEVILLE MEZIERES | E18: =VLOOKUP($C18,'RECAP SECT'!$G$6:$EV$253,3,FALSE) -> 62.2 | F18: =VLOOKUP($C18,'RECAP SECT'!$G$6:$FZ$26,158,FALSE) -> -16 | G18: =VLOOKUP($C18,'RECAP SECT'!$G$6:$FZ$26,159,FALSE) -> 122 | H18: =VLOOKUP($C18,'RECAP SECT'!$G$6:$FZ$26,160,FALSE) -> -13% | I18: =VLOOKUP($C18,'RECAP SECT'!$G$6:$FZ$26,161,FALSE) -> 399 | J18: =VLOOKUP($C18,'RECAP SECT'!$G$6:$FZ$26,162,FALSE) -> 467 | K18: =VLOOKUP($C18,'RECAP SECT'!$G$6:$FZ$26,163,FALSE) -> 85% | L18: =VLOOKUP($C18,'RECAP SECT'!$G$6:$FZ$26,164,FALSE) -> 50 | M18: =VLOOKUP($C18,'RECAP SECT'!$G$6:$FZ$26,165,FALSE) -> 59 | N18: =VLOOKUP($C18,'RECAP SECT'!$G$6:$FZ$26,166,FALSE) -> 83% | O18: =VLOOKUP($C18,'RECAP SECT'!$G$6:$FZ$26,167,FALSE) -> 5 | P18: =VLOOKUP($C18,'RECAP SECT'!$G$6:$FZ$26,168,FALSE) -> 4 | Q18: =VLOOKUP($C18,'RECAP SECT'!$G$6:$FZ$26,169,FALSE) -> 123% | R18: =VLOOKUP($C18,'RECAP SECT'!$G$6:$FZ$26,170,FALSE) -> 136 | S18: =VLOOKUP($C18,'RECAP SECT'!$G$6:$FZ$26,171,FALSE) -> 132 | T18: =VLOOKUP($C18,'RECAP SECT'!$G$6:$FZ$26,172,FALSE) -> 103% | V18: 65% | W18: 82% | X18: 90% | Y18: 98%
A19: 30 | B19: MARNE-ARDENNES | C19: 11 | D19: REIMS | E19: =VLOOKUP($C19,'RECAP SECT'!$G$6:$EV$253,3,FALSE) -> 89.8 | F19: =VLOOKUP($C19,'RECAP SECT'!$G$6:$FZ$26,158,FALSE) -> 176 | G19: =VLOOKUP($C19,'RECAP SECT'!$G$6:$FZ$26,159,FALSE) -> 143 | H19: =VLOOKUP($C19,'RECAP SECT'!$G$6:$FZ$26,160,FALSE) -> 122% | I19: =VLOOKUP($C19,'RECAP SECT'!$G$6:$FZ$26,161,FALSE) -> 474 | J19: =VLOOKUP($C19,'RECAP SECT'!$G$6:$FZ$26,162,FALSE) -> 467 | K19: =VLOOKUP($C19,'RECAP SECT'!$G$6:$FZ$26,163,FALSE) -> 101% | L19: =VLOOKUP($C19,'RECAP SECT'!$G$6:$FZ$26,164,FALSE) -> 44 | M19: =VLOOKUP($C19,'RECAP SECT'!$G$6:$FZ$26,165,FALSE) -> 59 | N19: =VLOOKUP($C19,'RECAP SECT'!$G$6:$FZ$26,166,FALSE) -> 74% | O19: =VLOOKUP($C19,'RECAP SECT'!$G$6:$FZ$26,167,FALSE) -> 2 | P19: =VLOOKUP($C19,'RECAP SECT'!$G$6:$FZ$26,168,FALSE) -> 4 | Q19: =VLOOKUP($C19,'RECAP SECT'!$G$6:$FZ$26,169,FALSE) -> 59% | R19: =VLOOKUP($C19,'RECAP SECT'!$G$6:$FZ$26,170,FALSE) -> 152 | S19: =VLOOKUP($C19,'RECAP SECT'!$G$6:$FZ$26,171,FALSE) -> 148 | T19: =VLOOKUP($C19,'RECAP SECT'!$G$6:$FZ$26,172,FALSE) -> 102% | V19: 65% | W19: 82% | X19: 90% | Y19: 98%
A20: 110 | B20: MEURTHE ET MOSELLE MEUSE | C20: 26 | D20: NANCY | E20: =VLOOKUP($C20,'RECAP SECT'!$G$6:$EV$253,3,FALSE) -> 78.0 | F20: =VLOOKUP($C20,'RECAP SECT'!$G$6:$FZ$26,158,FALSE) -> 98 | G20: =VLOOKUP($C20,'RECAP SECT'!$G$6:$FZ$26,159,FALSE) -> 118 | H20: =VLOOKUP($C20,'RECAP SECT'!$G$6:$FZ$26,160,FALSE) -> 83% | I20: =VLOOKUP($C20,'RECAP SECT'!$G$6:$FZ$26,161,FALSE) -> 385 | J20: =VLOOKUP($C20,'RECAP SECT'!$G$6:$FZ$26,162,FALSE) -> 467 | K20: =VLOOKUP($C20,'RECAP SECT'!$G$6:$FZ$26,163,FALSE) -> 82% | L20: =VLOOKUP($C20,'RECAP SECT'!$G$6:$FZ$26,164,FALSE) -> 41 | M20: =VLOOKUP($C20,'RECAP SECT'!$G$6:$FZ$26,165,FALSE) -> 59 | N20: =VLOOKUP($C20,'RECAP SECT'!$G$6:$FZ$26,166,FALSE) -> 69% | O20: =VLOOKUP($C20,'RECAP SECT'!$G$6:$FZ$26,167,FALSE) -> 1 | P20: =VLOOKUP($C20,'RECAP SECT'!$G$6:$FZ$26,168,FALSE) -> 4 | Q20: =VLOOKUP($C20,'RECAP SECT'!$G$6:$FZ$26,169,FALSE) -> 31% | R20: =VLOOKUP($C20,'RECAP SECT'!$G$6:$FZ$26,170,FALSE) -> 125 | S20: =VLOOKUP($C20,'RECAP SECT'!$G$6:$FZ$26,171,FALSE) -> 131 | T20: =VLOOKUP($C20,'RECAP SECT'!$G$6:$FZ$26,172,FALSE) -> 95% | V20: 65% | W20: 82% | X20: 90% | Y20: 98%
A21: 110 | B21: MEURTHE ET MOSELLE MEUSE | C21: 27 | D21: PONT A MOUSSON | E21: =VLOOKUP($C21,'RECAP SECT'!$G$6:$EV$253,3,FALSE) -> 87.4 | F21: =VLOOKUP($C21,'RECAP SECT'!$G$6:$FZ$26,158,FALSE) -> 172 | G21: =VLOOKUP($C21,'RECAP SECT'!$G$6:$FZ$26,159,FALSE) -> 118 | H21: =VLOOKUP($C21,'RECAP SECT'!$G$6:$FZ$26,160,FALSE) -> 145% | I21: =VLOOKUP($C21,'RECAP SECT'!$G$6:$FZ$26,161,FALSE) -> 379 | J21: =VLOOKUP($C21,'RECAP SECT'!$G$6:$FZ$26,162,FALSE) -> 467 | K21: =VLOOKUP($C21,'RECAP SECT'!$G$6:$FZ$26,163,FALSE) -> 81% | L21: =VLOOKUP($C21,'RECAP SECT'!$G$6:$FZ$26,164,FALSE) -> 43 | M21: =VLOOKUP($C21,'RECAP SECT'!$G$6:$FZ$26,165,FALSE) -> 59 | N21: =VLOOKUP($C21,'RECAP SECT'!$G$6:$FZ$26,166,FALSE) -> 72% | O21: =VLOOKUP($C21,'RECAP SECT'!$G$6:$FZ$26,167,FALSE) -> 1 | P21: =VLOOKUP($C21,'RECAP SECT'!$G$6:$FZ$26,168,FALSE) -> 4 | Q21: =VLOOKUP($C21,'RECAP SECT'!$G$6:$FZ$26,169,FALSE) -> 35% | R21: =VLOOKUP($C21,'RECAP SECT'!$G$6:$FZ$26,170,FALSE) -> 132 | S21: =VLOOKUP($C21,'RECAP SECT'!$G$6:$FZ$26,171,FALSE) -> 132 | T21: =VLOOKUP($C21,'RECAP SECT'!$G$6:$FZ$26,172,FALSE) -> 99% | V21: 65% | W21: 82% | X21: 90% | Y21: 98%
A22: 110 | B22: MEURTHE ET MOSELLE MEUSE | C22: 31 | D22: VERDUN | E22: =VLOOKUP($C22,'RECAP SECT'!$G$6:$EV$253,3,FALSE) -> 63.4 | F22: =VLOOKUP($C22,'RECAP SECT'!$G$6:$FZ$26,158,FALSE) -> 146 | G22: =VLOOKUP($C22,'RECAP SECT'!$G$6:$FZ$26,159,FALSE) -> 116 | H22: =VLOOKUP($C22,'RECAP SECT'!$G$6:$FZ$26,160,FALSE) -> 126% | I22: =VLOOKUP($C22,'RECAP SECT'!$G$6:$FZ$26,161,FALSE) -> 452 | J22: =VLOOKUP($C22,'RECAP SECT'!$G$6:$FZ$26,162,FALSE) -> 467 | K22: =VLOOKUP($C22,'RECAP SECT'!$G$6:$FZ$26,163,FALSE) -> 96% | L22: =VLOOKUP($C22,'RECAP SECT'!$G$6:$FZ$26,164,FALSE) -> 39 | M22: =VLOOKUP($C22,'RECAP SECT'!$G$6:$FZ$26,165,FALSE) -> 59 | N22: =VLOOKUP($C22,'RECAP SECT'!$G$6:$FZ$26,166,FALSE) -> 66% | O22: =VLOOKUP($C22,'RECAP SECT'!$G$6:$FZ$26,167,FALSE) -> 1 | P22: =VLOOKUP($C22,'RECAP SECT'!$G$6:$FZ$26,168,FALSE) -> 4 | Q22: =VLOOKUP($C22,'RECAP SECT'!$G$6:$FZ$26,169,FALSE) -> 31% | R22: =VLOOKUP($C22,'RECAP SECT'!$G$6:$FZ$26,170,FALSE) -> 120 | S22: =VLOOKUP($C22,'RECAP SECT'!$G$6:$FZ$26,171,FALSE) -> 130 | T22: =VLOOKUP($C22,'RECAP SECT'!$G$6:$FZ$26,172,FALSE) -> 91% | V22: 65% | W22: 82% | X22: 90% | Y22: 98%
A23: 160 | B23: MOSELLE | C23: 45 | D23: METZ | E23: =VLOOKUP($C23,'RECAP SECT'!$G$6:$EV$253,3,FALSE) -> 101.5 | F23: =VLOOKUP($C23,'RECAP SECT'!$G$6:$FZ$26,158,FALSE) -> 327 | G23: =VLOOKUP($C23,'RECAP SECT'!$G$6:$FZ$26,159,FALSE) -> 125 | H23: =VLOOKUP($C23,'RECAP SECT'!$G$6:$FZ$26,160,FALSE) -> 262% | I23: =VLOOKUP($C23,'RECAP SECT'!$G$6:$FZ$26,161,FALSE) -> 385 | J23: =VLOOKUP($C23,'RECAP SECT'!$G$6:$FZ$26,162,FALSE) -> 467 | K23: =VLOOKUP($C23,'RECAP SECT'!$G$6:$FZ$26,163,FALSE) -> 82% | L23: =VLOOKUP($C23,'RECAP SECT'!$G$6:$FZ$26,164,FALSE) -> 37 | M23: =VLOOKUP($C23,'RECAP SECT'!$G$6:$FZ$26,165,FALSE) -> 59 | N23: =VLOOKUP($C23,'RECAP SECT'!$G$6:$FZ$26,166,FALSE) -> 62% | O23: =VLOOKUP($C23,'RECAP SECT'!$G$6:$FZ$26,167,FALSE) -> 1 | P23: =VLOOKUP($C23,'RECAP SECT'!$G$6:$FZ$26,168,FALSE) -> 4 | Q23: =VLOOKUP($C23,'RECAP SECT'!$G$6:$FZ$26,169,FALSE) -> 29% | R23: =VLOOKUP($C23,'RECAP SECT'!$G$6:$FZ$26,170,FALSE) -> 126 | S23: =VLOOKUP($C23,'RECAP SECT'!$G$6:$FZ$26,171,FALSE) -> 136 | T23: =VLOOKUP($C23,'RECAP SECT'!$G$6:$FZ$26,172,FALSE) -> 92% | V23: 65% | W23: 82% | X23: 90% | Y23: 98%
A24: 160 | B24: MOSELLE | C24: 42 | D24: MOSELLE EST | E24: =VLOOKUP($C24,'RECAP SECT'!$G$6:$EV$253,3,FALSE) -> 84.0 | F24: =VLOOKUP($C24,'RECAP SECT'!$G$6:$FZ$26,158,FALSE) -> 102 | G24: =VLOOKUP($C24,'RECAP SECT'!$G$6:$FZ$26,159,FALSE) -> 106 | H24: =VLOOKUP($C24,'RECAP SECT'!$G$6:$FZ$26,160,FALSE) -> 95% | I24: =VLOOKUP($C24,'RECAP SECT'!$G$6:$FZ$26,161,FALSE) -> 371 | J24: =VLOOKUP($C24,'RECAP SECT'!$G$6:$FZ$26,162,FALSE) -> 467 | K24: =VLOOKUP($C24,'RECAP SECT'!$G$6:$FZ$26,163,FALSE) -> 79% | L24: =VLOOKUP($C24,'RECAP SECT'!$G$6:$FZ$26,164,FALSE) -> 40 | M24: =VLOOKUP($C24,'RECAP SECT'!$G$6:$FZ$26,165,FALSE) -> 59 | N24: =VLOOKUP($C24,'RECAP SECT'!$G$6:$FZ$26,166,FALSE) -> 68% | O24: =VLOOKUP($C24,'RECAP SECT'!$G$6:$FZ$26,167,FALSE) -> 1 | P24: =VLOOKUP($C24,'RECAP SECT'!$G$6:$FZ$26,168,FALSE) -> 4 | Q24: =VLOOKUP($C24,'RECAP SECT'!$G$6:$FZ$26,169,FALSE) -> 32% | R24: =VLOOKUP($C24,'RECAP SECT'!$G$6:$FZ$26,170,FALSE) -> 118 | S24: =VLOOKUP($C24,'RECAP SECT'!$G$6:$FZ$26,171,FALSE) -> 131 | T24: =VLOOKUP($C24,'RECAP SECT'!$G$6:$FZ$26,172,FALSE) -> 89% | V24: 65% | W24: 82% | X24: 90% | Y24: 98%
A25: 160 | B25: MOSELLE | C25: 44 | D25: MOSELLE NORD | E25: =VLOOKUP($C25,'RECAP SECT'!$G$6:$EV$253,3,FALSE) -> 78.7 | F25: =VLOOKUP($C25,'RECAP SECT'!$G$6:$FZ$26,158,FALSE) -> 123 | G25: =VLOOKUP($C25,'RECAP SECT'!$G$6:$FZ$26,159,FALSE) -> 119 | H25: =VLOOKUP($C25,'RECAP SECT'!$G$6:$FZ$26,160,FALSE) -> 103% | I25: =VLOOKUP($C25,'RECAP SECT'!$G$6:$FZ$26,161,FALSE) -> 414 | J25: =VLOOKUP($C25,'RECAP SECT'!$G$6:$FZ$26,162,FALSE) -> 467 | K25: =VLOOKUP($C25,'RECAP SECT'!$G$6:$FZ$26,163,FALSE) -> 88% | L25: =VLOOKUP($C25,'RECAP SECT'!$G$6:$FZ$26,164,FALSE) -> 41 | M25: =VLOOKUP($C25,'RECAP SECT'!$G$6:$FZ$26,165,FALSE) -> 59 | N25: =VLOOKUP($C25,'RECAP SECT'!$G$6:$FZ$26,166,FALSE) -> 70% | O25: =VLOOKUP($C25,'RECAP SECT'!$G$6:$FZ$26,167,FALSE) -> 1 | P25: =VLOOKUP($C25,'RECAP SECT'!$G$6:$FZ$26,168,FALSE) -> 4 | Q25: =VLOOKUP($C25,'RECAP SECT'!$G$6:$FZ$26,169,FALSE) -> 34% | R25: =VLOOKUP($C25,'RECAP SECT'!$G$6:$FZ$26,170,FALSE) -> 142 | S25: =VLOOKUP($C25,'RECAP SECT'!$G$6:$FZ$26,171,FALSE) -> 134 | T25: =VLOOKUP($C25,'RECAP SECT'!$G$6:$FZ$26,172,FALSE) -> 105% | V25: 65% | W25: 82% | X25: 90% | Y25: 98%
A26: 80 | B26: VOSGES | C26: 57 | D26: EPINAL | E26: =VLOOKUP($C26,'RECAP SECT'!$G$6:$EV$253,3,FALSE) -> 66.9 | F26: =VLOOKUP($C26,'RECAP SECT'!$G$6:$FZ$26,158,FALSE) -> 174 | G26: =VLOOKUP($C26,'RECAP SECT'!$G$6:$FZ$26,159,FALSE) -> 108 | H26: =VLOOKUP($C26,'RECAP SECT'!$G$6:$FZ$26,160,FALSE) -> 160% | I26: =VLOOKUP($C26,'RECAP SECT'!$G$6:$FZ$26,161,FALSE) -> 354 | J26: =VLOOKUP($C26,'RECAP SECT'!$G$6:$FZ$26,162,FALSE) -> 467 | K26: =VLOOKUP($C26,'RECAP SECT'!$G$6:$FZ$26,163,FALSE) -> 75% | L26: =VLOOKUP($C26,'RECAP SECT'!$G$6:$FZ$26,164,FALSE) -> 42 | M26: =VLOOKUP($C26,'RECAP SECT'!$G$6:$FZ$26,165,FALSE) -> 59 | N26: =VLOOKUP($C26,'RECAP SECT'!$G$6:$FZ$26,166,FALSE) -> 70% | O26: =VLOOKUP($C26,'RECAP SECT'!$G$6:$FZ$26,167,FALSE) -> 2 | P26: =VLOOKUP($C26,'RECAP SECT'!$G$6:$FZ$26,168,FALSE) -> 4 | Q26: =VLOOKUP($C26,'RECAP SECT'!$G$6:$FZ$26,169,FALSE) -> 49% | R26: =VLOOKUP($C26,'RECAP SECT'!$G$6:$FZ$26,170,FALSE) -> 112 | S26: =VLOOKUP($C26,'RECAP SECT'!$G$6:$FZ$26,171,FALSE) -> 126 | T26: =VLOOKUP($C26,'RECAP SECT'!$G$6:$FZ$26,172,FALSE) -> 88% | V26: 65% | W26: 82% | X26: 90% | Y26: 98%
A27: 80 | B27: VOSGES | C27: 55 | D27: SAINT DIE | E27: =VLOOKUP($C27,'RECAP SECT'!$G$6:$EV$253,3,FALSE) -> 56.7 | F27: =VLOOKUP($C27,'RECAP SECT'!$G$6:$FZ$26,158,FALSE) -> 212 | G27: =VLOOKUP($C27,'RECAP SECT'!$G$6:$FZ$26,159,FALSE) -> 113 | H27: =VLOOKUP($C27,'RECAP SECT'!$G$6:$FZ$26,160,FALSE) -> 188% | I27: =VLOOKUP($C27,'RECAP SECT'!$G$6:$FZ$26,161,FALSE) -> 407 | J27: =VLOOKUP($C27,'RECAP SECT'!$G$6:$FZ$26,162,FALSE) -> 467 | K27: =VLOOKUP($C27,'RECAP SECT'!$G$6:$FZ$26,163,FALSE) -> 87% | L27: =VLOOKUP($C27,'RECAP SECT'!$G$6:$FZ$26,164,FALSE) -> 41 | M27: =VLOOKUP($C27,'RECAP SECT'!$G$6:$FZ$26,165,FALSE) -> 59 | N27: =VLOOKUP($C27,'RECAP SECT'!$G$6:$FZ$26,166,FALSE) -> 69% | O27: =VLOOKUP($C27,'RECAP SECT'!$G$6:$FZ$26,167,FALSE) -> 1 | P27: =VLOOKUP($C27,'RECAP SECT'!$G$6:$FZ$26,168,FALSE) -> 4 | Q27: =VLOOKUP($C27,'RECAP SECT'!$G$6:$FZ$26,169,FALSE) -> 21% | R27: =VLOOKUP($C27,'RECAP SECT'!$G$6:$FZ$26,170,FALSE) -> 124 | S27: =VLOOKUP($C27,'RECAP SECT'!$G$6:$FZ$26,171,FALSE) -> 127 | T27: =VLOOKUP($C27,'RECAP SECT'!$G$6:$FZ$26,172,FALSE) -> 97% | V27: 65% | W27: 82% | X27: 90% | Y27: 98%
A28: Total CEGEE | C28: Directions Régionales | E28: =SUM(E10:E27) -> 1346 | G28: ='RECAP SECT'!GG24 -> 3 | H28: ='RECAP SECT'!GH24 -> 0 | J28: ='RECAP SECT'!GL24 -> 0 | K28: ='RECAP SECT'!GM24 -> 8 | M28: ='RECAP SECT'!GQ24 -> 5 | N28: ='RECAP SECT'!GR24 -> 12 | P28: ='RECAP SECT'!GV24 -> 15 | Q28: ='RECAP SECT'!GW24 -> 1 | S28: ='RECAP SECT'!HA24 -> 0 | T28: ='RECAP SECT'!HB24 -> 1
G29: ='RECAP SECT'!GI24 -> 1 | H29: ='RECAP SECT'!GJ24 -> 14 | J29: ='RECAP SECT'!GN24 -> 8 | K29: ='RECAP SECT'!GO24 -> 2 | M29: ='RECAP SECT'!GS24 -> 1 | N29: ='RECAP SECT'!GT24 -> 0 | P29: ='RECAP SECT'!GX24 -> 0 | Q29: ='RECAP SECT'!GY24 -> 2 | S29: ='RECAP SECT'!HC24 -> 12 | T29: ='RECAP SECT'!HD24 -> 5
D32: Taux d'atteinte objectif annuel > 110 % ou 120 % en saisonnalisé en fonction des critères (collecte 110 %, autres 120 %)
D34: Taux d'atteinte objectif annuel entre 100 % et 110 % ou 120 % en saisonnalisé en fonction des critères (collecte 110 %, autres 120 %)
D36: Taux d'atteinte objectif annuel entre 80 % et 100 % en saisonnalisé
D38: Taux d'atteinte objectif annuel < 80 % en saisonnalisé

Sheet SE_TOTAL
A1: Accueil | F1: BAROMETRE BDD - TERRITOIRES
F2: TOTAL GENERAL
F3: =ACCUEIL!H7 -> 2019-09-30
F7: TOTAL GENERAL | I7: Total Conquête | L7: Total Equipement Bancarisation | O7: Total Epargne | R7: Total Crédits | U7: Total IARD Prévoyance | X7: Total Risques | AA7: Total Satisfaction Clients
G8: coef | H8: 100% | J8: coef | K8: ='RECAP DIRCOM'!$Y$4 -> 15% | M8: coef | N8: ='RECAP DIRCOM'!$AW$4 -> 15% | P8: coef | Q8: ='RECAP DIRCOM'!$BU$4 -> 15% | S8: coef | T8: ='RECAP DIRCOM'!$CV$4 -> 15% | V8: coef | W8: ='RECAP DIRCOM'!$DN$4 -> 20% | Y8: coef | Z8: ='RECAP DIRCOM'!$EF$4 -> 10% | AB8: coef | AC8: ='RECAP DIRCOM'!$EU$4 -> 10%
A9: eds | B9: Direction | C9: eds | D9: Territoire | E9: ETP perf | F9: Moyenne ecart au 1er | G9: % Ecart au 1er | H9: Rang CEGEE | I9: Moyenne ecart au 1er | J9: % Ecart au 1er | K9: Rang CEGEE | L9: Moyenne ecart au 1er | M9: % Ecart au 1er | N9: Rang CEGEE | O9: Moyenne ecart au 1er | P9: % Ecart au 1er | Q9: Rang CEGEE | R9: Moyenne ecart au 1er | S9: % Ecart au 1er | T9: Rang CEGEE | U9: Moyenne ecart au 1er | V9: % Ecart au 1er | W9: Rang CEGEE | X9: Moyenne ecart au 1er | Y9: % Ecart au 1er | Z9: Rang CEGEE | AA9: Moyenne ecart au 1er | AB9: % Ecart au 1er | AC9: Rang CEGEE
A10: 50 | B10: AUBE HAUTE MARNE | C10: 21 | D10: CHAUMONT | E10: 46.0 | F10: 13% | G10: 0% | H10: 1 | I10: 36% | J10: 18% | K10: 2 | L10: 36% | M10: 5% | N10: 3 | O10: 53% | P10: 47% | Q10: 12 | R10: 17% | S10: 10% | T10: 7 | U10: 8% | V10: 6% | W10: 2 | X10: 1% | Y10: 0% | Z10: 1 | AA10: 1% | AB10: 1% | AC10: 2
A11: 30 | B11: MARNE-ARDENNES | C11: 11 | D11: REIMS | E11: 89.8 | F11: 17% | G11: 3% | H11: 2 | I11: 54% | J11: 37% | K11: 5 | L11: 31% | M11: 0% | N11: 1 | O11: 57% | P11: 51% | Q11: 13 | R11: 10% | S11: 3% | T11: 2 | U11: 17% | V11: 14% | W11: 5 | X11: 4% | Y11: 3% | Z11: 11 | AA11: 0% | AB11: 0% | AC11: 1
A12: 30 | B12: MARNE-ARDENNES | C12: 6 | D12: CHALONS EN CHAMPAGNE | E12: 48.8 | F12: 19% | G12: 6% | H12: 3 | I12: 79% | J12: 61% | K12: 15 | L12: 44% | M12: 14% | N12: 13 | O12: 26% | P12: 21% | Q12: 2 | R12: 14% | S12: 6% | T12: 4 | U12: 12% | V12: 10% | W12: 3 | X12: 3% | Y12: 2% | Z12: 7 | AA12: 18% | AB12: 18% | AC12: 5
A13: 30 | B13: MARNE-ARDENNES | C13: 2 | D13: CHARLEVILLE MEZIERES | E13: 62.2 | F13: 19% | G13: 6% | H13: 4 | I13: 18% | J13: 0% | K13: 1 | L13: 40% | M13: 9% | N13: 7 | O13: 107% | P13: 101% | Q13: 18 | R13: 7% | S13: 0% | T13: 1 | U13: 2% | V13: 0% | W13: 1 | X13: 2% | Y13: 1% | Z13: 5 | AA13: 29% | AB13: 29% | AC13: 9
A14: 160 | B14: MOSELLE | C14: 45 | D14: METZ | E14: 101.5 | F14: 20% | G14: 6% | H14: 5 | I14: 60% | J14: 43% | K14: 7 | L14: 43% | M14: 12% | N14: 11 | O14: 6% | P14: 0% | Q14: 1 | R14: 21% | S14: 14% | T14: 13 | U14: 35% | V14: 33% | W14: 12 | X14: 3% | Y14: 2% | Z14: 8 | AA14: 28% | AB14: 28% | AC14: 8
A15: 80 | B15: VOSGES | C15: 55 | D15: SAINT DIE | E15: 56.7 | F15: 20% | G15: 7% | H15: 6 | I15: 52% | J15: 34% | K15: 3 | L15: 33% | M15: 2% | N15: 2 | O15: 50% | P15: 44% | Q15: 10 | R15: 14% | S15: 7% | T15: 5 | U15: 27% | V15: 25% | W15: 10 | X15: 1% | Y15: 0% | Z15: 3 | AA15: 19% | AB15: 19% | AC15: 6
A16: 160 | B16: MOSELLE | C16: 42 | D16: MOSELLE EST | E16: 84.0 | F16: 24% | G16: 10% | H16: 7 | I16: 56% | J16: 38% | K16: 6 | L16: 37% | M16: 6% | N16: 4 | O16: 50% | P16: 44% | Q16: 9 | R16: 25% | S16: 17% | T16: 16 | U16: 36% | V16: 34% | W16: 13 | X16: 1% | Y16: 0% | Z16: 2 | AA16: 10% | AB16: 10% | AC16: 3
A17: 110 | B17: MEURTHE ET MOSELLE MEUSE | C17: 31 | D17: VERDUN | E17: 63.4 | F17: 25% | G17: 12% | H17: 8 | I17: 52% | J17: 35% | K17: 4 | L17: 62% | M17: 32% | N17: 18 | O17: 39% | P17: 33% | Q17: 7 | R17: 22% | S17: 14% | T17: 14 | U17: 31% | V17: 29% | W17: 11 | X17: 4% | Y17: 4% | Z17: 13 | AA17: 18% | AB17: 18% | AC17: 4
A18: 262 | B18: BAS-RHIN | C18: 5060 | D18: HAGUENAU | E18: 87.6 | F18: 25% | G18: 12% | H18: 9 | I18: 75% | J18: 57% | K18: 13 | L18: 38% | M18: 7% | N18: 6 | O18: 30% | P18: 25% | Q18: 5 | R18: 27% | S18: 19% | T18: 17 | U18: 26% | V18: 24% | W18: 8 | X18: 7% | Y18: 6% | Z18: 16 | AA18: 35% | AB18: 35% | AC18: 10
A19: 80 | B19: VOSGES | C19: 57 | D19: EPINAL | E19: 66.9 | F19: 26% | G19: 13% | H19: 10 | I19: 76% | J19: 58% | K19: 14 | L19: 41% | M19: 11% | N19: 9 | O19: 36% | P19: 30% | Q19: 6 | R19: 21% | S19: 13% | T19: 11 | U19: 27% | V19: 25% | W19: 9 | X19: 4% | Y19: 3% | Z19: 12 | AA19: 41% | AB19: 41% | AC19: 12
A20: 110 | B20: MEURTHE ET MOSELLE MEUSE | C20: 27 | D20: PONT A MOUSSON | E20: 87.4 | F20: 27% | G20: 14% | H20: 11 | I20: 66% | J20: 48% | K20: 9 | L20: 53% | M20: 23% | N20: 16 | O20: 58% | P20: 52% | Q20: 14 | R20: 20% | S20: 13% | T20: 9 | U20: 14% | V20: 12% | W20: 4 | X20: 7% | Y20: 6% | Z20: 15 | AA20: 36% | AB20: 36% | AC20: 11
A21: 110 | B21: MEURTHE ET MOSELLE MEUSE | C21: 26 | D21: NANCY | E21: 78.0 | F21: 28% | G21: 15% | H21: 12 | I21: 71% | J21: 53% | K21: 11 | L21: 46% | M21: 16% | N21: 15 | O21: 52% | P21: 47% | Q21: 11 | R21: 16% | S21: 9% | T21: 6 | U21: 25% | V21: 22% | W21: 7 | X21: 8% | Y21: 7% | Z21: 18 | AA21: 46% | AB21: 46% | AC21: 13
A22: 160 | B22: MOSELLE | C22: 44 | D22: MOSELLE NORD | E22: 78.7 | F22: 31% | G22: 18% | H22: 13 | I22: 61% | J22: 43% | K22: 8 | L22: 41% | M22: 10% | N22: 8 | O22: 81% | P22: 75% | Q22: 17 | R22: 25% | S22: 17% | T22: 15 | U22: 21% | V22: 19% | W22: 6 | X22: 1% | Y22: 0% | Z22: 4 | AA22: 55% | AB22: 55% | AC22: 14
A23: 50 | B23: AUBE HAUTE MARNE | C23: 14 | D23: TROYES | E23: 77.6 | F23: 33% | G23: 19% | H23: 14 | I23: 66% | J23: 49% | K23: 10 | L23: 45% | M23: 15% | N23: 14 | O23: 77% | P23: 71% | Q23: 16 | R23: 17% | S23: 10% | T23: 8 | U23: 43% | V23: 41% | W23: 15 | X23: 2% | Y23: 1% | Z23: 6 | AA23: 27% | AB23: 27% | AC23: 7
A24: 264 | B24: HAUT-RHIN | C24: 5130 | D24: COLMAR | E24: 75.3 | F24: 34% | G24: 21% | H24: 15 | I24: 87% | J24: 69% | K24: 17 | L24: 41% | M24: 11% | N24: 10 | O24: 28% | P24: 23% | Q24: 4 | R24: 30% | S24: 23% | T24: 18 | U24: 47% | V24: 45% | W24: 16 | X24: 3% | Y24: 3% | Z24: 9 | AA24: 61% | AB24: 61% | AC24: 15
A25: 264 | B25: HAUT-RHIN | C25: 5169 | D25: MULHOUSE | E25: 75.1 | F25: 34% | G25: 21% | H25: 16 | I25: 79% | J25: 62% | K25: 16 | L25: 62% | M25: 31% | N25: 17 | O25: 28% | P25: 22% | Q25: 3 | R25: 13% | S25: 6% | T25: 3 | U25: 48% | V25: 46% | W25: 17 | X25: 3% | Y25: 3% | Z25: 10 | AA25: 67% | AB25: 67% | AC25: 16
A26: 262 | B26: BAS-RHIN | C26: 5101 | D26: SELESTAT | E26: 75.2 | F26: 39% | G26: 26% | H26: 17 | I26: 107% | J26: 89% | K26: 18 | L26: 43% | M26: 13% | N26: 12 | O26: 44% | P26: 38% | Q26: 8 | R26: 21% | S26: 13% | T26: 12 | U26: 42% | V26: 40% | W26: 14 | X26: 6% | Y26: 6% | Z26: 14 | AA26: 79% | AB26: 79% | AC26: 17
A27: 262 | B27: BAS-RHIN | C27: 5006 | D27: STRASBOURG | E27: 92.1 | F27: 40% | G27: 27% | H27: 18 | I27: 74% | J27: 56% | K27: 12 | L27: 37% | M27: 7% | N27: 5 | O27: 66% | P27: 61% | Q27: 15 | R27: 21% | S27: 13% | T27: 10 | U27: 57% | V27: 55% | W27: 18 | X27: 8% | Y27: 7% | Z27: 17 | AA27: 82% | AB27: 82% | AC27: 18
A28: Total CEGEE Directions Régionales | E28: =SUM(E10:E27) -> 1346

Sheet SE_BANCA
A1: Accueil | F1: BAROMETRE BDD - TERRITOIRES
F2: EQUIPEMENT BANCARISATION
F3: =ACCUEIL!H7 -> 2019-09-30
F7: Ventes nettes FORFAITS avec 2 options | I7: Ventes nettes IZICARTES | L7: Ventes nettes Cartes HDG | O7: Ventes nettes CB débit différé | R7: Ventes nettes banca Pro | U7: Total Equipement Bancarisation
G8: coef | H8: ='RECAP DIRCOM'!AH4 -> 3% | J8: coef | K8: ='RECAP DIRCOM'!AK4 -> 3% | M8: coef | N8: ='RECAP DIRCOM'!AN4 -> 3% | P8: coef | Q8: ='RECAP DIRCOM'!AQ4 -> 3% | S8: coef | T8: ='RECAP DIRCOM'!AT4 -> 3% | V8: coef | W8: ='RECAP DIRCOM'!AW4 -> 15%
A9: eds | B9: Direction | C9: eds | D9: Territoire | E9: ETP perf | F9: Nb / ETP | G9: % Ecart au 1er | H9: Rang | I9: Nb / ETP | J9: % Ecart au 1er | K9: Rang | L9: Nb / ETP | M9: % Ecart au 1er | N9: Rang | O9: Nb / ETP | P9: % Ecart au 1er | Q9: Rang | R9: Taux réal objectif | S9: % Ecart au 1er | T9: Rang | U9: Moyenne ecart au 1er | V9: % Ecart au 1er | W9: Rang CEGEE
A10: 50 | B10: AUBE HAUTE MARNE | C10: 21 | D10: CHAUMONT | E10: =VLOOKUP($C10,'RECAP SECT'!$G$6:$EV$253,3,FALSE) -> 46.0 | F10: =VLOOKUP($C10,'RECAP SECT'!$G$6:$EV$253,26,FALSE) -> -17.25 | G10: =VLOOKUP($C10,'RECAP SECT'!$G$6:$EV$253,27,FALSE) -> 49% | H10: =VLOOKUP($C10,'RECAP SECT'!$G$6:$EV$253,28,FALSE) -> 6 | I10: =VLOOKUP($C10,'RECAP SECT'!$G$6:$EV$253,29,FALSE) -> 3.70 | J10: =VLOOKUP($C10,'RECAP SECT'!$G$6:$EV$253,30,FALSE) -> 67% | K10: =VLOOKUP($C10,'RECAP SECT'!$G$6:$EV$253,31,FALSE) -> 17 | L10: =VLOOKUP($C10,'RECAP SECT'!$G$6:$EV$253,32,FALSE) -> 10.62 | M10: =VLOOKUP($C10,'RECAP SECT'!$G$6:$EV$253,33,FALSE) -> 47% | N10: =VLOOKUP($C10,'RECAP SECT'!$G$6:$EV$253,34,FALSE) -> 17 | O10: =VLOOKUP($C10,'RECAP SECT'!$G$6:$EV$253,35,FALSE) -> 9.01 | P10: =VLOOKUP($C10,'RECAP SECT'!$G$6:$EV$253,36,FALSE) -> 6% | Q10: =VLOOKUP($C10,'RECAP SECT'!$G$6:$EV$253,37,FALSE) -> 2 | R10: =VLOOKUP($C10,'RECAP SECT'!$G$6:$EV$253,38,FALSE) -> 100% | S10: =VLOOKUP($C10,'RECAP SECT'!$G$6:$EV$253,39,FALSE) -> 12% | T10: =VLOOKUP($C10,'RECAP SECT'!$G$6:$EV$253,40,FALSE) -> 4 | U10: =VLOOKUP($C10,'RECAP SECT'!$G$6:$EV$253,41,FALSE) -> 36% | V10: =VLOOKUP($C10,'RECAP SECT'!$G$6:$EV$253,42,FALSE) -> 5% | W10: =VLOOKUP($C10,'RECAP SECT'!$G$6:$EV$253,43,FALSE) -> 3
A11: 50 | B11: AUBE HAUTE MARNE | C11: 14 | D11: TROYES | E11: =VLOOKUP($C11,'RECAP SECT'!$G$6:$EV$253,3,FALSE) -> 77.6 | F11: =VLOOKUP($C11,'RECAP SECT'!$G$6:$EV$253,26,FALSE) -> -21.25 | G11: =VLOOKUP($C11,'RECAP SECT'!$G$6:$EV$253,27,FALSE) -> 83% | H11: =VLOOKUP($C11,'RECAP SECT'!$G$6:$EV$253,28,FALSE) -> 15 | I11: =VLOOKUP($C11,'RECAP SECT'!$G$6:$EV$253,29,FALSE) -> 5.85 | J11: =VLOOKUP($C11,'RECAP SECT'!$G$6:$EV$253,30,FALSE) -> 48% | K11: =VLOOKUP($C11,'RECAP SECT'!$G$6:$EV$253,31,FALSE) -> 10 | L11: =VLOOKUP($C11,'RECAP SECT'!$G$6:$EV$253,32,FALSE) -> 14.18 | M11: =VLOOKUP($C11,'RECAP SECT'!$G$6:$EV$253,33,FALSE) -> 29% | N11: =VLOOKUP($C11,'RECAP SECT'!$G$6:$EV$253,34,FALSE) -> 7 | O11: =VLOOKUP($C11,'RECAP SECT'!$G$6:$EV$253,35,FALSE) -> 6.95 | P11: =VLOOKUP($C11,'RECAP SECT'!$G$6:$EV$253,36,FALSE) -> 28% | Q11: =VLOOKUP($C11,'RECAP SECT'!$G$6:$EV$253,37,FALSE) -> 6 | R11: =VLOOKUP($C11,'RECAP SECT'!$G$6:$EV$253,38,FALSE) -> 69% | S11: =VLOOKUP($C11,'RECAP SECT'!$G$6:$EV$253,39,FALSE) -> 39% | T11: =VLOOKUP($C11,'RECAP SECT'!$G$6:$EV$253,40,FALSE) -> 9 | U11: =VLOOKUP($C11,'RECAP SECT'!$G$6:$EV$253,41,FALSE) -> 45% | V11: =VLOOKUP($C11,'RECAP SECT'!$G$6:$EV$253,42,FALSE) -> 15% | W11: =VLOOKUP($C11,'RECAP SECT'!$G$6:$EV$253,43,FALSE) -> 14
A12: 262 | B12: BAS-RHIN | C12: 5060 | D12: HAGUENAU | E12: =VLOOKUP($C12,'RECAP SECT'!$G$6:$EV$253,3,FALSE) -> 87.6 | F12: =VLOOKUP($C12,'RECAP SECT'!$G$6:$EV$253,26,FALSE) -> -13.21 | G12: =VLOOKUP($C12,'RECAP SECT'!$G$6:$EV$253,27,FALSE) -> 14% | H12: =VLOOKUP($C12,'RECAP SECT'!$G$6:$EV$253,28,FALSE) -> 3 | I12: =VLOOKUP($C12,'RECAP SECT'!$G$6:$EV$253,29,FALSE) -> 5.72 | J12: =VLOOKUP($C12,'RECAP SECT'!$G$6:$EV$253,30,FALSE) -> 50% | K12: =VLOOKUP($C12,'RECAP SECT'!$G$6:$EV$253,31,FALSE) -> 11 | L12: =VLOOKUP($C12,'RECAP SECT'!$G$6:$EV$253,32,FALSE) -> 14.85 | M12: =VLOOKUP($C12,'RECAP SECT'!$G$6:$EV$253,33,FALSE) -> 26% | N12: =VLOOKUP($C12,'RECAP SECT'!$G$6:$EV$253,34,FALSE) -> 5 | O12: =VLOOKUP($C12,'RECAP SECT'!$G$6:$EV$253,35,FALSE) -> 5.58 | P12: =VLOOKUP($C12,'RECAP SECT'!$G$6:$EV$253,36,FALSE) -> 42% | Q12: =VLOOKUP($C12,'RECAP SECT'!$G$6:$EV$253,37,FALSE) -> 11 | R12: =VLOOKUP($C12,'RECAP SECT'!$G$6:$EV$253,38,FALSE) -> 47% | S12: =VLOOKUP($C12,'RECAP SECT'!$G$6:$EV$253,39,FALSE) -> 58% | T12: =VLOOKUP($C12,'RECAP SECT'!$G$6:$EV$253,40,FALSE) -> 10 | U12: =VLOOKUP($C12,'RECAP SECT'!$G$6:$EV$253,41,FALSE) -> 38% | V12: =VLOOKUP($C12,'RECAP SECT'!$G$6:$EV$253,42,FALSE) -> 7% | W12: =VLOOKUP($C12,'RECAP SECT'!$G$6:$EV$253,43,FALSE) -> 6
A13: 262 | B13: BAS-RHIN | C13: 5101 | D13: SELESTAT | E13: =VLOOKUP($C13,'RECAP SECT'!$G$6:$EV$253,3,FALSE) -> 75.2 | F13: =VLOOKUP($C13,'RECAP SECT'!$G$6:$EV$253,26,FALSE) -> -14.11 | G13: =VLOOKUP($C13,'RECAP SECT'!$G$6:$EV$253,27,FALSE) -> 21% | H13: =VLOOKUP($C13,'RECAP SECT'!$G$6:$EV$253,28,FALSE) -> 4 | I13: =VLOOKUP($C13,'RECAP SECT'!$G$6:$EV$253,29,FALSE) -> 2.21 | J13: =VLOOKUP($C13,'RECAP SECT'!$G$6:$EV$253,30,FALSE) -> 81% | K13: =VLOOKUP($C13,'RECAP SECT'!$G$6:$EV$253,31,FALSE) -> 18 | L13: =VLOOKUP($C13,'RECAP SECT'!$G$6:$EV$253,32,FALSE) -> 15.01 | M13: =VLOOKUP($C13,'RECAP SECT'!$G$6:$EV$253,33,FALSE) -> 25% | N13: =VLOOKUP($C13,'RECAP SECT'!$G$6:$EV$253,34,FALSE) -> 4 | O13: =VLOOKUP($C13,'RECAP SECT'!$G$6:$EV$253,35,FALSE) -> 7.39 | P13: =VLOOKUP($C13,'RECAP SECT'!$G$6:$EV$253,36,FALSE) -> 23% | Q13: =VLOOKUP($C13,'RECAP SECT'!$G$6:$EV$253,37,FALSE) -> 5 | R13: =VLOOKUP($C13,'RECAP SECT'!$G$6:$EV$253,38,FALSE) -> 37% | S13: =VLOOKUP($C13,'RECAP SECT'!$G$6:$EV$253,39,FALSE) -> 67% | T13: =VLOOKUP($C13,'RECAP SECT'!$G$6:$EV$253,40,FALSE) -> 13 | U13: =VLOOKUP($C13,'RECAP SECT'!$G$6:$EV$253,41,FALSE) -> 43% | V13: =VLOOKUP($C13,'RECAP SECT'!$G$6:$EV$253,42,FALSE) -> 13% | W13: =VLOOKUP($C13,'RECAP SECT'!$G$6:$EV$253,43,FALSE) -> 12
A14: 262 | B14: BAS-RHIN | C14: 5006 | D14: STRASBOURG | E14: =VLOOKUP($C14,'RECAP SECT'!$G$6:$EV$253,3,FALSE) -> 92.1 | F14: =VLOOKUP($C14,'RECAP SECT'!$G$6:$EV$253,26,FALSE) -> -12.77 | G14: =VLOOKUP($C14,'RECAP SECT'!$G$6:$EV$253,27,FALSE) -> 10% | H14: =VLOOKUP($C14,'RECAP SECT'!$G$6:$EV$253,28,FALSE) -> 2 | I14: =VLOOKUP($C14,'RECAP SECT'!$G$6:$EV$253,29,FALSE) -> 4.56 | J14: =VLOOKUP($C14,'RECAP SECT'!$G$6:$EV$253,30,FALSE) -> 60% | K14: =VLOOKUP($C14,'RECAP SECT'!$G$6:$EV$253,31,FALSE) -> 15 | L14: =VLOOKUP($C14,'RECAP SECT'!$G$6:$EV$253,32,FALSE) -> 11.82 | M14: =VLOOKUP($C14,'RECAP SECT'!$G$6:$EV$253,33,FALSE) -> 41% | N14: =VLOOKUP($C14,'RECAP SECT'!$G$6:$EV$253,34,FALSE) -> 11 | O14: =VLOOKUP($C14,'RECAP SECT'!$G$6:$EV$253,35,FALSE) -> 9.58 | P14: =VLOOKUP($C14,'RECAP SECT'!$G$6:$EV$253,36,FALSE) -> 0% | Q14: =VLOOKUP($C14,'RECAP SECT'!$G$6:$EV$253,37,FALSE) -> 1 | R14: =VLOOKUP($C14,'RECAP SECT'!$G$6:$EV$253,38,FALSE) -> 26% | S14: =VLOOKUP($C14,'RECAP SECT'!$G$6:$EV$253,39,FALSE) -> 77% | T14: =VLOOKUP($C14,'RECAP SECT'!$G$6:$EV$253,40,FALSE) -> 17 | U14: =VLOOKUP($C14,'RECAP SECT'!$G$6:$EV$253,41,FALSE) -> 37% | V14: =VLOOKUP($C14,'RECAP SECT'!$G$6:$EV$253,42,FALSE) -> 7% | W14: =VLOOKUP($C14,'RECAP SECT'!$G$6:$EV$253,43,FALSE) -> 5
A15: 264 | B15: HAUT-RHIN | C15: 5130 | D15: COLMAR | E15: =VLOOKUP($C15,'RECAP SECT'!$G$6:$EV$253,3,FALSE) -> 75.3 | F15: =VLOOKUP($C15,'RECAP SECT'!$G$6:$EV$253,26,FALSE) -> -11.61 | G15: =VLOOKUP($C15,'RECAP SECT'!$G$6:$EV$253,27,FALSE) -> 0% | H15: =VLOOKUP($C15,'RECAP SECT'!$G$6:$EV$253,28,FALSE) -> 1 | I15: =VLOOKUP($C15,'RECAP SECT'!$G$6:$EV$253,29,FALSE) -> 5.08 | J15: =VLOOKUP($C15,'RECAP SECT'!$G$6:$EV$253,30,FALSE) -> 55% | K15: =VLOOKUP($C15,'RECAP SECT'!$G$6:$EV$253,31,FALSE) -> 13 | L15: =VLOOKUP($C15,'RECAP SECT'!$G$6:$EV$253,32,FALSE) -> 13.78 | M15: =VLOOKUP($C15,'RECAP SECT'!$G$6:$EV$253,33,FALSE) -> 31% | N15: =VLOOKUP($C15,'RECAP SECT'!$G$6:$EV$253,34,FALSE) -> 8 | O15: =VLOOKUP($C15,'RECAP SECT'!$G$6:$EV$253,35,FALSE) -> 5.19 | P15: =VLOOKUP($C15,'RECAP SECT'!$G$6:$EV$253,36,FALSE) -> 46% | Q15: =VLOOKUP($C15,'RECAP SECT'!$G$6:$EV$253,37,FALSE) -> 13 | R15: =VLOOKUP($C15,'RECAP SECT'!$G$6:$EV$253,38,FALSE) -> 29% | S15: =VLOOKUP($C15,'RECAP SECT'!$G$6:$EV$253,39,FALSE) -> 75% | T15: =VLOOKUP($C15,'RECAP SECT'!$G$6:$EV$253,40,FALSE) -> 16 | U15: =VLOOKUP($C15,'RECAP SECT'!$G$6:$EV$253,41,FALSE) -> 41% | V15: =VLOOKUP($C15,'RECAP SECT'!$G$6:$EV$253,42,FALSE) -> 11% | W15: =VLOOKUP($C15,'RECAP SECT'!$G$6:$EV$253,43,FALSE) -> 10
A16: 264 | B16: HAUT-RHIN | C16: 5169 | D16: MULHOUSE | E16: =VLOOKUP($C16,'RECAP SECT'!$G$6:$EV$253,3,FALSE) -> 75.1 | F16: =VLOOKUP($C16,'RECAP SECT'!$G$6:$EV$253,26,FALSE) -> -18.60 | G16: =VLOOKUP($C16,'RECAP SECT'!$G$6:$EV$253,27,FALSE) -> 60% | H16: =VLOOKUP($C16,'RECAP SECT'!$G$6:$EV$253,28,FALSE) -> 9 | I16: =VLOOKUP($C16,'RECAP SECT'!$G$6:$EV$253,29,FALSE) -> 4.11 | J16: =VLOOKUP($C16,'RECAP SECT'!$G$6:$EV$253,30,FALSE) -> 64% | K16: =VLOOKUP($C16,'RECAP SECT'!$G$6:$EV$253,31,FALSE) -> 16 | L16: =VLOOKUP($C16,'RECAP SECT'!$G$6:$EV$253,32,FALSE) -> 10.33 | M16: =VLOOKUP($C16,'RECAP SECT'!$G$6:$EV$253,33,FALSE) -> 48% | N16: =VLOOKUP($C16,'RECAP SECT'!$G$6:$EV$253,34,FALSE) -> 18 | O16: =VLOOKUP($C16,'RECAP SECT'!$G$6:$EV$253,35,FALSE) -> 3.14 | P16: =VLOOKUP($C16,'RECAP SECT'!$G$6:$EV$253,36,FALSE) -> 67% | Q16: =VLOOKUP($C16,'RECAP SECT'!$G$6:$EV$253,37,FALSE) -> 18 | R16: =VLOOKUP($C16,'RECAP SECT'!$G$6:$EV$253,38,FALSE) -> 33% | S16: =VLOOKUP($C16,'RECAP SECT'!$G$6:$EV$253,39,FALSE) -> 71% | T16: =VLOOKUP($C16,'RECAP SECT'!$G$6:$EV$253,40,FALSE) -> 15 | U16: =VLOOKUP($C16,'RECAP SECT'!$G$6:$EV$253,41,FALSE) -> 62% | V16: =VLOOKUP($C16,'RECAP SECT'!$G$6:$EV$253,42,FALSE) -> 31% | W16: =VLOOKUP($C16,'RECAP SECT'!$G$6:$EV$253,43,FALSE) -> 17
A17: 30 | B17: MARNE-ARDENNES | C17: 6 | D17: CHALONS EN CHAMPAGNE | E17: =VLOOKUP($C17,'RECAP SECT'!$G$6:$EV$253,3,FALSE) -> 48.8 | F17: =VLOOKUP($C17,'RECAP SECT'!$G$6:$EV$253,26,FALSE) -> -18.17 | G17: =VLOOKUP($C17,'RECAP SECT'!$G$6:$EV$253,27,FALSE) -> 56% | H17: =VLOOKUP($C17,'RECAP SECT'!$G$6:$EV$253,28,FALSE) -> 8 | I17: =VLOOKUP($C17,'RECAP SECT'!$G$6:$EV$253,29,FALSE) -> 9.17 | J17: =VLOOKUP($C17,'RECAP SECT'!$G$6:$EV$253,30,FALSE) -> 19% | K17: =VLOOKUP($C17,'RECAP SECT'!$G$6:$EV$253,31,FALSE) -> 3 | L17: =VLOOKUP($C17,'RECAP SECT'!$G$6:$EV$253,32,FALSE) -> 10.71 | M17: =VLOOKUP($C17,'RECAP SECT'!$G$6:$EV$253,33,FALSE) -> 46% | N17: =VLOOKUP($C17,'RECAP SECT'!$G$6:$EV$253,34,FALSE) -> 16 | O17: =VLOOKUP($C17,'RECAP SECT'!$G$6:$EV$253,35,FALSE) -> 6.44 | P17: =VLOOKUP($C17,'RECAP SECT'!$G$6:$EV$253,36,FALSE) -> 33% | Q17: =VLOOKUP($C17,'RECAP SECT'!$G$6:$EV$253,37,FALSE) -> 8 | R17: =VLOOKUP($C17,'RECAP SECT'!$G$6:$EV$253,38,FALSE) -> 38% | S17: =VLOOKUP($C17,'RECAP SECT'!$G$6:$EV$253,39,FALSE) -> 67% | T17: =VLOOKUP($C17,'RECAP SECT'!$G$6:$EV$253,40,FALSE) -> 12 | U17: =VLOOKUP($C17,'RECAP SECT'!$G$6:$EV$253,41,FALSE) -> 44% | V17: =VLOOKUP($C17,'RECAP SECT'!$G$6:$EV$253,42,FALSE) -> 14% | W17: =VLOOKUP($C17,'RECAP SECT'!$G$6:$EV$253,43,FALSE) -> 13
A18: 30 | B18: MARNE-ARDENNES | C18: 2 | D18: CHARLEVILLE MEZIERES | E18: =VLOOKUP($C18,'RECAP SECT'!$G$6:$EV$253,3,FALSE) -> 62.2 | F18: =VLOOKUP($C18,'RECAP SECT'!$G$6:$EV$253,26,FALSE) -> -24.09 | G18: =VLOOKUP($C18,'RECAP SECT'!$G$6:$EV$253,27,FALSE) -> 107% | H18: =VLOOKUP($C18,'RECAP SECT'!$G$6:$EV$253,28,FALSE) -> 18 | I18: =VLOOKUP($C18,'RECAP SECT'!$G$6:$EV$253,29,FALSE) -> 7.56 | J18: =VLOOKUP($C18,'RECAP SECT'!$G$6:$EV$253,30,FALSE) -> 33% | K18: =VLOOKUP($C18,'RECAP SECT'!$G$6:$EV$253,31,FALSE) -> 5 | L18: =VLOOKUP($C18,'RECAP SECT'!$G$6:$EV$253,32,FALSE) -> 11.66 | M18: =VLOOKUP($C18,'RECAP SECT'!$G$6:$EV$253,33,FALSE) -> 42% | N18: =VLOOKUP($C18,'RECAP SECT'!$G$6:$EV$253,34,FALSE) -> 13 | O18: =VLOOKUP($C18,'RECAP SECT'!$G$6:$EV$253,35,FALSE) -> 8.25 | P18: =VLOOKUP($C18,'RECAP SECT'!$G$6:$EV$253,36,FALSE) -> 14% | Q18: =VLOOKUP($C18,'RECAP SECT'!$G$6:$EV$253,37,FALSE) -> 3 | R18: =VLOOKUP($C18,'RECAP SECT'!$G$6:$EV$253,38,FALSE) -> 111% | S18: =VLOOKUP($C18,'RECAP SECT'!$G$6:$EV$253,39,FALSE) -> 2% | T18: =VLOOKUP($C18,'RECAP SECT'!$G$6:$EV$253,40,FALSE) -> 2 | U18: =VLOOKUP($C18,'RECAP SECT'!$G$6:$EV$253,41,FALSE) -> 40% | V18: =VLOOKUP($C18,'RECAP SECT'!$G$6:$EV$253,42,FALSE) -> 9% | W18: =VLOOKUP($C18,'RECAP SECT'!$G$6:$EV$253,43,FALSE) -> 7
A19: 30 | B19: MARNE-ARDENNES | C19: 11 | D19: REIMS | E19: =VLOOKUP($C19,'RECAP SECT'!$G$6:$EV$253,3,FALSE) -> 89.8 | F19: =VLOOKUP($C19,'RECAP SECT'!$G$6:$EV$253,26,FALSE) -> -19.14 | G19: =VLOOKUP($C19,'RECAP SECT'!$G$6:$EV$253,27,FALSE) -> 65% | H19: =VLOOKUP($C19,'RECAP SECT'!$G$6:$EV$253,28,FALSE) -> 10 | I19: =VLOOKUP($C19,'RECAP SECT'!$G$6:$EV$253,29,FALSE) -> 11.32 | J19: =VLOOKUP($C19,'RECAP SECT'!$G$6:$EV$253,30,FALSE) -> 0% | K19: =VLOOKUP($C19,'RECAP SECT'!$G$6:$EV$253,31,FALSE) -> 1 | L19: =VLOOKUP($C19,'RECAP SECT'!$G$6:$EV$253,32,FALSE) -> 11.71 | M19: =VLOOKUP($C19,'RECAP SECT'!$G$6:$EV$253,33,FALSE) -> 41% | N19: =VLOOKUP($C19,'RECAP SECT'!$G$6:$EV$253,34,FALSE) -> 12 | O19: =VLOOKUP($C19,'RECAP SECT'!$G$6:$EV$253,35,FALSE) -> 6.84 | P19: =VLOOKUP($C19,'RECAP SECT'!$G$6:$EV$253,36,FALSE) -> 29% | Q19: =VLOOKUP($C19,'RECAP SECT'!$G$6:$EV$253,37,FALSE) -> 7 | R19: =VLOOKUP($C19,'RECAP SECT'!$G$6:$EV$253,38,FALSE) -> 92% | S19: =VLOOKUP($C19,'RECAP SECT'!$G$6:$EV$253,39,FALSE) -> 18% | T19: =VLOOKUP($C19,'RECAP SECT'!$G$6:$EV$253,40,FALSE) -> 5 | U19: =VLOOKUP($C19,'RECAP SECT'!$G$6:$EV$253,41,FALSE) -> 31% | V19: =VLOOKUP($C19,'RECAP SECT'!$G$6:$EV$253,42,FALSE) -> 0% | W19: =VLOOKUP($C19,'RECAP SECT'!$G$6:$EV$253,43,FALSE) -> 1
A20: 110 | B20: MEURTHE ET MOSELLE MEUSE | C20: 26 | D20: NANCY | E20: =VLOOKUP($C20,'RECAP SECT'!$G$6:$EV$253,3,FALSE) -> 78.0 | F20: =VLOOKUP($C20,'RECAP SECT'!$G$6:$EV$253,26,FALSE) -> -21.08 | G20: =VLOOKUP($C20,'RECAP SECT'!$G$6:$EV$253,27,FALSE) -> 81% | H20: =VLOOKUP($C20,'RECAP SECT'!$G$6:$EV$253,28,FALSE) -> 12 | I20: =VLOOKUP($C20,'RECAP SECT'!$G$6:$EV$253,29,FALSE) -> 5.06 | J20: =VLOOKUP($C20,'RECAP SECT'!$G$6:$EV$253,30,FALSE) -> 55% | K20: =VLOOKUP($C20,'RECAP SECT'!$G$6:$EV$253,31,FALSE) -> 14 | L20: =VLOOKUP($C20,'RECAP SECT'!$G$6:$EV$253,32,FALSE) -> 12.28 | M20: =VLOOKUP($C20,'RECAP SECT'!$G$6:$EV$253,33,FALSE) -> 38% | N20: =VLOOKUP($C20,'RECAP SECT'!$G$6:$EV$253,34,FALSE) -> 10 | O20: =VLOOKUP($C20,'RECAP SECT'!$G$6:$EV$253,35,FALSE) -> 4.27 | P20: =VLOOKUP($C20,'RECAP SECT'!$G$6:$EV$253,36,FALSE) -> 55% | Q20: =VLOOKUP($C20,'RECAP SECT'!$G$6:$EV$253,37,FALSE) -> 15 | R20: =VLOOKUP($C20,'RECAP SECT'!$G$6:$EV$253,38,FALSE) -> 113% | S20: =VLOOKUP($C20,'RECAP SECT'!$G$6:$EV$253,39,FALSE) -> 0% | T20: =VLOOKUP($C20,'RECAP SECT'!$G$6:$EV$253,40,FALSE) -> 1 | U20: =VLOOKUP($C20,'RECAP SECT'!$G$6:$EV$253,41,FALSE) -> 46% | V20: =VLOOKUP($C20,'RECAP SECT'!$G$6:$EV$253,42,FALSE) -> 16% | W20: =VLOOKUP($C20,'RECAP SECT'!$G$6:$EV$253,43,FALSE) -> 15
A21: 110 | B21: MEURTHE ET MOSELLE MEUSE | C21: 27 | D21: PONT A MOUSSON | E21: =VLOOKUP($C21,'RECAP SECT'!$G$6:$EV$253,3,FALSE) -> 87.4 | F21: =VLOOKUP($C21,'RECAP SECT'!$G$6:$EV$253,26,FALSE) -> -21.23 | G21: =VLOOKUP($C21,'RECAP SECT'!$G$6:$EV$253,27,FALSE) -> 83% | H21: =VLOOKUP($C21,'RECAP SECT'!$G$6:$EV$253,28,FALSE) -> 14 | I21: =VLOOKUP($C21,'RECAP SECT'!$G$6:$EV$253,29,FALSE) -> 9.48 | J21: =VLOOKUP($C21,'RECAP SECT'!$G$6:$EV$253,30,FALSE) -> 16% | K21: =VLOOKUP($C21,'RECAP SECT'!$G$6:$EV$253,31,FALSE) -> 2 | L21: =VLOOKUP($C21,'RECAP SECT'!$G$6:$EV$253,32,FALSE) -> 14.68 | M21: =VLOOKUP($C21,'RECAP SECT'!$G$6:$EV$253,33,FALSE) -> 26% | N21: =VLOOKUP($C21,'RECAP SECT'!$G$6:$EV$253,34,FALSE) -> 6 | O21: =VLOOKUP($C21,'RECAP SECT'!$G$6:$EV$253,35,FALSE) -> 3.65 | P21: =VLOOKUP($C21,'RECAP SECT'!$G$6:$EV$253,36,FALSE) -> 62% | Q21: =VLOOKUP($C21,'RECAP SECT'!$G$6:$EV$253,37,FALSE) -> 16 | R21: =VLOOKUP($C21,'RECAP SECT'!$G$6:$EV$253,38,FALSE) -> 24% | S21: =VLOOKUP($C21,'RECAP SECT'!$G$6:$EV$253,39,FALSE) -> 79% | T21: =VLOOKUP($C21,'RECAP SECT'!$G$6:$EV$253,40,FALSE) -> 18 | U21: =VLOOKUP($C21,'RECAP SECT'!$G$6:$EV$253,41,FALSE) -> 53% | V21: =VLOOKUP($C21,'RECAP SECT'!$G$6:$EV$253,42,FALSE) -> 23% | W21: =VLOOKUP($C21,'RECAP SECT'!$G$6:$EV$253,43,FALSE) -> 16
A22: 110 | B22: MEURTHE ET MOSELLE MEUSE | C22: 31 | D22: VERDUN | E22: =VLOOKUP($C22,'RECAP SECT'!$G$6:$EV$253,3,FALSE) -> 63.4 | F22: =VLOOKUP($C22,'RECAP SECT'!$G$6:$EV$253,26,FALSE) -> -23.77 | G22: =VLOOKUP($C22,'RECAP SECT'!$G$6:$EV$253,27,FALSE) -> 105% | H22: =VLOOKUP($C22,'RECAP SECT'!$G$6:$EV$253,28,FALSE) -> 17 | I22: =VLOOKUP($C22,'RECAP SECT'!$G$6:$EV$253,29,FALSE) -> 7.29 | J22: =VLOOKUP($C22,'RECAP SECT'!$G$6:$EV$253,30,FALSE) -> 36% | K22: =VLOOKUP($C22,'RECAP SECT'!$G$6:$EV$253,31,FALSE) -> 6 | L22: =VLOOKUP($C22,'RECAP SECT'!$G$6:$EV$253,32,FALSE) -> 11.54 | M22: =VLOOKUP($C22,'RECAP SECT'!$G$6:$EV$253,33,FALSE) -> 42% | N22: =VLOOKUP($C22,'RECAP SECT'!$G$6:$EV$253,34,FALSE) -> 14 | O22: =VLOOKUP($C22,'RECAP SECT'!$G$6:$EV$253,35,FALSE) -> 3.65 | P22: =VLOOKUP($C22,'RECAP SECT'!$G$6:$EV$253,36,FALSE) -> 62% | Q22: =VLOOKUP($C22,'RECAP SECT'!$G$6:$EV$253,37,FALSE) -> 17 | R22: =VLOOKUP($C22,'RECAP SECT'!$G$6:$EV$253,38,FALSE) -> 36% | S22: =VLOOKUP($C22,'RECAP SECT'!$G$6:$EV$253,39,FALSE) -> 68% | T22: =VLOOKUP($C22,'RECAP SECT'!$G$6:$EV$253,40,FALSE) -> 14 | U22: =VLOOKUP($C22,'RECAP SECT'!$G$6:$EV$253,41,FALSE) -> 62% | V22: =VLOOKUP($C22,'RECAP SECT'!$G$6:$EV$253,42,FALSE) -> 32% | W22: =VLOOKUP($C22,'RECAP SECT'!$G$6:$EV$253,43,FALSE) -> 18
A23: 160 | B23: MOSELLE | C23: 45 | D23: METZ | E23: =VLOOKUP($C23,'RECAP SECT'!$G$6:$EV$253,3,FALSE) -> 101.5 | F23: =VLOOKUP($C23,'RECAP SECT'!$G$6:$EV$253,26,FALSE) -> -22.15 | G23: =VLOOKUP($C23,'RECAP SECT'!$G$6:$EV$253,27,FALSE) -> 91% | H23: =VLOOKUP($C23,'RECAP SECT'!$G$6:$EV$253,28,FALSE) -> 16 | I23: =VLOOKUP($C23,'RECAP SECT'!$G$6:$EV$253,29,FALSE) -> 6.26 | J23: =VLOOKUP($C23,'RECAP SECT'!$G$6:$EV$253,30,FALSE) -> 45% | K23: =VLOOKUP($C23,'RECAP SECT'!$G$6:$EV$253,31,FALSE) -> 8 | L23: =VLOOKUP($C23,'RECAP SECT'!$G$6:$EV$253,32,FALSE) -> 17.06 | M23: =VLOOKUP($C23,'RECAP SECT'!$G$6:$EV$253,33,FALSE) -> 14% | N23: =VLOOKUP($C23,'RECAP SECT'!$G$6:$EV$253,34,FALSE) -> 3 | O23: =VLOOKUP($C23,'RECAP SECT'!$G$6:$EV$253,35,FALSE) -> 5.67 | P23: =VLOOKUP($C23,'RECAP SECT'!$G$6:$EV$253,36,FALSE) -> 41% | Q23: =VLOOKUP($C23,'RECAP SECT'!$G$6:$EV$253,37,FALSE) -> 10 | R23: =VLOOKUP($C23,'RECAP SECT'!$G$6:$EV$253,38,FALSE) -> 87% | S23: =VLOOKUP($C23,'RECAP SECT'!$G$6:$EV$253,39,FALSE) -> 23% | T23: =VLOOKUP($C23,'RECAP SECT'!$G$6:$EV$253,40,FALSE) -> 8 | U23: =VLOOKUP($C23,'RECAP SECT'!$G$6:$EV$253,41,FALSE) -> 43% | V23: =VLOOKUP($C23,'RECAP SECT'!$G$6:$EV$253,42,FALSE) -> 12% | W23: =VLOOKUP($C23,'RECAP SECT'!$G$6:$EV$253,43,FALSE) -> 11
A24: 160 | B24: MOSELLE | C24: 42 | D24: MOSELLE EST | E24: =VLOOKUP($C24,'RECAP SECT'!$G$6:$EV$253,3,FALSE) -> 84.0 | F24: =VLOOKUP($C24,'RECAP SECT'!$G$6:$EV$253,26,FALSE) -> -19.22 | G24: =VLOOKUP($C24,'RECAP SECT'!$G$6:$EV$253,27,FALSE) -> 65% | H24: =VLOOKUP($C24,'RECAP SECT'!$G$6:$EV$253,28,FALSE) -> 11 | I24: =VLOOKUP($C24,'RECAP SECT'!$G$6:$EV$253,29,FALSE) -> 5.54 | J24: =VLOOKUP($C24,'RECAP SECT'!$G$6:$EV$253,30,FALSE) -> 51% | K24: =VLOOKUP($C24,'RECAP SECT'!$G$6:$EV$253,31,FALSE) -> 12 | L24: =VLOOKUP($C24,'RECAP SECT'!$G$6:$EV$253,32,FALSE) -> 19.09 | M24: =VLOOKUP($C24,'RECAP SECT'!$G$6:$EV$253,33,FALSE) -> 4% | N24: =VLOOKUP($C24,'RECAP SECT'!$G$6:$EV$253,34,FALSE) -> 2 | O24: =VLOOKUP($C24,'RECAP SECT'!$G$6:$EV$253,35,FALSE) -> 5.52 | P24: =VLOOKUP($C24,'RECAP SECT'!$G$6:$EV$253,36,FALSE) -> 42% | Q24: =VLOOKUP($C24,'RECAP SECT'!$G$6:$EV$253,37,FALSE) -> 12 | R24: =VLOOKUP($C24,'RECAP SECT'!$G$6:$EV$253,38,FALSE) -> 89% | S24: =VLOOKUP($C24,'RECAP SECT'!$G$6:$EV$253,39,FALSE) -> 21% | T24: =VLOOKUP($C24,'RECAP SECT'!$G$6:$EV$253,40,FALSE) -> 7 | U24: =VLOOKUP($C24,'RECAP SECT'!$G$6:$EV$253,41,FALSE) -> 37% | V24: =VLOOKUP($C24,'RECAP SECT'!$G$6:$EV$253,42,FALSE) -> 6% | W24: =VLOOKUP($C24,'RECAP SECT'!$G$6:$EV$253,43,FALSE) -> 4
A25: 160 | B25: MOSELLE | C25: 44 | D25: MOSELLE NORD | E25: =VLOOKUP($C25,'RECAP SECT'!$G$6:$EV$253,3,FALSE) -> 78.7 | F25: =VLOOKUP($C25,'RECAP SECT'!$G$6:$EV$253,26,FALSE) -> -21.11 | G25: =VLOOKUP($C25,'RECAP SECT'!$G$6:$EV$253,27,FALSE) -> 82% | H25: =VLOOKUP($C25,'RECAP SECT'!$G$6:$EV$253,28,FALSE) -> 13 | I25: =VLOOKUP($C25,'RECAP SECT'!$G$6:$EV$253,29,FALSE) -> 8.20 | J25: =VLOOKUP($C25,'RECAP SECT'!$G$6:$EV$253,30,FALSE) -> 28% | K25: =VLOOKUP($C25,'RECAP SECT'!$G$6:$EV$253,31,FALSE) -> 4 | L25: =VLOOKUP($C25,'RECAP SECT'!$G$6:$EV$253,32,FALSE) -> 19.95 | M25: =VLOOKUP($C25,'RECAP SECT'!$G$6:$EV$253,33,FALSE) -> 0% | N25: =VLOOKUP($C25,'RECAP SECT'!$G$6:$EV$253,34,FALSE) -> 1 | O25: =VLOOKUP($C25,'RECAP SECT'!$G$6:$EV$253,35,FALSE) -> 6.01 | P25: =VLOOKUP($C25,'RECAP SECT'!$G$6:$EV$253,36,FALSE) -> 37% | Q25: =VLOOKUP($C25,'RECAP SECT'!$G$6:$EV$253,37,FALSE) -> 9 | R25: =VLOOKUP($C25,'RECAP SECT'!$G$6:$EV$253,38,FALSE) -> 47% | S25: =VLOOKUP($C25,'RECAP SECT'!$G$6:$EV$253,39,FALSE) -> 58% | T25: =VLOOKUP($C25,'RECAP SECT'!$G$6:$EV$253,40,FALSE) -> 11 | U25: =VLOOKUP($C25,'RECAP SECT'!$G$6:$EV$253,41,FALSE) -> 41% | V25: =VLOOKUP($C25,'RECAP SECT'!$G$6:$EV$253,42,FALSE) -> 10% | W25: =VLOOKUP($C25,'RECAP SECT'!$G$6:$EV$253,43,FALSE) -> 8
A26: 80 | B26: VOSGES | C26: 57 | D26: EPINAL | E26: =VLOOKUP($C26,'RECAP SECT'!$G$6:$EV$253,3,FALSE) -> 66.9 | F26: =VLOOKUP($C26,'RECAP SECT'!$G$6:$EV$253,26,FALSE) -> -18.08 | G26: =VLOOKUP($C26,'RECAP SECT'!$G$6:$EV$253,27,FALSE) -> 56% | H26: =VLOOKUP($C26,'RECAP SECT'!$G$6:$EV$253,28,FALSE) -> 7 | I26: =VLOOKUP($C26,'RECAP SECT'!$G$6:$EV$253,29,FALSE) -> 6.20 | J26: =VLOOKUP($C26,'RECAP SECT'!$G$6:$EV$253,30,FALSE) -> 45% | K26: =VLOOKUP($C26,'RECAP SECT'!$G$6:$EV$253,31,FALSE) -> 9 | L26: =VLOOKUP($C26,'RECAP SECT'!$G$6:$EV$253,32,FALSE) -> 11.16 | M26: =VLOOKUP($C26,'RECAP SECT'!$G$6:$EV$253,33,FALSE) -> 44% | N26: =VLOOKUP($C26,'RECAP SECT'!$G$6:$EV$253,34,FALSE) -> 15 | O26: =VLOOKUP($C26,'RECAP SECT'!$G$6:$EV$253,35,FALSE) -> 4.72 | P26: =VLOOKUP($C26,'RECAP SECT'!$G$6:$EV$253,36,FALSE) -> 51% | Q26: =VLOOKUP($C26,'RECAP SECT'!$G$6:$EV$253,37,FALSE) -> 14 | R26: =VLOOKUP($C26,'RECAP SECT'!$G$6:$EV$253,38,FALSE) -> 101% | S26: =VLOOKUP($C26,'RECAP SECT'!$G$6:$EV$253,39,FALSE) -> 11% | T26: =VLOOKUP($C26,'RECAP SECT'!$G$6:$EV$253,40,FALSE) -> 3 | U26: =VLOOKUP($C26,'RECAP SECT'!$G$6:$EV$253,41,FALSE) -> 41% | V26: =VLOOKUP($C26,'RECAP SECT'!$G$6:$EV$253,42,FALSE) -> 11% | W26: =VLOOKUP($C26,'RECAP SECT'!$G$6:$EV$253,43,FALSE) -> 9
A27: 80 | B27: VOSGES | C27: 55 | D27: SAINT DIE | E27: =VLOOKUP($C27,'RECAP SECT'!$G$6:$EV$253,3,FALSE) -> 56.7 | F27: =VLOOKUP($C27,'RECAP SECT'!$G$6:$EV$253,26,FALSE) -> -17.11 | G27: =VLOOKUP($C27,'RECAP SECT'!$G$6:$EV$253,27,FALSE) -> 47% | H27: =VLOOKUP($C27,'RECAP SECT'!$G$6:$EV$253,28,FALSE) -> 5 | I27: =VLOOKUP($C27,'RECAP SECT'!$G$6:$EV$253,29,FALSE) -> 6.56 | J27: =VLOOKUP($C27,'RECAP SECT'!$G$6:$EV$253,30,FALSE) -> 42% | K27: =VLOOKUP($C27,'RECAP SECT'!$G$6:$EV$253,31,FALSE) -> 7 | L27: =VLOOKUP($C27,'RECAP SECT'!$G$6:$EV$253,32,FALSE) -> 13.02 | M27: =VLOOKUP($C27,'RECAP SECT'!$G$6:$EV$253,33,FALSE) -> 35% | N27: =VLOOKUP($C27,'RECAP SECT'!$G$6:$EV$253,34,FALSE) -> 9 | O27: =VLOOKUP($C27,'RECAP SECT'!$G$6:$EV$253,35,FALSE) -> 7.80 | P27: =VLOOKUP($C27,'RECAP SECT'!$G$6:$EV$253,36,FALSE) -> 19% | Q27: =VLOOKUP($C27,'RECAP SECT'!$G$6:$EV$253,37,FALSE) -> 4 | R27: =VLOOKUP($C27,'RECAP SECT'!$G$6:$EV$253,38,FALSE) -> 89% | S27: =VLOOKUP($C27,'RECAP SECT'!$G$6:$EV$253,39,FALSE) -> 21% | T27: =VLOOKUP($C27,'RECAP SECT'!$G$6:$EV$253,40,FALSE) -> 6 | U27: =VLOOKUP($C27,'RECAP SECT'!$G$6:$EV$253,41,FALSE) -> 33% | V27: =VLOOKUP($C27,'RECAP SECT'!$G$6:$EV$253,42,FALSE) -> 2% | W27: =VLOOKUP($C27,'RECAP SECT'!$G$6:$EV$253,43,FALSE) -> 2
A28: Total CEGEE Directions Régionales | E28: =SUM(E10:E27) -> 1346

Sheet SE_EPARGNE
A1: Accueil | F1: BAROMETRE BDD - TERRITOIRES
F2: EPARGNE
F3: =ACCUEIL!H7 -> 2019-09-30
F7: Excédent de collecte yc DAV | I7: CA assurance vie | L7: Activité UC (CA+Arbitrage) | O7: Excédent assurance vie | R7: Excédent Epargne Bilan (hors emprunt CTO) | U7: Total Epargne
G8: coef | H8: ='RECAP DIRCOM'!BF4 -> 2% | J8: coef | K8: ='RECAP DIRCOM'!BI4 -> 2% | M8: coef | N8: ='RECAP DIRCOM'!BL4 -> 2% | P8: coef | Q8: ='RECAP DIRCOM'!BO4 -> 2% | S8: coef | T8: ='RECAP DIRCOM'!BR4 -> 7% | V8: coef | W8: ='RECAP DIRCOM'!BU4 -> 15%
A9: eds | B9: Direction | C9: eds | D9: Territoire | E9: ETP perf | F9: Réal / ETP | G9: % Ecart au 1er | H9: Rang | I9: Réal / ETP | J9: % Ecart au 1er | K9: Rang | L9: Réal / ETP | M9: % Ecart au 1er | N9: Rang | O9: Réal / ETP | P9: % Ecart au 1er | Q9: Rang | R9: Réal / ETP | S9: % Ecart au 1er | T9: Rang | U9: Moyenne ecart au 1er | V9: % Ecart au 1er | W9: Rang CEGEE
A10: 50 | B10: AUBE HAUTE MARNE | C10: 21 | D10: CHAUMONT | E10: =VLOOKUP($C10,'RECAP SECT'!$G$6:$EV$253,3,FALSE) -> 46.0 | F10: =VLOOKUP($C10,'RECAP SECT'!$G$6:$EV$253,50,FALSE) -> 167.53 | G10: =VLOOKUP($C10,'RECAP SECT'!$G$6:$EV$253,51,FALSE) -> 49% | H10: =VLOOKUP($C10,'RECAP SECT'!$G$6:$EV$253,52,FALSE) -> 8 | I10: =VLOOKUP($C10,'RECAP SECT'!$G$6:$EV$253,53,FALSE) -> 498.95 | J10: =VLOOKUP($C10,'RECAP SECT'!$G$6:$EV$253,54,FALSE) -> 18% | K10: =VLOOKUP($C10,'RECAP SECT'!$G$6:$EV$253,55,FALSE) -> 8 | L10: =VLOOKUP($C10,'RECAP SECT'!$G$6:$EV$253,56,FALSE) -> 148 | M10: =VLOOKUP($C10,'RECAP SECT'!$G$6:$EV$253,57,FALSE) -> 25% | N10: =VLOOKUP($C10,'RECAP SECT'!$G$6:$EV$253,58,FALSE) -> 10 | O10: =VLOOKUP($C10,'RECAP SECT'!$G$6:$EV$253,59,FALSE) -> 117.65 | P10: =VLOOKUP($C10,'RECAP SECT'!$G$6:$EV$253,60,FALSE) -> 54% | Q10: =VLOOKUP($C10,'RECAP SECT'!$G$6:$EV$253,61,FALSE) -> 9 | R10: =VLOOKUP($C10,'RECAP SECT'!$G$6:$EV$253,62,FALSE) -> 4.84 | S10: =VLOOKUP($C10,'RECAP SECT'!$G$6:$EV$253,63,FALSE) -> 71% | T10: =VLOOKUP($C10,'RECAP SECT'!$G$6:$EV$253,64,FALSE) -> 11 | U10: =VLOOKUP($C10,'RECAP SECT'!$G$6:$EV$253,65,FALSE) -> 53% | V10: =VLOOKUP($C10,'RECAP SECT'!$G$6:$EV$253,66,FALSE) -> 47% | W10: =VLOOKUP($C10,'RECAP SECT'!$G$6:$EV$253,67,FALSE) -> 12
A11: 50 | B11: AUBE HAUTE MARNE | C11: 14 | D11: TROYES | E11: =VLOOKUP($C11,'RECAP SECT'!$G$6:$EV$253,3,FALSE) -> 77.6 | F11: =VLOOKUP($C11,'RECAP SECT'!$G$6:$EV$253,50,FALSE) -> 172.88 | G11: =VLOOKUP($C11,'RECAP SECT'!$G$6:$EV$253,51,FALSE) -> 47% | H11: =VLOOKUP($C11,'RECAP SECT'!$G$6:$EV$253,52,FALSE) -> 6 | I11: =VLOOKUP($C11,'RECAP SECT'!$G$6:$EV$253,53,FALSE) -> 542.78 | J11: =VLOOKUP($C11,'RECAP SECT'!$G$6:$EV$253,54,FALSE) -> 10% | K11: =VLOOKUP($C11,'RECAP SECT'!$G$6:$EV$253,55,FALSE) -> 5 | L11: =VLOOKUP($C11,'RECAP SECT'!$G$6:$EV$253,56,FALSE) -> 197 | M11: =VLOOKUP($C11,'RECAP SECT'!$G$6:$EV$253,57,FALSE) -> 0% | N11: =VLOOKUP($C11,'RECAP SECT'!$G$6:$EV$253,58,FALSE) -> 1 | O11: =VLOOKUP($C11,'RECAP SECT'!$G$6:$EV$253,59,FALSE) -> 137.79 | P11: =VLOOKUP($C11,'RECAP SECT'!$G$6:$EV$253,60,FALSE) -> 46% | Q11: =VLOOKUP($C11,'RECAP SECT'!$G$6:$EV$253,61,FALSE) -> 7 | R11: =VLOOKUP($C11,'RECAP SECT'!$G$6:$EV$253,62,FALSE) -> -51.16 | S11: =VLOOKUP($C11,'RECAP SECT'!$G$6:$EV$253,63,FALSE) -> 136% | T11: =VLOOKUP($C11,'RECAP SECT'!$G$6:$EV$253,64,FALSE) -> 16 | U11: =VLOOKUP($C11,'RECAP SECT'!$G$6:$EV$253,65,FALSE) -> 77% | V11: =VLOOKUP($C11,'RECAP SECT'!$G$6:$EV$253,66,FALSE) -> 71% | W11: =VLOOKUP($C11,'RECAP SECT'!$G$6:$EV$253,67,FALSE) -> 16
A12: 262 | B12: BAS-RHIN | C12: 5060 | D12: HAGUENAU | E12: =VLOOKUP($C12,'RECAP SECT'!$G$6:$EV$253,3,FALSE) -> 87.6 | F12: =VLOOKUP($C12,'RECAP SECT'!$G$6:$EV$253,50,FALSE) -> 133.11 | G12: =VLOOKUP($C12,'RECAP SECT'!$G$6:$EV$253,51,FALSE) -> 59% | H12: =VLOOKUP($C12,'RECAP SECT'!$G$6:$EV$253,52,FALSE) -> 12 | I12: =VLOOKUP($C12,'RECAP SECT'!$G$6:$EV$253,53,FALSE) -> 359.83 | J12: =VLOOKUP($C12,'RECAP SECT'!$G$6:$EV$253,54,FALSE) -> 41% | K12: =VLOOKUP($C12,'RECAP SECT'!$G$6:$EV$253,55,FALSE) -> 17 | L12: =VLOOKUP($C12,'RECAP SECT'!$G$6:$EV$253,56,FALSE) -> 123 | M12: =VLOOKUP($C12,'RECAP SECT'!$G$6:$EV$253,57,FALSE) -> 38% | N12: =VLOOKUP($C12,'RECAP SECT'!$G$6:$EV$253,58,FALSE) -> 16 | O12: =VLOOKUP($C12,'RECAP SECT'!$G$6:$EV$253,59,FALSE) -> 53.93 | P12: =VLOOKUP($C12,'RECAP SECT'!$G$6:$EV$253,60,FALSE) -> 79% | Q12: =VLOOKUP($C12,'RECAP SECT'!$G$6:$EV$253,61,FALSE) -> 14 | R12: =VLOOKUP($C12,'RECAP SECT'!$G$6:$EV$253,62,FALSE) -> 64.45 | S12: =VLOOKUP($C12,'RECAP SECT'!$G$6:$EV$253,63,FALSE) -> 3% | T12: =VLOOKUP($C12,'RECAP SECT'!$G$6:$EV$253,64,FALSE) -> 3 | U12: =VLOOKUP($C12,'RECAP SECT'!$G$6:$EV$253,65,FALSE) -> 30% | V12: =VLOOKUP($C12,'RECAP SECT'!$G$6:$EV$253,66,FALSE) -> 25% | W12: =VLOOKUP($C12,'RECAP SECT'!$G$6:$EV$253,67,FALSE) -> 5
A13: 262 | B13: BAS-RHIN | C13: 5101 | D13: SELESTAT | E13: =VLOOKUP($C13,'RECAP SECT'!$G$6:$EV$253,3,FALSE) -> 75.2 | F13: =VLOOKUP($C13,'RECAP SECT'!$G$6:$EV$253,50,FALSE) -> 157.06 | G13: =VLOOKUP($C13,'RECAP SECT'!$G$6:$EV$253,51,FALSE) -> 52% | H13: =VLOOKUP($C13,'RECAP SECT'!$G$6:$EV$253,52,FALSE) -> 9 | I13: =VLOOKUP($C13,'RECAP SECT'!$G$6:$EV$253,53,FALSE) -> 399.12 | J13: =VLOOKUP($C13,'RECAP SECT'!$G$6:$EV$253,54,FALSE) -> 34% | K13: =VLOOKUP($C13,'RECAP SECT'!$G$6:$EV$253,55,FALSE) -> 15 | L13: =VLOOKUP($C13,'RECAP SECT'!$G$6:$EV$253,56,FALSE) -> 158 | M13: =VLOOKUP($C13,'RECAP SECT'!$G$6:$EV$253,57,FALSE) -> 20% | N13: =VLOOKUP($C13,'RECAP SECT'!$G$6:$EV$253,58,FALSE) -> 7 | O13: =VLOOKUP($C13,'RECAP SECT'!$G$6:$EV$253,59,FALSE) -> 59.52 | P13: =VLOOKUP($C13,'RECAP SECT'!$G$6:$EV$253,60,FALSE) -> 77% | Q13: =VLOOKUP($C13,'RECAP SECT'!$G$6:$EV$253,61,FALSE) -> 13 | R13: =VLOOKUP($C13,'RECAP SECT'!$G$6:$EV$253,62,FALSE) -> 30.66 | S13: =VLOOKUP($C13,'RECAP SECT'!$G$6:$EV$253,63,FALSE) -> 42% | T13: =VLOOKUP($C13,'RECAP SECT'!$G$6:$EV$253,64,FALSE) -> 7 | U13: =VLOOKUP($C13,'RECAP SECT'!$G$6:$EV$253,65,FALSE) -> 44% | V13: =VLOOKUP($C13,'RECAP SECT'!$G$6:$EV$253,66,FALSE) -> 38% | W13: =VLOOKUP($C13,'RECAP SECT'!$G$6:$EV$253,67,FALSE) -> 8
A14: 262 | B14: BAS-RHIN | C14: 5006 | D14: STRASBOURG | E14: =VLOOKUP($C14,'RECAP SECT'!$G$6:$EV$253,3,FALSE) -> 92.1 | F14: =VLOOKUP($C14,'RECAP SECT'!$G$6:$EV$253,50,FALSE) -> 51.26 | G14: =VLOOKUP($C14,'RECAP SECT'!$G$6:$EV$253,51,FALSE) -> 84% | H14: =VLOOKUP($C14,'RECAP SECT'!$G$6:$EV$253,52,FALSE) -> 17 | I14: =VLOOKUP($C14,'RECAP SECT'!$G$6:$EV$253,53,FALSE) -> 400.45 | J14: =VLOOKUP($C14,'RECAP SECT'!$G$6:$EV$253,54,FALSE) -> 34% | K14: =VLOOKUP($C14,'RECAP SECT'!$G$6:$EV$253,55,FALSE) -> 14 | L14: =VLOOKUP($C14,'RECAP SECT'!$G$6:$EV$253,56,FALSE) -> 169 | M14: =VLOOKUP($C14,'RECAP SECT'!$G$6:$EV$253,57,FALSE) -> 14% | N14: =VLOOKUP($C14,'RECAP SECT'!$G$6:$EV$253,58,FALSE) -> 4 | O14: =VLOOKUP($C14,'RECAP SECT'!$G$6:$EV$253,59,FALSE) -> 52.63 | P14: =VLOOKUP($C14,'RECAP SECT'!$G$6:$EV$253,60,FALSE) -> 79% | Q14: =VLOOKUP($C14,'RECAP SECT'!$G$6:$EV$253,61,FALSE) -> 15 | R14: =VLOOKUP($C14,'RECAP SECT'!$G$6:$EV$253,62,FALSE) -> -3.83 | S14: =VLOOKUP($C14,'RECAP SECT'!$G$6:$EV$253,63,FALSE) -> 81% | T14: =VLOOKUP($C14,'RECAP SECT'!$G$6:$EV$253,64,FALSE) -> 13 | U14: =VLOOKUP($C14,'RECAP SECT'!$G$6:$EV$253,65,FALSE) -> 66% | V14: =VLOOKUP($C14,'RECAP SECT'!$G$6:$EV$253,66,FALSE) -> 61% | W14: =VLOOKUP($C14,'RECAP SECT'!$G$6:$EV$253,67,FALSE) -> 15
A15: 264 | B15: HAUT-RHIN | C15: 5130 | D15: COLMAR | E15: =VLOOKUP($C15,'RECAP SECT'!$G$6:$EV$253,3,FALSE) -> 75.3 | F15: =VLOOKUP($C15,'RECAP SECT'!$G$6:$EV$253,50,FALSE) -> 219.34 | G15: =VLOOKUP($C15,'RECAP SECT'!$G$6:$EV$253,51,FALSE) -> 33% | H15: =VLOOKUP($C15,'RECAP SECT'!$G$6:$EV$253,52,FALSE) -> 2 | I15: =VLOOKUP($C15,'RECAP SECT'!$G$6:$EV$253,53,FALSE) -> 377.63 | J15: =VLOOKUP($C15,'RECAP SECT'!$G$6:$EV$253,54,FALSE) -> 38% | K15: =VLOOKUP($C15,'RECAP SECT'!$G$6:$EV$253,55,FALSE) -> 16 | L15: =VLOOKUP($C15,'RECAP SECT'!$G$6:$EV$253,56,FALSE) -> 139 | M15: =VLOOKUP($C15,'RECAP SECT'!$G$6:$EV$253,57,FALSE) -> 30% | N15: =VLOOKUP($C15,'RECAP SECT'!$G$6:$EV$253,58,FALSE) -> 14 | O15: =VLOOKUP($C15,'RECAP SECT'!$G$6:$EV$253,59,FALSE) -> -4.11 | P15: =VLOOKUP($C15,'RECAP SECT'!$G$6:$EV$253,60,FALSE) -> 102% | Q15: =VLOOKUP($C15,'RECAP SECT'!$G$6:$EV$253,61,FALSE) -> 18 | R15: =VLOOKUP($C15,'RECAP SECT'!$G$6:$EV$253,62,FALSE) -> 64.16 | S15: =VLOOKUP($C15,'RECAP SECT'!$G$6:$EV$253,63,FALSE) -> 3% | T15: =VLOOKUP($C15,'RECAP SECT'!$G$6:$EV$253,64,FALSE) -> 4 | U15: =VLOOKUP($C15,'RECAP SECT'!$G$6:$EV$253,65,FALSE) -> 28% | V15: =VLOOKUP($C15,'RECAP SECT'!$G$6:$EV$253,66,FALSE) -> 23% | W15: =VLOOKUP($C15,'RECAP SECT'!$G$6:$EV$253,67,FALSE) -> 4
A16: 264 | B16: HAUT-RHIN | C16: 5169 | D16: MULHOUSE | E16: =VLOOKUP($C16,'RECAP SECT'!$G$6:$EV$253,3,FALSE) -> 75.1 | F16: =VLOOKUP($C16,'RECAP SECT'!$G$6:$EV$253,50,FALSE) -> 136.13 | G16: =VLOOKUP($C16,'RECAP SECT'!$G$6:$EV$253,51,FALSE) -> 58% | H16: =VLOOKUP($C16,'RECAP SECT'!$G$6:$EV$253,52,FALSE) -> 11 | I16: =VLOOKUP($C16,'RECAP SECT'!$G$6:$EV$253,53,FALSE) -> 351.52 | J16: =VLOOKUP($C16,'RECAP SECT'!$G$6:$EV$253,54,FALSE) -> 42% | K16: =VLOOKUP($C16,'RECAP SECT'!$G$6:$EV$253,55,FALSE) -> 18 | L16: =VLOOKUP($C16,'RECAP SECT'!$G$6:$EV$253,56,FALSE) -> 108 | M16: =VLOOKUP($C16,'RECAP SECT'!$G$6:$EV$253,57,FALSE) -> 45% | N16: =VLOOKUP($C16,'RECAP SECT'!$G$6:$EV$253,58,FALSE) -> 18 | O16: =VLOOKUP($C16,'RECAP SECT'!$G$6:$EV$253,59,FALSE) -> 91.58 | P16: =VLOOKUP($C16,'RECAP SECT'!$G$6:$EV$253,60,FALSE) -> 64% | Q16: =VLOOKUP($C16,'RECAP SECT'!$G$6:$EV$253,61,FALSE) -> 12 | R16: =VLOOKUP($C16,'RECAP SECT'!$G$6:$EV$253,62,FALSE) -> 66.99 | S16: =VLOOKUP($C16,'RECAP SECT'!$G$6:$EV$253,63,FALSE) -> 0% | T16: =VLOOKUP($C16,'RECAP SECT'!$G$6:$EV$253,64,FALSE) -> 1 | U16: =VLOOKUP($C16,'RECAP SECT'!$G$6:$EV$253,65,FALSE) -> 28% | V16: =VLOOKUP($C16,'RECAP SECT'!$G$6:$EV$253,66,FALSE) -> 22% | W16: =VLOOKUP($C16,'RECAP SECT'!$G$6:$EV$253,67,FALSE) -> 3
A17: 30 | B17: MARNE-ARDENNES | C17: 6 | D17: CHALONS EN CHAMPAGNE | E17: =VLOOKUP($C17,'RECAP SECT'!$G$6:$EV$253,3,FALSE) -> 48.8 | F17: =VLOOKUP($C17,'RECAP SECT'!$G$6:$EV$253,50,FALSE) -> 80.73 | G17: =VLOOKUP($C17,'RECAP SECT'!$G$6:$EV$253,51,FALSE) -> 75% | H17: =VLOOKUP($C17,'RECAP SECT'!$G$6:$EV$253,52,FALSE) -> 16 | I17: =VLOOKUP($C17,'RECAP SECT'!$G$6:$EV$253,53,FALSE) -> 460.35 | J17: =VLOOKUP($C17,'RECAP SECT'!$G$6:$EV$253,54,FALSE) -> 24% | K17: =VLOOKUP($C17,'RECAP SECT'!$G$6:$EV$253,55,FALSE) -> 12 | L17: =VLOOKUP($C17,'RECAP SECT'!$G$6:$EV$253,56,FALSE) -> 165 | M17: =VLOOKUP($C17,'RECAP SECT'!$G$6:$EV$253,57,FALSE) -> 16% | N17: =VLOOKUP($C17,'RECAP SECT'!$G$6:$EV$253,58,FALSE) -> 5 | O17: =VLOOKUP($C17,'RECAP SECT'!$G$6:$EV$253,59,FALSE) -> 51.72 | P17: =VLOOKUP($C17,'RECAP SECT'!$G$6:$EV$253,60,FALSE) -> 80% | Q17: =VLOOKUP($C17,'RECAP SECT'!$G$6:$EV$253,61,FALSE) -> 16 | R17: =VLOOKUP($C17,'RECAP SECT'!$G$6:$EV$253,62,FALSE) -> 66.72 | S17: =VLOOKUP($C17,'RECAP SECT'!$G$6:$EV$253,63,FALSE) -> 0% | T17: =VLOOKUP($C17,'RECAP SECT'!$G$6:$EV$253,64,FALSE) -> 2 | U17: =VLOOKUP($C17,'RECAP SECT'!$G$6:$EV$253,65,FALSE) -> 26% | V17: =VLOOKUP($C17,'RECAP SECT'!$G$6:$EV$253,66,FALSE) -> 21% | W17: =VLOOKUP($C17,'RECAP SECT'!$G$6:$EV$253,67,FALSE) -> 2
A18: 30 | B18: MARNE-ARDENNES | C18: 2 | D18: CHARLEVILLE MEZIERES | E18: =VLOOKUP($C18,'RECAP SECT'!$G$6:$EV$253,3,FALSE) -> 62.2 | F18: =VLOOKUP($C18,'RECAP SECT'!$G$6:$EV$253,50,FALSE) -> -15.75 | G18: =VLOOKUP($C18,'RECAP SECT'!$G$6:$EV$253,51,FALSE) -> 105% | H18: =VLOOKUP($C18,'RECAP SECT'!$G$6:$EV$253,52,FALSE) -> 18 | I18: =VLOOKUP($C18,'RECAP SECT'!$G$6:$EV$253,53,FALSE) -> 402.15 | J18: =VLOOKUP($C18,'RECAP SECT'!$G$6:$EV$253,54,FALSE) -> 34% | K18: =VLOOKUP($C18,'RECAP SECT'!$G$6:$EV$253,55,FALSE) -> 13 | L18: =VLOOKUP($C18,'RECAP SECT'!$G$6:$EV$253,56,FALSE) -> 116 | M18: =VLOOKUP($C18,'RECAP SECT'!$G$6:$EV$253,57,FALSE) -> 41% | N18: =VLOOKUP($C18,'RECAP SECT'!$G$6:$EV$253,58,FALSE) -> 17 | O18: =VLOOKUP($C18,'RECAP SECT'!$G$6:$EV$253,59,FALSE) -> 13.31 | P18: =VLOOKUP($C18,'RECAP SECT'!$G$6:$EV$253,60,FALSE) -> 95% | Q18: =VLOOKUP($C18,'RECAP SECT'!$G$6:$EV$253,61,FALSE) -> 17 | R18: =VLOOKUP($C18,'RECAP SECT'!$G$6:$EV$253,62,FALSE) -> -63.77 | S18: =VLOOKUP($C18,'RECAP SECT'!$G$6:$EV$253,63,FALSE) -> 150% | T18: =VLOOKUP($C18,'RECAP SECT'!$G$6:$EV$253,64,FALSE) -> 18 | U18: =VLOOKUP($C18,'RECAP SECT'!$G$6:$EV$253,65,FALSE) -> 107% | V18: =VLOOKUP($C18,'RECAP SECT'!$G$6:$EV$253,66,FALSE) -> 101% | W18: =VLOOKUP($C18,'RECAP SECT'!$G$6:$EV$253,67,FALSE) -> 18
A19: 30 | B19: MARNE-ARDENNES | C19: 11 | D19: REIMS | E19: =VLOOKUP($C19,'RECAP SECT'!$G$6:$EV$253,3,FALSE) -> 89.8 | F19: =VLOOKUP($C19,'RECAP SECT'!$G$6:$EV$253,50,FALSE) -> 175.69 | G19: =VLOOKUP($C19,'RECAP SECT'!$G$6:$EV$253,51,FALSE) -> 46% | H19: =VLOOKUP($C19,'RECAP SECT'!$G$6:$EV$253,52,FALSE) -> 4 | I19: =VLOOKUP($C19,'RECAP SECT'!$G$6:$EV$253,53,FALSE) -> 572.43 | J19: =VLOOKUP($C19,'RECAP SECT'!$G$6:$EV$253,54,FALSE) -> 5% | K19: =VLOOKUP($C19,'RECAP SECT'!$G$6:$EV$253,55,FALSE) -> 3 | L19: =VLOOKUP($C19,'RECAP SECT'!$G$6:$EV$253,56,FALSE) -> 144 | M19: =VLOOKUP($C19,'RECAP SECT'!$G$6:$EV$253,57,FALSE) -> 27% | N19: =VLOOKUP($C19,'RECAP SECT'!$G$6:$EV$253,58,FALSE) -> 12 | O19: =VLOOKUP($C19,'RECAP SECT'!$G$6:$EV$253,59,FALSE) -> 202.26 | P19: =VLOOKUP($C19,'RECAP SECT'!$G$6:$EV$253,60,FALSE) -> 21% | Q19: =VLOOKUP($C19,'RECAP SECT'!$G$6:$EV$253,61,FALSE) -> 2 | R19: =VLOOKUP($C19,'RECAP SECT'!$G$6:$EV$253,62,FALSE) -> -14.49 | S19: =VLOOKUP($C19,'RECAP SECT'!$G$6:$EV$253,63,FALSE) -> 93% | T19: =VLOOKUP($C19,'RECAP SECT'!$G$6:$EV$253,64,FALSE) -> 15 | U19: =VLOOKUP($C19,'RECAP SECT'!$G$6:$EV$253,65,FALSE) -> 57% | V19: =VLOOKUP($C19,'RECAP SECT'!$G$6:$EV$253,66,FALSE) -> 51% | W19: =VLOOKUP($C19,'RECAP SECT'!$G$6:$EV$253,67,FALSE) -> 13
A20: 110 | B20: MEURTHE ET MOSELLE MEUSE | C20: 26 | D20: NANCY | E20: =VLOOKUP($C20,'RECAP SECT'!$G$6:$EV$253,3,FALSE) -> 78.0 | F20: =VLOOKUP($C20,'RECAP SECT'!$G$6:$EV$253,50,FALSE) -> 98.43 | G20: =VLOOKUP($C20,'RECAP SECT'!$G$6:$EV$253,51,FALSE) -> 70% | H20: =VLOOKUP($C20,'RECAP SECT'!$G$6:$EV$253,52,FALSE) -> 15 | I20: =VLOOKUP($C20,'RECAP SECT'!$G$6:$EV$253,53,FALSE) -> 521.63 | J20: =VLOOKUP($C20,'RECAP SECT'!$G$6:$EV$253,54,FALSE) -> 14% | K20: =VLOOKUP($C20,'RECAP SECT'!$G$6:$EV$253,55,FALSE) -> 7 | L20: =VLOOKUP($C20,'RECAP SECT'!$G$6:$EV$253,56,FALSE) -> 151 | M20: =VLOOKUP($C20,'RECAP SECT'!$G$6:$EV$253,57,FALSE) -> 23% | N20: =VLOOKUP($C20,'RECAP SECT'!$G$6:$EV$253,58,FALSE) -> 9 | O20: =VLOOKUP($C20,'RECAP SECT'!$G$6:$EV$253,59,FALSE) -> 147.47 | P20: =VLOOKUP($C20,'RECAP SECT'!$G$6:$EV$253,60,FALSE) -> 42% | Q20: =VLOOKUP($C20,'RECAP SECT'!$G$6:$EV$253,61,FALSE) -> 6 | R20: =VLOOKUP($C20,'RECAP SECT'!$G$6:$EV$253,62,FALSE) -> 6.58 | S20: =VLOOKUP($C20,'RECAP SECT'!$G$6:$EV$253,63,FALSE) -> 69% | T20: =VLOOKUP($C20,'RECAP SECT'!$G$6:$EV$253,64,FALSE) -> 10 | U20: =VLOOKUP($C20,'RECAP SECT'!$G$6:$EV$253,65,FALSE) -> 52% | V20: =VLOOKUP($C20,'RECAP SECT'!$G$6:$EV$253,66,FALSE) -> 47% | W20: =VLOOKUP($C20,'RECAP SECT'!$G$6:$EV$253,67,FALSE) -> 11
A21: 110 | B21: MEURTHE ET MOSELLE MEUSE | C21: 27 | D21: PONT A MOUSSON | E21: =VLOOKUP($C21,'RECAP SECT'!$G$6:$EV$253,3,FALSE) -> 87.4 | F21: =VLOOKUP($C21,'RECAP SECT'!$G$6:$EV$253,50,FALSE) -> 172.21 | G21: =VLOOKUP($C21,'RECAP SECT'!$G$6:$EV$253,51,FALSE) -> 47% | H21: =VLOOKUP($C21,'RECAP SECT'!$G$6:$EV$253,52,FALSE) -> 7 | I21: =VLOOKUP($C21,'RECAP SECT'!$G$6:$EV$253,53,FALSE) -> 480.07 | J21: =VLOOKUP($C21,'RECAP SECT'!$G$6:$EV$253,54,FALSE) -> 21% | K21: =VLOOKUP($C21,'RECAP SECT'!$G$6:$EV$253,55,FALSE) -> 9 | L21: =VLOOKUP($C21,'RECAP SECT'!$G$6:$EV$253,56,FALSE) -> 134 | M21: =VLOOKUP($C21,'RECAP SECT'!$G$6:$EV$253,57,FALSE) -> 32% | N21: =VLOOKUP($C21,'RECAP SECT'!$G$6:$EV$253,58,FALSE) -> 15 | O21: =VLOOKUP($C21,'RECAP SECT'!$G$6:$EV$253,59,FALSE) -> 182.43 | P21: =VLOOKUP($C21,'RECAP SECT'!$G$6:$EV$253,60,FALSE) -> 28% | Q21: =VLOOKUP($C21,'RECAP SECT'!$G$6:$EV$253,61,FALSE) -> 3 | R21: =VLOOKUP($C21,'RECAP SECT'!$G$6:$EV$253,62,FALSE) -> -9.39 | S21: =VLOOKUP($C21,'RECAP SECT'!$G$6:$EV$253,63,FALSE) -> 88% | T21: =VLOOKUP($C21,'RECAP SECT'!$G$6:$EV$253,64,FALSE) -> 14 | U21: =VLOOKUP($C21,'RECAP SECT'!$G$6:$EV$253,65,FALSE) -> 58% | V21: =VLOOKUP($C21,'RECAP SECT'!$G$6:$EV$253,66,FALSE) -> 52% | W21: =VLOOKUP($C21,'RECAP SECT'!$G$6:$EV$253,67,FALSE) -> 14
A22: 110 | B22: MEURTHE ET MOSELLE MEUSE | C22: 31 | D22: VERDUN | E22: =VLOOKUP($C22,'RECAP SECT'!$G$6:$EV$253,3,FALSE) -> 63.4 | F22: =VLOOKUP($C22,'RECAP SECT'!$G$6:$EV$253,50,FALSE) -> 145.79 | G22: =VLOOKUP($C22,'RECAP SECT'!$G$6:$EV$253,51,FALSE) -> 55% | H22: =VLOOKUP($C22,'RECAP SECT'!$G$6:$EV$253,52,FALSE) -> 10 | I22: =VLOOKUP($C22,'RECAP SECT'!$G$6:$EV$253,53,FALSE) -> 534.86 | J22: =VLOOKUP($C22,'RECAP SECT'!$G$6:$EV$253,54,FALSE) -> 12% | K22: =VLOOKUP($C22,'RECAP SECT'!$G$6:$EV$253,55,FALSE) -> 6 | L22: =VLOOKUP($C22,'RECAP SECT'!$G$6:$EV$253,56,FALSE) -> 158 | M22: =VLOOKUP($C22,'RECAP SECT'!$G$6:$EV$253,57,FALSE) -> 20% | N22: =VLOOKUP($C22,'RECAP SECT'!$G$6:$EV$253,58,FALSE) -> 8 | O22: =VLOOKUP($C22,'RECAP SECT'!$G$6:$EV$253,59,FALSE) -> 135.58 | P22: =VLOOKUP($C22,'RECAP SECT'!$G$6:$EV$253,60,FALSE) -> 47% | Q22: =VLOOKUP($C22,'RECAP SECT'!$G$6:$EV$253,61,FALSE) -> 8 | R22: =VLOOKUP($C22,'RECAP SECT'!$G$6:$EV$253,62,FALSE) -> 28.27 | S22: =VLOOKUP($C22,'RECAP SECT'!$G$6:$EV$253,63,FALSE) -> 44% | T22: =VLOOKUP($C22,'RECAP SECT'!$G$6:$EV$253,64,FALSE) -> 8 | U22: =VLOOKUP($C22,'RECAP SECT'!$G$6:$EV$253,65,FALSE) -> 39% | V22: =VLOOKUP($C22,'RECAP SECT'!$G$6:$EV$253,66,FALSE) -> 33% | W22: =VLOOKUP($C22,'RECAP SECT'!$G$6:$EV$253,67,FALSE) -> 7
A23: 160 | B23: MOSELLE | C23: 45 | D23: METZ | E23: =VLOOKUP($C23,'RECAP SECT'!$G$6:$EV$253,3,FALSE) -> 101.5 | F23: =VLOOKUP($C23,'RECAP SECT'!$G$6:$EV$253,50,FALSE) -> 326.64 | G23: =VLOOKUP($C23,'RECAP SECT'!$G$6:$EV$253,51,FALSE) -> 0% | H23: =VLOOKUP($C23,'RECAP SECT'!$G$6:$EV$253,52,FALSE) -> 1 | I23: =VLOOKUP($C23,'RECAP SECT'!$G$6:$EV$253,53,FALSE) -> 605.21 | J23: =VLOOKUP($C23,'RECAP SECT'!$G$6:$EV$253,54,FALSE) -> 0% | K23: =VLOOKUP($C23,'RECAP SECT'!$G$6:$EV$253,55,FALSE) -> 1 | L23: =VLOOKUP($C23,'RECAP SECT'!$G$6:$EV$253,56,FALSE) -> 184 | M23: =VLOOKUP($C23,'RECAP SECT'!$G$6:$EV$253,57,FALSE) -> 7% | N23: =VLOOKUP($C23,'RECAP SECT'!$G$6:$EV$253,58,FALSE) -> 2 | O23: =VLOOKUP($C23,'RECAP SECT'!$G$6:$EV$253,59,FALSE) -> 254.75 | P23: =VLOOKUP($C23,'RECAP SECT'!$G$6:$EV$253,60,FALSE) -> 0% | Q23: =VLOOKUP($C23,'RECAP SECT'!$G$6:$EV$253,61,FALSE) -> 1 | R23: =VLOOKUP($C23,'RECAP SECT'!$G$6:$EV$253,62,FALSE) -> 58.15 | S23: =VLOOKUP($C23,'RECAP SECT'!$G$6:$EV$253,63,FALSE) -> 10% | T23: =VLOOKUP($C23,'RECAP SECT'!$G$6:$EV$253,64,FALSE) -> 5 | U23: =VLOOKUP($C23,'RECAP SECT'!$G$6:$EV$253,65,FALSE) -> 6% | V23: =VLOOKUP($C23,'RECAP SECT'!$G$6:$EV$253,66,FALSE) -> 0% | W23: =VLOOKUP($C23,'RECAP SECT'!$G$6:$EV$253,67,FALSE) -> 1
A24: 160 | B24: MOSELLE | C24: 42 | D24: MOSELLE EST | E24: =VLOOKUP($C24,'RECAP SECT'!$G$6:$EV$253,3,FALSE) -> 84.0 | F24: =VLOOKUP($C24,'RECAP SECT'!$G$6:$EV$253,50,FALSE) -> 101.77 | G24: =VLOOKUP($C24,'RECAP SECT'!$G$6:$EV$253,51,FALSE) -> 69% | H24: =VLOOKUP($C24,'RECAP SECT'!$G$6:$EV$253,52,FALSE) -> 14 | I24: =VLOOKUP($C24,'RECAP SECT'!$G$6:$EV$253,53,FALSE) -> 462.80 | J24: =VLOOKUP($C24,'RECAP SECT'!$G$6:$EV$253,54,FALSE) -> 24% | K24: =VLOOKUP($C24,'RECAP SECT'!$G$6:$EV$253,55,FALSE) -> 11 | L24: =VLOOKUP($C24,'RECAP SECT'!$G$6:$EV$253,56,FALSE) -> 144 | M24: =VLOOKUP($C24,'RECAP SECT'!$G$6:$EV$253,57,FALSE) -> 27% | N24: =VLOOKUP($C24,'RECAP SECT'!$G$6:$EV$253,58,FALSE) -> 11 | O24: =VLOOKUP($C24,'RECAP SECT'!$G$6:$EV$253,59,FALSE) -> 105.96 | P24: =VLOOKUP($C24,'RECAP SECT'!$G$6:$EV$253,60,FALSE) -> 58% | Q24: =VLOOKUP($C24,'RECAP SECT'!$G$6:$EV$253,61,FALSE) -> 11 | R24: =VLOOKUP($C24,'RECAP SECT'!$G$6:$EV$253,62,FALSE) -> 18.67 | S24: =VLOOKUP($C24,'RECAP SECT'!$G$6:$EV$253,63,FALSE) -> 55% | T24: =VLOOKUP($C24,'RECAP SECT'!$G$6:$EV$253,64,FALSE) -> 9 | U24: =VLOOKUP($C24,'RECAP SECT'!$G$6:$EV$253,65,FALSE) -> 50% | V24: =VLOOKUP($C24,'RECAP SECT'!$G$6:$EV$253,66,FALSE) -> 44% | W24: =VLOOKUP($C24,'RECAP SECT'!$G$6:$EV$253,67,FALSE) -> 9
A25: 160 | B25: MOSELLE | C25: 44 | D25: MOSELLE NORD | E25: =VLOOKUP($C25,'RECAP SECT'!$G$6:$EV$253,3,FALSE) -> 78.7 | F25: =VLOOKUP($C25,'RECAP SECT'!$G$6:$EV$253,50,FALSE) -> 122.93 | G25: =VLOOKUP($C25,'RECAP SECT'!$G$6:$EV$253,51,FALSE) -> 62% | H25: =VLOOKUP($C25,'RECAP SECT'!$G$6:$EV$253,52,FALSE) -> 13 | I25: =VLOOKUP($C25,'RECAP SECT'!$G$6:$EV$253,53,FALSE) -> 557.40 | J25: =VLOOKUP($C25,'RECAP SECT'!$G$6:$EV$253,54,FALSE) -> 8% | K25: =VLOOKUP($C25,'RECAP SECT'!$G$6:$EV$253,55,FALSE) -> 4 | L25: =VLOOKUP($C25,'RECAP SECT'!$G$6:$EV$253,56,FALSE) -> 169 | M25: =VLOOKUP($C25,'RECAP SECT'!$G$6:$EV$253,57,FALSE) -> 14% | N25: =VLOOKUP($C25,'RECAP SECT'!$G$6:$EV$253,58,FALSE) -> 3 | O25: =VLOOKUP($C25,'RECAP SECT'!$G$6:$EV$253,59,FALSE) -> 175.65 | P25: =VLOOKUP($C25,'RECAP SECT'!$G$6:$EV$253,60,FALSE) -> 31% | Q25: =VLOOKUP($C25,'RECAP SECT'!$G$6:$EV$253,61,FALSE) -> 4 | R25: =VLOOKUP($C25,'RECAP SECT'!$G$6:$EV$253,62,FALSE) -> -55.64 | S25: =VLOOKUP($C25,'RECAP SECT'!$G$6:$EV$253,63,FALSE) -> 141% | T25: =VLOOKUP($C25,'RECAP SECT'!$G$6:$EV$253,64,FALSE) -> 17 | U25: =VLOOKUP($C25,'RECAP SECT'!$G$6:$EV$253,65,FALSE) -> 81% | V25: =VLOOKUP($C25,'RECAP SECT'!$G$6:$EV$253,66,FALSE) -> 75% | W25: =VLOOKUP($C25,'RECAP SECT'!$G$6:$EV$253,67,FALSE) -> 17
A26: 80 | B26: VOSGES | C26: 57 | D26: EPINAL | E26: =VLOOKUP($C26,'RECAP SECT'!$G$6:$EV$253,3,FALSE) -> 66.9 | F26: =VLOOKUP($C26,'RECAP SECT'!$G$6:$EV$253,50,FALSE) -> 173.84 | G26: =VLOOKUP($C26,'RECAP SECT'!$G$6:$EV$253,51,FALSE) -> 47% | H26: =VLOOKUP($C26,'RECAP SECT'!$G$6:$EV$253,52,FALSE) -> 5 | I26: =VLOOKUP($C26,'RECAP SECT'!$G$6:$EV$253,53,FALSE) -> 469.02 | J26: =VLOOKUP($C26,'RECAP SECT'!$G$6:$EV$253,54,FALSE) -> 23% | K26: =VLOOKUP($C26,'RECAP SECT'!$G$6:$EV$253,55,FALSE) -> 10 | L26: =VLOOKUP($C26,'RECAP SECT'!$G$6:$EV$253,56,FALSE) -> 143 | M26: =VLOOKUP($C26,'RECAP SECT'!$G$6:$EV$253,57,FALSE) -> 27% | N26: =VLOOKUP($C26,'RECAP SECT'!$G$6:$EV$253,58,FALSE) -> 13 | O26: =VLOOKUP($C26,'RECAP SECT'!$G$6:$EV$253,59,FALSE) -> 113.92 | P26: =VLOOKUP($C26,'RECAP SECT'!$G$6:$EV$253,60,FALSE) -> 55% | Q26: =VLOOKUP($C26,'RECAP SECT'!$G$6:$EV$253,61,FALSE) -> 10 | R26: =VLOOKUP($C26,'RECAP SECT'!$G$6:$EV$253,62,FALSE) -> 38.20 | S26: =VLOOKUP($C26,'RECAP SECT'!$G$6:$EV$253,63,FALSE) -> 33% | T26: =VLOOKUP($C26,'RECAP SECT'!$G$6:$EV$253,64,FALSE) -> 6 | U26: =VLOOKUP($C26,'RECAP SECT'!$G$6:$EV$253,65,FALSE) -> 36% | V26: =VLOOKUP($C26,'RECAP SECT'!$G$6:$EV$253,66,FALSE) -> 30% | W26: =VLOOKUP($C26,'RECAP SECT'!$G$6:$EV$253,67,FALSE) -> 6
A27: 80 | B27: VOSGES | C27: 55 | D27: SAINT DIE | E27: =VLOOKUP($C27,'RECAP SECT'!$G$6:$EV$253,3,FALSE) -> 56.7 | F27: =VLOOKUP($C27,'RECAP SECT'!$G$6:$EV$253,50,FALSE) -> 211.61 | G27: =VLOOKUP($C27,'RECAP SECT'!$G$6:$EV$253,51,FALSE) -> 35% | H27: =VLOOKUP($C27,'RECAP SECT'!$G$6:$EV$253,52,FALSE) -> 3 | I27: =VLOOKUP($C27,'RECAP SECT'!$G$6:$EV$253,53,FALSE) -> 572.78 | J27: =VLOOKUP($C27,'RECAP SECT'!$G$6:$EV$253,54,FALSE) -> 5% | K27: =VLOOKUP($C27,'RECAP SECT'!$G$6:$EV$253,55,FALSE) -> 2 | L27: =VLOOKUP($C27,'RECAP SECT'!$G$6:$EV$253,56,FALSE) -> 164 | M27: =VLOOKUP($C27,'RECAP SECT'!$G$6:$EV$253,57,FALSE) -> 16% | N27: =VLOOKUP($C27,'RECAP SECT'!$G$6:$EV$253,58,FALSE) -> 6 | O27: =VLOOKUP($C27,'RECAP SECT'!$G$6:$EV$253,59,FALSE) -> 170.54 | P27: =VLOOKUP($C27,'RECAP SECT'!$G$6:$EV$253,60,FALSE) -> 33% | Q27: =VLOOKUP($C27,'RECAP SECT'!$G$6:$EV$253,61,FALSE) -> 5 | R27: =VLOOKUP($C27,'RECAP SECT'!$G$6:$EV$253,62,FALSE) -> -3.64 | S27: =VLOOKUP($C27,'RECAP SECT'!$G$6:$EV$253,63,FALSE) -> 81% | T27: =VLOOKUP($C27,'RECAP SECT'!$G$6:$EV$253,64,FALSE) -> 12 | U27: =VLOOKUP($C27,'RECAP SECT'!$G$6:$EV$253,65,FALSE) -> 50% | V27: =VLOOKUP($C27,'RECAP SECT'!$G$6:$EV$253,66,FALSE) -> 44% | W27: =VLOOKUP($C27,'RECAP SECT'!$G$6:$EV$253,67,FALSE) -> 10
A28: Total CEGEE Directions Régionales | E28: =SUM(E10:E27) -> 1346

Sheet SE_CREDIT
A1: Accueil | F1: BAROMETRE BDD - TERRITOIRES
F2: CREDITS
F3: =ACCUEIL!H7 -> 2019-09-30
F7: Engagements crédit conso (hors clients note octroi à 9) | I7: % CNP crédit conso | L7: Engagements crédi immo | O7: % CNP crédit immo | R7: Taux couverture SACCEF | U7: Engagement Crédit MLT + Crédit Bail | X7: Total Crédits
G8: coef | H8: ='RECAP DIRCOM'!CD4 -> 3% | J8: coef | K8: ='RECAP DIRCOM'!CG4 -> 2% | M8: coef | N8: ='RECAP DIRCOM'!CJ4 -> 3% | P8: coef | Q8: ='RECAP DIRCOM'!CM4 -> 2% | S8: coef | T8: ='RECAP DIRCOM'!CP4 -> 2% | V8: coef | W8: ='RECAP DIRCOM'!CS4 -> 3% | Y8: coef | Z8: ='RECAP DIRCOM'!CV4 -> 15%
A9: eds | B9: Direction | C9: eds | D9: Territoire | E9: ETP perf | F9: Réal / ETP | G9: % Ecart au 1er | H9: Rang | J9: % Ecart au 1er | K9: Rang | L9: Taux réal objectif | M9: % Ecart au 1er | N9: Rang | P9: % Ecart au 1er | Q9: Rang | S9: % Ecart au 1er | T9: Rang | U9: Taux réal objectif | V9: % Ecart au 1er | W9: Rang | X9: Moyenne ecart au 1er | Y9: % Ecart au 1er | Z9: Rang CEGEE
A10: 50 | B10: AUBE HAUTE MARNE | C10: 21 | D10: CHAUMONT | E10: =VLOOKUP($C10,'RECAP SECT'!$G$6:$EV$253,3,FALSE) -> 46.0 | F10: =VLOOKUP($C10,'RECAP SECT'!$G$6:$EV$253,74,FALSE) -> 473.57 | G10: =VLOOKUP($C10,'RECAP SECT'!$G$6:$EV$253,75,FALSE) -> 0% | H10: =VLOOKUP($C10,'RECAP SECT'!$G$6:$EV$253,76,FALSE) -> 2 | I10: =VLOOKUP($C10,'RECAP SECT'!$G$6:$EV$253,77,FALSE) -> 94% | J10: =VLOOKUP($C10,'RECAP SECT'!$G$6:$EV$253,78,FALSE) -> 3% | K10: =VLOOKUP($C10,'RECAP SECT'!$G$6:$EV$253,79,FALSE) -> 11 | L10: =VLOOKUP($C10,'RECAP SECT'!$G$6:$EV$253,80,FALSE) -> 62% | M10: =VLOOKUP($C10,'RECAP SECT'!$G$6:$EV$253,81,FALSE) -> 45% | N10: =VLOOKUP($C10,'RECAP SECT'!$G$6:$EV$253,82,FALSE) -> 18 | O10: =VLOOKUP($C10,'RECAP SECT'!$G$6:$EV$253,83,FALSE) -> 57% | P10: =VLOOKUP($C10,'RECAP SECT'!$G$6:$EV$253,84,FALSE) -> 33% | Q10: =VLOOKUP($C10,'RECAP SECT'!$G$6:$EV$253,85,FALSE) -> 15 | R10: =VLOOKUP($C10,'RECAP SECT'!$G$6:$EV$253,86,FALSE) -> 85% | S10: =VLOOKUP($C10,'RECAP SECT'!$G$6:$EV$253,87,FALSE) -> 10% | T10: =VLOOKUP($C10,'RECAP SECT'!$G$6:$EV$253,88,FALSE) -> 13 | U10: =VLOOKUP($C10,'RECAP SECT'!$G$6:$EV$253,89,FALSE) -> 103% | V10: =VLOOKUP($C10,'RECAP SECT'!$G$6:$EV$253,90,FALSE) -> 10% | W10: =VLOOKUP($C10,'RECAP SECT'!$G$6:$EV$253,91,FALSE) -> 3 | X10: =VLOOKUP($C10,'RECAP SECT'!$G$6:$EV$253,92,FALSE) -> 17% | Y10: =VLOOKUP($C10,'RECAP SECT'!$G$6:$EV$253,93,FALSE) -> 10% | Z10: =VLOOKUP($C10,'RECAP SECT'!$G$6:$EV$253,94,FALSE) -> 7
A11: 50 | B11: AUBE HAUTE MARNE | C11: 14 | D11: TROYES | E11: =VLOOKUP($C11,'RECAP SECT'!$G$6:$EV$253,3,FALSE) -> 77.6 | F11: =VLOOKUP($C11,'RECAP SECT'!$G$6:$EV$253,74,FALSE) -> 444.07 | G11: =VLOOKUP($C11,'RECAP SECT'!$G$6:$EV$253,75,FALSE) -> 6% | H11: =VLOOKUP($C11,'RECAP SECT'!$G$6:$EV$253,76,FALSE) -> 4 | I11: =VLOOKUP($C11,'RECAP SECT'!$G$6:$EV$253,77,FALSE) -> 90% | J11: =VLOOKUP($C11,'RECAP SECT'!$G$6:$EV$253,78,FALSE) -> 7% | K11: =VLOOKUP($C11,'RECAP SECT'!$G$6:$EV$253,79,FALSE) -> 16 | L11: =VLOOKUP($C11,'RECAP SECT'!$G$6:$EV$253,80,FALSE) -> 79% | M11: =VLOOKUP($C11,'RECAP SECT'!$G$6:$EV$253,81,FALSE) -> 30% | N11: =VLOOKUP($C11,'RECAP SECT'!$G$6:$EV$253,82,FALSE) -> 10 | O11: =VLOOKUP($C11,'RECAP SECT'!$G$6:$EV$253,83,FALSE) -> 63% | P11: =VLOOKUP($C11,'RECAP SECT'!$G$6:$EV$253,84,FALSE) -> 26% | Q11: =VLOOKUP($C11,'RECAP SECT'!$G$6:$EV$253,85,FALSE) -> 12 | R11: =VLOOKUP($C11,'RECAP SECT'!$G$6:$EV$253,86,FALSE) -> 85% | S11: =VLOOKUP($C11,'RECAP SECT'!$G$6:$EV$253,87,FALSE) -> 10% | T11: =VLOOKUP($C11,'RECAP SECT'!$G$6:$EV$253,88,FALSE) -> 14 | U11: =VLOOKUP($C11,'RECAP SECT'!$G$6:$EV$253,89,FALSE) -> 91% | V11: =VLOOKUP($C11,'RECAP SECT'!$G$6:$EV$253,90,FALSE) -> 20% | W11: =VLOOKUP($C11,'RECAP SECT'!$G$6:$EV$253,91,FALSE) -> 7 | X11: =VLOOKUP($C11,'RECAP SECT'!$G$6:$EV$253,92,FALSE) -> 17% | Y11: =VLOOKUP($C11,'RECAP SECT'!$G$6:$EV$253,93,FALSE) -> 10% | Z11: =VLOOKUP($C11,'RECAP SECT'!$G$6:$EV$253,94,FALSE) -> 8
A12: 262 | B12: BAS-RHIN | C12: 5060 | D12: HAGUENAU | E12: =VLOOKUP($C12,'RECAP SECT'!$G$6:$EV$253,3,FALSE) -> 87.6 | F12: =VLOOKUP($C12,'RECAP SECT'!$G$6:$EV$253,74,FALSE) -> 353.50 | G12: =VLOOKUP($C12,'RECAP SECT'!$G$6:$EV$253,75,FALSE) -> 25% | H12: =VLOOKUP($C12,'RECAP SECT'!$G$6:$EV$253,76,FALSE) -> 16 | I12: =VLOOKUP($C12,'RECAP SECT'!$G$6:$EV$253,77,FALSE) -> 96% | J12: =VLOOKUP($C12,'RECAP SECT'!$G$6:$EV$253,78,FALSE) -> 1% | K12: =VLOOKUP($C12,'RECAP SECT'!$G$6:$EV$253,79,FALSE) -> 3 | L12: =VLOOKUP($C12,'RECAP SECT'!$G$6:$EV$253,80,FALSE) -> 72% | M12: =VLOOKUP($C12,'RECAP SECT'!$G$6:$EV$253,81,FALSE) -> 36% | N12: =VLOOKUP($C12,'RECAP SECT'!$G$6:$EV$253,82,FALSE) -> 17 | O12: =VLOOKUP($C12,'RECAP SECT'!$G$6:$EV$253,83,FALSE) -> 58% | P12: =VLOOKUP($C12,'RECAP SECT'!$G$6:$EV$253,84,FALSE) -> 32% | Q12: =VLOOKUP($C12,'RECAP SECT'!$G$6:$EV$253,85,FALSE) -> 14 | R12: =VLOOKUP($C12,'RECAP SECT'!$G$6:$EV$253,86,FALSE) -> 86% | S12: =VLOOKUP($C12,'RECAP SECT'!$G$6:$EV$253,87,FALSE) -> 8% | T12: =VLOOKUP($C12,'RECAP SECT'!$G$6:$EV$253,88,FALSE) -> 11 | U12: =VLOOKUP($C12,'RECAP SECT'!$G$6:$EV$253,89,FALSE) -> 65% | V12: =VLOOKUP($C12,'RECAP SECT'!$G$6:$EV$253,90,FALSE) -> 43% | W12: =VLOOKUP($C12,'RECAP SECT'!$G$6:$EV$253,91,FALSE) -> 12 | X12: =VLOOKUP($C12,'RECAP SECT'!$G$6:$EV$253,92,FALSE) -> 27% | Y12: =VLOOKUP($C12,'RECAP SECT'!$G$6:$EV$253,93,FALSE) -> 19% | Z12: =VLOOKUP($C12,'RECAP SECT'!$G$6:$EV$253,94,FALSE) -> 17
A13: 262 | B13: BAS-RHIN | C13: 5101 | D13: SELESTAT | E13: =VLOOKUP($C13,'RECAP SECT'!$G$6:$EV$253,3,FALSE) -> 75.2 | F13: =VLOOKUP($C13,'RECAP SECT'!$G$6:$EV$253,74,FALSE) -> 359.17 | G13: =VLOOKUP($C13,'RECAP SECT'!$G$6:$EV$253,75,FALSE) -> 24% | H13: =VLOOKUP($C13,'RECAP SECT'!$G$6:$EV$253,76,FALSE) -> 14 | I13: =VLOOKUP($C13,'RECAP SECT'!$G$6:$EV$253,77,FALSE) -> 95% | J13: =VLOOKUP($C13,'RECAP SECT'!$G$6:$EV$253,78,FALSE) -> 2% | K13: =VLOOKUP($C13,'RECAP SECT'!$G$6:$EV$253,79,FALSE) -> 9 | L13: =VLOOKUP($C13,'RECAP SECT'!$G$6:$EV$253,80,FALSE) -> 78% | M13: =VLOOKUP($C13,'RECAP SECT'!$G$6:$EV$253,81,FALSE) -> 31% | N13: =VLOOKUP($C13,'RECAP SECT'!$G$6:$EV$253,82,FALSE) -> 12 | O13: =VLOOKUP($C13,'RECAP SECT'!$G$6:$EV$253,83,FALSE) -> 58% | P13: =VLOOKUP($C13,'RECAP SECT'!$G$6:$EV$253,84,FALSE) -> 32% | Q13: =VLOOKUP($C13,'RECAP SECT'!$G$6:$EV$253,85,FALSE) -> 13 | R13: =VLOOKUP($C13,'RECAP SECT'!$G$6:$EV$253,86,FALSE) -> 86% | S13: =VLOOKUP($C13,'RECAP SECT'!$G$6:$EV$253,87,FALSE) -> 9% | T13: =VLOOKUP($C13,'RECAP SECT'!$G$6:$EV$253,88,FALSE) -> 12 | U13: =VLOOKUP($C13,'RECAP SECT'!$G$6:$EV$253,89,FALSE) -> 92% | V13: =VLOOKUP($C13,'RECAP SECT'!$G$6:$EV$253,90,FALSE) -> 20% | W13: =VLOOKUP($C13,'RECAP SECT'!$G$6:$EV$253,91,FALSE) -> 6 | X13: =VLOOKUP($C13,'RECAP SECT'!$G$6:$EV$253,92,FALSE) -> 21% | Y13: =VLOOKUP($C13,'RECAP SECT'!$G$6:$EV$253,93,FALSE) -> 13% | Z13: =VLOOKUP($C13,'RECAP SECT'!$G$6:$EV$253,94,FALSE) -> 12
A14: 262 | B14: BAS-RHIN | C14: 5006 | D14: STRASBOURG | E14: =VLOOKUP($C14,'RECAP SECT'!$G$6:$EV$253,3,FALSE) -> 92.1 | F14: =VLOOKUP($C14,'RECAP SECT'!$G$6:$EV$253,74,FALSE) -> 310.28 | G14: =VLOOKUP($C14,'RECAP SECT'!$G$6:$EV$253,75,FALSE) -> 35% | H14: =VLOOKUP($C14,'RECAP SECT'!$G$6:$EV$253,76,FALSE) -> 18 | I14: =VLOOKUP($C14,'RECAP SECT'!$G$6:$EV$253,77,FALSE) -> 91% | J14: =VLOOKUP($C14,'RECAP SECT'!$G$6:$EV$253,78,FALSE) -> 7% | K14: =VLOOKUP($C14,'RECAP SECT'!$G$6:$EV$253,79,FALSE) -> 15 | L14: =VLOOKUP($C14,'RECAP SECT'!$G$6:$EV$253,80,FALSE) -> 96% | M14: =VLOOKUP($C14,'RECAP SECT'!$G$6:$EV$253,81,FALSE) -> 15% | N14: =VLOOKUP($C14,'RECAP SECT'!$G$6:$EV$253,82,FALSE) -> 6 | O14: =VLOOKUP($C14,'RECAP SECT'!$G$6:$EV$253,83,FALSE) -> 49% | P14: =VLOOKUP($C14,'RECAP SECT'!$G$6:$EV$253,84,FALSE) -> 43% | Q14: =VLOOKUP($C14,'RECAP SECT'!$G$6:$EV$253,85,FALSE) -> 18 | R14: =VLOOKUP($C14,'RECAP SECT'!$G$6:$EV$253,86,FALSE) -> 83% | S14: =VLOOKUP($C14,'RECAP SECT'!$G$6:$EV$253,87,FALSE) -> 12% | T14: =VLOOKUP($C14,'RECAP SECT'!$G$6:$EV$253,88,FALSE) -> 15 | U14: =VLOOKUP($C14,'RECAP SECT'!$G$6:$EV$253,89,FALSE) -> 100% | V14: =VLOOKUP($C14,'RECAP SECT'!$G$6:$EV$253,90,FALSE) -> 13% | W14: =VLOOKUP($C14,'RECAP SECT'!$G$6:$EV$253,91,FALSE) -> 5 | X14: =VLOOKUP($C14,'RECAP SECT'!$G$6:$EV$253,92,FALSE) -> 21% | Y14: =VLOOKUP($C14,'RECAP SECT'!$G$6:$EV$253,93,FALSE) -> 13% | Z14: =VLOOKUP($C14,'RECAP SECT'!$G$6:$EV$253,94,FALSE) -> 10
A15: 264 | B15: HAUT-RHIN | C15: 5130 | D15: COLMAR | E15: =VLOOKUP($C15,'RECAP SECT'!$G$6:$EV$253,3,FALSE) -> 75.3 | F15: =VLOOKUP($C15,'RECAP SECT'!$G$6:$EV$253,74,FALSE) -> 326.60 | G15: =VLOOKUP($C15,'RECAP SECT'!$G$6:$EV$253,75,FALSE) -> 31% | H15: =VLOOKUP($C15,'RECAP SECT'!$G$6:$EV$253,76,FALSE) -> 17 | I15: =VLOOKUP($C15,'RECAP SECT'!$G$6:$EV$253,77,FALSE) -> 90% | J15: =VLOOKUP($C15,'RECAP SECT'!$G$6:$EV$253,78,FALSE) -> 8% | K15: =VLOOKUP($C15,'RECAP SECT'!$G$6:$EV$253,79,FALSE) -> 17 | L15: =VLOOKUP($C15,'RECAP SECT'!$G$6:$EV$253,80,FALSE) -> 79% | M15: =VLOOKUP($C15,'RECAP SECT'!$G$6:$EV$253,81,FALSE) -> 30% | N15: =VLOOKUP($C15,'RECAP SECT'!$G$6:$EV$253,82,FALSE) -> 11 | O15: =VLOOKUP($C15,'RECAP SECT'!$G$6:$EV$253,83,FALSE) -> 63% | P15: =VLOOKUP($C15,'RECAP SECT'!$G$6:$EV$253,84,FALSE) -> 26% | Q15: =VLOOKUP($C15,'RECAP SECT'!$G$6:$EV$253,85,FALSE) -> 11 | R15: =VLOOKUP($C15,'RECAP SECT'!$G$6:$EV$253,86,FALSE) -> 79% | S15: =VLOOKUP($C15,'RECAP SECT'!$G$6:$EV$253,87,FALSE) -> 16% | T15: =VLOOKUP($C15,'RECAP SECT'!$G$6:$EV$253,88,FALSE) -> 17 | U15: =VLOOKUP($C15,'RECAP SECT'!$G$6:$EV$253,89,FALSE) -> 48% | V15: =VLOOKUP($C15,'RECAP SECT'!$G$6:$EV$253,90,FALSE) -> 58% | W15: =VLOOKUP($C15,'RECAP SECT'!$G$6:$EV$253,91,FALSE) -> 16 | X15: =VLOOKUP($C15,'RECAP SECT'!$G$6:$EV$253,92,FALSE) -> 30% | Y15: =VLOOKUP($C15,'RECAP SECT'!$G$6:$EV$253,93,FALSE) -> 23% | Z15: =VLOOKUP($C15,'RECAP SECT'!$G$6:$EV$253,94,FALSE) -> 18
A16: 264 | B16: HAUT-RHIN | C16: 5169 | D16: MULHOUSE | E16: =VLOOKUP($C16,'RECAP SECT'!$G$6:$EV$253,3,FALSE) -> 75.1 | F16: =VLOOKUP($C16,'RECAP SECT'!$G$6:$EV$253,74,FALSE) -> 377.39 | G16: =VLOOKUP($C16,'RECAP SECT'!$G$6:$EV$253,75,FALSE) -> 20% | H16: =VLOOKUP($C16,'RECAP SECT'!$G$6:$EV$253,76,FALSE) -> 12 | I16: =VLOOKUP($C16,'RECAP SECT'!$G$6:$EV$253,77,FALSE) -> 96% | J16: =VLOOKUP($C16,'RECAP SECT'!$G$6:$EV$253,78,FALSE) -> 2% | K16: =VLOOKUP($C16,'RECAP SECT'!$G$6:$EV$253,79,FALSE) -> 7 | L16: =VLOOKUP($C16,'RECAP SECT'!$G$6:$EV$253,80,FALSE) -> 92% | M16: =VLOOKUP($C16,'RECAP SECT'!$G$6:$EV$253,81,FALSE) -> 19% | N16: =VLOOKUP($C16,'RECAP SECT'!$G$6:$EV$253,82,FALSE) -> 9 | O16: =VLOOKUP($C16,'RECAP SECT'!$G$6:$EV$253,83,FALSE) -> 75% | P16: =VLOOKUP($C16,'RECAP SECT'!$G$6:$EV$253,84,FALSE) -> 12% | Q16: =VLOOKUP($C16,'RECAP SECT'!$G$6:$EV$253,85,FALSE) -> 5 | R16: =VLOOKUP($C16,'RECAP SECT'!$G$6:$EV$253,86,FALSE) -> 69% | S16: =VLOOKUP($C16,'RECAP SECT'!$G$6:$EV$253,87,FALSE) -> 26% | T16: =VLOOKUP($C16,'RECAP SECT'!$G$6:$EV$253,88,FALSE) -> 18 | U16: =VLOOKUP($C16,'RECAP SECT'!$G$6:$EV$253,89,FALSE) -> 115% | V16: =VLOOKUP($C16,'RECAP SECT'!$G$6:$EV$253,90,FALSE) -> 0% | W16: =VLOOKUP($C16,'RECAP SECT'!$G$6:$EV$253,91,FALSE) -> 1 | X16: =VLOOKUP($C16,'RECAP SECT'!$G$6:$EV$253,92,FALSE) -> 13% | Y16: =VLOOKUP($C16,'RECAP SECT'!$G$6:$EV$253,93,FALSE) -> 6% | Z16: =VLOOKUP($C16,'RECAP SECT'!$G$6:$EV$253,94,FALSE) -> 3
A17: 30 | B17: MARNE-ARDENNES | C17: 6 | D17: CHALONS EN CHAMPAGNE | E17: =VLOOKUP($C17,'RECAP SECT'!$G$6:$EV$253,3,FALSE) -> 48.8 | F17: =VLOOKUP($C17,'RECAP SECT'!$G$6:$EV$253,74,FALSE) -> 402.32 | G17: =VLOOKUP($C17,'RECAP SECT'!$G$6:$EV$253,75,FALSE) -> 15% | H17: =VLOOKUP($C17,'RECAP SECT'!$G$6:$EV$253,76,FALSE) -> 7 | I17: =VLOOKUP($C17,'RECAP SECT'!$G$6:$EV$253,77,FALSE) -> 96% | J17: =VLOOKUP($C17,'RECAP SECT'!$G$6:$EV$253,78,FALSE) -> 1% | K17: =VLOOKUP($C17,'RECAP SECT'!$G$6:$EV$253,79,FALSE) -> 6 | L17: =VLOOKUP($C17,'RECAP SECT'!$G$6:$EV$253,80,FALSE) -> 95% | M17: =VLOOKUP($C17,'RECAP SECT'!$G$6:$EV$253,81,FALSE) -> 15% | N17: =VLOOKUP($C17,'RECAP SECT'!$G$6:$EV$253,82,FALSE) -> 7 | O17: =VLOOKUP($C17,'RECAP SECT'!$G$6:$EV$253,83,FALSE) -> 77% | P17: =VLOOKUP($C17,'RECAP SECT'!$G$6:$EV$253,84,FALSE) -> 10% | Q17: =VLOOKUP($C17,'RECAP SECT'!$G$6:$EV$253,85,FALSE) -> 3 | R17: =VLOOKUP($C17,'RECAP SECT'!$G$6:$EV$253,86,FALSE) -> 89% | S17: =VLOOKUP($C17,'RECAP SECT'!$G$6:$EV$253,87,FALSE) -> 6% | T17: =VLOOKUP($C17,'RECAP SECT'!$G$6:$EV$253,88,FALSE) -> 7 | U17: =VLOOKUP($C17,'RECAP SECT'!$G$6:$EV$253,89,FALSE) -> 84% | V17: =VLOOKUP($C17,'RECAP SECT'!$G$6:$EV$253,90,FALSE) -> 27% | W17: =VLOOKUP($C17,'RECAP SECT'!$G$6:$EV$253,91,FALSE) -> 8 | X17: =VLOOKUP($C17,'RECAP SECT'!$G$6:$EV$253,92,FALSE) -> 14% | Y17: =VLOOKUP($C17,'RECAP SECT'!$G$6:$EV$253,93,FALSE) -> 6% | Z17: =VLOOKUP($C17,'RECAP SECT'!$G$6:$EV$253,94,FALSE) -> 4
A18: 30 | B18: MARNE-ARDENNES | C18: 2 | D18: CHARLEVILLE MEZIERES | E18: =VLOOKUP($C18,'RECAP SECT'!$G$6:$EV$253,3,FALSE) -> 62.2 | F18: =VLOOKUP($C18,'RECAP SECT'!$G$6:$EV$253,74,FALSE) -> 398.57 | G18: =VLOOKUP($C18,'RECAP SECT'!$G$6:$EV$253,75,FALSE) -> 16% | H18: =VLOOKUP($C18,'RECAP SECT'!$G$6:$EV$253,76,FALSE) -> 8 | I18: =VLOOKUP($C18,'RECAP SECT'!$G$6:$EV$253,77,FALSE) -> 96% | J18: =VLOOKUP($C18,'RECAP SECT'!$G$6:$EV$253,78,FALSE) -> 1% | K18: =VLOOKUP($C18,'RECAP SECT'!$G$6:$EV$253,79,FALSE) -> 5 | L18: =VLOOKUP($C18,'RECAP SECT'!$G$6:$EV$253,80,FALSE) -> 100% | M18: =VLOOKUP($C18,'RECAP SECT'!$G$6:$EV$253,81,FALSE) -> 11% | N18: =VLOOKUP($C18,'RECAP SECT'!$G$6:$EV$253,82,FALSE) -> 3 | O18: =VLOOKUP($C18,'RECAP SECT'!$G$6:$EV$253,83,FALSE) -> 85% | P18: =VLOOKUP($C18,'RECAP SECT'!$G$6:$EV$253,84,FALSE) -> 0% | Q18: =VLOOKUP($C18,'RECAP SECT'!$G$6:$EV$253,85,FALSE) -> 1 | R18: =VLOOKUP($C18,'RECAP SECT'!$G$6:$EV$253,86,FALSE) -> 86% | S18: =VLOOKUP($C18,'RECAP SECT'!$G$6:$EV$253,87,FALSE) -> 8% | T18: =VLOOKUP($C18,'RECAP SECT'!$G$6:$EV$253,88,FALSE) -> 10 | U18: =VLOOKUP($C18,'RECAP SECT'!$G$6:$EV$253,89,FALSE) -> 110% | V18: =VLOOKUP($C18,'RECAP SECT'!$G$6:$EV$253,90,FALSE) -> 4% | W18: =VLOOKUP($C18,'RECAP SECT'!$G$6:$EV$253,91,FALSE) -> 2 | X18: =VLOOKUP($C18,'RECAP SECT'!$G$6:$EV$253,92,FALSE) -> 7% | Y18: =VLOOKUP($C18,'RECAP SECT'!$G$6:$EV$253,93,FALSE) -> 0% | Z18: =VLOOKUP($C18,'RECAP SECT'!$G$6:$EV$253,94,FALSE) -> 1
A19: 30 | B19: MARNE-ARDENNES | C19: 11 | D19: REIMS | E19: =VLOOKUP($C19,'RECAP SECT'!$G$6:$EV$253,3,FALSE) -> 89.8 | F19: =VLOOKUP($C19,'RECAP SECT'!$G$6:$EV$253,74,FALSE) -> 474.35 | G19: =VLOOKUP($C19,'RECAP SECT'!$G$6:$EV$253,75,FALSE) -> 0% | H19: =VLOOKUP($C19,'RECAP SECT'!$G$6:$EV$253,76,FALSE) -> 1 | I19: =VLOOKUP($C19,'RECAP SECT'!$G$6:$EV$253,77,FALSE) -> 84% | J19: =VLOOKUP($C19,'RECAP SECT'!$G$6:$EV$253,78,FALSE) -> 13% | K19: =VLOOKUP($C19,'RECAP SECT'!$G$6:$EV$253,79,FALSE) -> 18 | L19: =VLOOKUP($C19,'RECAP SECT'!$G$6:$EV$253,80,FALSE) -> 113% | M19: =VLOOKUP($C19,'RECAP SECT'!$G$6:$EV$253,81,FALSE) -> 0% | N19: =VLOOKUP($C19,'RECAP SECT'!$G$6:$EV$253,82,FALSE) -> 1 | O19: =VLOOKUP($C19,'RECAP SECT'!$G$6:$EV$253,83,FALSE) -> 71% | P19: =VLOOKUP($C19,'RECAP SECT'!$G$6:$EV$253,84,FALSE) -> 16% | Q19: =VLOOKUP($C19,'RECAP SECT'!$G$6:$EV$253,85,FALSE) -> 8 | R19: =VLOOKUP($C19,'RECAP SECT'!$G$6:$EV$253,86,FALSE) -> 90% | S19: =VLOOKUP($C19,'RECAP SECT'!$G$6:$EV$253,87,FALSE) -> 5% | T19: =VLOOKUP($C19,'RECAP SECT'!$G$6:$EV$253,88,FALSE) -> 6 | U19: =VLOOKUP($C19,'RECAP SECT'!$G$6:$EV$253,89,FALSE) -> 81% | V19: =VLOOKUP($C19,'RECAP SECT'!$G$6:$EV$253,90,FALSE) -> 29% | W19: =VLOOKUP($C19,'RECAP SECT'!$G$6:$EV$253,91,FALSE) -> 9 | X19: =VLOOKUP($C19,'RECAP SECT'!$G$6:$EV$253,92,FALSE) -> 10% | Y19: =VLOOKUP($C19,'RECAP SECT'!$G$6:$EV$253,93,FALSE) -> 3% | Z19: =VLOOKUP($C19,'RECAP SECT'!$G$6:$EV$253,94,FALSE) -> 2
A20: 110 | B20: MEURTHE ET MOSELLE MEUSE | C20: 26 | D20: NANCY | E20: =VLOOKUP($C20,'RECAP SECT'!$G$6:$EV$253,3,FALSE) -> 78.0 | F20: =VLOOKUP($C20,'RECAP SECT'!$G$6:$EV$253,74,FALSE) -> 385.33 | G20: =VLOOKUP($C20,'RECAP SECT'!$G$6:$EV$253,75,FALSE) -> 19% | H20: =VLOOKUP($C20,'RECAP SECT'!$G$6:$EV$253,76,FALSE) -> 10 | I20: =VLOOKUP($C20,'RECAP SECT'!$G$6:$EV$253,77,FALSE) -> 91% | J20: =VLOOKUP($C20,'RECAP SECT'!$G$6:$EV$253,78,FALSE) -> 6% | K20: =VLOOKUP($C20,'RECAP SECT'!$G$6:$EV$253,79,FALSE) -> 12 | L20: =VLOOKUP($C20,'RECAP SECT'!$G$6:$EV$253,80,FALSE) -> 103% | M20: =VLOOKUP($C20,'RECAP SECT'!$G$6:$EV$253,81,FALSE) -> 9% | N20: =VLOOKUP($C20,'RECAP SECT'!$G$6:$EV$253,82,FALSE) -> 2 | O20: =VLOOKUP($C20,'RECAP SECT'!$G$6:$EV$253,83,FALSE) -> 66% | P20: =VLOOKUP($C20,'RECAP SECT'!$G$6:$EV$253,84,FALSE) -> 23% | Q20: =VLOOKUP($C20,'RECAP SECT'!$G$6:$EV$253,85,FALSE) -> 10 | R20: =VLOOKUP($C20,'RECAP SECT'!$G$6:$EV$253,86,FALSE) -> 93% | S20: =VLOOKUP($C20,'RECAP SECT'!$G$6:$EV$253,87,FALSE) -> 1% | T20: =VLOOKUP($C20,'RECAP SECT'!$G$6:$EV$253,88,FALSE) -> 3 | U20: =VLOOKUP($C20,'RECAP SECT'!$G$6:$EV$253,89,FALSE) -> 76% | V20: =VLOOKUP($C20,'RECAP SECT'!$G$6:$EV$253,90,FALSE) -> 33% | W20: =VLOOKUP($C20,'RECAP SECT'!$G$6:$EV$253,91,FALSE) -> 11 | X20: =VLOOKUP($C20,'RECAP SECT'!$G$6:$EV$253,92,FALSE) -> 16% | Y20: =VLOOKUP($C20,'RECAP SECT'!$G$6:$EV$253,93,FALSE) -> 9% | Z20: =VLOOKUP($C20,'RECAP SECT'!$G$6:$EV$253,94,FALSE) -> 6
A21: 110 | B21: MEURTHE ET MOSELLE MEUSE | C21: 27 | D21: PONT A MOUSSON | E21: =VLOOKUP($C21,'RECAP SECT'!$G$6:$EV$253,3,FALSE) -> 87.4 | F21: =VLOOKUP($C21,'RECAP SECT'!$G$6:$EV$253,74,FALSE) -> 379.35 | G21: =VLOOKUP($C21,'RECAP SECT'!$G$6:$EV$253,75,FALSE) -> 20% | H21: =VLOOKUP($C21,'RECAP SECT'!$G$6:$EV$253,76,FALSE) -> 11 | I21: =VLOOKUP($C21,'RECAP SECT'!$G$6:$EV$253,77,FALSE) -> 91% | J21: =VLOOKUP($C21,'RECAP SECT'!$G$6:$EV$253,78,FALSE) -> 7% | K21: =VLOOKUP($C21,'RECAP SECT'!$G$6:$EV$253,79,FALSE) -> 14 | L21: =VLOOKUP($C21,'RECAP SECT'!$G$6:$EV$253,80,FALSE) -> 93% | M21: =VLOOKUP($C21,'RECAP SECT'!$G$6:$EV$253,81,FALSE) -> 17% | N21: =VLOOKUP($C21,'RECAP SECT'!$G$6:$EV$253,82,FALSE) -> 8 | O21: =VLOOKUP($C21,'RECAP SECT'!$G$6:$EV$253,83,FALSE) -> 74% | P21: =VLOOKUP($C21,'RECAP SECT'!$G$6:$EV$253,84,FALSE) -> 13% | Q21: =VLOOKUP($C21,'RECAP SECT'!$G$6:$EV$253,85,FALSE) -> 6 | R21: =VLOOKUP($C21,'RECAP SECT'!$G$6:$EV$253,86,FALSE) -> 94% | S21: =VLOOKUP($C21,'RECAP SECT'!$G$6:$EV$253,87,FALSE) -> 1% | T21: =VLOOKUP($C21,'RECAP SECT'!$G$6:$EV$253,88,FALSE) -> 2 | U21: =VLOOKUP($C21,'RECAP SECT'!$G$6:$EV$253,89,FALSE) -> 58% | V21: =VLOOKUP($C21,'RECAP SECT'!$G$6:$EV$253,90,FALSE) -> 50% | W21: =VLOOKUP($C21,'RECAP SECT'!$G$6:$EV$253,91,FALSE) -> 15 | X21: =VLOOKUP($C21,'RECAP SECT'!$G$6:$EV$253,92,FALSE) -> 20% | Y21: =VLOOKUP($C21,'RECAP SECT'!$G$6:$EV$253,93,FALSE) -> 13% | Z21: =VLOOKUP($C21,'RECAP SECT'!$G$6:$EV$253,94,FALSE) -> 9
A22: 110 | B22: MEURTHE ET MOSELLE MEUSE | C22: 31 | D22: VERDUN | E22: =VLOOKUP($C22,'RECAP SECT'!$G$6:$EV$253,3,FALSE) -> 63.4 | F22: =VLOOKUP($C22,'RECAP SECT'!$G$6:$EV$253,74,FALSE) -> 452.47 | G22: =VLOOKUP($C22,'RECAP SECT'!$G$6:$EV$253,75,FALSE) -> 5% | H22: =VLOOKUP($C22,'RECAP SECT'!$G$6:$EV$253,76,FALSE) -> 3 | I22: =VLOOKUP($C22,'RECAP SECT'!$G$6:$EV$253,77,FALSE) -> 91% | J22: =VLOOKUP($C22,'RECAP SECT'!$G$6:$EV$253,78,FALSE) -> 6% | K22: =VLOOKUP($C22,'RECAP SECT'!$G$6:$EV$253,79,FALSE) -> 13 | L22: =VLOOKUP($C22,'RECAP SECT'!$G$6:$EV$253,80,FALSE) -> 78% | M22: =VLOOKUP($C22,'RECAP SECT'!$G$6:$EV$253,81,FALSE) -> 31% | N22: =VLOOKUP($C22,'RECAP SECT'!$G$6:$EV$253,82,FALSE) -> 13 | O22: =VLOOKUP($C22,'RECAP SECT'!$G$6:$EV$253,83,FALSE) -> 79% | P22: =VLOOKUP($C22,'RECAP SECT'!$G$6:$EV$253,84,FALSE) -> 7% | Q22: =VLOOKUP($C22,'RECAP SECT'!$G$6:$EV$253,85,FALSE) -> 2 | R22: =VLOOKUP($C22,'RECAP SECT'!$G$6:$EV$253,86,FALSE) -> 92% | S22: =VLOOKUP($C22,'RECAP SECT'!$G$6:$EV$253,87,FALSE) -> 3% | T22: =VLOOKUP($C22,'RECAP SECT'!$G$6:$EV$253,88,FALSE) -> 5 | U22: =VLOOKUP($C22,'RECAP SECT'!$G$6:$EV$253,89,FALSE) -> 43% | V22: =VLOOKUP($C22,'RECAP SECT'!$G$6:$EV$253,90,FALSE) -> 63% | W22: =VLOOKUP($C22,'RECAP SECT'!$G$6:$EV$253,91,FALSE) -> 17 | X22: =VLOOKUP($C22,'RECAP SECT'!$G$6:$EV$253,92,FALSE) -> 22% | Y22: =VLOOKUP($C22,'RECAP SECT'!$G$6:$EV$253,93,FALSE) -> 14% | Z22: =VLOOKUP($C22,'RECAP SECT'!$G$6:$EV$253,94,FALSE) -> 14
A23: 160 | B23: MOSELLE | C23: 45 | D23: METZ | E23: =VLOOKUP($C23,'RECAP SECT'!$G$6:$EV$253,3,FALSE) -> 101.5 | F23: =VLOOKUP($C23,'RECAP SECT'!$G$6:$EV$253,74,FALSE) -> 385.47 | G23: =VLOOKUP($C23,'RECAP SECT'!$G$6:$EV$253,75,FALSE) -> 19% | H23: =VLOOKUP($C23,'RECAP SECT'!$G$6:$EV$253,76,FALSE) -> 9 | I23: =VLOOKUP($C23,'RECAP SECT'!$G$6:$EV$253,77,FALSE) -> 95% | J23: =VLOOKUP($C23,'RECAP SECT'!$G$6:$EV$253,78,FALSE) -> 3% | K23: =VLOOKUP($C23,'RECAP SECT'!$G$6:$EV$253,79,FALSE) -> 10 | L23: =VLOOKUP($C23,'RECAP SECT'!$G$6:$EV$253,80,FALSE) -> 97% | M23: =VLOOKUP($C23,'RECAP SECT'!$G$6:$EV$253,81,FALSE) -> 14% | N23: =VLOOKUP($C23,'RECAP SECT'!$G$6:$EV$253,82,FALSE) -> 5 | O23: =VLOOKUP($C23,'RECAP SECT'!$G$6:$EV$253,83,FALSE) -> 55% | P23: =VLOOKUP($C23,'RECAP SECT'!$G$6:$EV$253,84,FALSE) -> 36% | Q23: =VLOOKUP($C23,'RECAP SECT'!$G$6:$EV$253,85,FALSE) -> 17 | R23: =VLOOKUP($C23,'RECAP SECT'!$G$6:$EV$253,86,FALSE) -> 92% | S23: =VLOOKUP($C23,'RECAP SECT'!$G$6:$EV$253,87,FALSE) -> 2% | T23: =VLOOKUP($C23,'RECAP SECT'!$G$6:$EV$253,88,FALSE) -> 4 | U23: =VLOOKUP($C23,'RECAP SECT'!$G$6:$EV$253,89,FALSE) -> 63% | V23: =VLOOKUP($C23,'RECAP SECT'!$G$6:$EV$253,90,FALSE) -> 45% | W23: =VLOOKUP($C23,'RECAP SECT'!$G$6:$EV$253,91,FALSE) -> 13 | X23: =VLOOKUP($C23,'RECAP SECT'!$G$6:$EV$253,92,FALSE) -> 21% | Y23: =VLOOKUP($C23,'RECAP SECT'!$G$6:$EV$253,93,FALSE) -> 14% | Z23: =VLOOKUP($C23,'RECAP SECT'!$G$6:$EV$253,94,FALSE) -> 13
A24: 160 | B24: MOSELLE | C24: 42 | D24: MOSELLE EST | E24: =VLOOKUP($C24,'RECAP SECT'!$G$6:$EV$253,3,FALSE) -> 84.0 | F24: =VLOOKUP($C24,'RECAP SECT'!$G$6:$EV$253,74,FALSE) -> 370.82 | G24: =VLOOKUP($C24,'RECAP SECT'!$G$6:$EV$253,75,FALSE) -> 22% | H24: =VLOOKUP($C24,'RECAP SECT'!$G$6:$EV$253,76,FALSE) -> 13 | I24: =VLOOKUP($C24,'RECAP SECT'!$G$6:$EV$253,77,FALSE) -> 97% | J24: =VLOOKUP($C24,'RECAP SECT'!$G$6:$EV$253,78,FALSE) -> 1% | K24: =VLOOKUP($C24,'RECAP SECT'!$G$6:$EV$253,79,FALSE) -> 2 | L24: =VLOOKUP($C24,'RECAP SECT'!$G$6:$EV$253,80,FALSE) -> 75% | M24: =VLOOKUP($C24,'RECAP SECT'!$G$6:$EV$253,81,FALSE) -> 34% | N24: =VLOOKUP($C24,'RECAP SECT'!$G$6:$EV$253,82,FALSE) -> 16 | O24: =VLOOKUP($C24,'RECAP SECT'!$G$6:$EV$253,83,FALSE) -> 70% | P24: =VLOOKUP($C24,'RECAP SECT'!$G$6:$EV$253,84,FALSE) -> 18% | Q24: =VLOOKUP($C24,'RECAP SECT'!$G$6:$EV$253,85,FALSE) -> 9 | R24: =VLOOKUP($C24,'RECAP SECT'!$G$6:$EV$253,86,FALSE) -> 81% | S24: =VLOOKUP($C24,'RECAP SECT'!$G$6:$EV$253,87,FALSE) -> 14% | T24: =VLOOKUP($C24,'RECAP SECT'!$G$6:$EV$253,88,FALSE) -> 16 | U24: =VLOOKUP($C24,'RECAP SECT'!$G$6:$EV$253,89,FALSE) -> 62% | V24: =VLOOKUP($C24,'RECAP SECT'!$G$6:$EV$253,90,FALSE) -> 46% | W24: =VLOOKUP($C24,'RECAP SECT'!$G$6:$EV$253,91,FALSE) -> 14 | X24: =VLOOKUP($C24,'RECAP SECT'!$G$6:$EV$253,92,FALSE) -> 25% | Y24: =VLOOKUP($C24,'RECAP SECT'!$G$6:$EV$253,93,FALSE) -> 17% | Z24: =VLOOKUP($C24,'RECAP SECT'!$G$6:$EV$253,94,FALSE) -> 16
A25: 160 | B25: MOSELLE | C25: 44 | D25: MOSELLE NORD | E25: =VLOOKUP($C25,'RECAP SECT'!$G$6:$EV$253,3,FALSE) -> 78.7 | F25: =VLOOKUP($C25,'RECAP SECT'!$G$6:$EV$253,74,FALSE) -> 413.81 | G25: =VLOOKUP($C25,'RECAP SECT'!$G$6:$EV$253,75,FALSE) -> 13% | H25: =VLOOKUP($C25,'RECAP SECT'!$G$6:$EV$253,76,FALSE) -> 5 | I25: =VLOOKUP($C25,'RECAP SECT'!$G$6:$EV$253,77,FALSE) -> 96% | J25: =VLOOKUP($C25,'RECAP SECT'!$G$6:$EV$253,78,FALSE) -> 1% | K25: =VLOOKUP($C25,'RECAP SECT'!$G$6:$EV$253,79,FALSE) -> 4 | L25: =VLOOKUP($C25,'RECAP SECT'!$G$6:$EV$253,80,FALSE) -> 98% | M25: =VLOOKUP($C25,'RECAP SECT'!$G$6:$EV$253,81,FALSE) -> 13% | N25: =VLOOKUP($C25,'RECAP SECT'!$G$6:$EV$253,82,FALSE) -> 4 | O25: =VLOOKUP($C25,'RECAP SECT'!$G$6:$EV$253,83,FALSE) -> 57% | P25: =VLOOKUP($C25,'RECAP SECT'!$G$6:$EV$253,84,FALSE) -> 33% | Q25: =VLOOKUP($C25,'RECAP SECT'!$G$6:$EV$253,85,FALSE) -> 16 | R25: =VLOOKUP($C25,'RECAP SECT'!$G$6:$EV$253,86,FALSE) -> 94% | S25: =VLOOKUP($C25,'RECAP SECT'!$G$6:$EV$253,87,FALSE) -> 0% | T25: =VLOOKUP($C25,'RECAP SECT'!$G$6:$EV$253,88,FALSE) -> 1 | U25: =VLOOKUP($C25,'RECAP SECT'!$G$6:$EV$253,89,FALSE) -> 30% | V25: =VLOOKUP($C25,'RECAP SECT'!$G$6:$EV$253,90,FALSE) -> 74% | W25: =VLOOKUP($C25,'RECAP SECT'!$G$6:$EV$253,91,FALSE) -> 18 | X25: =VLOOKUP($C25,'RECAP SECT'!$G$6:$EV$253,92,FALSE) -> 25% | Y25: =VLOOKUP($C25,'RECAP SECT'!$G$6:$EV$253,93,FALSE) -> 17% | Z25: =VLOOKUP($C25,'RECAP SECT'!$G$6:$EV$253,94,FALSE) -> 15
A26: 80 | B26: VOSGES | C26: 57 | D26: EPINAL | E26: =VLOOKUP($C26,'RECAP SECT'!$G$6:$EV$253,3,FALSE) -> 66.9 | F26: =VLOOKUP($C26,'RECAP SECT'!$G$6:$EV$253,74,FALSE) -> 353.78 | G26: =VLOOKUP($C26,'RECAP SECT'!$G$6:$EV$253,75,FALSE) -> 25% | H26: =VLOOKUP($C26,'RECAP SECT'!$G$6:$EV$253,76,FALSE) -> 15 | I26: =VLOOKUP($C26,'RECAP SECT'!$G$6:$EV$253,77,FALSE) -> 96% | J26: =VLOOKUP($C26,'RECAP SECT'!$G$6:$EV$253,78,FALSE) -> 2% | K26: =VLOOKUP($C26,'RECAP SECT'!$G$6:$EV$253,79,FALSE) -> 8 | L26: =VLOOKUP($C26,'RECAP SECT'!$G$6:$EV$253,80,FALSE) -> 76% | M26: =VLOOKUP($C26,'RECAP SECT'!$G$6:$EV$253,81,FALSE) -> 32% | N26: =VLOOKUP($C26,'RECAP SECT'!$G$6:$EV$253,82,FALSE) -> 14 | O26: =VLOOKUP($C26,'RECAP SECT'!$G$6:$EV$253,83,FALSE) -> 72% | P26: =VLOOKUP($C26,'RECAP SECT'!$G$6:$EV$253,84,FALSE) -> 15% | Q26: =VLOOKUP($C26,'RECAP SECT'!$G$6:$EV$253,85,FALSE) -> 7 | R26: =VLOOKUP($C26,'RECAP SECT'!$G$6:$EV$253,86,FALSE) -> 87% | S26: =VLOOKUP($C26,'RECAP SECT'!$G$6:$EV$253,87,FALSE) -> 8% | T26: =VLOOKUP($C26,'RECAP SECT'!$G$6:$EV$253,88,FALSE) -> 9 | U26: =VLOOKUP($C26,'RECAP SECT'!$G$6:$EV$253,89,FALSE) -> 81% | V26: =VLOOKUP($C26,'RECAP SECT'!$G$6:$EV$253,90,FALSE) -> 30% | W26: =VLOOKUP($C26,'RECAP SECT'!$G$6:$EV$253,91,FALSE) -> 10 | X26: =VLOOKUP($C26,'RECAP SECT'!$G$6:$EV$253,92,FALSE) -> 21% | Y26: =VLOOKUP($C26,'RECAP SECT'!$G$6:$EV$253,93,FALSE) -> 13% | Z26: =VLOOKUP($C26,'RECAP SECT'!$G$6:$EV$253,94,FALSE) -> 11
A27: 80 | B27: VOSGES | C27: 55 | D27: SAINT DIE | E27: =VLOOKUP($C27,'RECAP SECT'!$G$6:$EV$253,3,FALSE) -> 56.7 | F27: =VLOOKUP($C27,'RECAP SECT'!$G$6:$EV$253,74,FALSE) -> 407.37 | G27: =VLOOKUP($C27,'RECAP SECT'!$G$6:$EV$253,75,FALSE) -> 14% | H27: =VLOOKUP($C27,'RECAP SECT'!$G$6:$EV$253,76,FALSE) -> 6 | I27: =VLOOKUP($C27,'RECAP SECT'!$G$6:$EV$253,77,FALSE) -> 97% | J27: =VLOOKUP($C27,'RECAP SECT'!$G$6:$EV$253,78,FALSE) -> 0% | K27: =VLOOKUP($C27,'RECAP SECT'!$G$6:$EV$253,79,FALSE) -> 1 | L27: =VLOOKUP($C27,'RECAP SECT'!$G$6:$EV$253,80,FALSE) -> 76% | M27: =VLOOKUP($C27,'RECAP SECT'!$G$6:$EV$253,81,FALSE) -> 33% | N27: =VLOOKUP($C27,'RECAP SECT'!$G$6:$EV$253,82,FALSE) -> 15 | O27: =VLOOKUP($C27,'RECAP SECT'!$G$6:$EV$253,83,FALSE) -> 75% | P27: =VLOOKUP($C27,'RECAP SECT'!$G$6:$EV$253,84,FALSE) -> 12% | Q27: =VLOOKUP($C27,'RECAP SECT'!$G$6:$EV$253,85,FALSE) -> 4 | R27: =VLOOKUP($C27,'RECAP SECT'!$G$6:$EV$253,86,FALSE) -> 87% | S27: =VLOOKUP($C27,'RECAP SECT'!$G$6:$EV$253,87,FALSE) -> 8% | T27: =VLOOKUP($C27,'RECAP SECT'!$G$6:$EV$253,88,FALSE) -> 8 | U27: =VLOOKUP($C27,'RECAP SECT'!$G$6:$EV$253,89,FALSE) -> 103% | V27: =VLOOKUP($C27,'RECAP SECT'!$G$6:$EV$253,90,FALSE) -> 11% | W27: =VLOOKUP($C27,'RECAP SECT'!$G$6:$EV$253,91,FALSE) -> 4 | X27: =VLOOKUP($C27,'RECAP SECT'!$G$6:$EV$253,92,FALSE) -> 14% | Y27: =VLOOKUP($C27,'RECAP SECT'!$G$6:$EV$253,93,FALSE) -> 7% | Z27: =VLOOKUP($C27,'RECAP SECT'!$G$6:$EV$253,94,FALSE) -> 5
A28: Total CEGEE Directions Régionales | E28: =SUM(E10:E27) -> 1346

Sheet SE_IARD
A1: Accueil | F1: BAROMETRE BDD - TERRITOIRES
F2: IARD PREVOYANCE
F3: =ACCUEIL!H7 -> 2019-09-30
F7: Ventes nettes IARD (AUTO+MRH+Pro) | I7: Ventes nettes Prévoyance | L7: Chiffre d'affaires IARD | O7: Total IARD Prévoyance
G8: coef | H8: ='RECAP DIRCOM'!DE4 -> 7% | J8: coef | K8: ='RECAP DIRCOM'!DH4 -> 7% | M8: coef | N8: ='RECAP DIRCOM'!DK4 -> 6% | P8: coef | Q8: ='RECAP DIRCOM'!DN4 -> 20%
A9: eds | B9: Direction | C9: eds | D9: Territoire | E9: ETP perf | F9: Nb / ETP | G9: % Ecart au 1er | H9: Rang | I9: Nb / ETP | J9: % Ecart au 1er | K9: Rang | L9: Nb / ETP | M9: % Ecart au 1er | N9: Rang | O9: Moyenne ecart au 1er | P9: % Ecart au 1er | Q9: Rang CEGEE
A10: 50 | B10: AUBE HAUTE MARNE | C10: 21 | D10: CHAUMONT | E10: =VLOOKUP($C10,'RECAP SECT'!$G$6:$EV$253,3,FALSE) -> 46.0 | F10: =VLOOKUP($C10,'RECAP SECT'!$G$6:$EV$253,101,FALSE) -> 9.05 | G10: =VLOOKUP($C10,'RECAP SECT'!$G$6:$EV$253,102,FALSE) -> 12% | H10: =VLOOKUP($C10,'RECAP SECT'!$G$6:$EV$253,103,FALSE) -> 4 | I10: =VLOOKUP($C10,'RECAP SECT'!$G$6:$EV$253,104,FALSE) -> 15.38 | J10: =VLOOKUP($C10,'RECAP SECT'!$G$6:$EV$253,105,FALSE) -> 0% | K10: =VLOOKUP($C10,'RECAP SECT'!$G$6:$EV$253,106,FALSE) -> 1 | L10: =VLOOKUP($C10,'RECAP SECT'!$G$6:$EV$253,107,FALSE) -> 10.94 | M10: =VLOOKUP($C10,'RECAP SECT'!$G$6:$EV$253,108,FALSE) -> 14% | N10: =VLOOKUP($C10,'RECAP SECT'!$G$6:$EV$253,109,FALSE) -> 8 | O10: =VLOOKUP($C10,'RECAP SECT'!$G$6:$EV$253,110,FALSE) -> 8% | P10: =VLOOKUP($C10,'RECAP SECT'!$G$6:$EV$253,111,FALSE) -> 6% | Q10: =VLOOKUP($C10,'RECAP SECT'!$G$6:$EV$253,112,FALSE) -> 2
A11: 50 | B11: AUBE HAUTE MARNE | C11: 14 | D11: TROYES | E11: =VLOOKUP($C11,'RECAP SECT'!$G$6:$EV$253,3,FALSE) -> 77.6 | F11: =VLOOKUP($C11,'RECAP SECT'!$G$6:$EV$253,101,FALSE) -> 5.98 | G11: =VLOOKUP($C11,'RECAP SECT'!$G$6:$EV$253,102,FALSE) -> 42% | H11: =VLOOKUP($C11,'RECAP SECT'!$G$6:$EV$253,103,FALSE) -> 13 | I11: =VLOOKUP($C11,'RECAP SECT'!$G$6:$EV$253,104,FALSE) -> 7.53 | J11: =VLOOKUP($C11,'RECAP SECT'!$G$6:$EV$253,105,FALSE) -> 51% | K11: =VLOOKUP($C11,'RECAP SECT'!$G$6:$EV$253,106,FALSE) -> 15 | L11: =VLOOKUP($C11,'RECAP SECT'!$G$6:$EV$253,107,FALSE) -> 8.04 | M11: =VLOOKUP($C11,'RECAP SECT'!$G$6:$EV$253,108,FALSE) -> 37% | N11: =VLOOKUP($C11,'RECAP SECT'!$G$6:$EV$253,109,FALSE) -> 17 | O11: =VLOOKUP($C11,'RECAP SECT'!$G$6:$EV$253,110,FALSE) -> 43% | P11: =VLOOKUP($C11,'RECAP SECT'!$G$6:$EV$253,111,FALSE) -> 41% | Q11: =VLOOKUP($C11,'RECAP SECT'!$G$6:$EV$253,112,FALSE) -> 15
A12: 262 | B12: BAS-RHIN | C12: 5060 | D12: HAGUENAU | E12: =VLOOKUP($C12,'RECAP SECT'!$G$6:$EV$253,3,FALSE) -> 87.6 | F12: =VLOOKUP($C12,'RECAP SECT'!$G$6:$EV$253,101,FALSE) -> 6.98 | G12: =VLOOKUP($C12,'RECAP SECT'!$G$6:$EV$253,102,FALSE) -> 32% | H12: =VLOOKUP($C12,'RECAP SECT'!$G$6:$EV$253,103,FALSE) -> 9 | I12: =VLOOKUP($C12,'RECAP SECT'!$G$6:$EV$253,104,FALSE) -> 10.10 | J12: =VLOOKUP($C12,'RECAP SECT'!$G$6:$EV$253,105,FALSE) -> 34% | K12: =VLOOKUP($C12,'RECAP SECT'!$G$6:$EV$253,106,FALSE) -> 8 | L12: =VLOOKUP($C12,'RECAP SECT'!$G$6:$EV$253,107,FALSE) -> 11.58 | M12: =VLOOKUP($C12,'RECAP SECT'!$G$6:$EV$253,108,FALSE) -> 9% | N12: =VLOOKUP($C12,'RECAP SECT'!$G$6:$EV$253,109,FALSE) -> 2 | O12: =VLOOKUP($C12,'RECAP SECT'!$G$6:$EV$253,110,FALSE) -> 26% | P12: =VLOOKUP($C12,'RECAP SECT'!$G$6:$EV$253,111,FALSE) -> 24% | Q12: =VLOOKUP($C12,'RECAP SECT'!$G$6:$EV$253,112,FALSE) -> 8
A13: 262 | B13: BAS-RHIN | C13: 5101 | D13: SELESTAT | E13: =VLOOKUP($C13,'RECAP SECT'!$G$6:$EV$253,3,FALSE) -> 75.2 | F13: =VLOOKUP($C13,'RECAP SECT'!$G$6:$EV$253,101,FALSE) -> 4.57 | G13: =VLOOKUP($C13,'RECAP SECT'!$G$6:$EV$253,102,FALSE) -> 55% | H13: =VLOOKUP($C13,'RECAP SECT'!$G$6:$EV$253,103,FALSE) -> 16 | I13: =VLOOKUP($C13,'RECAP SECT'!$G$6:$EV$253,104,FALSE) -> 8.54 | J13: =VLOOKUP($C13,'RECAP SECT'!$G$6:$EV$253,105,FALSE) -> 44% | K13: =VLOOKUP($C13,'RECAP SECT'!$G$6:$EV$253,106,FALSE) -> 13 | L13: =VLOOKUP($C13,'RECAP SECT'!$G$6:$EV$253,107,FALSE) -> 9.68 | M13: =VLOOKUP($C13,'RECAP SECT'!$G$6:$EV$253,108,FALSE) -> 24% | N13: =VLOOKUP($C13,'RECAP SECT'!$G$6:$EV$253,109,FALSE) -> 13 | O13: =VLOOKUP($C13,'RECAP SECT'!$G$6:$EV$253,110,FALSE) -> 42% | P13: =VLOOKUP($C13,'RECAP SECT'!$G$6:$EV$253,111,FALSE) -> 40% | Q13: =VLOOKUP($C13,'RECAP SECT'!$G$6:$EV$253,112,FALSE) -> 14
A14: 262 | B14: BAS-RHIN | C14: 5006 | D14: STRASBOURG | E14: =VLOOKUP($C14,'RECAP SECT'!$G$6:$EV$253,3,FALSE) -> 92.1 | F14: =VLOOKUP($C14,'RECAP SECT'!$G$6:$EV$253,101,FALSE) -> 3.29 | G14: =VLOOKUP($C14,'RECAP SECT'!$G$6:$EV$253,102,FALSE) -> 68% | H14: =VLOOKUP($C14,'RECAP SECT'!$G$6:$EV$253,103,FALSE) -> 18 | I14: =VLOOKUP($C14,'RECAP SECT'!$G$6:$EV$253,104,FALSE) -> 5.81 | J14: =VLOOKUP($C14,'RECAP SECT'!$G$6:$EV$253,105,FALSE) -> 62% | K14: =VLOOKUP($C14,'RECAP SECT'!$G$6:$EV$253,106,FALSE) -> 17 | L14: =VLOOKUP($C14,'RECAP SECT'!$G$6:$EV$253,107,FALSE) -> 7.82 | M14: =VLOOKUP($C14,'RECAP SECT'!$G$6:$EV$253,108,FALSE) -> 38% | N14: =VLOOKUP($C14,'RECAP SECT'!$G$6:$EV$253,109,FALSE) -> 18 | O14: =VLOOKUP($C14,'RECAP SECT'!$G$6:$EV$253,110,FALSE) -> 57% | P14: =VLOOKUP($C14,'RECAP SECT'!$G$6:$EV$253,111,FALSE) -> 55% | Q14: =VLOOKUP($C14,'RECAP SECT'!$G$6:$EV$253,112,FALSE) -> 18
A15: 264 | B15: HAUT-RHIN | C15: 5130 | D15: COLMAR | E15: =VLOOKUP($C15,'RECAP SECT'!$G$6:$EV$253,3,FALSE) -> 75.3 | F15: =VLOOKUP($C15,'RECAP SECT'!$G$6:$EV$253,101,FALSE) -> 3.73 | G15: =VLOOKUP($C15,'RECAP SECT'!$G$6:$EV$253,102,FALSE) -> 64% | H15: =VLOOKUP($C15,'RECAP SECT'!$G$6:$EV$253,103,FALSE) -> 17 | I15: =VLOOKUP($C15,'RECAP SECT'!$G$6:$EV$253,104,FALSE) -> 7.91 | J15: =VLOOKUP($C15,'RECAP SECT'!$G$6:$EV$253,105,FALSE) -> 49% | K15: =VLOOKUP($C15,'RECAP SECT'!$G$6:$EV$253,106,FALSE) -> 14 | L15: =VLOOKUP($C15,'RECAP SECT'!$G$6:$EV$253,107,FALSE) -> 9.43 | M15: =VLOOKUP($C15,'RECAP SECT'!$G$6:$EV$253,108,FALSE) -> 26% | N15: =VLOOKUP($C15,'RECAP SECT'!$G$6:$EV$253,109,FALSE) -> 14 | O15: =VLOOKUP($C15,'RECAP SECT'!$G$6:$EV$253,110,FALSE) -> 47% | P15: =VLOOKUP($C15,'RECAP SECT'!$G$6:$EV$253,111,FALSE) -> 45% | Q15: =VLOOKUP($C15,'RECAP SECT'!$G$6:$EV$253,112,FALSE) -> 16
A16: 264 | B16: HAUT-RHIN | C16: 5169 | D16: MULHOUSE | E16: =VLOOKUP($C16,'RECAP SECT'!$G$6:$EV$253,3,FALSE) -> 75.1 | F16: =VLOOKUP($C16,'RECAP SECT'!$G$6:$EV$253,101,FALSE) -> 5.48 | G16: =VLOOKUP($C16,'RECAP SECT'!$G$6:$EV$253,102,FALSE) -> 46% | H16: =VLOOKUP($C16,'RECAP SECT'!$G$6:$EV$253,103,FALSE) -> 14 | I16: =VLOOKUP($C16,'RECAP SECT'!$G$6:$EV$253,104,FALSE) -> 3.46 | J16: =VLOOKUP($C16,'RECAP SECT'!$G$6:$EV$253,105,FALSE) -> 78% | K16: =VLOOKUP($C16,'RECAP SECT'!$G$6:$EV$253,106,FALSE) -> 18 | L16: =VLOOKUP($C16,'RECAP SECT'!$G$6:$EV$253,107,FALSE) -> 10.57 | M16: =VLOOKUP($C16,'RECAP SECT'!$G$6:$EV$253,108,FALSE) -> 17% | N16: =VLOOKUP($C16,'RECAP SECT'!$G$6:$EV$253,109,FALSE) -> 11 | O16: =VLOOKUP($C16,'RECAP SECT'!$G$6:$EV$253,110,FALSE) -> 48% | P16: =VLOOKUP($C16,'RECAP SECT'!$G$6:$EV$253,111,FALSE) -> 46% | Q16: =VLOOKUP($C16,'RECAP SECT'!$G$6:$EV$253,112,FALSE) -> 17
A17: 30 | B17: MARNE-ARDENNES | C17: 6 | D17: CHALONS EN CHAMPAGNE | E17: =VLOOKUP($C17,'RECAP SECT'!$G$6:$EV$253,3,FALSE) -> 48.8 | F17: =VLOOKUP($C17,'RECAP SECT'!$G$6:$EV$253,101,FALSE) -> 8.10 | G17: =VLOOKUP($C17,'RECAP SECT'!$G$6:$EV$253,102,FALSE) -> 21% | H17: =VLOOKUP($C17,'RECAP SECT'!$G$6:$EV$253,103,FALSE) -> 7 | I17: =VLOOKUP($C17,'RECAP SECT'!$G$6:$EV$253,104,FALSE) -> 15.26 | J17: =VLOOKUP($C17,'RECAP SECT'!$G$6:$EV$253,105,FALSE) -> 1% | K17: =VLOOKUP($C17,'RECAP SECT'!$G$6:$EV$253,106,FALSE) -> 2 | L17: =VLOOKUP($C17,'RECAP SECT'!$G$6:$EV$253,107,FALSE) -> 10.88 | M17: =VLOOKUP($C17,'RECAP SECT'!$G$6:$EV$253,108,FALSE) -> 14% | N17: =VLOOKUP($C17,'RECAP SECT'!$G$6:$EV$253,109,FALSE) -> 9 | O17: =VLOOKUP($C17,'RECAP SECT'!$G$6:$EV$253,110,FALSE) -> 12% | P17: =VLOOKUP($C17,'RECAP SECT'!$G$6:$EV$253,111,FALSE) -> 10% | Q17: =VLOOKUP($C17,'RECAP SECT'!$G$6:$EV$253,112,FALSE) -> 3
A18: 30 | B18: MARNE-ARDENNES | C18: 2 | D18: CHARLEVILLE MEZIERES | E18: =VLOOKUP($C18,'RECAP SECT'!$G$6:$EV$253,3,FALSE) -> 62.2 | F18: =VLOOKUP($C18,'RECAP SECT'!$G$6:$EV$253,101,FALSE) -> 10.25 | G18: =VLOOKUP($C18,'RECAP SECT'!$G$6:$EV$253,102,FALSE) -> 0% | H18: =VLOOKUP($C18,'RECAP SECT'!$G$6:$EV$253,103,FALSE) -> 1 | I18: =VLOOKUP($C18,'RECAP SECT'!$G$6:$EV$253,104,FALSE) -> 14.40 | J18: =VLOOKUP($C18,'RECAP SECT'!$G$6:$EV$253,105,FALSE) -> 6% | K18: =VLOOKUP($C18,'RECAP SECT'!$G$6:$EV$253,106,FALSE) -> 4 | L18: =VLOOKUP($C18,'RECAP SECT'!$G$6:$EV$253,107,FALSE) -> 12.68 | M18: =VLOOKUP($C18,'RECAP SECT'!$G$6:$EV$253,108,FALSE) -> 0% | N18: =VLOOKUP($C18,'RECAP SECT'!$G$6:$EV$253,109,FALSE) -> 1 | O18: =VLOOKUP($C18,'RECAP SECT'!$G$6:$EV$253,110,FALSE) -> 2% | P18: =VLOOKUP($C18,'RECAP SECT'!$G$6:$EV$253,111,FALSE) -> 0% | Q18: =VLOOKUP($C18,'RECAP SECT'!$G$6:$EV$253,112,FALSE) -> 1
A19: 30 | B19: MARNE-ARDENNES | C19: 11 | D19: REIMS | E19: =VLOOKUP($C19,'RECAP SECT'!$G$6:$EV$253,3,FALSE) -> 89.8 | F19: =VLOOKUP($C19,'RECAP SECT'!$G$6:$EV$253,101,FALSE) -> 8.27 | G19: =VLOOKUP($C19,'RECAP SECT'!$G$6:$EV$253,102,FALSE) -> 19% | H19: =VLOOKUP($C19,'RECAP SECT'!$G$6:$EV$253,103,FALSE) -> 6 | I19: =VLOOKUP($C19,'RECAP SECT'!$G$6:$EV$253,104,FALSE) -> 14.49 | J19: =VLOOKUP($C19,'RECAP SECT'!$G$6:$EV$253,105,FALSE) -> 6% | K19: =VLOOKUP($C19,'RECAP SECT'!$G$6:$EV$253,106,FALSE) -> 3 | L19: =VLOOKUP($C19,'RECAP SECT'!$G$6:$EV$253,107,FALSE) -> 9.38 | M19: =VLOOKUP($C19,'RECAP SECT'!$G$6:$EV$253,108,FALSE) -> 26% | N19: =VLOOKUP($C19,'RECAP SECT'!$G$6:$EV$253,109,FALSE) -> 15 | O19: =VLOOKUP($C19,'RECAP SECT'!$G$6:$EV$253,110,FALSE) -> 17% | P19: =VLOOKUP($C19,'RECAP SECT'!$G$6:$EV$253,111,FALSE) -> 14% | Q19: =VLOOKUP($C19,'RECAP SECT'!$G$6:$EV$253,112,FALSE) -> 5
A20: 110 | B20: MEURTHE ET MOSELLE MEUSE | C20: 26 | D20: NANCY | E20: =VLOOKUP($C20,'RECAP SECT'!$G$6:$EV$253,3,FALSE) -> 78.0 | F20: =VLOOKUP($C20,'RECAP SECT'!$G$6:$EV$253,101,FALSE) -> 9.71 | G20: =VLOOKUP($C20,'RECAP SECT'!$G$6:$EV$253,102,FALSE) -> 5% | H20: =VLOOKUP($C20,'RECAP SECT'!$G$6:$EV$253,103,FALSE) -> 3 | I20: =VLOOKUP($C20,'RECAP SECT'!$G$6:$EV$253,104,FALSE) -> 7.07 | J20: =VLOOKUP($C20,'RECAP SECT'!$G$6:$EV$253,105,FALSE) -> 54% | K20: =VLOOKUP($C20,'RECAP SECT'!$G$6:$EV$253,106,FALSE) -> 16 | L20: =VLOOKUP($C20,'RECAP SECT'!$G$6:$EV$253,107,FALSE) -> 11.07 | M20: =VLOOKUP($C20,'RECAP SECT'!$G$6:$EV$253,108,FALSE) -> 13% | N20: =VLOOKUP($C20,'RECAP SECT'!$G$6:$EV$253,109,FALSE) -> 6 | O20: =VLOOKUP($C20,'RECAP SECT'!$G$6:$EV$253,110,FALSE) -> 25% | P20: =VLOOKUP($C20,'RECAP SECT'!$G$6:$EV$253,111,FALSE) -> 22% | Q20: =VLOOKUP($C20,'RECAP SECT'!$G$6:$EV$253,112,FALSE) -> 7
A21: 110 | B21: MEURTHE ET MOSELLE MEUSE | C21: 27 | D21: PONT A MOUSSON | E21: =VLOOKUP($C21,'RECAP SECT'!$G$6:$EV$253,3,FALSE) -> 87.4 | F21: =VLOOKUP($C21,'RECAP SECT'!$G$6:$EV$253,101,FALSE) -> 10.09 | G21: =VLOOKUP($C21,'RECAP SECT'!$G$6:$EV$253,102,FALSE) -> 1% | H21: =VLOOKUP($C21,'RECAP SECT'!$G$6:$EV$253,103,FALSE) -> 2 | I21: =VLOOKUP($C21,'RECAP SECT'!$G$6:$EV$253,104,FALSE) -> 10.64 | J21: =VLOOKUP($C21,'RECAP SECT'!$G$6:$EV$253,105,FALSE) -> 31% | K21: =VLOOKUP($C21,'RECAP SECT'!$G$6:$EV$253,106,FALSE) -> 5 | L21: =VLOOKUP($C21,'RECAP SECT'!$G$6:$EV$253,107,FALSE) -> 11.51 | M21: =VLOOKUP($C21,'RECAP SECT'!$G$6:$EV$253,108,FALSE) -> 9% | N21: =VLOOKUP($C21,'RECAP SECT'!$G$6:$EV$253,109,FALSE) -> 3 | O21: =VLOOKUP($C21,'RECAP SECT'!$G$6:$EV$253,110,FALSE) -> 14% | P21: =VLOOKUP($C21,'RECAP SECT'!$G$6:$EV$253,111,FALSE) -> 12% | Q21: =VLOOKUP($C21,'RECAP SECT'!$G$6:$EV$253,112,FALSE) -> 4
A22: 110 | B22: MEURTHE ET MOSELLE MEUSE | C22: 31 | D22: VERDUN | E22: =VLOOKUP($C22,'RECAP SECT'!$G$6:$EV$253,3,FALSE) -> 63.4 | F22: =VLOOKUP($C22,'RECAP SECT'!$G$6:$EV$253,101,FALSE) -> 6.44 | G22: =VLOOKUP($C22,'RECAP SECT'!$G$6:$EV$253,102,FALSE) -> 37% | H22: =VLOOKUP($C22,'RECAP SECT'!$G$6:$EV$253,103,FALSE) -> 12 | I22: =VLOOKUP($C22,'RECAP SECT'!$G$6:$EV$253,104,FALSE) -> 9.74 | J22: =VLOOKUP($C22,'RECAP SECT'!$G$6:$EV$253,105,FALSE) -> 37% | K22: =VLOOKUP($C22,'RECAP SECT'!$G$6:$EV$253,106,FALSE) -> 9 | L22: =VLOOKUP($C22,'RECAP SECT'!$G$6:$EV$253,107,FALSE) -> 10.59 | M22: =VLOOKUP($C22,'RECAP SECT'!$G$6:$EV$253,108,FALSE) -> 16% | N22: =VLOOKUP($C22,'RECAP SECT'!$G$6:$EV$253,109,FALSE) -> 10 | O22: =VLOOKUP($C22,'RECAP SECT'!$G$6:$EV$253,110,FALSE) -> 31% | P22: =VLOOKUP($C22,'RECAP SECT'!$G$6:$EV$253,111,FALSE) -> 29% | Q22: =VLOOKUP($C22,'RECAP SECT'!$G$6:$EV$253,112,FALSE) -> 11
A23: 160 | B23: MOSELLE | C23: 45 | D23: METZ | E23: =VLOOKUP($C23,'RECAP SECT'!$G$6:$EV$253,3,FALSE) -> 101.5 | F23: =VLOOKUP($C23,'RECAP SECT'!$G$6:$EV$253,101,FALSE) -> 6.78 | G23: =VLOOKUP($C23,'RECAP SECT'!$G$6:$EV$253,102,FALSE) -> 34% | H23: =VLOOKUP($C23,'RECAP SECT'!$G$6:$EV$253,103,FALSE) -> 10 | I23: =VLOOKUP($C23,'RECAP SECT'!$G$6:$EV$253,104,FALSE) -> 9.29 | J23: =VLOOKUP($C23,'RECAP SECT'!$G$6:$EV$253,105,FALSE) -> 40% | K23: =VLOOKUP($C23,'RECAP SECT'!$G$6:$EV$253,106,FALSE) -> 10 | L23: =VLOOKUP($C23,'RECAP SECT'!$G$6:$EV$253,107,FALSE) -> 8.76 | M23: =VLOOKUP($C23,'RECAP SECT'!$G$6:$EV$253,108,FALSE) -> 31% | N23: =VLOOKUP($C23,'RECAP SECT'!$G$6:$EV$253,109,FALSE) -> 16 | O23: =VLOOKUP($C23,'RECAP SECT'!$G$6:$EV$253,110,FALSE) -> 35% | P23: =VLOOKUP($C23,'RECAP SECT'!$G$6:$EV$253,111,FALSE) -> 33% | Q23: =VLOOKUP($C23,'RECAP SECT'!$G$6:$EV$253,112,FALSE) -> 12
A24: 160 | B24: MOSELLE | C24: 42 | D24: MOSELLE EST | E24: =VLOOKUP($C24,'RECAP SECT'!$G$6:$EV$253,3,FALSE) -> 84.0 | F24: =VLOOKUP($C24,'RECAP SECT'!$G$6:$EV$253,101,FALSE) -> 5.47 | G24: =VLOOKUP($C24,'RECAP SECT'!$G$6:$EV$253,102,FALSE) -> 47% | H24: =VLOOKUP($C24,'RECAP SECT'!$G$6:$EV$253,103,FALSE) -> 15 | I24: =VLOOKUP($C24,'RECAP SECT'!$G$6:$EV$253,104,FALSE) -> 9.00 | J24: =VLOOKUP($C24,'RECAP SECT'!$G$6:$EV$253,105,FALSE) -> 42% | K24: =VLOOKUP($C24,'RECAP SECT'!$G$6:$EV$253,106,FALSE) -> 11 | L24: =VLOOKUP($C24,'RECAP SECT'!$G$6:$EV$253,107,FALSE) -> 10.45 | M24: =VLOOKUP($C24,'RECAP SECT'!$G$6:$EV$253,108,FALSE) -> 18% | N24: =VLOOKUP($C24,'RECAP SECT'!$G$6:$EV$253,109,FALSE) -> 12 | O24: =VLOOKUP($C24,'RECAP SECT'!$G$6:$EV$253,110,FALSE) -> 36% | P24: =VLOOKUP($C24,'RECAP SECT'!$G$6:$EV$253,111,FALSE) -> 34% | Q24: =VLOOKUP($C24,'RECAP SECT'!$G$6:$EV$253,112,FALSE) -> 13
A25: 160 | B25: MOSELLE | C25: 44 | D25: MOSELLE NORD | E25: =VLOOKUP($C25,'RECAP SECT'!$G$6:$EV$253,3,FALSE) -> 78.7 | F25: =VLOOKUP($C25,'RECAP SECT'!$G$6:$EV$253,101,FALSE) -> 8.62 | G25: =VLOOKUP($C25,'RECAP SECT'!$G$6:$EV$253,102,FALSE) -> 16% | H25: =VLOOKUP($C25,'RECAP SECT'!$G$6:$EV$253,103,FALSE) -> 5 | I25: =VLOOKUP($C25,'RECAP SECT'!$G$6:$EV$253,104,FALSE) -> 10.45 | J25: =VLOOKUP($C25,'RECAP SECT'!$G$6:$EV$253,105,FALSE) -> 32% | K25: =VLOOKUP($C25,'RECAP SECT'!$G$6:$EV$253,106,FALSE) -> 7 | L25: =VLOOKUP($C25,'RECAP SECT'!$G$6:$EV$253,107,FALSE) -> 11.01 | M25: =VLOOKUP($C25,'RECAP SECT'!$G$6:$EV$253,108,FALSE) -> 13% | N25: =VLOOKUP($C25,'RECAP SECT'!$G$6:$EV$253,109,FALSE) -> 7 | O25: =VLOOKUP($C25,'RECAP SECT'!$G$6:$EV$253,110,FALSE) -> 21% | P25: =VLOOKUP($C25,'RECAP SECT'!$G$6:$EV$253,111,FALSE) -> 19% | Q25: =VLOOKUP($C25,'RECAP SECT'!$G$6:$EV$253,112,FALSE) -> 6
A26: 80 | B26: VOSGES | C26: 57 | D26: EPINAL | E26: =VLOOKUP($C26,'RECAP SECT'!$G$6:$EV$253,3,FALSE) -> 66.9 | F26: =VLOOKUP($C26,'RECAP SECT'!$G$6:$EV$253,101,FALSE) -> 7.71 | G26: =VLOOKUP($C26,'RECAP SECT'!$G$6:$EV$253,102,FALSE) -> 25% | H26: =VLOOKUP($C26,'RECAP SECT'!$G$6:$EV$253,103,FALSE) -> 8 | I26: =VLOOKUP($C26,'RECAP SECT'!$G$6:$EV$253,104,FALSE) -> 8.89 | J26: =VLOOKUP($C26,'RECAP SECT'!$G$6:$EV$253,105,FALSE) -> 42% | K26: =VLOOKUP($C26,'RECAP SECT'!$G$6:$EV$253,106,FALSE) -> 12 | L26: =VLOOKUP($C26,'RECAP SECT'!$G$6:$EV$253,107,FALSE) -> 11.27 | M26: =VLOOKUP($C26,'RECAP SECT'!$G$6:$EV$253,108,FALSE) -> 11% | N26: =VLOOKUP($C26,'RECAP SECT'!$G$6:$EV$253,109,FALSE) -> 4 | O26: =VLOOKUP($C26,'RECAP SECT'!$G$6:$EV$253,110,FALSE) -> 27% | P26: =VLOOKUP($C26,'RECAP SECT'!$G$6:$EV$253,111,FALSE) -> 25% | Q26: =VLOOKUP($C26,'RECAP SECT'!$G$6:$EV$253,112,FALSE) -> 9
A27: 80 | B27: VOSGES | C27: 55 | D27: SAINT DIE | E27: =VLOOKUP($C27,'RECAP SECT'!$G$6:$EV$253,3,FALSE) -> 56.7 | F27: =VLOOKUP($C27,'RECAP SECT'!$G$6:$EV$253,101,FALSE) -> 6.53 | G27: =VLOOKUP($C27,'RECAP SECT'!$G$6:$EV$253,102,FALSE) -> 36% | H27: =VLOOKUP($C27,'RECAP SECT'!$G$6:$EV$253,103,FALSE) -> 11 | I27: =VLOOKUP($C27,'RECAP SECT'!$G$6:$EV$253,104,FALSE) -> 10.48 | J27: =VLOOKUP($C27,'RECAP SECT'!$G$6:$EV$253,105,FALSE) -> 32% | K27: =VLOOKUP($C27,'RECAP SECT'!$G$6:$EV$253,106,FALSE) -> 6 | L27: =VLOOKUP($C27,'RECAP SECT'!$G$6:$EV$253,107,FALSE) -> 11.19 | M27: =VLOOKUP($C27,'RECAP SECT'!$G$6:$EV$253,108,FALSE) -> 12% | N27: =VLOOKUP($C27,'RECAP SECT'!$G$6:$EV$253,109,FALSE) -> 5 | O27: =VLOOKUP($C27,'RECAP SECT'!$G$6:$EV$253,110,FALSE) -> 27% | P27: =VLOOKUP($C27,'RECAP SECT'!$G$6:$EV$253,111,FALSE) -> 25% | Q27: =VLOOKUP($C27,'RECAP SECT'!$G$6:$EV$253,112,FALSE) -> 10
A28: Total CEGEE Directions Régionales | E28: =SUM(E10:E27) -> 1346

Sheet SE_CONQUETE
A1: Accueil | F1: BAROMETRE BDD - TERRITOIRES
F2: CONQUETE
F3: =ACCUEIL!H7 -> 2019-09-30
F7: Evolution nette clients Bancarisés Principaux | I7: Evolution nette relations PREMIUM | L7: Evolution nette clients Bancarisés Principaux équipés | O7: Evolution nette clients Pro actif équipés | R7: Total Conquête
G8: coef | H8: ='RECAP DIRCOM'!M4 -> 4% | J8: coef | K8: ='RECAP DIRCOM'!P4 -> 4% | M8: coef | N8: ='RECAP DIRCOM'!S4 -> 3% | P8: coef | Q8: ='RECAP DIRCOM'!V4 -> 4% | S8: coef | T8: ='RECAP DIRCOM'!Y4 -> 15%
A9: eds | B9: Direction | C9: eds | D9: Territoire | E9: ETP perf | F9: Nb / ETP | G9: % Ecart au 1er | H9: Rang | I9: Nb / ETP | J9: % Ecart au 1er | K9: Rang | L9: Nb / ETP | M9: % Ecart au 1er | N9: Rang | O9: Taux réal objectif | P9: % Ecart au 1er | Q9: Rang | R9: Moyenne ecart au 1er | S9: % Ecart au 1er | T9: Rang CEGEE
A10: 50 | B10: AUBE HAUTE MARNE | C10: 21 | D10: CHAUMONT | E10: =VLOOKUP($C10,'RECAP SECT'!$G$6:$EV$253,3,FALSE) -> 46.0 | F10: =VLOOKUP($C10,'RECAP SECT'!$G$6:$EV$253,5,FALSE) -> 1.22 | G10: =VLOOKUP($C10,'RECAP SECT'!$G$6:$EV$253,6,FALSE) -> 29% | H10: =VLOOKUP($C10,'RECAP SECT'!$G$6:$EV$253,7,FALSE) -> 2 | I10: =VLOOKUP($C10,'RECAP SECT'!$G$6:$EV$253,8,FALSE) -> 2.87 | J10: =VLOOKUP($C10,'RECAP SECT'!$G$6:$EV$253,9,FALSE) -> 4% | K10: =VLOOKUP($C10,'RECAP SECT'!$G$6:$EV$253,10,FALSE) -> 2 | L10: =VLOOKUP($C10,'RECAP SECT'!$G$6:$EV$253,11,FALSE) -> 5.59 | M10: =VLOOKUP($C10,'RECAP SECT'!$G$6:$EV$253,12,FALSE) -> 0% | N10: =VLOOKUP($C10,'RECAP SECT'!$G$6:$EV$253,13,FALSE) -> 1 | O10: =VLOOKUP($C10,'RECAP SECT'!$G$6:$EV$253,14,FALSE) -> -19% | P10: =VLOOKUP($C10,'RECAP SECT'!$G$6:$EV$253,15,FALSE) -> 102% | Q10: =VLOOKUP($C10,'RECAP SECT'!$G$6:$EV$253,16,FALSE) -> 14 | R10: =VLOOKUP($C10,'RECAP SECT'!$G$6:$EV$253,17,FALSE) -> 36% | S10: =VLOOKUP($C10,'RECAP SECT'!$G$6:$EV$253,18,FALSE) -> 18% | T10: =VLOOKUP($C10,'RECAP SECT'!$G$6:$EV$253,19,FALSE) -> 2
A11: 50 | B11: AUBE HAUTE MARNE | C11: 14 | D11: TROYES | E11: =VLOOKUP($C11,'RECAP SECT'!$G$6:$EV$253,3,FALSE) -> 77.6 | F11: =VLOOKUP($C11,'RECAP SECT'!$G$6:$EV$253,5,FALSE) -> -0.82 | G11: =VLOOKUP($C11,'RECAP SECT'!$G$6:$EV$253,6,FALSE) -> 76% | H11: =VLOOKUP($C11,'RECAP SECT'!$G$6:$EV$253,7,FALSE) -> 7 | I11: =VLOOKUP($C11,'RECAP SECT'!$G$6:$EV$253,8,FALSE) -> 2.20 | J11: =VLOOKUP($C11,'RECAP SECT'!$G$6:$EV$253,9,FALSE) -> 26% | K11: =VLOOKUP($C11,'RECAP SECT'!$G$6:$EV$253,10,FALSE) -> 11 | L11: =VLOOKUP($C11,'RECAP SECT'!$G$6:$EV$253,11,FALSE) -> 2.95 | M11: =VLOOKUP($C11,'RECAP SECT'!$G$6:$EV$253,12,FALSE) -> 46% | N11: =VLOOKUP($C11,'RECAP SECT'!$G$6:$EV$253,13,FALSE) -> 3 | O11: =VLOOKUP($C11,'RECAP SECT'!$G$6:$EV$253,14,FALSE) -> -29% | P11: =VLOOKUP($C11,'RECAP SECT'!$G$6:$EV$253,15,FALSE) -> 111% | Q11: =VLOOKUP($C11,'RECAP SECT'!$G$6:$EV$253,16,FALSE) -> 16 | R11: =VLOOKUP($C11,'RECAP SECT'!$G$6:$EV$253,17,FALSE) -> 66% | S11: =VLOOKUP($C11,'RECAP SECT'!$G$6:$EV$253,18,FALSE) -> 49% | T11: =VLOOKUP($C11,'RECAP SECT'!$G$6:$EV$253,19,FALSE) -> 10
A12: 262 | B12: BAS-RHIN | C12: 5060 | D12: HAGUENAU | E12: =VLOOKUP($C12,'RECAP SECT'!$G$6:$EV$253,3,FALSE) -> 87.6 | F12: =VLOOKUP($C12,'RECAP SECT'!$G$6:$EV$253,5,FALSE) -> -1.71 | G12: =VLOOKUP($C12,'RECAP SECT'!$G$6:$EV$253,6,FALSE) -> 97% | H12: =VLOOKUP($C12,'RECAP SECT'!$G$6:$EV$253,7,FALSE) -> 11 | I12: =VLOOKUP($C12,'RECAP SECT'!$G$6:$EV$253,8,FALSE) -> 2.42 | J12: =VLOOKUP($C12,'RECAP SECT'!$G$6:$EV$253,9,FALSE) -> 19% | K12: =VLOOKUP($C12,'RECAP SECT'!$G$6:$EV$253,10,FALSE) -> 7 | L12: =VLOOKUP($C12,'RECAP SECT'!$G$6:$EV$253,11,FALSE) -> -0.62 | M12: =VLOOKUP($C12,'RECAP SECT'!$G$6:$EV$253,12,FALSE) -> 109% | N12: =VLOOKUP($C12,'RECAP SECT'!$G$6:$EV$253,13,FALSE) -> 14 | O12: =VLOOKUP($C12,'RECAP SECT'!$G$6:$EV$253,14,FALSE) -> 3% | P12: =VLOOKUP($C12,'RECAP SECT'!$G$6:$EV$253,15,FALSE) -> 83% | Q12: =VLOOKUP($C12,'RECAP SECT'!$G$6:$EV$253,16,FALSE) -> 11 | R12: =VLOOKUP($C12,'RECAP SECT'!$G$6:$EV$253,17,FALSE) -> 75% | S12: =VLOOKUP($C12,'RECAP SECT'!$G$6:$EV$253,18,FALSE) -> 57% | T12: =VLOOKUP($C12,'RECAP SECT'!$G$6:$EV$253,19,FALSE) -> 13
A13: 262 | B13: BAS-RHIN | C13: 5101 | D13: SELESTAT | E13: =VLOOKUP($C13,'RECAP SECT'!$G$6:$EV$253,3,FALSE) -> 75.2 | F13: =VLOOKUP($C13,'RECAP SECT'!$G$6:$EV$253,5,FALSE) -> -4.00 | G13: =VLOOKUP($C13,'RECAP SECT'!$G$6:$EV$253,6,FALSE) -> 150% | H13: =VLOOKUP($C13,'RECAP SECT'!$G$6:$EV$253,7,FALSE) -> 18 | I13: =VLOOKUP($C13,'RECAP SECT'!$G$6:$EV$253,8,FALSE) -> 2.86 | J13: =VLOOKUP($C13,'RECAP SECT'!$G$6:$EV$253,9,FALSE) -> 5% | K13: =VLOOKUP($C13,'RECAP SECT'!$G$6:$EV$253,10,FALSE) -> 3 | L13: =VLOOKUP($C13,'RECAP SECT'!$G$6:$EV$253,11,FALSE) -> -1.68 | M13: =VLOOKUP($C13,'RECAP SECT'!$G$6:$EV$253,12,FALSE) -> 128% | N13: =VLOOKUP($C13,'RECAP SECT'!$G$6:$EV$253,13,FALSE) -> 16 | O13: =VLOOKUP($C13,'RECAP SECT'!$G$6:$EV$253,14,FALSE) -> -74% | P13: =VLOOKUP($C13,'RECAP SECT'!$G$6:$EV$253,15,FALSE) -> 150% | Q13: =VLOOKUP($C13,'RECAP SECT'!$G$6:$EV$253,16,FALSE) -> 18 | R13: =VLOOKUP($C13,'RECAP SECT'!$G$6:$EV$253,17,FALSE) -> 107% | S13: =VLOOKUP($C13,'RECAP SECT'!$G$6:$EV$253,18,FALSE) -> 89% | T13: =VLOOKUP($C13,'RECAP SECT'!$G$6:$EV$253,19,FALSE) -> 18
A14: 262 | B14: BAS-RHIN | C14: 5006 | D14: STRASBOURG | E14: =VLOOKUP($C14,'RECAP SECT'!$G$6:$EV$253,3,FALSE) -> 92.1 | F14: =VLOOKUP($C14,'RECAP SECT'!$G$6:$EV$253,5,FALSE) -> -1.87 | G14: =VLOOKUP($C14,'RECAP SECT'!$G$6:$EV$253,6,FALSE) -> 101% | H14: =VLOOKUP($C14,'RECAP SECT'!$G$6:$EV$253,7,FALSE) -> 12 | I14: =VLOOKUP($C14,'RECAP SECT'!$G$6:$EV$253,8,FALSE) -> 2.06 | J14: =VLOOKUP($C14,'RECAP SECT'!$G$6:$EV$253,9,FALSE) -> 31% | K14: =VLOOKUP($C14,'RECAP SECT'!$G$6:$EV$253,10,FALSE) -> 13 | L14: =VLOOKUP($C14,'RECAP SECT'!$G$6:$EV$253,11,FALSE) -> -1.71 | M14: =VLOOKUP($C14,'RECAP SECT'!$G$6:$EV$253,12,FALSE) -> 128% | N14: =VLOOKUP($C14,'RECAP SECT'!$G$6:$EV$253,13,FALSE) -> 17 | O14: =VLOOKUP($C14,'RECAP SECT'!$G$6:$EV$253,14,FALSE) -> 44% | P14: =VLOOKUP($C14,'RECAP SECT'!$G$6:$EV$253,15,FALSE) -> 48% | Q14: =VLOOKUP($C14,'RECAP SECT'!$G$6:$EV$253,16,FALSE) -> 6 | R14: =VLOOKUP($C14,'RECAP SECT'!$G$6:$EV$253,17,FALSE) -> 74% | S14: =VLOOKUP($C14,'RECAP SECT'!$G$6:$EV$253,18,FALSE) -> 56% | T14: =VLOOKUP($C14,'RECAP SECT'!$G$6:$EV$253,19,FALSE) -> 12
A15: 264 | B15: HAUT-RHIN | C15: 5130 | D15: COLMAR | E15: =VLOOKUP($C15,'RECAP SECT'!$G$6:$EV$253,3,FALSE) -> 75.3 | F15: =VLOOKUP($C15,'RECAP SECT'!$G$6:$EV$253,5,FALSE) -> -2.92 | G15: =VLOOKUP($C15,'RECAP SECT'!$G$6:$EV$253,6,FALSE) -> 125% | H15: =VLOOKUP($C15,'RECAP SECT'!$G$6:$EV$253,7,FALSE) -> 15 | I15: =VLOOKUP($C15,'RECAP SECT'!$G$6:$EV$253,8,FALSE) -> 2.50 | J15: =VLOOKUP($C15,'RECAP SECT'!$G$6:$EV$253,9,FALSE) -> 17% | K15: =VLOOKUP($C15,'RECAP SECT'!$G$6:$EV$253,10,FALSE) -> 4 | L15: =VLOOKUP($C15,'RECAP SECT'!$G$6:$EV$253,11,FALSE) -> -0.82 | M15: =VLOOKUP($C15,'RECAP SECT'!$G$6:$EV$253,12,FALSE) -> 113% | N15: =VLOOKUP($C15,'RECAP SECT'!$G$6:$EV$253,13,FALSE) -> 15 | O15: =VLOOKUP($C15,'RECAP SECT'!$G$6:$EV$253,14,FALSE) -> -16% | P15: =VLOOKUP($C15,'RECAP SECT'!$G$6:$EV$253,15,FALSE) -> 100% | Q15: =VLOOKUP($C15,'RECAP SECT'!$G$6:$EV$253,16,FALSE) -> 13 | R15: =VLOOKUP($C15,'RECAP SECT'!$G$6:$EV$253,17,FALSE) -> 87% | S15: =VLOOKUP($C15,'RECAP SECT'!$G$6:$EV$253,18,FALSE) -> 69% | T15: =VLOOKUP($C15,'RECAP SECT'!$G$6:$EV$253,19,FALSE) -> 17
A16: 264 | B16: HAUT-RHIN | C16: 5169 | D16: MULHOUSE | E16: =VLOOKUP($C16,'RECAP SECT'!$G$6:$EV$253,3,FALSE) -> 75.1 | F16: =VLOOKUP($C16,'RECAP SECT'!$G$6:$EV$253,5,FALSE) -> -2.97 | G16: =VLOOKUP($C16,'RECAP SECT'!$G$6:$EV$253,6,FALSE) -> 126% | H16: =VLOOKUP($C16,'RECAP SECT'!$G$6:$EV$253,7,FALSE) -> 16 | I16: =VLOOKUP($C16,'RECAP SECT'!$G$6:$EV$253,8,FALSE) -> 2.99 | J16: =VLOOKUP($C16,'RECAP SECT'!$G$6:$EV$253,9,FALSE) -> 0% | K16: =VLOOKUP($C16,'RECAP SECT'!$G$6:$EV$253,10,FALSE) -> 1 | L16: =VLOOKUP($C16,'RECAP SECT'!$G$6:$EV$253,11,FALSE) -> -2.94 | M16: =VLOOKUP($C16,'RECAP SECT'!$G$6:$EV$253,12,FALSE) -> 150% | N16: =VLOOKUP($C16,'RECAP SECT'!$G$6:$EV$253,13,FALSE) -> 18 | O16: =VLOOKUP($C16,'RECAP SECT'!$G$6:$EV$253,14,FALSE) -> 32% | P16: =VLOOKUP($C16,'RECAP SECT'!$G$6:$EV$253,15,FALSE) -> 58% | Q16: =VLOOKUP($C16,'RECAP SECT'!$G$6:$EV$253,16,FALSE) -> 9 | R16: =VLOOKUP($C16,'RECAP SECT'!$G$6:$EV$253,17,FALSE) -> 79% | S16: =VLOOKUP($C16,'RECAP SECT'!$G$6:$EV$253,18,FALSE) -> 62% | T16: =VLOOKUP($C16,'RECAP SECT'!$G$6:$EV$253,19,FALSE) -> 16
A17: 30 | B17: MARNE-ARDENNES | C17: 6 | D17: CHALONS EN CHAMPAGNE | E17: =VLOOKUP($C17,'RECAP SECT'!$G$6:$EV$253,3,FALSE) -> 48.8 | F17: =VLOOKUP($C17,'RECAP SECT'!$G$6:$EV$253,5,FALSE) -> -0.53 | G17: =VLOOKUP($C17,'RECAP SECT'!$G$6:$EV$253,6,FALSE) -> 70% | H17: =VLOOKUP($C17,'RECAP SECT'!$G$6:$EV$253,7,FALSE) -> 5 | I17: =VLOOKUP($C17,'RECAP SECT'!$G$6:$EV$253,8,FALSE) -> 2.44 | J17: =VLOOKUP($C17,'RECAP SECT'!$G$6:$EV$253,9,FALSE) -> 18% | K17: =VLOOKUP($C17,'RECAP SECT'!$G$6:$EV$253,10,FALSE) -> 6 | L17: =VLOOKUP($C17,'RECAP SECT'!$G$6:$EV$253,11,FALSE) -> 1.07 | M17: =VLOOKUP($C17,'RECAP SECT'!$G$6:$EV$253,12,FALSE) -> 80% | N17: =VLOOKUP($C17,'RECAP SECT'!$G$6:$EV$253,13,FALSE) -> 12 | O17: =VLOOKUP($C17,'RECAP SECT'!$G$6:$EV$253,14,FALSE) -> -73% | P17: =VLOOKUP($C17,'RECAP SECT'!$G$6:$EV$253,15,FALSE) -> 149% | Q17: =VLOOKUP($C17,'RECAP SECT'!$G$6:$EV$253,16,FALSE) -> 17 | R17: =VLOOKUP($C17,'RECAP SECT'!$G$6:$EV$253,17,FALSE) -> 79% | S17: =VLOOKUP($C17,'RECAP SECT'!$G$6:$EV$253,18,FALSE) -> 61% | T17: =VLOOKUP($C17,'RECAP SECT'!$G$6:$EV$253,19,FALSE) -> 15
A18: 30 | B18: MARNE-ARDENNES | C18: 2 | D18: CHARLEVILLE MEZIERES | E18: =VLOOKUP($C18,'RECAP SECT'!$G$6:$EV$253,3,FALSE) -> 62.2 | F18: =VLOOKUP($C18,'RECAP SECT'!$G$6:$EV$253,5,FALSE) -> 2.48 | G18: =VLOOKUP($C18,'RECAP SECT'!$G$6:$EV$253,6,FALSE) -> 0% | H18: =VLOOKUP($C18,'RECAP SECT'!$G$6:$EV$253,7,FALSE) -> 1 | I18: =VLOOKUP($C18,'RECAP SECT'!$G$6:$EV$253,8,FALSE) -> 2.30 | J18: =VLOOKUP($C18,'RECAP SECT'!$G$6:$EV$253,9,FALSE) -> 23% | K18: =VLOOKUP($C18,'RECAP SECT'!$G$6:$EV$253,10,FALSE) -> 10 | L18: =VLOOKUP($C18,'RECAP SECT'!$G$6:$EV$253,11,FALSE) -> 4.94 | M18: =VLOOKUP($C18,'RECAP SECT'!$G$6:$EV$253,12,FALSE) -> 11% | N18: =VLOOKUP($C18,'RECAP SECT'!$G$6:$EV$253,13,FALSE) -> 2 | O18: =VLOOKUP($C18,'RECAP SECT'!$G$6:$EV$253,14,FALSE) -> 60% | P18: =VLOOKUP($C18,'RECAP SECT'!$G$6:$EV$253,15,FALSE) -> 34% | Q18: =VLOOKUP($C18,'RECAP SECT'!$G$6:$EV$253,16,FALSE) -> 4 | R18: =VLOOKUP($C18,'RECAP SECT'!$G$6:$EV$253,17,FALSE) -> 18% | S18: =VLOOKUP($C18,'RECAP SECT'!$G$6:$EV$253,18,FALSE) -> 0% | T18: =VLOOKUP($C18,'RECAP SECT'!$G$6:$EV$253,19,FALSE) -> 1
A19: 30 | B19: MARNE-ARDENNES | C19: 11 | D19: REIMS | E19: =VLOOKUP($C19,'RECAP SECT'!$G$6:$EV$253,3,FALSE) -> 89.8 | F19: =VLOOKUP($C19,'RECAP SECT'!$G$6:$EV$253,5,FALSE) -> 0.90 | G19: =VLOOKUP($C19,'RECAP SECT'!$G$6:$EV$253,6,FALSE) -> 36% | H19: =VLOOKUP($C19,'RECAP SECT'!$G$6:$EV$253,7,FALSE) -> 3 | I19: =VLOOKUP($C19,'RECAP SECT'!$G$6:$EV$253,8,FALSE) -> 2.35 | J19: =VLOOKUP($C19,'RECAP SECT'!$G$6:$EV$253,9,FALSE) -> 22% | K19: =VLOOKUP($C19,'RECAP SECT'!$G$6:$EV$253,10,FALSE) -> 8 | L19: =VLOOKUP($C19,'RECAP SECT'!$G$6:$EV$253,11,FALSE) -> 2.38 | M19: =VLOOKUP($C19,'RECAP SECT'!$G$6:$EV$253,12,FALSE) -> 56% | N19: =VLOOKUP($C19,'RECAP SECT'!$G$6:$EV$253,13,FALSE) -> 4 | O19: =VLOOKUP($C19,'RECAP SECT'!$G$6:$EV$253,14,FALSE) -> -21% | P19: =VLOOKUP($C19,'RECAP SECT'!$G$6:$EV$253,15,FALSE) -> 104% | Q19: =VLOOKUP($C19,'RECAP SECT'!$G$6:$EV$253,16,FALSE) -> 15 | R19: =VLOOKUP($C19,'RECAP SECT'!$G$6:$EV$253,17,FALSE) -> 54% | S19: =VLOOKUP($C19,'RECAP SECT'!$G$6:$EV$253,18,FALSE) -> 37% | T19: =VLOOKUP($C19,'RECAP SECT'!$G$6:$EV$253,19,FALSE) -> 5
A20: 110 | B20: MEURTHE ET MOSELLE MEUSE | C20: 26 | D20: NANCY | E20: =VLOOKUP($C20,'RECAP SECT'!$G$6:$EV$253,3,FALSE) -> 78.0 | F20: =VLOOKUP($C20,'RECAP SECT'!$G$6:$EV$253,5,FALSE) -> -1.55 | G20: =VLOOKUP($C20,'RECAP SECT'!$G$6:$EV$253,6,FALSE) -> 93% | H20: =VLOOKUP($C20,'RECAP SECT'!$G$6:$EV$253,7,FALSE) -> 9 | I20: =VLOOKUP($C20,'RECAP SECT'!$G$6:$EV$253,8,FALSE) -> 2.46 | J20: =VLOOKUP($C20,'RECAP SECT'!$G$6:$EV$253,9,FALSE) -> 18% | K20: =VLOOKUP($C20,'RECAP SECT'!$G$6:$EV$253,10,FALSE) -> 5 | L20: =VLOOKUP($C20,'RECAP SECT'!$G$6:$EV$253,11,FALSE) -> 1.27 | M20: =VLOOKUP($C20,'RECAP SECT'!$G$6:$EV$253,12,FALSE) -> 76% | N20: =VLOOKUP($C20,'RECAP SECT'!$G$6:$EV$253,13,FALSE) -> 9 | O20: =VLOOKUP($C20,'RECAP SECT'!$G$6:$EV$253,14,FALSE) -> -13% | P20: =VLOOKUP($C20,'RECAP SECT'!$G$6:$EV$253,15,FALSE) -> 97% | Q20: =VLOOKUP($C20,'RECAP SECT'!$G$6:$EV$253,16,FALSE) -> 12 | R20: =VLOOKUP($C20,'RECAP SECT'!$G$6:$EV$253,17,FALSE) -> 71% | S20: =VLOOKUP($C20,'RECAP SECT'!$G$6:$EV$253,18,FALSE) -> 53% | T20: =VLOOKUP($C20,'RECAP SECT'!$G$6:$EV$253,19,FALSE) -> 11
A21: 110 | B21: MEURTHE ET MOSELLE MEUSE | C21: 27 | D21: PONT A MOUSSON | E21: =VLOOKUP($C21,'RECAP SECT'!$G$6:$EV$253,3,FALSE) -> 87.4 | F21: =VLOOKUP($C21,'RECAP SECT'!$G$6:$EV$253,5,FALSE) -> -1.60 | G21: =VLOOKUP($C21,'RECAP SECT'!$G$6:$EV$253,6,FALSE) -> 94% | H21: =VLOOKUP($C21,'RECAP SECT'!$G$6:$EV$253,7,FALSE) -> 10 | I21: =VLOOKUP($C21,'RECAP SECT'!$G$6:$EV$253,8,FALSE) -> 1.71 | J21: =VLOOKUP($C21,'RECAP SECT'!$G$6:$EV$253,9,FALSE) -> 43% | K21: =VLOOKUP($C21,'RECAP SECT'!$G$6:$EV$253,10,FALSE) -> 18 | L21: =VLOOKUP($C21,'RECAP SECT'!$G$6:$EV$253,11,FALSE) -> 1.43 | M21: =VLOOKUP($C21,'RECAP SECT'!$G$6:$EV$253,12,FALSE) -> 73% | N21: =VLOOKUP($C21,'RECAP SECT'!$G$6:$EV$253,13,FALSE) -> 6 | O21: =VLOOKUP($C21,'RECAP SECT'!$G$6:$EV$253,14,FALSE) -> 38% | P21: =VLOOKUP($C21,'RECAP SECT'!$G$6:$EV$253,15,FALSE) -> 54% | Q21: =VLOOKUP($C21,'RECAP SECT'!$G$6:$EV$253,16,FALSE) -> 7 | R21: =VLOOKUP($C21,'RECAP SECT'!$G$6:$EV$253,17,FALSE) -> 66% | S21: =VLOOKUP($C21,'RECAP SECT'!$G$6:$EV$253,18,FALSE) -> 48% | T21: =VLOOKUP($C21,'RECAP SECT'!$G$6:$EV$253,19,FALSE) -> 9
A22: 110 | B22: MEURTHE ET MOSELLE MEUSE | C22: 31 | D22: VERDUN | E22: =VLOOKUP($C22,'RECAP SECT'!$G$6:$EV$253,3,FALSE) -> 63.4 | F22: =VLOOKUP($C22,'RECAP SECT'!$G$6:$EV$253,5,FALSE) -> -0.57 | G22: =VLOOKUP($C22,'RECAP SECT'!$G$6:$EV$253,6,FALSE) -> 70% | H22: =VLOOKUP($C22,'RECAP SECT'!$G$6:$EV$253,7,FALSE) -> 6 | I22: =VLOOKUP($C22,'RECAP SECT'!$G$6:$EV$253,8,FALSE) -> 2.15 | J22: =VLOOKUP($C22,'RECAP SECT'!$G$6:$EV$253,9,FALSE) -> 28% | K22: =VLOOKUP($C22,'RECAP SECT'!$G$6:$EV$253,10,FALSE) -> 12 | L22: =VLOOKUP($C22,'RECAP SECT'!$G$6:$EV$253,11,FALSE) -> 1.25 | M22: =VLOOKUP($C22,'RECAP SECT'!$G$6:$EV$253,12,FALSE) -> 76% | N22: =VLOOKUP($C22,'RECAP SECT'!$G$6:$EV$253,13,FALSE) -> 10 | O22: =VLOOKUP($C22,'RECAP SECT'!$G$6:$EV$253,14,FALSE) -> 53% | P22: =VLOOKUP($C22,'RECAP SECT'!$G$6:$EV$253,15,FALSE) -> 41% | Q22: =VLOOKUP($C22,'RECAP SECT'!$G$6:$EV$253,16,FALSE) -> 5 | R22: =VLOOKUP($C22,'RECAP SECT'!$G$6:$EV$253,17,FALSE) -> 52% | S22: =VLOOKUP($C22,'RECAP SECT'!$G$6:$EV$253,18,FALSE) -> 35% | T22: =VLOOKUP($C22,'RECAP SECT'!$G$6:$EV$253,19,FALSE) -> 4
A23: 160 | B23: MOSELLE | C23: 45 | D23: METZ | E23: =VLOOKUP($C23,'RECAP SECT'!$G$6:$EV$253,3,FALSE) -> 101.5 | F23: =VLOOKUP($C23,'RECAP SECT'!$G$6:$EV$253,5,FALSE) -> -2.41 | G23: =VLOOKUP($C23,'RECAP SECT'!$G$6:$EV$253,6,FALSE) -> 113% | H23: =VLOOKUP($C23,'RECAP SECT'!$G$6:$EV$253,7,FALSE) -> 13 | I23: =VLOOKUP($C23,'RECAP SECT'!$G$6:$EV$253,8,FALSE) -> 2.34 | J23: =VLOOKUP($C23,'RECAP SECT'!$G$6:$EV$253,9,FALSE) -> 22% | K23: =VLOOKUP($C23,'RECAP SECT'!$G$6:$EV$253,10,FALSE) -> 9 | L23: =VLOOKUP($C23,'RECAP SECT'!$G$6:$EV$253,11,FALSE) -> 1.19 | M23: =VLOOKUP($C23,'RECAP SECT'!$G$6:$EV$253,12,FALSE) -> 77% | N23: =VLOOKUP($C23,'RECAP SECT'!$G$6:$EV$253,13,FALSE) -> 11 | O23: =VLOOKUP($C23,'RECAP SECT'!$G$6:$EV$253,14,FALSE) -> 61% | P23: =VLOOKUP($C23,'RECAP SECT'!$G$6:$EV$253,15,FALSE) -> 33% | Q23: =VLOOKUP($C23,'RECAP SECT'!$G$6:$EV$253,16,FALSE) -> 3 | R23: =VLOOKUP($C23,'RECAP SECT'!$G$6:$EV$253,17,FALSE) -> 60% | S23: =VLOOKUP($C23,'RECAP SECT'!$G$6:$EV$253,18,FALSE) -> 43% | T23: =VLOOKUP($C23,'RECAP SECT'!$G$6:$EV$253,19,FALSE) -> 7
A24: 160 | B24: MOSELLE | C24: 42 | D24: MOSELLE EST | E24: =VLOOKUP($C24,'RECAP SECT'!$G$6:$EV$253,3,FALSE) -> 84.0 | F24: =VLOOKUP($C24,'RECAP SECT'!$G$6:$EV$253,5,FALSE) -> -0.19 | G24: =VLOOKUP($C24,'RECAP SECT'!$G$6:$EV$253,6,FALSE) -> 62% | H24: =VLOOKUP($C24,'RECAP SECT'!$G$6:$EV$253,7,FALSE) -> 4 | I24: =VLOOKUP($C24,'RECAP SECT'!$G$6:$EV$253,8,FALSE) -> 1.90 | J24: =VLOOKUP($C24,'RECAP SECT'!$G$6:$EV$253,9,FALSE) -> 36% | K24: =VLOOKUP($C24,'RECAP SECT'!$G$6:$EV$253,10,FALSE) -> 14 | L24: =VLOOKUP($C24,'RECAP SECT'!$G$6:$EV$253,11,FALSE) -> 1.30 | M24: =VLOOKUP($C24,'RECAP SECT'!$G$6:$EV$253,12,FALSE) -> 75% | N24: =VLOOKUP($C24,'RECAP SECT'!$G$6:$EV$253,13,FALSE) -> 8 | O24: =VLOOKUP($C24,'RECAP SECT'!$G$6:$EV$253,14,FALSE) -> 38% | P24: =VLOOKUP($C24,'RECAP SECT'!$G$6:$EV$253,15,FALSE) -> 54% | Q24: =VLOOKUP($C24,'RECAP SECT'!$G$6:$EV$253,16,FALSE) -> 7 | R24: =VLOOKUP($C24,'RECAP SECT'!$G$6:$EV$253,17,FALSE) -> 56% | S24: =VLOOKUP($C24,'RECAP SECT'!$G$6:$EV$253,18,FALSE) -> 38% | T24: =VLOOKUP($C24,'RECAP SECT'!$G$6:$EV$253,19,FALSE) -> 6
A25: 160 | B25: MOSELLE | C25: 44 | D25: MOSELLE NORD | E25: =VLOOKUP($C25,'RECAP SECT'!$G$6:$EV$253,3,FALSE) -> 78.7 | F25: =VLOOKUP($C25,'RECAP SECT'!$G$6:$EV$253,5,FALSE) -> -2.44 | G25: =VLOOKUP($C25,'RECAP SECT'!$G$6:$EV$253,6,FALSE) -> 114% | H25: =VLOOKUP($C25,'RECAP SECT'!$G$6:$EV$253,7,FALSE) -> 14 | I25: =VLOOKUP($C25,'RECAP SECT'!$G$6:$EV$253,8,FALSE) -> 1.78 | J25: =VLOOKUP($C25,'RECAP SECT'!$G$6:$EV$253,9,FALSE) -> 41% | K25: =VLOOKUP($C25,'RECAP SECT'!$G$6:$EV$253,10,FALSE) -> 15 | L25: =VLOOKUP($C25,'RECAP SECT'!$G$6:$EV$253,11,FALSE) -> 1.37 | M25: =VLOOKUP($C25,'RECAP SECT'!$G$6:$EV$253,12,FALSE) -> 74% | N25: =VLOOKUP($C25,'RECAP SECT'!$G$6:$EV$253,13,FALSE) -> 7 | O25: =VLOOKUP($C25,'RECAP SECT'!$G$6:$EV$253,14,FALSE) -> 80% | P25: =VLOOKUP($C25,'RECAP SECT'!$G$6:$EV$253,15,FALSE) -> 17% | Q25: =VLOOKUP($C25,'RECAP SECT'!$G$6:$EV$253,16,FALSE) -> 2 | R25: =VLOOKUP($C25,'RECAP SECT'!$G$6:$EV$253,17,FALSE) -> 61% | S25: =VLOOKUP($C25,'RECAP SECT'!$G$6:$EV$253,18,FALSE) -> 43% | T25: =VLOOKUP($C25,'RECAP SECT'!$G$6:$EV$253,19,FALSE) -> 8
A26: 80 | B26: VOSGES | C26: 57 | D26: EPINAL | E26: =VLOOKUP($C26,'RECAP SECT'!$G$6:$EV$253,3,FALSE) -> 66.9 | F26: =VLOOKUP($C26,'RECAP SECT'!$G$6:$EV$253,5,FALSE) -> -3.20 | G26: =VLOOKUP($C26,'RECAP SECT'!$G$6:$EV$253,6,FALSE) -> 131% | H26: =VLOOKUP($C26,'RECAP SECT'!$G$6:$EV$253,7,FALSE) -> 17 | I26: =VLOOKUP($C26,'RECAP SECT'!$G$6:$EV$253,8,FALSE) -> 1.72 | J26: =VLOOKUP($C26,'RECAP SECT'!$G$6:$EV$253,9,FALSE) -> 43% | K26: =VLOOKUP($C26,'RECAP SECT'!$G$6:$EV$253,10,FALSE) -> 17 | L26: =VLOOKUP($C26,'RECAP SECT'!$G$6:$EV$253,11,FALSE) -> 1.97 | M26: =VLOOKUP($C26,'RECAP SECT'!$G$6:$EV$253,12,FALSE) -> 64% | N26: =VLOOKUP($C26,'RECAP SECT'!$G$6:$EV$253,13,FALSE) -> 5 | O26: =VLOOKUP($C26,'RECAP SECT'!$G$6:$EV$253,14,FALSE) -> 27% | P26: =VLOOKUP($C26,'RECAP SECT'!$G$6:$EV$253,15,FALSE) -> 63% | Q26: =VLOOKUP($C26,'RECAP SECT'!$G$6:$EV$253,16,FALSE) -> 10 | R26: =VLOOKUP($C26,'RECAP SECT'!$G$6:$EV$253,17,FALSE) -> 76% | S26: =VLOOKUP($C26,'RECAP SECT'!$G$6:$EV$253,18,FALSE) -> 58% | T26: =VLOOKUP($C26,'RECAP SECT'!$G$6:$EV$253,19,FALSE) -> 14
A27: 80 | B27: VOSGES | C27: 55 | D27: SAINT DIE | E27: =VLOOKUP($C27,'RECAP SECT'!$G$6:$EV$253,3,FALSE) -> 56.7 | F27: =VLOOKUP($C27,'RECAP SECT'!$G$6:$EV$253,5,FALSE) -> -1.39 | G27: =VLOOKUP($C27,'RECAP SECT'!$G$6:$EV$253,6,FALSE) -> 90% | H27: =VLOOKUP($C27,'RECAP SECT'!$G$6:$EV$253,7,FALSE) -> 8 | I27: =VLOOKUP($C27,'RECAP SECT'!$G$6:$EV$253,8,FALSE) -> 1.76 | J27: =VLOOKUP($C27,'RECAP SECT'!$G$6:$EV$253,9,FALSE) -> 41% | K27: =VLOOKUP($C27,'RECAP SECT'!$G$6:$EV$253,10,FALSE) -> 16 | L27: =VLOOKUP($C27,'RECAP SECT'!$G$6:$EV$253,11,FALSE) -> 0.85 | M27: =VLOOKUP($C27,'RECAP SECT'!$G$6:$EV$253,12,FALSE) -> 83% | N27: =VLOOKUP($C27,'RECAP SECT'!$G$6:$EV$253,13,FALSE) -> 13 | O27: =VLOOKUP($C27,'RECAP SECT'!$G$6:$EV$253,14,FALSE) -> 100% | P27: =VLOOKUP($C27,'RECAP SECT'!$G$6:$EV$253,15,FALSE) -> 0% | Q27: =VLOOKUP($C27,'RECAP SECT'!$G$6:$EV$253,16,FALSE) -> 1 | R27: =VLOOKUP($C27,'RECAP SECT'!$G$6:$EV$253,17,FALSE) -> 52% | S27: =VLOOKUP($C27,'RECAP SECT'!$G$6:$EV$253,18,FALSE) -> 34% | T27: =VLOOKUP($C27,'RECAP SECT'!$G$6:$EV$253,19,FALSE) -> 3
A28: Total CEGEE Directions Régionales | E28: =SUM(E10:E27) -> 1346

Sheet SE_RISQUES
A1: Accueil | F1: BAROMETRE BDD - TERRITOIRES
F2: RISQUES
F3: =ACCUEIL!H7 -> 2019-09-30
F6: Complétude conformité et fiabilisation | L6: Traitement et qualité du traitement des alertes Vigiclient | O6: Total Risques
F7: Nouvelles EER sur flux BDD | I7: EER sur flux cumulés et stock
G8: coef | H8: ='RECAP DIRCOM'!DW4 -> 3% | J8: coef | K8: ='RECAP DIRCOM'!DZ4 -> 3% | M8: coef | N8: ='RECAP DIRCOM'!EC4 -> 4% | P8: coef | Q8: ='RECAP DIRCOM'!EF4 -> 10%
A9: eds | B9: Direction | C9: eds | D9: Territoire | E9: ETP perf | G9: % Ecart au 1er | H9: Rang | J9: % Ecart au 1er | K9: Rang | M9: % Ecart au 1er | N9: Rang | O9: Moyenne ecart au 1er | P9: % Ecart au 1er | Q9: Rang CEGEE
A10: 50 | B10: AUBE HAUTE MARNE | C10: 21 | D10: CHAUMONT | E10: =VLOOKUP($C10,'RECAP SECT'!$G$6:$EV$253,3,FALSE) -> 46.0 | F10: =VLOOKUP($C10,'RECAP SECT'!$G$6:$EV$253,119,FALSE) -> 98% | G10: =VLOOKUP($C10,'RECAP SECT'!$G$6:$EV$253,120,FALSE) -> 1% | H10: =VLOOKUP($C10,'RECAP SECT'!$G$6:$EV$253,121,FALSE) -> 8 | I10: =VLOOKUP($C10,'RECAP SECT'!$G$6:$EV$253,122,FALSE) -> 78% | J10: =VLOOKUP($C10,'RECAP SECT'!$G$6:$EV$253,123,FALSE) -> 1% | K10: =VLOOKUP($C10,'RECAP SECT'!$G$6:$EV$253,124,FALSE) -> 4 | L10: =VLOOKUP($C10,'RECAP SECT'!$G$6:$EV$253,125,FALSE) -> 100% | M10: =VLOOKUP($C10,'RECAP SECT'!$G$6:$EV$253,126,FALSE) -> 0% | N10: =VLOOKUP($C10,'RECAP SECT'!$G$6:$EV$253,127,FALSE) -> 1 | O10: =VLOOKUP($C10,'RECAP SECT'!$G$6:$EV$253,128,FALSE) -> 1% | P10: =VLOOKUP($C10,'RECAP SECT'!$G$6:$EV$253,129,FALSE) -> 0% | Q10: =VLOOKUP($C10,'RECAP SECT'!$G$6:$EV$253,130,FALSE) -> 1
A11: 50 | B11: AUBE HAUTE MARNE | C11: 14 | D11: TROYES | E11: =VLOOKUP($C11,'RECAP SECT'!$G$6:$EV$253,3,FALSE) -> 77.6 | F11: =VLOOKUP($C11,'RECAP SECT'!$G$6:$EV$253,119,FALSE) -> 98% | G11: =VLOOKUP($C11,'RECAP SECT'!$G$6:$EV$253,120,FALSE) -> 1% | H11: =VLOOKUP($C11,'RECAP SECT'!$G$6:$EV$253,121,FALSE) -> 9 | I11: =VLOOKUP($C11,'RECAP SECT'!$G$6:$EV$253,122,FALSE) -> 75% | J11: =VLOOKUP($C11,'RECAP SECT'!$G$6:$EV$253,123,FALSE) -> 5% | K11: =VLOOKUP($C11,'RECAP SECT'!$G$6:$EV$253,124,FALSE) -> 10 | L11: =VLOOKUP($C11,'RECAP SECT'!$G$6:$EV$253,125,FALSE) -> 100% | M11: =VLOOKUP($C11,'RECAP SECT'!$G$6:$EV$253,126,FALSE) -> 0% | N11: =VLOOKUP($C11,'RECAP SECT'!$G$6:$EV$253,127,FALSE) -> 1 | O11: =VLOOKUP($C11,'RECAP SECT'!$G$6:$EV$253,128,FALSE) -> 2% | P11: =VLOOKUP($C11,'RECAP SECT'!$G$6:$EV$253,129,FALSE) -> 1% | Q11: =VLOOKUP($C11,'RECAP SECT'!$G$6:$EV$253,130,FALSE) -> 6
A12: 262 | B12: BAS-RHIN | C12: 5060 | D12: HAGUENAU | E12: =VLOOKUP($C12,'RECAP SECT'!$G$6:$EV$253,3,FALSE) -> 87.6 | F12: =VLOOKUP($C12,'RECAP SECT'!$G$6:$EV$253,119,FALSE) -> 97% | G12: =VLOOKUP($C12,'RECAP SECT'!$G$6:$EV$253,120,FALSE) -> 2% | H12: =VLOOKUP($C12,'RECAP SECT'!$G$6:$EV$253,121,FALSE) -> 13 | I12: =VLOOKUP($C12,'RECAP SECT'!$G$6:$EV$253,122,FALSE) -> 72% | J12: =VLOOKUP($C12,'RECAP SECT'!$G$6:$EV$253,123,FALSE) -> 9% | K12: =VLOOKUP($C12,'RECAP SECT'!$G$6:$EV$253,124,FALSE) -> 15 | L12: =VLOOKUP($C12,'RECAP SECT'!$G$6:$EV$253,125,FALSE) -> 91% | M12: =VLOOKUP($C12,'RECAP SECT'!$G$6:$EV$253,126,FALSE) -> 9% | N12: =VLOOKUP($C12,'RECAP SECT'!$G$6:$EV$253,127,FALSE) -> 15 | O12: =VLOOKUP($C12,'RECAP SECT'!$G$6:$EV$253,128,FALSE) -> 7% | P12: =VLOOKUP($C12,'RECAP SECT'!$G$6:$EV$253,129,FALSE) -> 6% | Q12: =VLOOKUP($C12,'RECAP SECT'!$G$6:$EV$253,130,FALSE) -> 16
A13: 262 | B13: BAS-RHIN | C13: 5101 | D13: SELESTAT | E13: =VLOOKUP($C13,'RECAP SECT'!$G$6:$EV$253,3,FALSE) -> 75.2 | F13: =VLOOKUP($C13,'RECAP SECT'!$G$6:$EV$253,119,FALSE) -> 98% | G13: =VLOOKUP($C13,'RECAP SECT'!$G$6:$EV$253,120,FALSE) -> 1% | H13: =VLOOKUP($C13,'RECAP SECT'!$G$6:$EV$253,121,FALSE) -> 7 | I13: =VLOOKUP($C13,'RECAP SECT'!$G$6:$EV$253,122,FALSE) -> 72% | J13: =VLOOKUP($C13,'RECAP SECT'!$G$6:$EV$253,123,FALSE) -> 10% | K13: =VLOOKUP($C13,'RECAP SECT'!$G$6:$EV$253,124,FALSE) -> 16 | L13: =VLOOKUP($C13,'RECAP SECT'!$G$6:$EV$253,125,FALSE) -> 92% | M13: =VLOOKUP($C13,'RECAP SECT'!$G$6:$EV$253,126,FALSE) -> 8% | N13: =VLOOKUP($C13,'RECAP SECT'!$G$6:$EV$253,127,FALSE) -> 13 | O13: =VLOOKUP($C13,'RECAP SECT'!$G$6:$EV$253,128,FALSE) -> 6% | P13: =VLOOKUP($C13,'RECAP SECT'!$G$6:$EV$253,129,FALSE) -> 6% | Q13: =VLOOKUP($C13,'RECAP SECT'!$G$6:$EV$253,130,FALSE) -> 14
A14: 262 | B14: BAS-RHIN | C14: 5006 | D14: STRASBOURG | E14: =VLOOKUP($C14,'RECAP SECT'!$G$6:$EV$253,3,FALSE) -> 92.1 | F14: =VLOOKUP($C14,'RECAP SECT'!$G$6:$EV$253,119,FALSE) -> 96% | G14: =VLOOKUP($C14,'RECAP SECT'!$G$6:$EV$253,120,FALSE) -> 4% | H14: =VLOOKUP($C14,'RECAP SECT'!$G$6:$EV$253,121,FALSE) -> 17 | I14: =VLOOKUP($C14,'RECAP SECT'!$G$6:$EV$253,122,FALSE) -> 70% | J14: =VLOOKUP($C14,'RECAP SECT'!$G$6:$EV$253,123,FALSE) -> 11% | K14: =VLOOKUP($C14,'RECAP SECT'!$G$6:$EV$253,124,FALSE) -> 18 | L14: =VLOOKUP($C14,'RECAP SECT'!$G$6:$EV$253,125,FALSE) -> 91% | M14: =VLOOKUP($C14,'RECAP SECT'!$G$6:$EV$253,126,FALSE) -> 9% | N14: =VLOOKUP($C14,'RECAP SECT'!$G$6:$EV$253,127,FALSE) -> 16 | O14: =VLOOKUP($C14,'RECAP SECT'!$G$6:$EV$253,128,FALSE) -> 8% | P14: =VLOOKUP($C14,'RECAP SECT'!$G$6:$EV$253,129,FALSE) -> 7% | Q14: =VLOOKUP($C14,'RECAP SECT'!$G$6:$EV$253,130,FALSE) -> 17
A15: 264 | B15: HAUT-RHIN | C15: 5130 | D15: COLMAR | E15: =VLOOKUP($C15,'RECAP SECT'!$G$6:$EV$253,3,FALSE) -> 75.3 | F15: =VLOOKUP($C15,'RECAP SECT'!$G$6:$EV$253,119,FALSE) -> 97% | G15: =VLOOKUP($C15,'RECAP SECT'!$G$6:$EV$253,120,FALSE) -> 2% | H15: =VLOOKUP($C15,'RECAP SECT'!$G$6:$EV$253,121,FALSE) -> 12 | I15: =VLOOKUP($C15,'RECAP SECT'!$G$6:$EV$253,122,FALSE) -> 73% | J15: =VLOOKUP($C15,'RECAP SECT'!$G$6:$EV$253,123,FALSE) -> 8% | K15: =VLOOKUP($C15,'RECAP SECT'!$G$6:$EV$253,124,FALSE) -> 14 | L15: =VLOOKUP($C15,'RECAP SECT'!$G$6:$EV$253,125,FALSE) -> 99% | M15: =VLOOKUP($C15,'RECAP SECT'!$G$6:$EV$253,126,FALSE) -> 1% | N15: =VLOOKUP($C15,'RECAP SECT'!$G$6:$EV$253,127,FALSE) -> 5 | O15: =VLOOKUP($C15,'RECAP SECT'!$G$6:$EV$253,128,FALSE) -> 3% | P15: =VLOOKUP($C15,'RECAP SECT'!$G$6:$EV$253,129,FALSE) -> 3% | Q15: =VLOOKUP($C15,'RECAP SECT'!$G$6:$EV$253,130,FALSE) -> 9
A16: 264 | B16: HAUT-RHIN | C16: 5169 | D16: MULHOUSE | E16: =VLOOKUP($C16,'RECAP SECT'!$G$6:$EV$253,3,FALSE) -> 75.1 | F16: =VLOOKUP($C16,'RECAP SECT'!$G$6:$EV$253,119,FALSE) -> 98% | G16: =VLOOKUP($C16,'RECAP SECT'!$G$6:$EV$253,120,FALSE) -> 1% | H16: =VLOOKUP($C16,'RECAP SECT'!$G$6:$EV$253,121,FALSE) -> 6 | I16: =VLOOKUP($C16,'RECAP SECT'!$G$6:$EV$253,122,FALSE) -> 73% | J16: =VLOOKUP($C16,'RECAP SECT'!$G$6:$EV$253,123,FALSE) -> 7% | K16: =VLOOKUP($C16,'RECAP SECT'!$G$6:$EV$253,124,FALSE) -> 13 | L16: =VLOOKUP($C16,'RECAP SECT'!$G$6:$EV$253,125,FALSE) -> 98% | M16: =VLOOKUP($C16,'RECAP SECT'!$G$6:$EV$253,126,FALSE) -> 2% | N16: =VLOOKUP($C16,'RECAP SECT'!$G$6:$EV$253,127,FALSE) -> 10 | O16: =VLOOKUP($C16,'RECAP SECT'!$G$6:$EV$253,128,FALSE) -> 3% | P16: =VLOOKUP($C16,'RECAP SECT'!$G$6:$EV$253,129,FALSE) -> 3% | Q16: =VLOOKUP($C16,'RECAP SECT'!$G$6:$EV$253,130,FALSE) -> 10
A17: 30 | B17: MARNE-ARDENNES | C17: 6 | D17: CHALONS EN CHAMPAGNE | E17: =VLOOKUP($C17,'RECAP SECT'!$G$6:$EV$253,3,FALSE) -> 48.8 | F17: =VLOOKUP($C17,'RECAP SECT'!$G$6:$EV$253,119,FALSE) -> 99% | G17: =VLOOKUP($C17,'RECAP SECT'!$G$6:$EV$253,120,FALSE) -> 0% | H17: =VLOOKUP($C17,'RECAP SECT'!$G$6:$EV$253,121,FALSE) -> 1 | I17: =VLOOKUP($C17,'RECAP SECT'!$G$6:$EV$253,122,FALSE) -> 73% | J17: =VLOOKUP($C17,'RECAP SECT'!$G$6:$EV$253,123,FALSE) -> 7% | K17: =VLOOKUP($C17,'RECAP SECT'!$G$6:$EV$253,124,FALSE) -> 12 | L17: =VLOOKUP($C17,'RECAP SECT'!$G$6:$EV$253,125,FALSE) -> 99% | M17: =VLOOKUP($C17,'RECAP SECT'!$G$6:$EV$253,126,FALSE) -> 1% | N17: =VLOOKUP($C17,'RECAP SECT'!$G$6:$EV$253,127,FALSE) -> 6 | O17: =VLOOKUP($C17,'RECAP SECT'!$G$6:$EV$253,128,FALSE) -> 3% | P17: =VLOOKUP($C17,'RECAP SECT'!$G$6:$EV$253,129,FALSE) -> 2% | Q17: =VLOOKUP($C17,'RECAP SECT'!$G$6:$EV$253,130,FALSE) -> 7
A18: 30 | B18: MARNE-ARDENNES | C18: 2 | D18: CHARLEVILLE MEZIERES | E18: =VLOOKUP($C18,'RECAP SECT'!$G$6:$EV$253,3,FALSE) -> 62.2 | F18: =VLOOKUP($C18,'RECAP SECT'!$G$6:$EV$253,119,FALSE) -> 98% | G18: =VLOOKUP($C18,'RECAP SECT'!$G$6:$EV$253,120,FALSE) -> 1% | H18: =VLOOKUP($C18,'RECAP SECT'!$G$6:$EV$253,121,FALSE) -> 5 | I18: =VLOOKUP($C18,'RECAP SECT'!$G$6:$EV$253,122,FALSE) -> 76% | J18: =VLOOKUP($C18,'RECAP SECT'!$G$6:$EV$253,123,FALSE) -> 4% | K18: =VLOOKUP($C18,'RECAP SECT'!$G$6:$EV$253,124,FALSE) -> 8 | L18: =VLOOKUP($C18,'RECAP SECT'!$G$6:$EV$253,125,FALSE) -> 100% | M18: =VLOOKUP($C18,'RECAP SECT'!$G$6:$EV$253,126,FALSE) -> 0% | N18: =VLOOKUP($C18,'RECAP SECT'!$G$6:$EV$253,127,FALSE) -> 4 | O18: =VLOOKUP($C18,'RECAP SECT'!$G$6:$EV$253,128,FALSE) -> 2% | P18: =VLOOKUP($C18,'RECAP SECT'!$G$6:$EV$253,129,FALSE) -> 1% | Q18: =VLOOKUP($C18,'RECAP SECT'!$G$6:$EV$253,130,FALSE) -> 5
A19: 30 | B19: MARNE-ARDENNES | C19: 11 | D19: REIMS | E19: =VLOOKUP($C19,'RECAP SECT'!$G$6:$EV$253,3,FALSE) -> 89.8 | F19: =VLOOKUP($C19,'RECAP SECT'!$G$6:$EV$253,119,FALSE) -> 98% | G19: =VLOOKUP($C19,'RECAP SECT'!$G$6:$EV$253,120,FALSE) -> 1% | H19: =VLOOKUP($C19,'RECAP SECT'!$G$6:$EV$253,121,FALSE) -> 4 | I19: =VLOOKUP($C19,'RECAP SECT'!$G$6:$EV$253,122,FALSE) -> 72% | J19: =VLOOKUP($C19,'RECAP SECT'!$G$6:$EV$253,123,FALSE) -> 10% | K19: =VLOOKUP($C19,'RECAP SECT'!$G$6:$EV$253,124,FALSE) -> 17 | L19: =VLOOKUP($C19,'RECAP SECT'!$G$6:$EV$253,125,FALSE) -> 99% | M19: =VLOOKUP($C19,'RECAP SECT'!$G$6:$EV$253,126,FALSE) -> 1% | N19: =VLOOKUP($C19,'RECAP SECT'!$G$6:$EV$253,127,FALSE) -> 8 | O19: =VLOOKUP($C19,'RECAP SECT'!$G$6:$EV$253,128,FALSE) -> 4% | P19: =VLOOKUP($C19,'RECAP SECT'!$G$6:$EV$253,129,FALSE) -> 3% | Q19: =VLOOKUP($C19,'RECAP SECT'!$G$6:$EV$253,130,FALSE) -> 11
A20: 110 | B20: MEURTHE ET MOSELLE MEUSE | C20: 26 | D20: NANCY | E20: =VLOOKUP($C20,'RECAP SECT'!$G$6:$EV$253,3,FALSE) -> 78.0 | F20: =VLOOKUP($C20,'RECAP SECT'!$G$6:$EV$253,119,FALSE) -> 96% | G20: =VLOOKUP($C20,'RECAP SECT'!$G$6:$EV$253,120,FALSE) -> 3% | H20: =VLOOKUP($C20,'RECAP SECT'!$G$6:$EV$253,121,FALSE) -> 16 | I20: =VLOOKUP($C20,'RECAP SECT'!$G$6:$EV$253,122,FALSE) -> 75% | J20: =VLOOKUP($C20,'RECAP SECT'!$G$6:$EV$253,123,FALSE) -> 5% | K20: =VLOOKUP($C20,'RECAP SECT'!$G$6:$EV$253,124,FALSE) -> 11 | L20: =VLOOKUP($C20,'RECAP SECT'!$G$6:$EV$253,125,FALSE) -> 86% | M20: =VLOOKUP($C20,'RECAP SECT'!$G$6:$EV$253,126,FALSE) -> 14% | N20: =VLOOKUP($C20,'RECAP SECT'!$G$6:$EV$253,127,FALSE) -> 18 | O20: =VLOOKUP($C20,'RECAP SECT'!$G$6:$EV$253,128,FALSE) -> 8% | P20: =VLOOKUP($C20,'RECAP SECT'!$G$6:$EV$253,129,FALSE) -> 7% | Q20: =VLOOKUP($C20,'RECAP SECT'!$G$6:$EV$253,130,FALSE) -> 18
A21: 110 | B21: MEURTHE ET MOSELLE MEUSE | C21: 27 | D21: PONT A MOUSSON | E21: =VLOOKUP($C21,'RECAP SECT'!$G$6:$EV$253,3,FALSE) -> 87.4 | F21: =VLOOKUP($C21,'RECAP SECT'!$G$6:$EV$253,119,FALSE) -> 95% | G21: =VLOOKUP($C21,'RECAP SECT'!$G$6:$EV$253,120,FALSE) -> 4% | H21: =VLOOKUP($C21,'RECAP SECT'!$G$6:$EV$253,121,FALSE) -> 18 | I21: =VLOOKUP($C21,'RECAP SECT'!$G$6:$EV$253,122,FALSE) -> 76% | J21: =VLOOKUP($C21,'RECAP SECT'!$G$6:$EV$253,123,FALSE) -> 4% | K21: =VLOOKUP($C21,'RECAP SECT'!$G$6:$EV$253,124,FALSE) -> 9 | L21: =VLOOKUP($C21,'RECAP SECT'!$G$6:$EV$253,125,FALSE) -> 89% | M21: =VLOOKUP($C21,'RECAP SECT'!$G$6:$EV$253,126,FALSE) -> 11% | N21: =VLOOKUP($C21,'RECAP SECT'!$G$6:$EV$253,127,FALSE) -> 17 | O21: =VLOOKUP($C21,'RECAP SECT'!$G$6:$EV$253,128,FALSE) -> 7% | P21: =VLOOKUP($C21,'RECAP SECT'!$G$6:$EV$253,129,FALSE) -> 6% | Q21: =VLOOKUP($C21,'RECAP SECT'!$G$6:$EV$253,130,FALSE) -> 15
A22: 110 | B22: MEURTHE ET MOSELLE MEUSE | C22: 31 | D22: VERDUN | E22: =VLOOKUP($C22,'RECAP SECT'!$G$6:$EV$253,3,FALSE) -> 63.4 | F22: =VLOOKUP($C22,'RECAP SECT'!$G$6:$EV$253,119,FALSE) -> 97% | G22: =VLOOKUP($C22,'RECAP SECT'!$G$6:$EV$253,120,FALSE) -> 2% | H22: =VLOOKUP($C22,'RECAP SECT'!$G$6:$EV$253,121,FALSE) -> 14 | I22: =VLOOKUP($C22,'RECAP SECT'!$G$6:$EV$253,122,FALSE) -> 77% | J22: =VLOOKUP($C22,'RECAP SECT'!$G$6:$EV$253,123,FALSE) -> 3% | K22: =VLOOKUP($C22,'RECAP SECT'!$G$6:$EV$253,124,FALSE) -> 7 | L22: =VLOOKUP($C22,'RECAP SECT'!$G$6:$EV$253,125,FALSE) -> 93% | M22: =VLOOKUP($C22,'RECAP SECT'!$G$6:$EV$253,126,FALSE) -> 7% | N22: =VLOOKUP($C22,'RECAP SECT'!$G$6:$EV$253,127,FALSE) -> 12 | O22: =VLOOKUP($C22,'RECAP SECT'!$G$6:$EV$253,128,FALSE) -> 4% | P22: =VLOOKUP($C22,'RECAP SECT'!$G$6:$EV$253,129,FALSE) -> 4% | Q22: =VLOOKUP($C22,'RECAP SECT'!$G$6:$EV$253,130,FALSE) -> 13
A23: 160 | B23: MOSELLE | C23: 45 | D23: METZ | E23: =VLOOKUP($C23,'RECAP SECT'!$G$6:$EV$253,3,FALSE) -> 101.5 | F23: =VLOOKUP($C23,'RECAP SECT'!$G$6:$EV$253,119,FALSE) -> 96% | G23: =VLOOKUP($C23,'RECAP SECT'!$G$6:$EV$253,120,FALSE) -> 3% | H23: =VLOOKUP($C23,'RECAP SECT'!$G$6:$EV$253,121,FALSE) -> 15 | I23: =VLOOKUP($C23,'RECAP SECT'!$G$6:$EV$253,122,FALSE) -> 77% | J23: =VLOOKUP($C23,'RECAP SECT'!$G$6:$EV$253,123,FALSE) -> 3% | K23: =VLOOKUP($C23,'RECAP SECT'!$G$6:$EV$253,124,FALSE) -> 6 | L23: =VLOOKUP($C23,'RECAP SECT'!$G$6:$EV$253,125,FALSE) -> 98% | M23: =VLOOKUP($C23,'RECAP SECT'!$G$6:$EV$253,126,FALSE) -> 2% | N23: =VLOOKUP($C23,'RECAP SECT'!$G$6:$EV$253,127,FALSE) -> 11 | O23: =VLOOKUP($C23,'RECAP SECT'!$G$6:$EV$253,128,FALSE) -> 3% | P23: =VLOOKUP($C23,'RECAP SECT'!$G$6:$EV$253,129,FALSE) -> 2% | Q23: =VLOOKUP($C23,'RECAP SECT'!$G$6:$EV$253,130,FALSE) -> 8
A24: 160 | B24: MOSELLE | C24: 42 | D24: MOSELLE EST | E24: =VLOOKUP($C24,'RECAP SECT'!$G$6:$EV$253,3,FALSE) -> 84.0 | F24: =VLOOKUP($C24,'RECAP SECT'!$G$6:$EV$253,119,FALSE) -> 98% | G24: =VLOOKUP($C24,'RECAP SECT'!$G$6:$EV$253,120,FALSE) -> 1% | H24: =VLOOKUP($C24,'RECAP SECT'!$G$6:$EV$253,121,FALSE) -> 10 | I24: =VLOOKUP($C24,'RECAP SECT'!$G$6:$EV$253,122,FALSE) -> 78% | J24: =VLOOKUP($C24,'RECAP SECT'!$G$6:$EV$253,123,FALSE) -> 1% | K24: =VLOOKUP($C24,'RECAP SECT'!$G$6:$EV$253,124,FALSE) -> 3 | L24: =VLOOKUP($C24,'RECAP SECT'!$G$6:$EV$253,125,FALSE) -> 100% | M24: =VLOOKUP($C24,'RECAP SECT'!$G$6:$EV$253,126,FALSE) -> 0% | N24: =VLOOKUP($C24,'RECAP SECT'!$G$6:$EV$253,127,FALSE) -> 1 | O24: =VLOOKUP($C24,'RECAP SECT'!$G$6:$EV$253,128,FALSE) -> 1% | P24: =VLOOKUP($C24,'RECAP SECT'!$G$6:$EV$253,129,FALSE) -> 0% | Q24: =VLOOKUP($C24,'RECAP SECT'!$G$6:$EV$253,130,FALSE) -> 2
A25: 160 | B25: MOSELLE | C25: 44 | D25: MOSELLE NORD | E25: =VLOOKUP($C25,'RECAP SECT'!$G$6:$EV$253,3,FALSE) -> 78.7 | F25: =VLOOKUP($C25,'RECAP SECT'!$G$6:$EV$253,119,FALSE) -> 98% | G25: =VLOOKUP($C25,'RECAP SECT'!$G$6:$EV$253,120,FALSE) -> 1% | H25: =VLOOKUP($C25,'RECAP SECT'!$G$6:$EV$253,121,FALSE) -> 11 | I25: =VLOOKUP($C25,'RECAP SECT'!$G$6:$EV$253,122,FALSE) -> 79% | J25: =VLOOKUP($C25,'RECAP SECT'!$G$6:$EV$253,123,FALSE) -> 1% | K25: =VLOOKUP($C25,'RECAP SECT'!$G$6:$EV$253,124,FALSE) -> 2 | L25: =VLOOKUP($C25,'RECAP SECT'!$G$6:$EV$253,125,FALSE) -> 99% | M25: =VLOOKUP($C25,'RECAP SECT'!$G$6:$EV$253,126,FALSE) -> 1% | N25: =VLOOKUP($C25,'RECAP SECT'!$G$6:$EV$253,127,FALSE) -> 7 | O25: =VLOOKUP($C25,'RECAP SECT'!$G$6:$EV$253,128,FALSE) -> 1% | P25: =VLOOKUP($C25,'RECAP SECT'!$G$6:$EV$253,129,FALSE) -> 0% | Q25: =VLOOKUP($C25,'RECAP SECT'!$G$6:$EV$253,130,FALSE) -> 4
A26: 80 | B26: VOSGES | C26: 57 | D26: EPINAL | E26: =VLOOKUP($C26,'RECAP SECT'!$G$6:$EV$253,3,FALSE) -> 66.9 | F26: =VLOOKUP($C26,'RECAP SECT'!$G$6:$EV$253,119,FALSE) -> 99% | G26: =VLOOKUP($C26,'RECAP SECT'!$G$6:$EV$253,120,FALSE) -> 0% | H26: =VLOOKUP($C26,'RECAP SECT'!$G$6:$EV$253,121,FALSE) -> 2 | I26: =VLOOKUP($C26,'RECAP SECT'!$G$6:$EV$253,122,FALSE) -> 78% | J26: =VLOOKUP($C26,'RECAP SECT'!$G$6:$EV$253,123,FALSE) -> 2% | K26: =VLOOKUP($C26,'RECAP SECT'!$G$6:$EV$253,124,FALSE) -> 5 | L26: =VLOOKUP($C26,'RECAP SECT'!$G$6:$EV$253,125,FALSE) -> 92% | M26: =VLOOKUP($C26,'RECAP SECT'!$G$6:$EV$253,126,FALSE) -> 8% | N26: =VLOOKUP($C26,'RECAP SECT'!$G$6:$EV$253,127,FALSE) -> 14 | O26: =VLOOKUP($C26,'RECAP SECT'!$G$6:$EV$253,128,FALSE) -> 4% | P26: =VLOOKUP($C26,'RECAP SECT'!$G$6:$EV$253,129,FALSE) -> 3% | Q26: =VLOOKUP($C26,'RECAP SECT'!$G$6:$EV$253,130,FALSE) -> 12
A27: 80 | B27: VOSGES | C27: 55 | D27: SAINT DIE | E27: =VLOOKUP($C27,'RECAP SECT'!$G$6:$EV$253,3,FALSE) -> 56.7 | F27: =VLOOKUP($C27,'RECAP SECT'!$G$6:$EV$253,119,FALSE) -> 98% | G27: =VLOOKUP($C27,'RECAP SECT'!$G$6:$EV$253,120,FALSE) -> 1% | H27: =VLOOKUP($C27,'RECAP SECT'!$G$6:$EV$253,121,FALSE) -> 3 | I27: =VLOOKUP($C27,'RECAP SECT'!$G$6:$EV$253,122,FALSE) -> 79% | J27: =VLOOKUP($C27,'RECAP SECT'!$G$6:$EV$253,123,FALSE) -> 0% | K27: =VLOOKUP($C27,'RECAP SECT'!$G$6:$EV$253,124,FALSE) -> 1 | L27: =VLOOKUP($C27,'RECAP SECT'!$G$6:$EV$253,125,FALSE) -> 98% | M27: =VLOOKUP($C27,'RECAP SECT'!$G$6:$EV$253,126,FALSE) -> 2% | N27: =VLOOKUP($C27,'RECAP SECT'!$G$6:$EV$253,127,FALSE) -> 9 | O27: =VLOOKUP($C27,'RECAP SECT'!$G$6:$EV$253,128,FALSE) -> 1% | P27: =VLOOKUP($C27,'RECAP SECT'!$G$6:$EV$253,129,FALSE) -> 0% | Q27: =VLOOKUP($C27,'RECAP SECT'!$G$6:$EV$253,130,FALSE) -> 3
A28: Total CEGEE Directions Régionales | E28: =SUM(E10:E27) -> 1346

Sheet SE_SATISFACTION
A1: Accueil | F1: BAROMETRE BDD - TERRITOIRES
F2: SATISFACTION CLIENTS
F3: =ACCUEIL!H7 -> 2019-09-30
F7: N P S | I7: Enquête Qualité Haute Définition | L7: Total Satisfaction Clients
G8: coef | H8: ='RECAP DIRCOM'!EO4 -> 5% | J8: coef | K8: ='RECAP DIRCOM'!ER4 -> 5% | M8: coef | N8: ='RECAP DIRCOM'!EU4 -> 10%
A9: eds | B9: Direction | C9: eds | D9: Territoire | E9: ETP perf | G9: % Ecart au 1er | H9: Rang | J9: % Ecart au 1er | K9: Rang | L9: Moyenne ecart au 1er | M9: % Ecart au 1er | N9: Rang CEGEE
A10: 50 | B10: AUBE HAUTE MARNE | C10: 21 | D10: CHAUMONT | E10: =VLOOKUP($C10,'RECAP SECT'!$G$6:$EV$253,3,FALSE) -> 46.0 | F10: =VLOOKUP($C10,'RECAP SECT'!$G$6:$EV$253,137,FALSE) -> -2 | G10: =VLOOKUP($C10,'RECAP SECT'!$G$6:$EV$253,138,FALSE) -> 0% | H10: =VLOOKUP($C10,'RECAP SECT'!$G$6:$EV$253,139,FALSE) -> 1 | I10: =VLOOKUP($C10,'RECAP SECT'!$G$6:$EV$253,140,FALSE) -> 78% | J10: =VLOOKUP($C10,'RECAP SECT'!$G$6:$EV$253,141,FALSE) -> 2% | K10: =VLOOKUP($C10,'RECAP SECT'!$G$6:$EV$253,142,FALSE) -> 3 | L10: =VLOOKUP($C10,'RECAP SECT'!$G$6:$EV$253,143,FALSE) -> 1% | M10: =VLOOKUP($C10,'RECAP SECT'!$G$6:$EV$253,144,FALSE) -> 1% | N10: =VLOOKUP($C10,'RECAP SECT'!$G$6:$EV$253,145,FALSE) -> 2
A11: 50 | B11: AUBE HAUTE MARNE | C11: 14 | D11: TROYES | E11: =VLOOKUP($C11,'RECAP SECT'!$G$6:$EV$253,3,FALSE) -> 77.6 | F11: =VLOOKUP($C11,'RECAP SECT'!$G$6:$EV$253,137,FALSE) -> -10 | G11: =VLOOKUP($C11,'RECAP SECT'!$G$6:$EV$253,138,FALSE) -> 48% | H11: =VLOOKUP($C11,'RECAP SECT'!$G$6:$EV$253,139,FALSE) -> 7 | I11: =VLOOKUP($C11,'RECAP SECT'!$G$6:$EV$253,140,FALSE) -> 75% | J11: =VLOOKUP($C11,'RECAP SECT'!$G$6:$EV$253,141,FALSE) -> 6% | K11: =VLOOKUP($C11,'RECAP SECT'!$G$6:$EV$253,142,FALSE) -> 11 | L11: =VLOOKUP($C11,'RECAP SECT'!$G$6:$EV$253,143,FALSE) -> 27% | M11: =VLOOKUP($C11,'RECAP SECT'!$G$6:$EV$253,144,FALSE) -> 27% | N11: =VLOOKUP($C11,'RECAP SECT'!$G$6:$EV$253,145,FALSE) -> 7
A12: 262 | B12: BAS-RHIN | C12: 5060 | D12: HAGUENAU | E12: =VLOOKUP($C12,'RECAP SECT'!$G$6:$EV$253,3,FALSE) -> 87.6 | F12: =VLOOKUP($C12,'RECAP SECT'!$G$6:$EV$253,137,FALSE) -> -13 | G12: =VLOOKUP($C12,'RECAP SECT'!$G$6:$EV$253,138,FALSE) -> 66% | H12: =VLOOKUP($C12,'RECAP SECT'!$G$6:$EV$253,139,FALSE) -> 10 | I12: =VLOOKUP($C12,'RECAP SECT'!$G$6:$EV$253,140,FALSE) -> 77% | J12: =VLOOKUP($C12,'RECAP SECT'!$G$6:$EV$253,141,FALSE) -> 4% | K12: =VLOOKUP($C12,'RECAP SECT'!$G$6:$EV$253,142,FALSE) -> 8 | L12: =VLOOKUP($C12,'RECAP SECT'!$G$6:$EV$253,143,FALSE) -> 35% | M12: =VLOOKUP($C12,'RECAP SECT'!$G$6:$EV$253,144,FALSE) -> 35% | N12: =VLOOKUP($C12,'RECAP SECT'!$G$6:$EV$253,145,FALSE) -> 10
A13: 262 | B13: BAS-RHIN | C13: 5101 | D13: SELESTAT | E13: =VLOOKUP($C13,'RECAP SECT'!$G$6:$EV$253,3,FALSE) -> 75.2 | F13: =VLOOKUP($C13,'RECAP SECT'!$G$6:$EV$253,137,FALSE) -> -27 | G13: =VLOOKUP($C13,'RECAP SECT'!$G$6:$EV$253,138,FALSE) -> 150% | H13: =VLOOKUP($C13,'RECAP SECT'!$G$6:$EV$253,139,FALSE) -> 17 | I13: =VLOOKUP($C13,'RECAP SECT'!$G$6:$EV$253,140,FALSE) -> 74% | J13: =VLOOKUP($C13,'RECAP SECT'!$G$6:$EV$253,141,FALSE) -> 7% | K13: =VLOOKUP($C13,'RECAP SECT'!$G$6:$EV$253,142,FALSE) -> 14 | L13: =VLOOKUP($C13,'RECAP SECT'!$G$6:$EV$253,143,FALSE) -> 79% | M13: =VLOOKUP($C13,'RECAP SECT'!$G$6:$EV$253,144,FALSE) -> 79% | N13: =VLOOKUP($C13,'RECAP SECT'!$G$6:$EV$253,145,FALSE) -> 17
A14: 262 | B14: BAS-RHIN | C14: 5006 | D14: STRASBOURG | E14: =VLOOKUP($C14,'RECAP SECT'!$G$6:$EV$253,3,FALSE) -> 92.1 | F14: =VLOOKUP($C14,'RECAP SECT'!$G$6:$EV$253,137,FALSE) -> -27 | G14: =VLOOKUP($C14,'RECAP SECT'!$G$6:$EV$253,138,FALSE) -> 150% | H14: =VLOOKUP($C14,'RECAP SECT'!$G$6:$EV$253,139,FALSE) -> 17 | I14: =VLOOKUP($C14,'RECAP SECT'!$G$6:$EV$253,140,FALSE) -> 68% | J14: =VLOOKUP($C14,'RECAP SECT'!$G$6:$EV$253,141,FALSE) -> 15% | K14: =VLOOKUP($C14,'RECAP SECT'!$G$6:$EV$253,142,FALSE) -> 18 | L14: =VLOOKUP($C14,'RECAP SECT'!$G$6:$EV$253,143,FALSE) -> 82% | M14: =VLOOKUP($C14,'RECAP SECT'!$G$6:$EV$253,144,FALSE) -> 82% | N14: =VLOOKUP($C14,'RECAP SECT'!$G$6:$EV$253,145,FALSE) -> 18
A15: 264 | B15: HAUT-RHIN | C15: 5130 | D15: COLMAR | E15: =VLOOKUP($C15,'RECAP SECT'!$G$6:$EV$253,3,FALSE) -> 75.3 | F15: =VLOOKUP($C15,'RECAP SECT'!$G$6:$EV$253,137,FALSE) -> -21 | G15: =VLOOKUP($C15,'RECAP SECT'!$G$6:$EV$253,138,FALSE) -> 114% | H15: =VLOOKUP($C15,'RECAP SECT'!$G$6:$EV$253,139,FALSE) -> 15 | I15: =VLOOKUP($C15,'RECAP SECT'!$G$6:$EV$253,140,FALSE) -> 74% | J15: =VLOOKUP($C15,'RECAP SECT'!$G$6:$EV$253,141,FALSE) -> 7% | K15: =VLOOKUP($C15,'RECAP SECT'!$G$6:$EV$253,142,FALSE) -> 15 | L15: =VLOOKUP($C15,'RECAP SECT'!$G$6:$EV$253,143,FALSE) -> 61% | M15: =VLOOKUP($C15,'RECAP SECT'!$G$6:$EV$253,144,FALSE) -> 61% | N15: =VLOOKUP($C15,'RECAP SECT'!$G$6:$EV$253,145,FALSE) -> 15
A16: 264 | B16: HAUT-RHIN | C16: 5169 | D16: MULHOUSE | E16: =VLOOKUP($C16,'RECAP SECT'!$G$6:$EV$253,3,FALSE) -> 75.1 | F16: =VLOOKUP($C16,'RECAP SECT'!$G$6:$EV$253,137,FALSE) -> -23 | G16: =VLOOKUP($C16,'RECAP SECT'!$G$6:$EV$253,138,FALSE) -> 126% | H16: =VLOOKUP($C16,'RECAP SECT'!$G$6:$EV$253,139,FALSE) -> 16 | I16: =VLOOKUP($C16,'RECAP SECT'!$G$6:$EV$253,140,FALSE) -> 73% | J16: =VLOOKUP($C16,'RECAP SECT'!$G$6:$EV$253,141,FALSE) -> 8% | K16: =VLOOKUP($C16,'RECAP SECT'!$G$6:$EV$253,142,FALSE) -> 17 | L16: =VLOOKUP($C16,'RECAP SECT'!$G$6:$EV$253,143,FALSE) -> 67% | M16: =VLOOKUP($C16,'RECAP SECT'!$G$6:$EV$253,144,FALSE) -> 67% | N16: =VLOOKUP($C16,'RECAP SECT'!$G$6:$EV$253,145,FALSE) -> 16
A17: 30 | B17: MARNE-ARDENNES | C17: 6 | D17: CHALONS EN CHAMPAGNE | E17: =VLOOKUP($C17,'RECAP SECT'!$G$6:$EV$253,3,FALSE) -> 48.8 | F17: =VLOOKUP($C17,'RECAP SECT'!$G$6:$EV$253,137,FALSE) -> -7 | G17: =VLOOKUP($C17,'RECAP SECT'!$G$6:$EV$253,138,FALSE) -> 30% | H17: =VLOOKUP($C17,'RECAP SECT'!$G$6:$EV$253,139,FALSE) -> 4 | I17: =VLOOKUP($C17,'RECAP SECT'!$G$6:$EV$253,140,FALSE) -> 75% | J17: =VLOOKUP($C17,'RECAP SECT'!$G$6:$EV$253,141,FALSE) -> 6% | K17: =VLOOKUP($C17,'RECAP SECT'!$G$6:$EV$253,142,FALSE) -> 12 | L17: =VLOOKUP($C17,'RECAP SECT'!$G$6:$EV$253,143,FALSE) -> 18% | M17: =VLOOKUP($C17,'RECAP SECT'!$G$6:$EV$253,144,FALSE) -> 18% | N17: =VLOOKUP($C17,'RECAP SECT'!$G$6:$EV$253,145,FALSE) -> 5
A18: 30 | B18: MARNE-ARDENNES | C18: 2 | D18: CHARLEVILLE MEZIERES | E18: =VLOOKUP($C18,'RECAP SECT'!$G$6:$EV$253,3,FALSE) -> 62.2 | F18: =VLOOKUP($C18,'RECAP SECT'!$G$6:$EV$253,137,FALSE) -> -11 | G18: =VLOOKUP($C18,'RECAP SECT'!$G$6:$EV$253,138,FALSE) -> 54% | H18: =VLOOKUP($C18,'RECAP SECT'!$G$6:$EV$253,139,FALSE) -> 8 | I18: =VLOOKUP($C18,'RECAP SECT'!$G$6:$EV$253,140,FALSE) -> 77% | J18: =VLOOKUP($C18,'RECAP SECT'!$G$6:$EV$253,141,FALSE) -> 4% | K18: =VLOOKUP($C18,'RECAP SECT'!$G$6:$EV$253,142,FALSE) -> 7 | L18: =VLOOKUP($C18,'RECAP SECT'!$G$6:$EV$253,143,FALSE) -> 29% | M18: =VLOOKUP($C18,'RECAP SECT'!$G$6:$EV$253,144,FALSE) -> 29% | N18: =VLOOKUP($C18,'RECAP SECT'!$G$6:$EV$253,145,FALSE) -> 9
A19: 30 | B19: MARNE-ARDENNES | C19: 11 | D19: REIMS | E19: =VLOOKUP($C19,'RECAP SECT'!$G$6:$EV$253,3,FALSE) -> 89.8 | F19: =VLOOKUP($C19,'RECAP SECT'!$G$6:$EV$253,137,FALSE) -> -2 | G19: =VLOOKUP($C19,'RECAP SECT'!$G$6:$EV$253,138,FALSE) -> 0% | H19: =VLOOKUP($C19,'RECAP SECT'!$G$6:$EV$253,139,FALSE) -> 1 | I19: =VLOOKUP($C19,'RECAP SECT'!$G$6:$EV$253,140,FALSE) -> 80% | J19: =VLOOKUP($C19,'RECAP SECT'!$G$6:$EV$253,141,FALSE) -> 0% | K19: =VLOOKUP($C19,'RECAP SECT'!$G$6:$EV$253,142,FALSE) -> 1 | L19: =VLOOKUP($C19,'RECAP SECT'!$G$6:$EV$253,143,FALSE) -> 0% | M19: =VLOOKUP($C19,'RECAP SECT'!$G$6:$EV$253,144,FALSE) -> 0% | N19: =VLOOKUP($C19,'RECAP SECT'!$G$6:$EV$253,145,FALSE) -> 1
A20: 110 | B20: MEURTHE ET MOSELLE MEUSE | C20: 26 | D20: NANCY | E20: =VLOOKUP($C20,'RECAP SECT'!$G$6:$EV$253,3,FALSE) -> 78.0 | F20: =VLOOKUP($C20,'RECAP SECT'!$G$6:$EV$253,137,FALSE) -> -17 | G20: =VLOOKUP($C20,'RECAP SECT'!$G$6:$EV$253,138,FALSE) -> 90% | H20: =VLOOKUP($C20,'RECAP SECT'!$G$6:$EV$253,139,FALSE) -> 13 | I20: =VLOOKUP($C20,'RECAP SECT'!$G$6:$EV$253,140,FALSE) -> 78% | J20: =VLOOKUP($C20,'RECAP SECT'!$G$6:$EV$253,141,FALSE) -> 3% | K20: =VLOOKUP($C20,'RECAP SECT'!$G$6:$EV$253,142,FALSE) -> 6 | L20: =VLOOKUP($C20,'RECAP SECT'!$G$6:$EV$253,143,FALSE) -> 46% | M20: =VLOOKUP($C20,'RECAP SECT'!$G$6:$EV$253,144,FALSE) -> 46% | N20: =VLOOKUP($C20,'RECAP SECT'!$G$6:$EV$253,145,FALSE) -> 13
A21: 110 | B21: MEURTHE ET MOSELLE MEUSE | C21: 27 | D21: PONT A MOUSSON | E21: =VLOOKUP($C21,'RECAP SECT'!$G$6:$EV$253,3,FALSE) -> 87.4 | F21: =VLOOKUP($C21,'RECAP SECT'!$G$6:$EV$253,137,FALSE) -> -13 | G21: =VLOOKUP($C21,'RECAP SECT'!$G$6:$EV$253,138,FALSE) -> 66% | H21: =VLOOKUP($C21,'RECAP SECT'!$G$6:$EV$253,139,FALSE) -> 10 | I21: =VLOOKUP($C21,'RECAP SECT'!$G$6:$EV$253,140,FALSE) -> 75% | J21: =VLOOKUP($C21,'RECAP SECT'!$G$6:$EV$253,141,FALSE) -> 7% | K21: =VLOOKUP($C21,'RECAP SECT'!$G$6:$EV$253,142,FALSE) -> 13 | L21: =VLOOKUP($C21,'RECAP SECT'!$G$6:$EV$253,143,FALSE) -> 36% | M21: =VLOOKUP($C21,'RECAP SECT'!$G$6:$EV$253,144,FALSE) -> 36% | N21: =VLOOKUP($C21,'RECAP SECT'!$G$6:$EV$253,145,FALSE) -> 11
A22: 110 | B22: MEURTHE ET MOSELLE MEUSE | C22: 31 | D22: VERDUN | E22: =VLOOKUP($C22,'RECAP SECT'!$G$6:$EV$253,3,FALSE) -> 63.4 | F22: =VLOOKUP($C22,'RECAP SECT'!$G$6:$EV$253,137,FALSE) -> -7 | G22: =VLOOKUP($C22,'RECAP SECT'!$G$6:$EV$253,138,FALSE) -> 30% | H22: =VLOOKUP($C22,'RECAP SECT'!$G$6:$EV$253,139,FALSE) -> 4 | I22: =VLOOKUP($C22,'RECAP SECT'!$G$6:$EV$253,140,FALSE) -> 76% | J22: =VLOOKUP($C22,'RECAP SECT'!$G$6:$EV$253,141,FALSE) -> 5% | K22: =VLOOKUP($C22,'RECAP SECT'!$G$6:$EV$253,142,FALSE) -> 10 | L22: =VLOOKUP($C22,'RECAP SECT'!$G$6:$EV$253,143,FALSE) -> 18% | M22: =VLOOKUP($C22,'RECAP SECT'!$G$6:$EV$253,144,FALSE) -> 18% | N22: =VLOOKUP($C22,'RECAP SECT'!$G$6:$EV$253,145,FALSE) -> 4
A23: 160 | B23: MOSELLE | C23: 45 | D23: METZ | E23: =VLOOKUP($C23,'RECAP SECT'!$G$6:$EV$253,3,FALSE) -> 101.5 | F23: =VLOOKUP($C23,'RECAP SECT'!$G$6:$EV$253,137,FALSE) -> -11 | G23: =VLOOKUP($C23,'RECAP SECT'!$G$6:$EV$253,138,FALSE) -> 54% | H23: =VLOOKUP($C23,'RECAP SECT'!$G$6:$EV$253,139,FALSE) -> 8 | I23: =VLOOKUP($C23,'RECAP SECT'!$G$6:$EV$253,140,FALSE) -> 78% | J23: =VLOOKUP($C23,'RECAP SECT'!$G$6:$EV$253,141,FALSE) -> 3% | K23: =VLOOKUP($C23,'RECAP SECT'!$G$6:$EV$253,142,FALSE) -> 4 | L23: =VLOOKUP($C23,'RECAP SECT'!$G$6:$EV$253,143,FALSE) -> 28% | M23: =VLOOKUP($C23,'RECAP SECT'!$G$6:$EV$253,144,FALSE) -> 28% | N23: =VLOOKUP($C23,'RECAP SECT'!$G$6:$EV$253,145,FALSE) -> 8
A24: 160 | B24: MOSELLE | C24: 42 | D24: MOSELLE EST | E24: =VLOOKUP($C24,'RECAP SECT'!$G$6:$EV$253,3,FALSE) -> 84.0 | F24: =VLOOKUP($C24,'RECAP SECT'!$G$6:$EV$253,137,FALSE) -> -5 | G24: =VLOOKUP($C24,'RECAP SECT'!$G$6:$EV$253,138,FALSE) -> 18% | H24: =VLOOKUP($C24,'RECAP SECT'!$G$6:$EV$253,139,FALSE) -> 3 | I24: =VLOOKUP($C24,'RECAP SECT'!$G$6:$EV$253,140,FALSE) -> 78% | J24: =VLOOKUP($C24,'RECAP SECT'!$G$6:$EV$253,141,FALSE) -> 2% | K24: =VLOOKUP($C24,'RECAP SECT'!$G$6:$EV$253,142,FALSE) -> 2 | L24: =VLOOKUP($C24,'RECAP SECT'!$G$6:$EV$253,143,FALSE) -> 10% | M24: =VLOOKUP($C24,'RECAP SECT'!$G$6:$EV$253,144,FALSE) -> 10% | N24: =VLOOKUP($C24,'RECAP SECT'!$G$6:$EV$253,145,FALSE) -> 3
A25: 160 | B25: MOSELLE | C25: 44 | D25: MOSELLE NORD | E25: =VLOOKUP($C25,'RECAP SECT'!$G$6:$EV$253,3,FALSE) -> 78.7 | F25: =VLOOKUP($C25,'RECAP SECT'!$G$6:$EV$253,137,FALSE) -> -19 | G25: =VLOOKUP($C25,'RECAP SECT'!$G$6:$EV$253,138,FALSE) -> 102% | H25: =VLOOKUP($C25,'RECAP SECT'!$G$6:$EV$253,139,FALSE) -> 14 | I25: =VLOOKUP($C25,'RECAP SECT'!$G$6:$EV$253,140,FALSE) -> 74% | J25: =VLOOKUP($C25,'RECAP SECT'!$G$6:$EV$253,141,FALSE) -> 8% | K25: =VLOOKUP($C25,'RECAP SECT'!$G$6:$EV$253,142,FALSE) -> 16 | L25: =VLOOKUP($C25,'RECAP SECT'!$G$6:$EV$253,143,FALSE) -> 55% | M25: =VLOOKUP($C25,'RECAP SECT'!$G$6:$EV$253,144,FALSE) -> 55% | N25: =VLOOKUP($C25,'RECAP SECT'!$G$6:$EV$253,145,FALSE) -> 14
A26: 80 | B26: VOSGES | C26: 57 | D26: EPINAL | E26: =VLOOKUP($C26,'RECAP SECT'!$G$6:$EV$253,3,FALSE) -> 66.9 | F26: =VLOOKUP($C26,'RECAP SECT'!$G$6:$EV$253,137,FALSE) -> -15 | G26: =VLOOKUP($C26,'RECAP SECT'!$G$6:$EV$253,138,FALSE) -> 78% | H26: =VLOOKUP($C26,'RECAP SECT'!$G$6:$EV$253,139,FALSE) -> 12 | I26: =VLOOKUP($C26,'RECAP SECT'!$G$6:$EV$253,140,FALSE) -> 76% | J26: =VLOOKUP($C26,'RECAP SECT'!$G$6:$EV$253,141,FALSE) -> 4% | K26: =VLOOKUP($C26,'RECAP SECT'!$G$6:$EV$253,142,FALSE) -> 9 | L26: =VLOOKUP($C26,'RECAP SECT'!$G$6:$EV$253,143,FALSE) -> 41% | M26: =VLOOKUP($C26,'RECAP SECT'!$G$6:$EV$253,144,FALSE) -> 41% | N26: =VLOOKUP($C26,'RECAP SECT'!$G$6:$EV$253,145,FALSE) -> 12
A27: 80 | B27: VOSGES | C27: 55 | D27: SAINT DIE | E27: =VLOOKUP($C27,'RECAP SECT'!$G$6:$EV$253,3,FALSE) -> 56.7 | F27: =VLOOKUP($C27,'RECAP SECT'!$G$6:$EV$253,137,FALSE) -> -8 | G27: =VLOOKUP($C27,'RECAP SECT'!$G$6:$EV$253,138,FALSE) -> 36% | H27: =VLOOKUP($C27,'RECAP SECT'!$G$6:$EV$253,139,FALSE) -> 6 | I27: =VLOOKUP($C27,'RECAP SECT'!$G$6:$EV$253,140,FALSE) -> 78% | J27: =VLOOKUP($C27,'RECAP SECT'!$G$6:$EV$253,141,FALSE) -> 3% | K27: =VLOOKUP($C27,'RECAP SECT'!$G$6:$EV$253,142,FALSE) -> 5 | L27: =VLOOKUP($C27,'RECAP SECT'!$G$6:$EV$253,143,FALSE) -> 19% | M27: =VLOOKUP($C27,'RECAP SECT'!$G$6:$EV$253,144,FALSE) -> 19% | N27: =VLOOKUP($C27,'RECAP SECT'!$G$6:$EV$253,145,FALSE) -> 6
A28: Total CEGEE Directions Régionales | E28: =SUM(E10:E27) -> 1346

Sheet AG_CLASS
A1: Accueil | H1: BAROMETRE BDD - AGENCES
H2: CLASSEMENTS
H3: =ACCUEIL!H7 -> 2019-09-30
H8: CLASSEMENT GENERAL | I8: CRITERE CONQUETE | J8: Evolution nette Clients Bancarisés Principaux (BP +JBP) par ETP | K8: Evolution nette relations Premium par ETP | L8: Evolution nette Clients Bancarisés Principaux équipés par ETP | M8: Evolution nette Clients Pro actif équipés par rapport à l’objectif fixé | N8: CRITERE EQUIPEMENT BANCARISATION | O8: Ventes nettes forfaits (+ 2 options) par ETP | P8: Ventes nettes IZICARTES par ETP | Q8: Ventes nettes cartes HDG par ETP | R8: Vente nette CB débit différé par ETP | S8: Ventes nettes banca Pro Forfaits Pro, Carte pro par rapport à l’objectif | T8: CRITERE EPARGNE | U8: Excédents de collecte (y.c DAV) par ETP | V8: CA assurance vie par ETP | W8: Activité UC (CA+arbitrage) par ETP | X8: Excédents Assurance-vie par ETP | Y8: Excédents Epargne Bilan (Hors Emprunts CTO) par ETP | Z8: CRITERE CREDITS | AA8: Engagement Conso par ETP (hors clients 9) | AB8: % CNP sur Conso en valeur absolue | AC8: Engagements Immo par rapport à l’objectif | AD8: % CNP sur crédits immo en valeur absolue | AE8: Taux de couverture SACCEF | AF8: Engagements CMLT + CB par rapport à l’objectif | AG8: CRITERE IARD PREVOYANCE | AH8: Ventes nettes IARD (Auto+MRH+ Pro) par ETP | AI8: Ventes nettes Prévoyance (GAV, secur.f,prevoy loc,santé,assist.vie, obséques, Pro) par ETP | AJ8: Chiffre d’affaires IARD (Yc Pro) par ETP | AK8: CRITERE RISQUES | AL8: Complétude, conformité et fiabilisation des nouvelles EER sur flux BDD | AM8: Complétude, conformité et fiabilisation des EER sur flux cumulé et stock | AN8: Traitement et qualité du traitement des alertes Vigiclient | AO8: CRITERE Satisfaction Clients | AP8: Objectifs NPS* | AQ8: Enquête Qualité Haute Définition
A9: eds | B9: Direction | C9: eds | D9: Territoire | E9: eds | F9: Agence | G9: ETP perf | H9: Rang | I9: Rang | J9: Rang | K9: Rang | L9: Rang | M9: Rang | N9: Rang | O9: Rang | P9: Rang | Q9: Rang | R9: Rang | S9: Rang | T9: Rang | U9: Rang | V9: Rang | W9: Rang | X9: Rang | Y9: Rang | Z9: Rang | AA9: Rang | AB9: Rang | AC9: Rang | AD9: Rang | AE9: Rang | AF9: Rang | AG9: Rang | AH9: Rang | AI9: Rang | AJ9: Rang | AK9: Rang | AL9: Rang | AM9: Rang | AN9: Rang | AO9: Rang | AP9: Rang | AQ9: Rang
A10: 110 | B10: MEURTHE ET MOSELLE MEUSE | C10: 27 | D10: PONT A MOUSSON | E10: 454696 | F10: VILLERS GENERAL LECLERC | G10: 6.1 | H10: 1 | I10: 10 | J10: 124 | K10: 114 | L10: 4 | M10: 5 | N10: 1 | O10: 234 | P10: 1 | Q10: 3 | R10: 2 | S10: 118 | T10: 51 | U10: 44 | V10: 4 | W10: 10 | X10: 15 | Y10: 195 | Z10: 1 | AA10: 15 | AB10: 232 | AC10: 1 | AD10: 165 | AE10: 155 | AF10: 21 | AG10: 3 | AH10: 8 | AI10: 1 | AJ10: 136 | AK10: 190 | AL10: 218 | AM10: 241 | AN10: 1 | AO10: 108 | AP10: 131 | AQ10: 57
A11: 30 | B11: MARNE-ARDENNES | C11: 2 | D11: CHARLEVILLE MEZIERES | E11: 508819 | F11: MOUZON | G11: 2.0 | H11: 2 | I11: 1 | J11: 1 | K11: 127 | L11: 1 | M11: 29 | N11: 144 | O11: 98 | P11: 267 | Q11: 193 | R11: 270 | S11: 6 | T11: 147 | U11: 192 | V11: 107 | W11: 145 | X11: 136 | Y11: 154 | Z11: 4 | AA11: 3 | AB11: 109 | AC11: 46 | AD11: 42 | AE11: 193 | AF11: 68 | AG11: 5 | AH11: 3 | AI11: 47 | AJ11: 1 | AK11: 18 | AL11: 167 | AM11: 15 | AN11: 1 | AO11: 34 | AP11: 38 | AQ11: 19
A12: 30 | B12: MARNE-ARDENNES | C12: 2 | D12: CHARLEVILLE MEZIERES | E12: 508833 | F12: VILLERS SEMEUSE CORA | G12: 2.9 | H12: 3 | I12: 2 | J12: 9 | K12: 10 | L12: 2 | M12: 12 | N12: 4 | O12: 227 | P12: 4 | Q12: 14 | R12: 12 | S12: 48 | T12: 166 | U12: 51 | V12: 224 | W12: 228 | X12: 154 | Y12: 170 | Z12: 54 | AA12: 115 | AB12: 180 | AC12: 73 | AD12: 111 | AE12: 72 | AF12: 128 | AG12: 2 | AH12: 4 | AI12: 2 | AJ12: 12 | AK12: 138 | AL12: 1 | AM12: 233 | AN12: 1 | AO12: 121 | AP12: 83 | AQ12: 246
A13: 30 | B13: MARNE-ARDENNES | C13: 6 | D13: CHALONS EN CHAMPAGNE | E13: 551103 | F13: FAGNIERES LECLERC | G13: 2.8 | H13: 4 | I13: 21 | J13: 71 | K13: 2 | L13: 106 | M13: 272 | N13: 13 | O13: 140 | P13: 3 | Q13: 50 | R13: 51 | S13: 91 | T13: 165 | U13: 66 | V13: 207 | W13: 209 | X13: 158 | Y13: 171 | Z13: 56 | AA13: 42 | AB13: 68 | AC13: 112 | AD13: 75 | AE13: 86 | AF13: 283 | AG13: 4 | AH13: 5 | AI13: 4 | AJ13: 4 | AK13: 19 | AL13: 103 | AM13: 24 | AN13: 1 | AO13: 54 | AP13: 44 | AQ13: 132
A14: 80 | B14: VOSGES | C14: 57 | D14: EPINAL | E14: 488288 | F14: EPINAL LEOPOLD BOURG | G14: 2.5 | H14: 5 | I14: 14 | J14: 21 | K14: 22 | L14: 39 | M14: 134 | N14: 11 | O14: 56 | P14: 15 | Q14: 102 | R14: 39 | S14: 17 | T14: 18 | U14: 64 | V14: 199 | W14: 133 | X14: 52 | Y14: 11 | Z14: 10 | AA14: 18 | AB14: 111 | AC14: 63 | AD14: 162 | AE14: 202 | AF14: 15 | AG14: 128 | AH14: 229 | AI14: 99 | AJ14: 48 | AK14: 100 | AL14: 1 | AM14: 3 | AN14: 246 | AO14: 1 | AP14: 3 | AQ14: 6
A15: 30 | B15: MARNE-ARDENNES | C15: 11 | D15: REIMS | E15: 451336 | F15: TINQUEUX | G15: 5.9 | H15: 6 | I15: 4 | J15: 75 | K15: 3 | L15: 119 | M15: 11 | N15: 58 | O15: 206 | P15: 7 | Q15: 231 | R15: 103 | S15: 73 | T15: 5 | U15: 8 | V15: 70 | W15: 199 | X15: 46 | Y15: 6 | Z15: 27 | AA15: 92 | AB15: 266 | AC15: 15 | AD15: 196 | AE15: 123 | AF15: 47 | AG15: 106 | AH15: 99 | AI15: 153 | AJ15: 92 | AK15: 148 | AL15: 224 | AM15: 169 | AN15: 1 | AO15: 77 | AP15: 93 | AQ15: 46
A16: 50 | B16: AUBE HAUTE MARNE | C16: 21 | D16: CHAUMONT | E16: 410539 | F16: CHATEAUVILLAIN | G16: 2.0 | H16: 7 | I16: 71 | J16: 76 | K16: 77 | L16: 115 | M16: 134 | N16: 41 | O16: 27 | P16: 217 | Q16: 149 | R16: 30 | S16: 91 | T16: 37 | U16: 38 | V16: 135 | W16: 93 | X16: 97 | Y16: 48 | Z16: 107 | AA16: 111 | AB16: 58 | AC16: 236 | AD16: 77 | AE16: 53 | AF16: 137 | AG16: 12 | AH16: 13 | AI16: 52 | AJ16: 23 | AK16: 2 | AL16: 1 | AM16: 4 | AN16: 1 | AO16: 38 | AP16: 66 | AQ16: 1
A17: 110 | B17: MEURTHE ET MOSELLE MEUSE | C17: 26 | D17: NANCY | E17: 554601 | F17: SAINT MAX | G17: 3.1 | H17: 8 | I17: 99 | J17: 281 | K17: 65 | L17: 50 | M17: 69 | N17: 61 | O17: 296 | P17: 119 | Q17: 97 | R17: 71 | S17: 6 | T17: 26 | U17: 26 | V17: 12 | W17: 17 | X17: 51 | Y17: 97 | Z17: 25 | AA17: 29 | AB17: 252 | AC17: 55 | AD17: 99 | AE17: 105 | AF17: 130 | AG17: 8 | AH17: 6 | AI17: 60 | AJ17: 11 | AK17: 126 | AL17: 119 | AM17: 199 | AN17: 1 | AO17: 119 | AP17: 146 | AQ17: 34
A18: 160 | B18: MOSELLE | C18: 42 | D18: MOSELLE EST | E18: 457626 | F18: STIRING WENDEL | G18: 1.6 | H18: 9 | I18: 3 | J18: 5 | K18: 4 | L18: 8 | M18: 69 | N18: 7 | O18: 292 | P18: 155 | Q18: 1 | R18: 8 | S18: 91 | T18: 29 | U18: 113 | V18: 169 | W18: 111 | X18: 295 | Y18: 13 | Z18: 42 | AA18: 103 | AB18: 1 | AC18: 158 | AD18: 1 | AE18: 1 | AF18: 146 | AG18: 197 | AH18: 288 | AI18: 37 | AJ18: 180 | AK18: 207 | AL18: 306 | AM18: 64 | AN18: 1 | AO18: 68 | AP18: 58 | AQ18: 127
A19: 160 | B19: MOSELLE | C19: 45 | D19: METZ | E19: 557444 | F19: METZ SAINT JULIEN | G19: 5.4 | H19: 10 | I19: 16 | J19: 40 | K19: 290 | L19: 75 | M19: 1 | N19: 141 | O19: 289 | P19: 34 | Q19: 41 | R19: 134 | S19: 162 | T19: 4 | U19: 10 | V19: 16 | W19: 5 | X19: 7 | Y19: 25 | Z19: 106 | AA19: 71 | AB19: 226 | AC19: 83 | AD19: 261 | AE19: 67 | AF19: 120 | AG19: 43 | AH19: 48 | AI19: 43 | AJ19: 143 | AK19: 110 | AL19: 197 | AM19: 115 | AN19: 1 | AO19: 50 | AP19: 58 | AQ19: 32
A20: 30 | B20: MARNE-ARDENNES | C20: 6 | D20: CHALONS EN CHAMPAGNE | E20: 551354 | F20: VERTUS | G20: 2.9 | H20: 11 | I20: 116 | J20: 57 | K20: 50 | L20: 202 | M20: 270 | N20: 160 | O20: 29 | P20: 176 | Q20: 228 | R20: 199 | S20: 209 | T20: 1 | U20: 179 | V20: 119 | W20: 68 | X20: 65 | Y20: 1 | Z20: 47 | AA20: 19 | AB20: 112 | AC20: 151 | AD20: 35 | AE20: 276 | AF20: 88 | AG20: 57 | AH20: 126 | AI20: 17 | AJ20: 126 | AK20: 85 | AL20: 1 | AM20: 161 | AN20: 1 | AO20: 22 | AP20: 29 | AQ20: 11
A21: 50 | B21: AUBE HAUTE MARNE | C21: 21 | D21: CHAUMONT | E21: 510590 | F21: CHAUMONT REPUBLIQUE | G21: 4.0 | H21: 12 | I21: 6 | J21: 20 | K21: 58 | L21: 14 | M21: 12 | N21: 56 | O21: 119 | P21: 272 | Q21: 208 | R21: 165 | S21: 3 | T21: 158 | U21: 79 | V21: 206 | W21: 212 | X21: 155 | Y21: 155 | Z21: 11 | AA21: 34 | AB21: 179 | AC21: 30 | AD21: 136 | AE21: 182 | AF21: 26 | AG21: 72 | AH21: 165 | AI21: 7 | AJ21: 258 | AK21: 28 | AL21: 199 | AM21: 18 | AN21: 1 | AO21: 13 | AP21: 18 | AQ21: 16
A22: 30 | B22: MARNE-ARDENNES | C22: 6 | D22: CHALONS EN CHAMPAGNE | E22: 551110 | F22: CHALONS ROOSEVELT | G22: 5.9 | H22: 13 | I22: 72 | J22: 163 | K22: 56 | L22: 92 | M22: 134 | N22: 50 | O22: 156 | P22: 9 | Q22: 77 | R22: 150 | S22: 87 | T22: 32 | U22: 128 | V22: 75 | W22: 21 | X22: 54 | Y22: 62 | Z22: 105 | AA22: 63 | AB22: 129 | AC22: 74 | AD22: 205 | AE22: 219 | AF22: 188 | AG22: 16 | AH22: 30 | AI22: 8 | AJ22: 84 | AK22: 43 | AL22: 1 | AM22: 68 | AN22: 1 | AO22: 55 | AP22: 52 | AQ22: 87
A23: 262 | B23: BAS-RHIN | C23: 5060 | D23: HAGUENAU | E23: 4031 | F23: TRUCHTERSHEIM | G23: 3.4 | H23: 14 | I23: 45 | J23: 61 | K23: 29 | L23: 128 | M23: 202 | N23: 6 | O23: 10 | P23: 63 | Q23: 53 | R23: 9 | S23: 56 | T23: 2 | U23: 41 | V23: 263 | W23: 203 | X23: 277 | Y23: 2 | Z23: 243 | AA23: 255 | AB23: 265 | AC23: 24 | AD23: 304 | AE23: 211 | AF23: 153 | AG23: 157 | AH23: 109 | AI23: 187 | AJ23: 211 | AK23: 267 | AL23: 1 | AM23: 36 | AN23: 290 | AO23: 37 | AP23: 52 | AQ23: 10
A24: 80 | B24: VOSGES | C24: 55 | D24: SAINT DIE | E24: 488326 | F24: GERARDMER | G24: 6.1 | H24: 15 | I24: 25 | J24: 185 | K24: 55 | L24: 83 | M24: 25 | N24: 36 | O24: 74 | P24: 107 | Q24: 96 | R24: 23 | S24: 121 | T24: 3 | U24: 2 | V24: 18 | W24: 32 | X24: 35 | Y24: 9 | Z24: 74 | AA24: 102 | AB24: 166 | AC24: 164 | AD24: 213 | AE24: 209 | AF24: 10 | AG24: 185 | AH24: 188 | AI24: 166 | AJ24: 162 | AK24: 49 | AL24: 113 | AM24: 57 | AN24: 1 | AO24: 56 | AP24: 52 | AQ24: 88
A25: 50 | B25: AUBE HAUTE MARNE | C25: 14 | D25: TROYES | E25: 410551 | F25: BRIENNE LE CHÂTEAU | G25: 2.8 | H25: 16 | I25: 35 | J25: 52 | K25: 157 | L25: 7 | M25: 69 | N25: 85 | O25: 21 | P25: 201 | Q25: 161 | R25: 70 | S25: 210 | T25: 212 | U25: 131 | V25: 124 | W25: 78 | X25: 37 | Y25: 259 | Z25: 19 | AA25: 25 | AB25: 62 | AC25: 208 | AD25: 1 | AE25: 165 | AF25: 44 | AG25: 26 | AH25: 42 | AI25: 20 | AJ25: 94 | AK25: 147 | AL25: 186 | AM25: 198 | AN25: 1 | AO25: 4 | AP25: 2 | AQ25: 81
A26: 262 | B26: BAS-RHIN | C26: 5006 | D26: STRASBOURG | E26: 4038 | F26: OBERHAUSBERGEN | G26: 3.2 | H26: 17 | I26: 36 | J26: 133 | K26: 30 | L26: 68 | M26: 134 | N26: 20 | O26: 103 | P26: 239 | Q26: 33 | R26: 4 | S26: 133 | T26: 22 | U26: 39 | V26: 166 | W26: 14 | X26: 141 | Y26: 31 | Z26: 96 | AA26: 96 | AB26: 40 | AC26: 44 | AD26: 282 | AE26: 134 | AF26: 108 | AG26: 29 | AH26: 9 | AI26: 201 | AJ26: 61 | AK26: 224 | AL26: 1 | AM26: 81 | AN26: 246 | AO26: 150 | AP26: 182 | AQ26: 35
A27: 110 | B27: MEURTHE ET MOSELLE MEUSE | C27: 26 | D27: NANCY | E27: 454481 | F27: NANCY PLACE DOMBASLE | G27: 10.9 | H27: 18 | I27: 15 | J27: 10 | K27: 73 | L27: 6 | M27: 132 | N27: 31 | O27: 88 | P27: 57 | Q27: 32 | R27: 69 | S27: 83 | T27: 45 | U27: 122 | V27: 27 | W27: 81 | X27: 26 | Y27: 80 | Z27: 38 | AA27: 263 | AB27: 275 | AC27: 3 | AD27: 260 | AE27: 161 | AF27: 42 | AG27: 49 | AH27: 22 | AI27: 72 | AJ27: 219 | AK27: 288 | AL27: 257 | AM27: 203 | AN27: 289 | AO27: 70 | AP27: 66 | AQ27: 100
A28: 50 | B28: AUBE HAUTE MARNE | C28: 14 | D28: TROYES | E28: 410524 | F28: SAINT JULIEN LES VILLAS | G28: 5.8 | H28: 19 | I28: 5 | J28: 8 | K28: 9 | L28: 29 | M28: 115 | N28: 98 | O28: 132 | P28: 148 | Q28: 67 | R28: 137 | S28: 69 | T28: 34 | U28: 5 | V28: 84 | W28: 97 | X28: 197 | Y28: 61 | Z28: 45 | AA28: 14 | AB28: 241 | AC28: 60 | AD28: 239 | AE28: 180 | AF28: 79 | AG28: 206 | AH28: 149 | AI28: 216 | AJ28: 228 | AK28: 21 | AL28: 1 | AM28: 31 | AN28: 1 | AO28: 23 | AP28: 27 | AQ28: 37
A29: 30 | B29: MARNE-ARDENNES | C29: 2 | D29: CHARLEVILLE MEZIERES | E29: 508817 | F29: CHARLEVILLE MOHON | G29: 3.6 | H29: 20 | I29: 13 | J29: 2 | K29: 239 | L29: 12 | M29: 29 | N29: 128 | O29: 179 | P29: 27 | Q29: 181 | R29: 212 | S29: 48 | T29: 131 | U29: 98 | V29: 161 | W29: 210 | X29: 80 | Y29: 128 | Z29: 62 | AA29: 266 | AB29: 137 | AC29: 66 | AD29: 25 | AE29: 145 | AF29: 91 | AG29: 39 | AH29: 51 | AI29: 30 | AJ29: 141 | AK29: 58 | AL29: 1 | AM29: 93 | AN29: 1 | AO29: 19 | AP29: 19 | AQ29: 30
A30: 160 | B30: MOSELLE | C30: 42 | D30: MOSELLE EST | E30: 457163 | F30: BEHREN LES FORBACH | G30: 2.4 | H30: 21 | I30: 7 | J30: 28 | K30: 11 | L30: 174 | M30: 29 | N30: 37 | O30: 231 | P30: 144 | Q30: 10 | R30: 85 | S30: 19 | T30: 174 | U30: 124 | V30: 259 | W30: 289 | X30: 127 | Y30: 135 | Z30: 92 | AA30: 69 | AB30: 57 | AC30: 25 | AD30: 249 | AE30: 253 | AF30: 163 | AG30: 156 | AH30: 205 | AI30: 124 | AJ30: 117 | AK30: 14 | AL30: 174 | AM30: 8 | AN30: 1 | AO30: 5 | AP30: 6 | AQ30: 52
A31: 160 | B31: MOSELLE | C31: 45 | D31: METZ | E31: 557434 | F31: MARLY | G31: 4.8 | H31: 22 | I31: 26 | J31: 261 | K31: 28 | L31: 144 | M31: 12 | N31: 101 | O31: 168 | P31: 59 | Q31: 115 | R31: 161 | S31: 46 | T31: 21 | U31: 7 | V31: 43 | W31: 88 | X31: 20 | Y31: 56 | Z31: 140 | AA31: 166 | AB31: 76 | AC31: 36 | AD31: 276 | AE31: 52 | AF31: 277 | AG31: 18 | AH31: 7 | AI31: 194 | AJ31: 34 | AK31: 96 | AL31: 231 | AM31: 74 | AN31: 1 | AO31: 161 | AP31: 195 | AQ31: 28
A32: 160 | B32: MOSELLE | C32: 44 | D32: MOSELLE NORD | E32: 557622 | F32: SIERCK LES BAINS | G32: 2.7 | H32: 23 | I32: 81 | J32: 158 | K32: 34 | L32: 96 | M32: 222 | N32: 174 | O32: 172 | P32: 168 | Q32: 128 | R32: 73 | S32: 290 | T32: 13 | U32: 20 | V32: 97 | W32: 117 | X32: 62 | Y32: 8 | Z32: 82 | AA32: 80 | AB32: 45 | AC32: 22 | AD32: 221 | AE32: 212 | AF32: 283 | AG32: 71 | AH32: 26 | AI32: 281 | AJ32: 46 | AK32: 45 | AL32: 1 | AM32: 70 | AN32: 1 | AO32: 21 | AP32: 14 | AQ32: 74
A33: 110 | B33: MEURTHE ET MOSELLE MEUSE | C33: 27 | D33: PONT A MOUSSON | E33: 554496 | F33: NANCY TROIS MAISONS | G33: 3.1 | H33: 24 | I33: 181 | J33: 257 | K33: 170 | L33: 154 | M33: 69 | N33: 201 | O33: 250 | P33: 82 | Q33: 150 | R33: 120 | S33: 249 | T33: 23 | U33: 35 | V33: 71 | W33: 67 | X33: 135 | Y33: 32 | Z33: 61 | AA33: 5 | AB33: 245 | AC33: 188 | AD33: 81 | AE33: 207 | AF33: 252 | AG33: 14 | AH33: 15 | AI33: 64 | AJ33: 29 | AK33: 178 | AL33: 224 | AM33: 218 | AN33: 1 | AO33: 24 | AP33: 29 | AQ33: 22
A34: 30 | B34: MARNE-ARDENNES | C34: 11 | D34: REIMS | E34: 551310 | F34: REIMS CHATILLONS | G34: 5.5 | H34: 25 | I34: 86 | J34: 11 | K34: 264 | L34: 20 | M34: 118 | N34: 3 | O34: 40 | P34: 10 | Q34: 43 | R34: 7 | S34: 129 | T34: 266 | U34: 218 | V34: 96 | W34: 253 | X34: 33 | Y34: 284 | Z34: 9 | AA34: 191 | AB34: 24 | AC34: 5 | AD34: 95 | AE34: 88 | AF34: 102 | AG34: 48 | AH34: 36 | AI34: 46 | AJ34: 208 | AK34: 210 | AL34: 1 | AM34: 295 | AN34: 1 | AO34: 35 | AP34: 29 | AQ34: 125
A35: 80 | B35: VOSGES | C35: 55 | D35: SAINT DIE | E35: 488616 | F35: SENONES | G35: 1.8 | H35: 26 | I35: 39 | J35: 33 | K35: 255 | L35: 35 | M35: 12 | N35: 16 | O35: 184 | P35: 5 | Q35: 111 | R35: 61 | S35: 19 | T35: 275 | U35: 150 | V35: 254 | W35: 170 | X35: 194 | Y35: 272 | Z35: 41 | AA35: 2 | AB35: 1 | AC35: 272 | AD35: 41 | AE35: 259 | AF35: 189 | AG35: 15 | AH35: 32 | AI35: 57 | AJ35: 14 | AK35: 88 | AL35: 1 | AM35: 164 | AN35: 1 | AO35: 74 | AP35: 66 | AQ35: 123
A36: 160 | B36: MOSELLE | C36: 44 | D36: MOSELLE NORD | E36: 557303 | F36: FAMECK | G36: 3.6 | H36: 27 | I36: 23 | J36: 27 | K36: 43 | L36: 48 | M36: 134 | N36: 172 | O36: 271 | P36: 12 | Q36: 81 | R36: 262 | S36: 145 | T36: 199 | U36: 172 | V36: 226 | W36: 214 | X36: 152 | Y36: 192 | Z36: 14 | AA36: 106 | AB36: 193 | AC36: 4 | AD36: 98 | AE36: 187 | AF36: 248 | AG36: 17 | AH36: 16 | AI36: 94 | AJ36: 33 | AK36: 242 | AL36: 239 | AM36: 109 | AN36: 240 | AO36: 40 | AP36: 37 | AQ36: 85
A37: 80 | B37: VOSGES | C37: 55 | D37: SAINT DIE | E37: 488346 | F37: GRANGES AUMONTZEY | G37: 1.8 | H37: 28 | I37: 108 | J37: 7 | K37: 270 | L37: 43 | M37: 134 | N37: 9 | O37: 25 | P37: 75 | Q37: 48 | R37: 16 | S37: 29 | T37: 257 | U37: 261 | V37: 188 | W37: 264 | X37: 187 | Y37: 241 | Z37: 37 | AA37: 7 | AB37: 1 | AC37: 299 | AD37: 1 | AE37: 65 | AF37: 106 | AG37: 40 | AH37: 111 | AI37: 23 | AJ37: 55 | AK37: 33 | AL37: 1 | AM37: 46 | AN37: 1 | AO37: 29 | AP37: 24 | AQ37: 92
A38: 262 | B38: BAS-RHIN | C38: 5101 | D38: SELESTAT | E38: 4116 | F38: MOLSHEIM | G38: 6.6 | H38: 29 | I38: 49 | J38: 168 | K38: 16 | L38: 159 | M38: 134 | N38: 73 | O38: 185 | P38: 99 | Q38: 62 | R38: 58 | S38: 168 | T38: 14 | U38: 11 | V38: 167 | W38: 123 | X38: 181 | Y38: 7 | Z38: 2 | AA38: 24 | AB38: 99 | AC38: 118 | AD38: 197 | AE38: 119 | AF38: 3 | AG38: 153 | AH38: 74 | AI38: 271 | AJ38: 154 | AK38: 143 | AL38: 106 | AM38: 229 | AN38: 1 | AO38: 177 | AP38: 182 | AQ38: 143
A39: 110 | B39: MEURTHE ET MOSELLE MEUSE | C39: 27 | D39: PONT A MOUSSON | E39: 554686 | F39: VEZELISE | G39: 1.6 | H39: 30 | I39: 8 | J39: 47 | K39: 6 | L39: 13 | M39: 134 | N39: 167 | O39: 99 | P39: 105 | Q39: 38 | R39: 298 | S39: 91 | T39: 44 | U39: 32 | V39: 47 | W39: 94 | X39: 50 | Y39: 76 | Z39: 133 | AA39: 12 | AB39: 93 | AC39: 212 | AD39: 278 | AE39: 1 | AF39: 204 | AG39: 13 | AH39: 69 | AI39: 18 | AJ39: 9 | AK39: 196 | AL39: 282 | AM39: 204 | AN39: 1 | AO39: 269 | AP39: 255 | AQ39: 266
A40: 30 | B40: MARNE-ARDENNES | C40: 11 | D40: REIMS | E40: 551306 | F40: REIMS SAINT MARCEAUX | G40: 4.6 | H40: 31 | I40: 159 | J40: 248 | K40: 113 | L40: 135 | M40: 127 | N40: 2 | O40: 147 | P40: 2 | Q40: 51 | R40: 5 | S40: 91 | T40: 82 | U40: 194 | V40: 6 | W40: 47 | X40: 24 | Y40: 191 | Z40: 55 | AA40: 91 | AB40: 205 | AC40: 18 | AD40: 201 | AE40: 176 | AF40: 123 | AG40: 84 | AH40: 175 | AI40: 16 | AJ40: 217 | AK40: 218 | AL40: 181 | AM40: 282 | AN40: 1 | AO40: 104 | AP40: 79 | AQ40: 226
A41: 160 | B41: MOSELLE | C41: 42 | D41: MOSELLE EST | E41: 557458 | F41: MORHANGE | G41: 2.6 | H41: 32 | I41: 121 | J41: 179 | K41: 260 | L41: 33 | M41: 29 | N41: 8 | O41: 37 | P41: 73 | Q41: 7 | R41: 26 | S41: 61 | T41: 195 | U41: 70 | V41: 152 | W41: 112 | X41: 45 | Y41: 240 | Z41: 130 | AA41: 75 | AB41: 41 | AC41: 143 | AD41: 209 | AE41: 58 | AF41: 246 | AG41: 21 | AH41: 34 | AI41: 66 | AJ41: 17 | AK41: 36 | AL41: 1 | AM41: 56 | AN41: 1 | AO41: 137 | AP41: 83 | AQ41: 275
A42: 160 | B42: MOSELLE | C42: 44 | D42: MOSELLE NORD | E42: 457449 | F42: METZERVISSE | G42: 2.7 | H42: 33 | I42: 124 | J42: 58 | K42: 103 | L42: 143 | M42: 222 | N42: 17 | O42: 60 | P42: 45 | Q42: 9 | R42: 24 | S42: 261 | T42: 97 | U42: 53 | V42: 36 | W42: 48 | X42: 19 | Y42: 210 | Z42: 282 | AA42: 206 | AB42: 147 | AC42: 210 | AD42: 303 | AE42: 1 | AF42: 283 | AG42: 58 | AH42: 38 | AI42: 106 | AJ42: 110 | AK42: 3 | AL42: 1 | AM42: 5 | AN42: 1 | AO42: 28 | AP42: 7 | AQ42: 252
A43: 30 | B43: MARNE-ARDENNES | C43: 11 | D43: REIMS | E43: 451370 | F43: EPERNAY VERRON | G43: 9.7 | H43: 34 | I43: 85 | J43: 90 | K43: 66 | L43: 65 | M43: 222 | N43: 91 | O43: 177 | P43: 24 | Q43: 101 | R43: 171 | S43: 71 | T43: 89 | U43: 119 | V43: 20 | W43: 58 | X43: 83 | Y43: 158 | Z43: 16 | AA43: 39 | AB43: 114 | AC43: 62 | AD43: 83 | AE43: 179 | AF43: 35 | AG43: 105 | AH43: 145 | AI43: 62 | AJ43: 139 | AK43: 181 | AL43: 143 | AM43: 254 | AN43: 1 | AO43: 25 | AP43: 24 | AQ43: 64
A44: 110 | B44: MEURTHE ET MOSELLE MEUSE | C44: 27 | D44: PONT A MOUSSON | E44: 554531 | F44: POMPEY | G44: 2.8 | H44: 35 | I44: 256 | J44: 255 | K44: 209 | L44: 28 | M44: 272 | N44: 21 | O44: 245 | P44: 11 | Q44: 40 | R44: 34 | S44: 32 | T44: 246 | U44: 101 | V44: 11 | W44: 113 | X44: 5 | Y44: 299 | Z44: 6 | AA44: 4 | AB44: 21 | AC44: 53 | AD44: 22 | AE44: 128 | AF44: 185 | AG44: 7 | AH44: 11 | AI44: 6 | AJ44: 16 | AK44: 158 | AL44: 231 | AM44: 174 | AN44: 1 | AO44: 200 | AP44: 199 | AQ44: 197
A45: 30 | B45: MARNE-ARDENNES | C45: 6 | D45: CHALONS EN CHAMPAGNE | E45: 451101 | F45: CHALONS VIVIERS | G45: 10.3 | H45: 36 | I45: 125 | J45: 89 | K45: 212 | L45: 80 | M45: 115 | N45: 63 | O45: 258 | P45: 76 | Q45: 108 | R45: 40 | S45: 38 | T45: 12 | U45: 28 | V45: 54 | W45: 12 | X45: 174 | Y45: 14 | Z45: 68 | AA45: 186 | AB45: 141 | AC45: 67 | AD45: 107 | AE45: 199 | AF45: 60 | AG45: 115 | AH45: 152 | AI45: 69 | AJ45: 144 | AK45: 169 | AL45: 96 | AM45: 255 | AN45: 1 | AO45: 94 | AP45: 83 | AQ45: 144
A46: 30 | B46: MARNE-ARDENNES | C46: 11 | D46: REIMS | E46: 551369 | F46: DAMERY | G46: 3.1 | H46: 37 | I46: 117 | J46: 44 | K46: 87 | L46: 36 | M46: 287 | N46: 84 | O46: 48 | P46: 106 | Q46: 12 | R46: 244 | S46: 235 | T46: 41 | U46: 60 | V46: 68 | W46: 79 | X46: 18 | Y46: 77 | Z46: 64 | AA46: 51 | AB46: 294 | AC46: 134 | AD46: 71 | AE46: 74 | AF46: 82 | AG46: 62 | AH46: 54 | AI46: 42 | AJ46: 209 | AK46: 168 | AL46: 192 | AM46: 222 | AN46: 1 | AO46: 64 | AP46: 66 | AQ46: 67
A47: 264 | B47: HAUT-RHIN | C47: 5130 | D47: COLMAR | E47: 4135 | F47: COLMAR SAINTE MARIE | G47: 5.9 | H47: 38 | I47: 50 | J47: 48 | K47: 54 | L47: 72 | M47: 202 | N47: 32 | O47: 4 | P47: 132 | Q47: 180 | R47: 53 | S47: 91 | T47: 63 | U47: 55 | V47: 150 | W47: 186 | X47: 189 | Y47: 43 | Z47: 152 | AA47: 133 | AB47: 107 | AC47: 20 | AD47: 296 | AE47: 268 | AF47: 85 | AG47: 64 | AH47: 47 | AI47: 140 | AJ47: 75 | AK47: 155 | AL47: 144 | AM47: 224 | AN47: 1 | AO47: 125 | AP47: 135 | AQ47: 101
A48: 160 | B48: MOSELLE | C48: 44 | D48: MOSELLE NORD | E48: 457192 | F48: CATTENOM | G48: 3.1 | H48: 39 | I48: 93 | J48: 167 | K48: 122 | L48: 222 | M48: 29 | N48: 118 | O48: 181 | P48: 46 | Q48: 35 | R48: 110 | S48: 279 | T48: 20 | U48: 16 | V48: 48 | W48: 120 | X48: 8 | Y48: 45 | Z48: 122 | AA48: 26 | AB48: 168 | AC48: 135 | AD48: 109 | AE48: 289 | AF48: 229 | AG48: 54 | AH48: 160 | AI48: 63 | AJ48: 19 | AK48: 5 | AL48: 1 | AM48: 9 | AN48: 1 | AO48: 139 | AP48: 177 | AQ48: 26
A49: 110 | B49: MEURTHE ET MOSELLE MEUSE | C49: 27 | D49: PONT A MOUSSON | E49: 554516 | F49: PAGNY SUR MOSELLE | G49: 3.0 | H49: 40 | I49: 131 | J49: 233 | K49: 61 | L49: 189 | M49: 134 | N49: 88 | O49: 237 | P49: 26 | Q49: 93 | R49: 22 | S49: 293 | T49: 173 | U49: 167 | V49: 146 | W49: 159 | X49: 90 | Y49: 189 | Z49: 72 | AA49: 46 | AB49: 278 | AC49: 107 | AD49: 118 | AE49: 36 | AF49: 193 | AG49: 11 | AH49: 12 | AI49: 36 | AJ49: 25 | AK49: 159 | AL49: 1 | AM49: 14 | AN49: 246 | AO49: 117 | AP49: 121 | AQ49: 114
A50: 160 | B50: MOSELLE | C50: 45 | D50: METZ | E50: 457443 | F50: METZ REPUBLIQUE | G50: 5.4 | H50: 41 | I50: 24 | J50: 15 | K50: 140 | L50: 32 | M50: 68 | N50: 90 | O50: 146 | P50: 109 | Q50: 52 | R50: 156 | S50: 70 | T50: 24 | U50: 3 | V50: 170 | W50: 237 | X50: 72 | Y50: 35 | Z50: 252 | AA50: 296 | AB50: 199 | AC50: 91 | AD50: 265 | AE50: 203 | AF50: 101 | AG50: 234 | AH50: 197 | AI50: 79 | AJ50: 307 | AK50: 176 | AL50: 283 | AM50: 140 | AN50: 1 | AO50: 8 | AP50: 10 | AQ50: 19
A51: 80 | B51: VOSGES | C51: 57 | D51: EPINAL | E51: 488261 | F51: DOCELLES | G51: 1.8 | H51: 42 | I51: 78 | J51: 6 | K51: 270 | L51: 58 | M51: 69 | N51: 75 | O51: 12 | P51: 37 | Q51: 140 | R51: 179 | S51: 210 | T51: 109 | U51: 109 | V51: 127 | W51: 96 | X51: 100 | Y51: 120 | Z51: 53 | AA51: 53 | AB51: 157 | AC51: 12 | AD51: 232 | AE51: 171 | AF51: 179 | AG51: 108 | AH51: 194 | AI51: 113 | AJ51: 35 | AK51: 7 | AL51: 1 | AM51: 11 | AN51: 1 | AO51: 61 | AP51: 66 | AQ51: 53
A52: 110 | B52: MEURTHE ET MOSELLE MEUSE | C52: 27 | D52: PONT A MOUSSON | E52: 454466 | F52: NANCY PLATEAU DE HAYE | G52: 2.9 | H52: 43 | I52: 145 | J52: 31 | K52: 288 | L52: 15 | M52: 134 | N52: 187 | O52: 218 | P52: 28 | Q52: 11 | R52: 170 | S52: 305 | T52: 241 | U52: 243 | V52: 306 | W52: 297 | X52: 266 | Y52: 149 | Z52: 181 | AA52: 152 | AB52: 246 | AC52: 259 | AD52: 43 | AE52: 1 | AF52: 256 | AG52: 6 | AH52: 2 | AI52: 12 | AJ52: 5 | AK52: 244 | AL52: 238 | AM52: 187 | AN52: 237 | AO52: 152 | AP52: 170 | AQ52: 76
A53: 262 | B53: BAS-RHIN | C53: 5006 | D53: STRASBOURG | E53: 4037 | F53: MUNDOLSHEIM | G53: 4.5 | H53: 44 | I53: 9 | J53: 122 | K53: 18 | L53: 78 | M53: 12 | N53: 24 | O53: 5 | P53: 62 | Q53: 75 | R53: 75 | S53: 91 | T53: 35 | U53: 34 | V53: 153 | W53: 143 | X53: 145 | Y53: 36 | Z53: 187 | AA53: 198 | AB53: 56 | AC53: 86 | AD53: 286 | AE53: 1 | AF53: 156 | AG53: 230 | AH53: 140 | AI53: 279 | AJ53: 229 | AK53: 94 | AL53: 111 | AM53: 138 | AN53: 1 | AO53: 147 | AP53: 158 | AQ53: 84
A54: 30 | B54: MARNE-ARDENNES | C54: 2 | D54: CHARLEVILLE MEZIERES | E54: 408840 | F54: RETHEL | G54: 6.9 | H54: 45 | I54: 104 | J54: 113 | K54: 207 | L54: 88 | M54: 57 | N54: 60 | O54: 137 | P54: 182 | Q54: 190 | R54: 33 | S54: 39 | T54: 154 | U54: 193 | V54: 228 | W54: 189 | X54: 225 | Y54: 102 | Z54: 39 | AA54: 164 | AB54: 71 | AC54: 162 | AD54: 21 | AE54: 124 | AF54: 19 | AG54: 23 | AH54: 23 | AI54: 56 | AJ54: 49 | AK54: 71 | AL54: 142 | AM54: 91 | AN54: 1 | AO54: 176 | AP54: 170 | AQ54: 195
A55: 30 | B55: MARNE-ARDENNES | C55: 6 | D55: CHALONS EN CHAMPAGNE | E55: 551330 | F55: MONTMIRAIL | G55: 3.8 | H55: 46 | I55: 245 | J55: 16 | K55: 197 | L55: 38 | M55: 302 | N55: 79 | O55: 38 | P55: 84 | Q55: 167 | R55: 62 | S55: 279 | T55: 88 | U55: 118 | V55: 257 | W55: 216 | X55: 139 | Y55: 60 | Z55: 28 | AA55: 58 | AB55: 20 | AC55: 133 | AD55: 1 | AE55: 1 | AF55: 192 | AG55: 96 | AH55: 96 | AI55: 133 | AJ55: 95 | AK55: 10 | AL55: 1 | AM55: 16 | AN55: 1 | AO55: 20 | AP55: 19 | AQ55: 31
A56: 50 | B56: AUBE HAUTE MARNE | C56: 21 | D56: CHAUMONT | E56: 410560 | F56: BOURBONNE LES BAINS | G56: 2.0 | H56: 47 | I56: 40 | J56: 18 | K56: 131 | L56: 21 | M56: 134 | N56: 228 | O56: 43 | P56: 283 | Q56: 227 | R56: 264 | S56: 91 | T56: 185 | U56: 67 | V56: 194 | W56: 266 | X56: 89 | Y56: 202 | Z56: 273 | AA56: 35 | AB56: 53 | AC56: 273 | AD56: 294 | AE56: 257 | AF56: 221 | AG56: 24 | AH56: 50 | AI56: 92 | AJ56: 15 | AK56: 47 | AL56: 1 | AM56: 73 | AN56: 1 | AO56: 15 | AP56: 19 | AQ56: 12
A57: 30 | B57: MARNE-ARDENNES | C57: 2 | D57: CHARLEVILLE MEZIERES | E57: 508820 | F57: VOUZIERS | G57: 3.0 | H57: 48 | I57: 114 | J57: 218 | K57: 71 | L57: 104 | M57: 134 | N57: 117 | O57: 290 | P57: 13 | Q57: 133 | R57: 15 | S57: 295 | T57: 288 | U57: 195 | V57: 17 | W57: 69 | X57: 9 | Y57: 301 | Z57: 93 | AA57: 98 | AB57: 188 | AC57: 224 | AD57: 44 | AE57: 200 | AF57: 61 | AG57: 1 | AH57: 1 | AI57: 21 | AJ57: 2 | AK57: 230 | AL57: 224 | AM57: 280 | AN57: 1 | AO57: 280 | AP57: 283 | AQ57: 225
A58: 80 | B58: VOSGES | C58: 55 | D58: SAINT DIE | E58: 588386 | F58: LE THILLOT | G58: 3.2 | H58: 49 | I58: 66 | J58: 35 | K58: 152 | L58: 237 | M58: 29 | N58: 44 | O58: 18 | P58: 208 | Q58: 136 | R58: 64 | S58: 56 | T58: 223 | U58: 173 | V58: 236 | W58: 274 | X58: 169 | Y58: 212 | Z58: 78 | AA58: 169 | AB58: 1 | AC58: 161 | AD58: 32 | AE58: 99 | AF58: 126 | AG58: 99 | AH58: 73 | AI58: 213 | AJ58: 68 | AK58: 131 | AL58: 156 | AM58: 179 | AN58: 1 | AO58: 26 | AP58: 9 | AQ58: 235
A59: 110 | B59: MEURTHE ET MOSELLE MEUSE | C59: 26 | D59: NANCY | E59: 554636 | F59: TOMBLAINE | G59: 2.9 | H59: 50 | I59: 67 | J59: 299 | K59: 1 | L59: 234 | M59: 134 | N59: 145 | O59: 278 | P59: 68 | Q59: 60 | R59: 202 | S59: 39 | T59: 112 | U59: 15 | V59: 141 | W59: 220 | X59: 170 | Y59: 124 | Z59: 88 | AA59: 104 | AB59: 228 | AC59: 148 | AD59: 164 | AE59: 73 | AF59: 54 | AG59: 59 | AH59: 18 | AI59: 285 | AJ59: 47 | AK59: 102 | AL59: 1 | AM59: 181 | AN59: 1 | AO59: 88 | AP59: 93 | AQ59: 69
A60: 160 | B60: MOSELLE | C60: 42 | D60: MOSELLE EST | E60: 557503 | F60: NEUNKIRCH | G60: 3.2 | H60: 51 | I60: 223 | J60: 95 | K60: 254 | L60: 118 | M60: 222 | N60: 10 | O60: 54 | P60: 206 | Q60: 16 | R60: 49 | S60: 9 | T60: 48 | U60: 17 | V60: 62 | W60: 63 | X60: 23 | Y60: 95 | Z60: 211 | AA60: 147 | AB60: 61 | AC60: 192 | AD60: 50 | AE60: 304 | AF60: 52 | AG60: 134 | AH60: 114 | AI60: 107 | AJ60: 237 | AK60: 13 | AL60: 174 | AM60: 7 | AN60: 1 | AO60: 72 | AP60: 90 | AQ60: 29
A61: 80 | B61: VOSGES | C61: 57 | D61: EPINAL | E61: 588631 | F61: THAON LES VOSGES | G61: 3.2 | H61: 52 | I61: 185 | J61: 84 | K61: 229 | L61: 163 | M61: 134 | N61: 132 | O61: 277 | P61: 44 | Q61: 156 | R61: 182 | S61: 19 | T61: 28 | U61: 27 | V61: 232 | W61: 251 | X61: 286 | Y61: 12 | Z61: 24 | AA61: 27 | AB61: 30 | AC61: 59 | AD61: 210 | AE61: 118 | AF61: 71 | AG61: 119 | AH61: 125 | AI61: 157 | AJ61: 91 | AK61: 232 | AL61: 123 | AM61: 62 | AN61: 261 | AO61: 51 | AP61: 58 | AQ61: 36
A62: 110 | B62: MEURTHE ET MOSELLE MEUSE | C62: 26 | D62: NANCY | E62: 554431 | F62: LUNEVILLE CHATEAU | G62: 4.4 | H62: 53 | I62: 20 | J62: 60 | K62: 129 | L62: 53 | M62: 12 | N62: 238 | O62: 255 | P62: 238 | Q62: 287 | R62: 183 | S62: 29 | T62: 36 | U62: 103 | V62: 86 | W62: 27 | X62: 108 | Y62: 57 | Z62: 33 | AA62: 83 | AB62: 65 | AC62: 92 | AD62: 100 | AE62: 126 | AF62: 56 | AG62: 19 | AH62: 10 | AI62: 136 | AJ62: 44 | AK62: 306 | AL62: 1 | AM62: 148 | AN62: 307 | AO62: 198 | AP62: 203 | AQ62: 149
A63: 262 | B63: BAS-RHIN | C63: 5060 | D63: HAGUENAU | E63: 4085 | F63: INGWILLER | G63: 4.7 | H63: 54 | I63: 57 | J63: 124 | K63: 57 | L63: 114 | M63: 118 | N63: 47 | O63: 64 | P63: 55 | Q63: 37 | R63: 151 | S63: 72 | T63: 67 | U63: 43 | V63: 53 | W63: 99 | X63: 17 | Y63: 108 | Z63: 58 | AA63: 6 | AB63: 108 | AC63: 239 | AD63: 171 | AE63: 226 | AF63: 36 | AG63: 42 | AH63: 124 | AI63: 100 | AJ63: 13 | AK63: 293 | AL63: 277 | AM63: 264 | AN63: 286 | AO63: 214 | AP63: 222 | AQ63: 169
A64: 30 | B64: MARNE-ARDENNES | C64: 11 | D64: REIMS | E64: 551340 | F64: BETHENY | G64: 3.9 | H64: 55 | I64: 79 | J64: 50 | K64: 83 | L64: 100 | M64: 202 | N64: 18 | O64: 139 | P64: 33 | Q64: 125 | R64: 13 | S64: 39 | T64: 180 | U64: 52 | V64: 3 | W64: 8 | X64: 4 | Y64: 295 | Z64: 111 | AA64: 196 | AB64: 150 | AC64: 64 | AD64: 268 | AE64: 68 | AF64: 62 | AG64: 74 | AH64: 39 | AI64: 119 | AJ64: 196 | AK64: 121 | AL64: 123 | AM64: 191 | AN64: 1 | AO64: 129 | AP64: 146 | AQ64: 79
A65: 30 | B65: MARNE-ARDENNES | C65: 11 | D65: REIMS | E65: 551309 | F65: REIMS EUROPE | G65: 3.6 | H65: 56 | I65: 89 | J65: 32 | K65: 169 | L65: 10 | M65: 222 | N65: 121 | O65: 125 | P65: 6 | Q65: 170 | R65: 239 | S65: 249 | T65: 279 | U65: 253 | V65: 51 | W65: 188 | X65: 115 | Y65: 292 | Z65: 26 | AA65: 66 | AB65: 135 | AC65: 33 | AD65: 70 | AE65: 51 | AF65: 304 | AG65: 80 | AH65: 183 | AI65: 15 | AJ65: 197 | AK65: 117 | AL65: 112 | AM65: 185 | AN65: 1 | AO65: 6 | AP65: 10 | AQ65: 3
A66: 30 | B66: MARNE-ARDENNES | C66: 11 | D66: REIMS | E66: 551365 | F66: DORMANS | G66: 2.5 | H66: 57 | I66: 197 | J66: 34 | K66: 297 | L66: 23 | M66: 200 | N66: 168 | O66: 39 | P66: 178 | Q66: 179 | R66: 195 | S66: 259 | T66: 198 | U66: 151 | V66: 61 | W66: 229 | X66: 117 | Y66: 223 | Z66: 57 | AA66: 125 | AB66: 283 | AC66: 11 | AD66: 89 | AE66: 230 | AF66: 173 | AG66: 35 | AH66: 62 | AI66: 44 | AJ66: 53 | AK66: 157 | AL66: 1 | AM66: 249 | AN66: 1 | AO66: 12 | AP66: 14 | AQ66: 23
A67: 160 | B67: MOSELLE | C67: 44 | D67: MOSELLE NORD | E67: 557347 | F67: GUENANGE | G67: 3.2 | H67: 58 | I67: 65 | J67: 82 | K67: 80 | L67: 212 | M67: 69 | N67: 181 | O67: 270 | P67: 158 | Q67: 69 | R67: 154 | S67: 81 | T67: 128 | U67: 50 | V67: 24 | W67: 95 | X67: 16 | Y67: 225 | Z67: 20 | AA67: 38 | AB67: 136 | AC67: 8 | AD67: 167 | AE67: 160 | AF67: 238 | AG67: 147 | AH67: 231 | AI67: 80 | AJ67: 113 | AK67: 8 | AL67: 1 | AM67: 12 | AN67: 1 | AO67: 36 | AP67: 47 | AQ67: 18
A68: 50 | B68: AUBE HAUTE MARNE | C68: 21 | D68: CHAUMONT | E68: 451156 | F68: SAINT DIZIER CENTRE | G68: 6.9 | H68: 59 | I68: 48 | J68: 70 | K68: 133 | L68: 57 | M68: 57 | N68: 65 | O68: 248 | P68: 113 | Q68: 34 | R68: 63 | S68: 55 | T68: 216 | U68: 160 | V68: 122 | W68: 121 | X68: 258 | Y68: 226 | Z68: 103 | AA68: 43 | AB68: 230 | AC68: 269 | AD68: 281 | AE68: 66 | AF68: 9 | AG68: 33 | AH68: 45 | AI68: 27 | AJ68: 118 | AK68: 118 | AL68: 101 | AM68: 200 | AN68: 1 | AO68: 134 | AP68: 115 | AQ68: 211
A69: 50 | B69: AUBE HAUTE MARNE | C69: 21 | D69: CHAUMONT | E69: 410582 | F69: NOGENT EN BASSIGNY | G69: 1.9 | H69: 60 | I69: 184 | J69: 98 | K69: 191 | L69: 3 | M69: 289 | N69: 55 | O69: 22 | P69: 266 | Q69: 188 | R69: 46 | S69: 39 | T69: 202 | U69: 269 | V69: 176 | W69: 77 | X69: 298 | Y69: 153 | Z69: 65 | AA69: 8 | AB69: 64 | AC69: 184 | AD69: 122 | AE69: 188 | AF69: 190 | AG69: 20 | AH69: 21 | AI69: 85 | AJ69: 21 | AK69: 130 | AL69: 250 | AM69: 108 | AN69: 1 | AO69: 126 | AP69: 103 | AQ69: 220
A70: 110 | B70: MEURTHE ET MOSELLE MEUSE | C70: 26 | D70: NANCY | E70: 554266 | F70: DOMBASLE SUR MEURTHE | G70: 4.3 | H70: 61 | I70: 147 | J70: 160 | K70: 115 | L70: 197 | M70: 134 | N70: 80 | O70: 95 | P70: 285 | Q70: 117 | R70: 210 | S70: 5 | T70: 145 | U70: 138 | V70: 31 | W70: 130 | X70: 53 | Y70: 217 | Z70: 21 | AA70: 57 | AB70: 191 | AC70: 21 | AD70: 202 | AE70: 82 | AF70: 81 | AG70: 38 | AH70: 35 | AI70: 192 | AJ70: 22 | AK70: 127 | AL70: 240 | AM70: 114 | AN70: 1 | AO70: 151 | AP70: 158 | AQ70: 99
A71: 30 | B71: MARNE-ARDENNES | C71: 2 | D71: CHARLEVILLE MEZIERES | E71: 508802 | F71: CHARLEVILLE NEVERS | G71: 4.0 | H71: 62 | I71: 77 | J71: 24 | K71: 246 | L71: 124 | M71: 29 | N71: 42 | O71: 13 | P71: 209 | Q71: 145 | R71: 35 | S71: 145 | T71: 200 | U71: 137 | V71: 302 | W71: 295 | X71: 244 | Y71: 125 | Z71: 34 | AA71: 180 | AB71: 1 | AC71: 56 | AD71: 23 | AE71: 131 | AF71: 117 | AG71: 70 | AH71: 67 | AI71: 39 | AJ71: 218 | AK71: 68 | AL71: 187 | AM71: 67 | AN71: 1 | AO71: 142 | AP71: 177 | AQ71: 33
